Workbook

Sheet Control
A1: State Inventory Tool - Industrial Processes Module
A2: State | C2: Year
A3: 1. Choose a State
A4: This is very important - it selects the correct default variables for your state.
A6: 2. (OPTIONAL) Enter emission estimates for facilities reporting to EPA's Greenhouse Gas Reporting Program
A8: 3.- 17. Enter emission factors and proceed to the sector worksheet to complete activity data for the following industrial processes:
A9: Either type in the value/percentage or click the default box
A10: CO2 Emission Factors in Units of CO2 Emitted per Unit of Production or Consumption
A11: Process | B11: Default Factor | D11: Factor Used | F11: Use the Default? (Check for Yes)
A12: 3. Cement Production
A13: Clinker | B13: 0.507 | C13: Metric Tons CO2 Emitted / Metric Ton of Clinker Produced
A14: Cement Kiln Dust (CKD) | B14: 0.02 | C14: Metric Tons CKD CO2 Emitted / Metric Ton of Clinker CO2 Emitted
A15: 4. Lime Manufacture
A16: High-Calcium Lime | B16: 0.75 | C16: Metric Tons CO2 Emitted / Metric Ton High-Calcium Lime Produced
A17: Dolomitic Lime | B17: 0.87 | C17: Metric Tons CO2 Emitted / Metric Ton Dolomitic Lime Produced
A18: 5. Limestone and Dolomite Use
A19: Limestone | B19: 0.44 | C19: Metric Tons CO2 Emitted / Metric Ton Limestone (Calcite)
A20: Dolomite | B20: 0.484 | C20: Metric Tons CO2 Emitted / Metric Ton Limestone (Dolomite)
A21: Magnesium Produced from Dolomite | B21: 1.797 | C21: Metric Tons CO2 emitted / Metric Ton Magnesium Produced
A22: 6. Soda Ash Manufacture and Consumption
A23: Manufacture | B23: 0.097 | C23: Metric Tons CO2 Emitted / Metric Ton Trona
A24: Consumption | B24: 0.415 | C24: Metric Tons CO2 Emitted / Metric Ton Soda Ash
A25: 7. Iron and Steel Production
A26: Basic Oxygen Furnace (BOF) at Integrated Mill with Coke Ovens | B26: 1.72 | C26: Metric Tons CO2 Emitted / Metric Ton Crude Steel Produced
A27: Basic Oxygen Furnace (BOF) at Integrated Mill without Coke Ovens | B27: 1.46 | C27: Metric Tons CO2 Emitted / Metric Ton Crude Steel Produced
A28: Electric Arc Furnace (EAF) | B28: 0.08 | C28: Metric Tons CO2 Emitted / Metric Ton Crude Steel Produced
A29: OHF | B29: 1.72 | C29: Metric Tons CO2 Emitted / Metric Ton Crude Steel Produced
A30: 8. Ammonia Manufacture
A31: Ammonia Production | B31: =IF(StateID="KS",EF!C119,EF!C120) -> 1.2 | C31: Metric Tons CO2 Emitted / Metric NH3 Produced
A32: Urea Production | B32: =EF!C121 -> 0.73 | C32: Metric Tons CO2 Emitted / Metric NH3 Produced
A33: 9. Aluminum Production
A34: Aluminum Production - Prebake | B34: =EF!D2 -> 0.4363636364 | C34: Metric Tons CO2 Emitted / Metric Ton Aluminum Produced
A35: Aluminum Production - Søderberg | B35: =EF!D3 -> 0.4636363636 | C35: Metric Tons CO2 Emitted / Metric Ton Aluminum Produced
A37: N2O Emission Factors in Units of N2O Emitted per Unit of Production or Consumption
A38: 10. Nitric Acid Production | B38: 0.008 | C38: Metric Tons N2O Emitted / Metric Ton Nitric Acid Produced
A39: 11. Adipic Acid Production | B39: 0.3 | C39: Metric Tons N2O Emitted / Metric Ton Adipic Acid Produced
A41: HFC, PFC, NF3 and SF6 Emission Factors
A42: 12. Aluminum Production | B42: Variable by year | C42: Metric Tons C Equivalent Emitted / Metric Ton Aluminum Produced
A43: 13. HCFC-22 Production | B43: 0.02 | C43: Metric Tons HFC-23 Emitted / Metric Ton HCFC-22 Produced
A44: 14. Consumption of Substitutes for Ozone-Depleting Substances (ODS)*
A45: 15. Semiconductor Manufacture*
A46: 16. Electric Power Transmission and Distribution | B46: 1 | C46: Metric Tons SF6 Emitted / Metric Ton SF6 Consumed (Sold)
A47: 17. Magnesium Production and Processing
A48: Primary Production | B48: Variable by year | C48: Metric Tons SF6 Emitted / Metric Ton Magnesium Produced
A49: Secondary Production | B49: Variable by year | C49: Metric Tons SF6 Emitted / Metric Ton Magnesium Produced
A50: Casting | B50: Variable by year | C50: Metric Tons SF6 Emitted / Metric Ton Magnesium Processed
A51: These rows are hidden b/c petrochems and si carbide are not in the latest eiip inventory. Use them and the boxes to the right if ever adding them.
A52: CH4 Emission Factors
A53: Petrochemical Production
A54: Carbon Black | B54: 0.011 | C54: Metric Tons CH4 Emitted / Metric Ton Carbon Black Produced
A55: Ethylene | B55: 0.001 | C55: Metric Tons CH4 Emitted / Metric Ton Ethylene Produced
A56: Ethelyene Dichloride | B56: 0.0004 | C56: Metric Tons CH4 Emitted / Metric Ton Ethylene Dichloride Produced
A57: Styrene | B57: 0.004 | C57: Metric Tons CH4 Emitted / Metric Ton Styrene Produced
A58: Methanol | B58: 0.002 | C58: Metric Tons CH4 Emitted / Metric Ton Methanol Produced
A59: Silicon Carbide Production | B59: 0.0116 | C59: Metric Tons CH4 Emitted / Metric Ton Silicon Carbide Produced
A72: ="18. Go to the Summary Worksheet to see the emission totals for "&'List Data'!B3 -> 18. Go to the Summary Worksheet to see the emission totals for Select a State . . .
A77: 19. Export the results for use in the Synthesis Tool.
A83: *According to the most recent inventory guidance, emissions of HFCs, PFCs, NF3, and SF6 from ODS substitutes and semiconductor production can be estimated by apportioning national emissions to each state based on population. Because this tool apportions national emissions based on state population, no emission factors are required for these sources.
A86: Other Factors Used
A87: Conversion Factors
A88: Short tons to Metric tons | B88: Multiply by | C88: 0.9071847
A89: CO2 Equivalent to C Equiv. | B89: Multiply by | C89: =12/44 -> 0.2727272727
A91: Global Warming Potentials
A92: The default GWPs used in this module are from the IPCC Fourth Assessment Report (AR4) but can be adjusted in the cells below to reflect other sources.
A93: Methane (CH4)* | C93: 25
A94: Nitrous Oxide (N2O)* | C94: 298
A95: HFC-23 | C95: 14800
A96: Sulfur Hexafluoride (SF6) | C96: 22800
A97: Nitrogen Trifluoride (NF3) | C97: 17200
A98: * As of January 2014, the UNFCCC approved the use of new (AR4) GWPs for GHG Inventories.

Sheet Dataframe (hidden)
A1: MMTCO2E | B1: Category | C1: 1990 | D1: 1991 | E1: 1992 | F1: 1993 | G1: 1994 | H1: 1995 | I1: 1996 | J1: 1997 | K1: 1998 | L1: 1999 | M1: 2000 | N1: 2001 | O1: 2002 | P1: 2003 | Q1: 2004 | R1: 2005 | S1: 2006 | T1: 2007 | U1: 2008 | V1: 2009 | W1: 2010 | X1: 2011 | Y1: 2012 | Z1: 2013 | AA1: 2014 | AB1: 2015 | AC1: 2016 | AD1: 2017 | AE1: 2018 | AF1: 2019 | AG1: 2020
A2: Carbon Dioxide Emissions | B2: Industrial Processes - Carbon Dioxide Emissions | C2: =('Summary, MTCO2E'!C6)/1000000 -> 0 | D2: =('Summary, MTCO2E'!D6)/1000000 -> 0 | E2: =('Summary, MTCO2E'!E6)/1000000 -> 0 | F2: =('Summary, MTCO2E'!F6)/1000000 -> 0 | G2: =('Summary, MTCO2E'!G6)/1000000 -> 0 | H2: =('Summary, MTCO2E'!H6)/1000000 -> 0 | I2: =('Summary, MTCO2E'!I6)/1000000 -> 0 | J2: =('Summary, MTCO2E'!J6)/1000000 -> 0 | K2: =('Summary, MTCO2E'!K6)/1000000 -> 0 | L2: =('Summary, MTCO2E'!L6)/1000000 -> 0 | M2: =('Summary, MTCO2E'!M6)/1000000 -> 0 | N2: =('Summary, MTCO2E'!N6)/1000000 -> 0 | O2: =('Summary, MTCO2E'!O6)/1000000 -> 0 | P2: =('Summary, MTCO2E'!P6)/1000000 -> 0 | Q2: =('Summary, MTCO2E'!Q6)/1000000 -> 0 | R2: =('Summary, MTCO2E'!R6)/1000000 -> 0 | S2: =('Summary, MTCO2E'!S6)/1000000 -> 0 | T2: =('Summary, MTCO2E'!T6)/1000000 -> 0 | U2: =('Summary, MTCO2E'!U6)/1000000 -> 0 | V2: =('Summary, MTCO2E'!V6)/1000000 -> 0 | W2: =('Summary, MTCO2E'!W6)/1000000 -> 0 | X2: =('Summary, MTCO2E'!X6)/1000000 -> 0 | Y2: =('Summary, MTCO2E'!Y6)/1000000 -> 0 | Z2: =('Summary, MTCO2E'!Z6)/1000000 -> 0 | AA2: =('Summary, MTCO2E'!AA6)/1000000 -> 0 | AB2: =('Summary, MTCO2E'!AB6)/1000000 -> 0 | AC2: =('Summary, MTCO2E'!AC6)/1000000 -> 0 | AD2: =('Summary, MTCO2E'!AD6)/1000000 -> 0 | AE2: =('Summary, MTCO2E'!AE6)/1000000 -> 0 | AF2: =('Summary, MTCO2E'!AF6)/1000000 -> 0 | AG2: =('Summary, MTCO2E'!AG6)/1000000 -> 0
A3: Cement Manufacture | B3: Industrial Processes - Carbon Dioxide Emissions - Cement Manufacture | C3: =('Summary, MTCO2E'!C7)/1000000 -> 0 | D3: =('Summary, MTCO2E'!D7)/1000000 -> 0 | E3: =('Summary, MTCO2E'!E7)/1000000 -> 0 | F3: =('Summary, MTCO2E'!F7)/1000000 -> 0 | G3: =('Summary, MTCO2E'!G7)/1000000 -> 0 | H3: =('Summary, MTCO2E'!H7)/1000000 -> 0 | I3: =('Summary, MTCO2E'!I7)/1000000 -> 0 | J3: =('Summary, MTCO2E'!J7)/1000000 -> 0 | K3: =('Summary, MTCO2E'!K7)/1000000 -> 0 | L3: =('Summary, MTCO2E'!L7)/1000000 -> 0 | M3: =('Summary, MTCO2E'!M7)/1000000 -> 0 | N3: =('Summary, MTCO2E'!N7)/1000000 -> 0 | O3: =('Summary, MTCO2E'!O7)/1000000 -> 0 | P3: =('Summary, MTCO2E'!P7)/1000000 -> 0 | Q3: =('Summary, MTCO2E'!Q7)/1000000 -> 0 | R3: =('Summary, MTCO2E'!R7)/1000000 -> 0 | S3: =('Summary, MTCO2E'!S7)/1000000 -> 0 | T3: =('Summary, MTCO2E'!T7)/1000000 -> 0 | U3: =('Summary, MTCO2E'!U7)/1000000 -> 0 | V3: =('Summary, MTCO2E'!V7)/1000000 -> 0 | W3: =('Summary, MTCO2E'!W7)/1000000 -> 0 | X3: =('Summary, MTCO2E'!X7)/1000000 -> 0 | Y3: =('Summary, MTCO2E'!Y7)/1000000 -> 0 | Z3: =('Summary, MTCO2E'!Z7)/1000000 -> 0 | AA3: =('Summary, MTCO2E'!AA7)/1000000 -> 0 | AB3: =('Summary, MTCO2E'!AB7)/1000000 -> 0 | AC3: =('Summary, MTCO2E'!AC7)/1000000 -> 0 | AD3: =('Summary, MTCO2E'!AD7)/1000000 -> 0 | AE3: =('Summary, MTCO2E'!AE7)/1000000 -> 0 | AF3: =('Summary, MTCO2E'!AF7)/1000000 -> 0 | AG3: =('Summary, MTCO2E'!AG7)/1000000 -> 0
A4: Lime Manufacture | B4: Industrial Processes - Carbon Dioxide Emissions - Lime Manufacture | C4: =('Summary, MTCO2E'!C8)/1000000 -> 0 | D4: =('Summary, MTCO2E'!D8)/1000000 -> 0 | E4: =('Summary, MTCO2E'!E8)/1000000 -> 0 | F4: =('Summary, MTCO2E'!F8)/1000000 -> 0 | G4: =('Summary, MTCO2E'!G8)/1000000 -> 0 | H4: =('Summary, MTCO2E'!H8)/1000000 -> 0 | I4: =('Summary, MTCO2E'!I8)/1000000 -> 0 | J4: =('Summary, MTCO2E'!J8)/1000000 -> 0 | K4: =('Summary, MTCO2E'!K8)/1000000 -> 0 | L4: =('Summary, MTCO2E'!L8)/1000000 -> 0 | M4: =('Summary, MTCO2E'!M8)/1000000 -> 0 | N4: =('Summary, MTCO2E'!N8)/1000000 -> 0 | O4: =('Summary, MTCO2E'!O8)/1000000 -> 0 | P4: =('Summary, MTCO2E'!P8)/1000000 -> 0 | Q4: =('Summary, MTCO2E'!Q8)/1000000 -> 0 | R4: =('Summary, MTCO2E'!R8)/1000000 -> 0 | S4: =('Summary, MTCO2E'!S8)/1000000 -> 0 | T4: =('Summary, MTCO2E'!T8)/1000000 -> 0 | U4: =('Summary, MTCO2E'!U8)/1000000 -> 0 | V4: =('Summary, MTCO2E'!V8)/1000000 -> 0 | W4: =('Summary, MTCO2E'!W8)/1000000 -> 0 | X4: =('Summary, MTCO2E'!X8)/1000000 -> 0 | Y4: =('Summary, MTCO2E'!Y8)/1000000 -> 0 | Z4: =('Summary, MTCO2E'!Z8)/1000000 -> 0 | AA4: =('Summary, MTCO2E'!AA8)/1000000 -> 0 | AB4: =('Summary, MTCO2E'!AB8)/1000000 -> 0 | AC4: =('Summary, MTCO2E'!AC8)/1000000 -> 0 | AD4: =('Summary, MTCO2E'!AD8)/1000000 -> 0 | AE4: =('Summary, MTCO2E'!AE8)/1000000 -> 0 | AF4: =('Summary, MTCO2E'!AF8)/1000000 -> 0 | AG4: =('Summary, MTCO2E'!AG8)/1000000 -> 0
A5: Limestone and Dolomite Use | B5: Industrial Processes - Carbon Dioxide Emissions - Limestone and Dolomite Use | C5: =('Summary, MTCO2E'!C9)/1000000 -> 0 | D5: =('Summary, MTCO2E'!D9)/1000000 -> 0 | E5: =('Summary, MTCO2E'!E9)/1000000 -> 0 | F5: =('Summary, MTCO2E'!F9)/1000000 -> 0 | G5: =('Summary, MTCO2E'!G9)/1000000 -> 0 | H5: =('Summary, MTCO2E'!H9)/1000000 -> 0 | I5: =('Summary, MTCO2E'!I9)/1000000 -> 0 | J5: =('Summary, MTCO2E'!J9)/1000000 -> 0 | K5: =('Summary, MTCO2E'!K9)/1000000 -> 0 | L5: =('Summary, MTCO2E'!L9)/1000000 -> 0 | M5: =('Summary, MTCO2E'!M9)/1000000 -> 0 | N5: =('Summary, MTCO2E'!N9)/1000000 -> 0 | O5: =('Summary, MTCO2E'!O9)/1000000 -> 0 | P5: =('Summary, MTCO2E'!P9)/1000000 -> 0 | Q5: =('Summary, MTCO2E'!Q9)/1000000 -> 0 | R5: =('Summary, MTCO2E'!R9)/1000000 -> 0 | S5: =('Summary, MTCO2E'!S9)/1000000 -> 0 | T5: =('Summary, MTCO2E'!T9)/1000000 -> 0 | U5: =('Summary, MTCO2E'!U9)/1000000 -> 0 | V5: =('Summary, MTCO2E'!V9)/1000000 -> 0 | W5: =('Summary, MTCO2E'!W9)/1000000 -> 0 | X5: =('Summary, MTCO2E'!X9)/1000000 -> 0 | Y5: =('Summary, MTCO2E'!Y9)/1000000 -> 0 | Z5: =('Summary, MTCO2E'!Z9)/1000000 -> 0 | AA5: =('Summary, MTCO2E'!AA9)/1000000 -> 0 | AB5: =('Summary, MTCO2E'!AB9)/1000000 -> 0 | AC5: =('Summary, MTCO2E'!AC9)/1000000 -> 0 | AD5: =('Summary, MTCO2E'!AD9)/1000000 -> 0 | AE5: =('Summary, MTCO2E'!AE9)/1000000 -> 0 | AF5: =('Summary, MTCO2E'!AF9)/1000000 -> 0 | AG5: =('Summary, MTCO2E'!AG9)/1000000 -> 0
A6: Soda Ash | B6: Industrial Processes - Carbon Dioxide Emissions - Soda Ash | C6: =('Summary, MTCO2E'!C10)/1000000 -> 0 | D6: =('Summary, MTCO2E'!D10)/1000000 -> 0 | E6: =('Summary, MTCO2E'!E10)/1000000 -> 0 | F6: =('Summary, MTCO2E'!F10)/1000000 -> 0 | G6: =('Summary, MTCO2E'!G10)/1000000 -> 0 | H6: =('Summary, MTCO2E'!H10)/1000000 -> 0 | I6: =('Summary, MTCO2E'!I10)/1000000 -> 0 | J6: =('Summary, MTCO2E'!J10)/1000000 -> 0 | K6: =('Summary, MTCO2E'!K10)/1000000 -> 0 | L6: =('Summary, MTCO2E'!L10)/1000000 -> 0 | M6: =('Summary, MTCO2E'!M10)/1000000 -> 0 | N6: =('Summary, MTCO2E'!N10)/1000000 -> 0 | O6: =('Summary, MTCO2E'!O10)/1000000 -> 0 | P6: =('Summary, MTCO2E'!P10)/1000000 -> 0 | Q6: =('Summary, MTCO2E'!Q10)/1000000 -> 0 | R6: =('Summary, MTCO2E'!R10)/1000000 -> 0 | S6: =('Summary, MTCO2E'!S10)/1000000 -> 0 | T6: =('Summary, MTCO2E'!T10)/1000000 -> 0 | U6: =('Summary, MTCO2E'!U10)/1000000 -> 0 | V6: =('Summary, MTCO2E'!V10)/1000000 -> 0 | W6: =('Summary, MTCO2E'!W10)/1000000 -> 0 | X6: =('Summary, MTCO2E'!X10)/1000000 -> 0 | Y6: =('Summary, MTCO2E'!Y10)/1000000 -> 0 | Z6: =('Summary, MTCO2E'!Z10)/1000000 -> 0 | AA6: =('Summary, MTCO2E'!AA10)/1000000 -> 0 | AB6: =('Summary, MTCO2E'!AB10)/1000000 -> 0 | AC6: =('Summary, MTCO2E'!AC10)/1000000 -> 0 | AD6: =('Summary, MTCO2E'!AD10)/1000000 -> 0 | AE6: =('Summary, MTCO2E'!AE10)/1000000 -> 0 | AF6: =('Summary, MTCO2E'!AF10)/1000000 -> 0 | AG6: =('Summary, MTCO2E'!AG10)/1000000 -> 0
A7: Aluminum Production, CO2 | B7: Industrial Processes - Carbon Dioxide Emissions - Aluminum Production, CO2 | C7: =('Summary, MTCO2E'!C11)/1000000 -> 0 | D7: =('Summary, MTCO2E'!D11)/1000000 -> 0 | E7: =('Summary, MTCO2E'!E11)/1000000 -> 0 | F7: =('Summary, MTCO2E'!F11)/1000000 -> 0 | G7: =('Summary, MTCO2E'!G11)/1000000 -> 0 | H7: =('Summary, MTCO2E'!H11)/1000000 -> 0 | I7: =('Summary, MTCO2E'!I11)/1000000 -> 0 | J7: =('Summary, MTCO2E'!J11)/1000000 -> 0 | K7: =('Summary, MTCO2E'!K11)/1000000 -> 0 | L7: =('Summary, MTCO2E'!L11)/1000000 -> 0 | M7: =('Summary, MTCO2E'!M11)/1000000 -> 0 | N7: =('Summary, MTCO2E'!N11)/1000000 -> 0 | O7: =('Summary, MTCO2E'!O11)/1000000 -> 0 | P7: =('Summary, MTCO2E'!P11)/1000000 -> 0 | Q7: =('Summary, MTCO2E'!Q11)/1000000 -> 0 | R7: =('Summary, MTCO2E'!R11)/1000000 -> 0 | S7: =('Summary, MTCO2E'!S11)/1000000 -> 0 | T7: =('Summary, MTCO2E'!T11)/1000000 -> 0 | U7: =('Summary, MTCO2E'!U11)/1000000 -> 0 | V7: =('Summary, MTCO2E'!V11)/1000000 -> 0 | W7: =('Summary, MTCO2E'!W11)/1000000 -> 0 | X7: =('Summary, MTCO2E'!X11)/1000000 -> 0 | Y7: =('Summary, MTCO2E'!Y11)/1000000 -> 0 | Z7: =('Summary, MTCO2E'!Z11)/1000000 -> 0 | AA7: =('Summary, MTCO2E'!AA11)/1000000 -> 0 | AB7: =('Summary, MTCO2E'!AB11)/1000000 -> 0 | AC7: =('Summary, MTCO2E'!AC11)/1000000 -> 0 | AD7: =('Summary, MTCO2E'!AD11)/1000000 -> 0 | AE7: =('Summary, MTCO2E'!AE11)/1000000 -> 0 | AF7: =('Summary, MTCO2E'!AF11)/1000000 -> 0 | AG7: =('Summary, MTCO2E'!AG11)/1000000 -> 0
A8: Iron & Steel Production | B8: Industrial Processes - Carbon Dioxide Emissions - Iron & Steel Production | C8: =('Summary, MTCO2E'!C12)/1000000 -> 0 | D8: =('Summary, MTCO2E'!D12)/1000000 -> 0 | E8: =('Summary, MTCO2E'!E12)/1000000 -> 0 | F8: =('Summary, MTCO2E'!F12)/1000000 -> 0 | G8: =('Summary, MTCO2E'!G12)/1000000 -> 0 | H8: =('Summary, MTCO2E'!H12)/1000000 -> 0 | I8: =('Summary, MTCO2E'!I12)/1000000 -> 0 | J8: =('Summary, MTCO2E'!J12)/1000000 -> 0 | K8: =('Summary, MTCO2E'!K12)/1000000 -> 0 | L8: =('Summary, MTCO2E'!L12)/1000000 -> 0 | M8: =('Summary, MTCO2E'!M12)/1000000 -> 0 | N8: =('Summary, MTCO2E'!N12)/1000000 -> 0 | O8: =('Summary, MTCO2E'!O12)/1000000 -> 0 | P8: =('Summary, MTCO2E'!P12)/1000000 -> 0 | Q8: =('Summary, MTCO2E'!Q12)/1000000 -> 0 | R8: =('Summary, MTCO2E'!R12)/1000000 -> 0 | S8: =('Summary, MTCO2E'!S12)/1000000 -> 0 | T8: =('Summary, MTCO2E'!T12)/1000000 -> 0 | U8: =('Summary, MTCO2E'!U12)/1000000 -> 0 | V8: =('Summary, MTCO2E'!V12)/1000000 -> 0 | W8: =('Summary, MTCO2E'!W12)/1000000 -> 0 | X8: =('Summary, MTCO2E'!X12)/1000000 -> 0 | Y8: =('Summary, MTCO2E'!Y12)/1000000 -> 0 | Z8: =('Summary, MTCO2E'!Z12)/1000000 -> 0 | AA8: =('Summary, MTCO2E'!AA12)/1000000 -> 0 | AB8: =('Summary, MTCO2E'!AB12)/1000000 -> 0 | AC8: =('Summary, MTCO2E'!AC12)/1000000 -> 0 | AD8: =('Summary, MTCO2E'!AD12)/1000000 -> 0 | AE8: =('Summary, MTCO2E'!AE12)/1000000 -> 0 | AF8: =('Summary, MTCO2E'!AF12)/1000000 -> 0 | AG8: =('Summary, MTCO2E'!AG12)/1000000 -> 0
A9: Ammonia Production | B9: Industrial Processes - Carbon Dioxide Emissions - Ammonia Production | C9: =('Summary, MTCO2E'!C13)/1000000 -> 0 | D9: =('Summary, MTCO2E'!D13)/1000000 -> 0 | E9: =('Summary, MTCO2E'!E13)/1000000 -> 0 | F9: =('Summary, MTCO2E'!F13)/1000000 -> 0 | G9: =('Summary, MTCO2E'!G13)/1000000 -> 0 | H9: =('Summary, MTCO2E'!H13)/1000000 -> 0 | I9: =('Summary, MTCO2E'!I13)/1000000 -> 0 | J9: =('Summary, MTCO2E'!J13)/1000000 -> 0 | K9: =('Summary, MTCO2E'!K13)/1000000 -> 0 | L9: =('Summary, MTCO2E'!L13)/1000000 -> 0 | M9: =('Summary, MTCO2E'!M13)/1000000 -> 0 | N9: =('Summary, MTCO2E'!N13)/1000000 -> 0 | O9: =('Summary, MTCO2E'!O13)/1000000 -> 0 | P9: =('Summary, MTCO2E'!P13)/1000000 -> 0 | Q9: =('Summary, MTCO2E'!Q13)/1000000 -> 0 | R9: =('Summary, MTCO2E'!R13)/1000000 -> 0 | S9: =('Summary, MTCO2E'!S13)/1000000 -> 0 | T9: =('Summary, MTCO2E'!T13)/1000000 -> 0 | U9: =('Summary, MTCO2E'!U13)/1000000 -> 0 | V9: =('Summary, MTCO2E'!V13)/1000000 -> 0 | W9: =('Summary, MTCO2E'!W13)/1000000 -> 0 | X9: =('Summary, MTCO2E'!X13)/1000000 -> 0 | Y9: =('Summary, MTCO2E'!Y13)/1000000 -> 0 | Z9: =('Summary, MTCO2E'!Z13)/1000000 -> 0 | AA9: =('Summary, MTCO2E'!AA13)/1000000 -> 0 | AB9: =('Summary, MTCO2E'!AB13)/1000000 -> 0 | AC9: =('Summary, MTCO2E'!AC13)/1000000 -> 0 | AD9: =('Summary, MTCO2E'!AD13)/1000000 -> 0 | AE9: =('Summary, MTCO2E'!AE13)/1000000 -> 0 | AF9: =('Summary, MTCO2E'!AF13)/1000000 -> 0 | AG9: =('Summary, MTCO2E'!AG13)/1000000 -> 0
A10: Urea Consumption | B10: Industrial Processes - Carbon Dioxide Emissions - Urea Consumption | C10: =('Summary, MTCO2E'!C14)/1000000 -> 0 | D10: =('Summary, MTCO2E'!D14)/1000000 -> 0 | E10: =('Summary, MTCO2E'!E14)/1000000 -> 0 | F10: =('Summary, MTCO2E'!F14)/1000000 -> 0 | G10: =('Summary, MTCO2E'!G14)/1000000 -> 0 | H10: =('Summary, MTCO2E'!H14)/1000000 -> 0 | I10: =('Summary, MTCO2E'!I14)/1000000 -> 0 | J10: =('Summary, MTCO2E'!J14)/1000000 -> 0 | K10: =('Summary, MTCO2E'!K14)/1000000 -> 0 | L10: =('Summary, MTCO2E'!L14)/1000000 -> 0 | M10: =('Summary, MTCO2E'!M14)/1000000 -> 0 | N10: =('Summary, MTCO2E'!N14)/1000000 -> 0 | O10: =('Summary, MTCO2E'!O14)/1000000 -> 0 | P10: =('Summary, MTCO2E'!P14)/1000000 -> 0 | Q10: =('Summary, MTCO2E'!Q14)/1000000 -> 0 | R10: =('Summary, MTCO2E'!R14)/1000000 -> 0 | S10: =('Summary, MTCO2E'!S14)/1000000 -> 0 | T10: =('Summary, MTCO2E'!T14)/1000000 -> 0 | U10: =('Summary, MTCO2E'!U14)/1000000 -> 0 | V10: =('Summary, MTCO2E'!V14)/1000000 -> 0 | W10: =('Summary, MTCO2E'!W14)/1000000 -> 0 | X10: =('Summary, MTCO2E'!X14)/1000000 -> 0 | Y10: =('Summary, MTCO2E'!Y14)/1000000 -> 0 | Z10: =('Summary, MTCO2E'!Z14)/1000000 -> 0 | AA10: =('Summary, MTCO2E'!AA14)/1000000 -> 0 | AB10: =('Summary, MTCO2E'!AB14)/1000000 -> 0 | AC10: =('Summary, MTCO2E'!AC14)/1000000 -> 0 | AD10: =('Summary, MTCO2E'!AD14)/1000000 -> 0 | AE10: =('Summary, MTCO2E'!AE14)/1000000 -> 0 | AF10: =('Summary, MTCO2E'!AF14)/1000000 -> 0 | AG10: =('Summary, MTCO2E'!AG14)/1000000 -> 0
A11: Nitrous Oxide Emissions | B11: Industrial Processes - Nitrous Oxide Emissions | C11: =('Summary, MTCO2E'!C15)/1000000 -> 0 | D11: =('Summary, MTCO2E'!D15)/1000000 -> 0 | E11: =('Summary, MTCO2E'!E15)/1000000 -> 0 | F11: =('Summary, MTCO2E'!F15)/1000000 -> 0 | G11: =('Summary, MTCO2E'!G15)/1000000 -> 0 | H11: =('Summary, MTCO2E'!H15)/1000000 -> 0 | I11: =('Summary, MTCO2E'!I15)/1000000 -> 0 | J11: =('Summary, MTCO2E'!J15)/1000000 -> 0 | K11: =('Summary, MTCO2E'!K15)/1000000 -> 0 | L11: =('Summary, MTCO2E'!L15)/1000000 -> 0 | M11: =('Summary, MTCO2E'!M15)/1000000 -> 0 | N11: =('Summary, MTCO2E'!N15)/1000000 -> 0 | O11: =('Summary, MTCO2E'!O15)/1000000 -> 0 | P11: =('Summary, MTCO2E'!P15)/1000000 -> 0 | Q11: =('Summary, MTCO2E'!Q15)/1000000 -> 0 | R11: =('Summary, MTCO2E'!R15)/1000000 -> 0 | S11: =('Summary, MTCO2E'!S15)/1000000 -> 0 | T11: =('Summary, MTCO2E'!T15)/1000000 -> 0 | U11: =('Summary, MTCO2E'!U15)/1000000 -> 0 | V11: =('Summary, MTCO2E'!V15)/1000000 -> 0 | W11: =('Summary, MTCO2E'!W15)/1000000 -> 0 | X11: =('Summary, MTCO2E'!X15)/1000000 -> 0 | Y11: =('Summary, MTCO2E'!Y15)/1000000 -> 0 | Z11: =('Summary, MTCO2E'!Z15)/1000000 -> 0 | AA11: =('Summary, MTCO2E'!AA15)/1000000 -> 0 | AB11: =('Summary, MTCO2E'!AB15)/1000000 -> 0 | AC11: =('Summary, MTCO2E'!AC15)/1000000 -> 0 | AD11: =('Summary, MTCO2E'!AD15)/1000000 -> 0 | AE11: =('Summary, MTCO2E'!AE15)/1000000 -> 0 | AF11: =('Summary, MTCO2E'!AF15)/1000000 -> 0 | AG11: =('Summary, MTCO2E'!AG15)/1000000 -> 0
A12: Nitric Acid Production | B12: Industrial Processes - Nitrous Oxide Emissions - Nitric Acid Production | C12: =('Summary, MTCO2E'!C16)/1000000 -> 0 | D12: =('Summary, MTCO2E'!D16)/1000000 -> 0 | E12: =('Summary, MTCO2E'!E16)/1000000 -> 0 | F12: =('Summary, MTCO2E'!F16)/1000000 -> 0 | G12: =('Summary, MTCO2E'!G16)/1000000 -> 0 | H12: =('Summary, MTCO2E'!H16)/1000000 -> 0 | I12: =('Summary, MTCO2E'!I16)/1000000 -> 0 | J12: =('Summary, MTCO2E'!J16)/1000000 -> 0 | K12: =('Summary, MTCO2E'!K16)/1000000 -> 0 | L12: =('Summary, MTCO2E'!L16)/1000000 -> 0 | M12: =('Summary, MTCO2E'!M16)/1000000 -> 0 | N12: =('Summary, MTCO2E'!N16)/1000000 -> 0 | O12: =('Summary, MTCO2E'!O16)/1000000 -> 0 | P12: =('Summary, MTCO2E'!P16)/1000000 -> 0 | Q12: =('Summary, MTCO2E'!Q16)/1000000 -> 0 | R12: =('Summary, MTCO2E'!R16)/1000000 -> 0 | S12: =('Summary, MTCO2E'!S16)/1000000 -> 0 | T12: =('Summary, MTCO2E'!T16)/1000000 -> 0 | U12: =('Summary, MTCO2E'!U16)/1000000 -> 0 | V12: =('Summary, MTCO2E'!V16)/1000000 -> 0 | W12: =('Summary, MTCO2E'!W16)/1000000 -> 0 | X12: =('Summary, MTCO2E'!X16)/1000000 -> 0 | Y12: =('Summary, MTCO2E'!Y16)/1000000 -> 0 | Z12: =('Summary, MTCO2E'!Z16)/1000000 -> 0 | AA12: =('Summary, MTCO2E'!AA16)/1000000 -> 0 | AB12: =('Summary, MTCO2E'!AB16)/1000000 -> 0 | AC12: =('Summary, MTCO2E'!AC16)/1000000 -> 0 | AD12: =('Summary, MTCO2E'!AD16)/1000000 -> 0 | AE12: =('Summary, MTCO2E'!AE16)/1000000 -> 0 | AF12: =('Summary, MTCO2E'!AF16)/1000000 -> 0 | AG12: =('Summary, MTCO2E'!AG16)/1000000 -> 0
A13: Adipic Acid Production | B13: Industrial Processes - Nitrous Oxide Emissions - Adipic Acid Production | C13: =('Summary, MTCO2E'!C17)/1000000 -> 0 | D13: =('Summary, MTCO2E'!D17)/1000000 -> 0 | E13: =('Summary, MTCO2E'!E17)/1000000 -> 0 | F13: =('Summary, MTCO2E'!F17)/1000000 -> 0 | G13: =('Summary, MTCO2E'!G17)/1000000 -> 0 | H13: =('Summary, MTCO2E'!H17)/1000000 -> 0 | I13: =('Summary, MTCO2E'!I17)/1000000 -> 0 | J13: =('Summary, MTCO2E'!J17)/1000000 -> 0 | K13: =('Summary, MTCO2E'!K17)/1000000 -> 0 | L13: =('Summary, MTCO2E'!L17)/1000000 -> 0 | M13: =('Summary, MTCO2E'!M17)/1000000 -> 0 | N13: =('Summary, MTCO2E'!N17)/1000000 -> 0 | O13: =('Summary, MTCO2E'!O17)/1000000 -> 0 | P13: =('Summary, MTCO2E'!P17)/1000000 -> 0 | Q13: =('Summary, MTCO2E'!Q17)/1000000 -> 0 | R13: =('Summary, MTCO2E'!R17)/1000000 -> 0 | S13: =('Summary, MTCO2E'!S17)/1000000 -> 0 | T13: =('Summary, MTCO2E'!T17)/1000000 -> 0 | U13: =('Summary, MTCO2E'!U17)/1000000 -> 0 | V13: =('Summary, MTCO2E'!V17)/1000000 -> 0 | W13: =('Summary, MTCO2E'!W17)/1000000 -> 0 | X13: =('Summary, MTCO2E'!X17)/1000000 -> 0 | Y13: =('Summary, MTCO2E'!Y17)/1000000 -> 0 | Z13: =('Summary, MTCO2E'!Z17)/1000000 -> 0 | AA13: =('Summary, MTCO2E'!AA17)/1000000 -> 0 | AB13: =('Summary, MTCO2E'!AB17)/1000000 -> 0 | AC13: =('Summary, MTCO2E'!AC17)/1000000 -> 0 | AD13: =('Summary, MTCO2E'!AD17)/1000000 -> 0 | AE13: =('Summary, MTCO2E'!AE17)/1000000 -> 0 | AF13: =('Summary, MTCO2E'!AF17)/1000000 -> 0 | AG13: =('Summary, MTCO2E'!AG17)/1000000 -> 0
A14: HFC, PFC, NF3, and SF6 Emissions | B14: Industrial Processes - HFC, PFC, NF3, and SF6 Emissions | C14: =('Summary, MTCO2E'!C18)/1000000 ->  | D14: =('Summary, MTCO2E'!D18)/1000000 ->  | E14: =('Summary, MTCO2E'!E18)/1000000 ->  | F14: =('Summary, MTCO2E'!F18)/1000000 ->  | G14: =('Summary, MTCO2E'!G18)/1000000 ->  | H14: =('Summary, MTCO2E'!H18)/1000000 ->  | I14: =('Summary, MTCO2E'!I18)/1000000 ->  | J14: =('Summary, MTCO2E'!J18)/1000000 ->  | K14: =('Summary, MTCO2E'!K18)/1000000 ->  | L14: =('Summary, MTCO2E'!L18)/1000000 ->  | M14: =('Summary, MTCO2E'!M18)/1000000 ->  | N14: =('Summary, MTCO2E'!N18)/1000000 ->  | O14: =('Summary, MTCO2E'!O18)/1000000 ->  | P14: =('Summary, MTCO2E'!P18)/1000000 ->  | Q14: =('Summary, MTCO2E'!Q18)/1000000 ->  | R14: =('Summary, MTCO2E'!R18)/1000000 ->  | S14: =('Summary, MTCO2E'!S18)/1000000 ->  | T14: =('Summary, MTCO2E'!T18)/1000000 ->  | U14: =('Summary, MTCO2E'!U18)/1000000 ->  | V14: =('Summary, MTCO2E'!V18)/1000000 ->  | W14: =('Summary, MTCO2E'!W18)/1000000 ->  | X14: =('Summary, MTCO2E'!X18)/1000000 ->  | Y14: =('Summary, MTCO2E'!Y18)/1000000 ->  | Z14: =('Summary, MTCO2E'!Z18)/1000000 ->  | AA14: =('Summary, MTCO2E'!AA18)/1000000 ->  | AB14: =('Summary, MTCO2E'!AB18)/1000000 ->  | AC14: =('Summary, MTCO2E'!AC18)/1000000 ->  | AD14: =('Summary, MTCO2E'!AD18)/1000000 ->  | AE14: =('Summary, MTCO2E'!AE18)/1000000 ->  | AF14: =('Summary, MTCO2E'!AF18)/1000000 ->  | AG14: =('Summary, MTCO2E'!AG18)/1000000 -> 
A15: ODS Substitutes | B15: Industrial Processes - HFC, PFC, NF3, and SF6 Emissions - ODS Substitutes | C15: =('Summary, MTCO2E'!C19)/1000000 -> 0 | D15: =('Summary, MTCO2E'!D19)/1000000 -> 0 | E15: =('Summary, MTCO2E'!E19)/1000000 -> 0 | F15: =('Summary, MTCO2E'!F19)/1000000 -> 0 | G15: =('Summary, MTCO2E'!G19)/1000000 -> 0 | H15: =('Summary, MTCO2E'!H19)/1000000 -> 0 | I15: =('Summary, MTCO2E'!I19)/1000000 -> 0 | J15: =('Summary, MTCO2E'!J19)/1000000 -> 0 | K15: =('Summary, MTCO2E'!K19)/1000000 -> 0 | L15: =('Summary, MTCO2E'!L19)/1000000 -> 0 | M15: =('Summary, MTCO2E'!M19)/1000000 -> 0 | N15: =('Summary, MTCO2E'!N19)/1000000 -> 0 | O15: =('Summary, MTCO2E'!O19)/1000000 -> 0 | P15: =('Summary, MTCO2E'!P19)/1000000 -> 0 | Q15: =('Summary, MTCO2E'!Q19)/1000000 -> 0 | R15: =('Summary, MTCO2E'!R19)/1000000 -> 0 | S15: =('Summary, MTCO2E'!S19)/1000000 -> 0 | T15: =('Summary, MTCO2E'!T19)/1000000 -> 0 | U15: =('Summary, MTCO2E'!U19)/1000000 -> 0 | V15: =('Summary, MTCO2E'!V19)/1000000 -> 0 | W15: =('Summary, MTCO2E'!W19)/1000000 -> 0 | X15: =('Summary, MTCO2E'!X19)/1000000 -> 0 | Y15: =('Summary, MTCO2E'!Y19)/1000000 -> 0 | Z15: =('Summary, MTCO2E'!Z19)/1000000 -> 0 | AA15: =('Summary, MTCO2E'!AA19)/1000000 -> 0 | AB15: =('Summary, MTCO2E'!AB19)/1000000 -> 0 | AC15: =('Summary, MTCO2E'!AC19)/1000000 -> 0 | AD15: =('Summary, MTCO2E'!AD19)/1000000 -> 0 | AE15: =('Summary, MTCO2E'!AE19)/1000000 -> 0 | AF15: =('Summary, MTCO2E'!AF19)/1000000 -> 0 | AG15: =('Summary, MTCO2E'!AG19)/1000000 -> 0
A16: Semiconductor Manufacturing | B16: Industrial Processes - HFC, PFC, NF3, and SF6 Emissions - Semiconductor Manufacturing | C16: =('Summary, MTCO2E'!C20)/1000000 ->  | D16: =('Summary, MTCO2E'!D20)/1000000 ->  | E16: =('Summary, MTCO2E'!E20)/1000000 ->  | F16: =('Summary, MTCO2E'!F20)/1000000 ->  | G16: =('Summary, MTCO2E'!G20)/1000000 ->  | H16: =('Summary, MTCO2E'!H20)/1000000 ->  | I16: =('Summary, MTCO2E'!I20)/1000000 ->  | J16: =('Summary, MTCO2E'!J20)/1000000 ->  | K16: =('Summary, MTCO2E'!K20)/1000000 ->  | L16: =('Summary, MTCO2E'!L20)/1000000 ->  | M16: =('Summary, MTCO2E'!M20)/1000000 ->  | N16: =('Summary, MTCO2E'!N20)/1000000 ->  | O16: =('Summary, MTCO2E'!O20)/1000000 ->  | P16: =('Summary, MTCO2E'!P20)/1000000 ->  | Q16: =('Summary, MTCO2E'!Q20)/1000000 ->  | R16: =('Summary, MTCO2E'!R20)/1000000 ->  | S16: =('Summary, MTCO2E'!S20)/1000000 ->  | T16: =('Summary, MTCO2E'!T20)/1000000 ->  | U16: =('Summary, MTCO2E'!U20)/1000000 ->  | V16: =('Summary, MTCO2E'!V20)/1000000 ->  | W16: =('Summary, MTCO2E'!W20)/1000000 ->  | X16: =('Summary, MTCO2E'!X20)/1000000 ->  | Y16: =('Summary, MTCO2E'!Y20)/1000000 ->  | Z16: =('Summary, MTCO2E'!Z20)/1000000 ->  | AA16: =('Summary, MTCO2E'!AA20)/1000000 ->  | AB16: =('Summary, MTCO2E'!AB20)/1000000 ->  | AC16: =('Summary, MTCO2E'!AC20)/1000000 ->  | AD16: =('Summary, MTCO2E'!AD20)/1000000 ->  | AE16: =('Summary, MTCO2E'!AE20)/1000000 ->  | AF16: =('Summary, MTCO2E'!AF20)/1000000 ->  | AG16: =('Summary, MTCO2E'!AG20)/1000000 -> 
A17: Magnesium Production | B17: Industrial Processes - HFC, PFC, NF3, and SF6 Emissions - Magnesium Production | C17: =('Summary, MTCO2E'!C21)/1000000 -> 0 | D17: =('Summary, MTCO2E'!D21)/1000000 -> 0 | E17: =('Summary, MTCO2E'!E21)/1000000 -> 0 | F17: =('Summary, MTCO2E'!F21)/1000000 -> 0 | G17: =('Summary, MTCO2E'!G21)/1000000 -> 0 | H17: =('Summary, MTCO2E'!H21)/1000000 -> 0 | I17: =('Summary, MTCO2E'!I21)/1000000 -> 0 | J17: =('Summary, MTCO2E'!J21)/1000000 -> 0 | K17: =('Summary, MTCO2E'!K21)/1000000 -> 0 | L17: =('Summary, MTCO2E'!L21)/1000000 -> 0 | M17: =('Summary, MTCO2E'!M21)/1000000 -> 0 | N17: =('Summary, MTCO2E'!N21)/1000000 -> 0 | O17: =('Summary, MTCO2E'!O21)/1000000 -> 0 | P17: =('Summary, MTCO2E'!P21)/1000000 -> 0 | Q17: =('Summary, MTCO2E'!Q21)/1000000 -> 0 | R17: =('Summary, MTCO2E'!R21)/1000000 -> 0 | S17: =('Summary, MTCO2E'!S21)/1000000 -> 0 | T17: =('Summary, MTCO2E'!T21)/1000000 -> 0 | U17: =('Summary, MTCO2E'!U21)/1000000 -> 0 | V17: =('Summary, MTCO2E'!V21)/1000000 -> 0 | W17: =('Summary, MTCO2E'!W21)/1000000 -> 0 | X17: =('Summary, MTCO2E'!X21)/1000000 -> 0 | Y17: =('Summary, MTCO2E'!Y21)/1000000 -> 0 | Z17: =('Summary, MTCO2E'!Z21)/1000000 -> 0 | AA17: =('Summary, MTCO2E'!AA21)/1000000 -> 0 | AB17: =('Summary, MTCO2E'!AB21)/1000000 -> 0 | AC17: =('Summary, MTCO2E'!AC21)/1000000 -> 0 | AD17: =('Summary, MTCO2E'!AD21)/1000000 -> 0 | AE17: =('Summary, MTCO2E'!AE21)/1000000 -> 0 | AF17: =('Summary, MTCO2E'!AF21)/1000000 -> 0 | AG17: =('Summary, MTCO2E'!AG21)/1000000 -> 0
A18: Electric Power Transmission and Distribution Systems | B18: Industrial Processes - HFC, PFC, NF3, and SF6 Emissions - Electric Power Transmission and Distribution Systems | C18: =('Summary, MTCO2E'!C22)/1000000 -> 0 | D18: =('Summary, MTCO2E'!D22)/1000000 -> 0 | E18: =('Summary, MTCO2E'!E22)/1000000 -> 0 | F18: =('Summary, MTCO2E'!F22)/1000000 -> 0 | G18: =('Summary, MTCO2E'!G22)/1000000 -> 0 | H18: =('Summary, MTCO2E'!H22)/1000000 -> 0 | I18: =('Summary, MTCO2E'!I22)/1000000 -> 0 | J18: =('Summary, MTCO2E'!J22)/1000000 -> 0 | K18: =('Summary, MTCO2E'!K22)/1000000 -> 0 | L18: =('Summary, MTCO2E'!L22)/1000000 -> 0 | M18: =('Summary, MTCO2E'!M22)/1000000 -> 0 | N18: =('Summary, MTCO2E'!N22)/1000000 -> 0 | O18: =('Summary, MTCO2E'!O22)/1000000 -> 0 | P18: =('Summary, MTCO2E'!P22)/1000000 -> 0 | Q18: =('Summary, MTCO2E'!Q22)/1000000 -> 0 | R18: =('Summary, MTCO2E'!R22)/1000000 -> 0 | S18: =('Summary, MTCO2E'!S22)/1000000 -> 0 | T18: =('Summary, MTCO2E'!T22)/1000000 -> 0 | U18: =('Summary, MTCO2E'!U22)/1000000 -> 0 | V18: =('Summary, MTCO2E'!V22)/1000000 -> 0 | W18: =('Summary, MTCO2E'!W22)/1000000 -> 0 | X18: =('Summary, MTCO2E'!X22)/1000000 -> 0 | Y18: =('Summary, MTCO2E'!Y22)/1000000 -> 0 | Z18: =('Summary, MTCO2E'!Z22)/1000000 -> 0 | AA18: =('Summary, MTCO2E'!AA22)/1000000 -> 0 | AB18: =('Summary, MTCO2E'!AB22)/1000000 -> 0 | AC18: =('Summary, MTCO2E'!AC22)/1000000 -> 0 | AD18: =('Summary, MTCO2E'!AD22)/1000000 -> 0 | AE18: =('Summary, MTCO2E'!AE22)/1000000 -> 0 | AF18: =('Summary, MTCO2E'!AF22)/1000000 -> 0 | AG18: =('Summary, MTCO2E'!AG22)/1000000 -> 0
A19: HCFC-22 Production | B19: Industrial Processes - HFC, PFC, NF3, and SF6 Emissions - HCFC-22 Production | C19: =('Summary, MTCO2E'!C23)/1000000 -> 0 | D19: =('Summary, MTCO2E'!D23)/1000000 -> 0 | E19: =('Summary, MTCO2E'!E23)/1000000 -> 0 | F19: =('Summary, MTCO2E'!F23)/1000000 -> 0 | G19: =('Summary, MTCO2E'!G23)/1000000 -> 0 | H19: =('Summary, MTCO2E'!H23)/1000000 -> 0 | I19: =('Summary, MTCO2E'!I23)/1000000 -> 0 | J19: =('Summary, MTCO2E'!J23)/1000000 -> 0 | K19: =('Summary, MTCO2E'!K23)/1000000 -> 0 | L19: =('Summary, MTCO2E'!L23)/1000000 -> 0 | M19: =('Summary, MTCO2E'!M23)/1000000 -> 0 | N19: =('Summary, MTCO2E'!N23)/1000000 -> 0 | O19: =('Summary, MTCO2E'!O23)/1000000 -> 0 | P19: =('Summary, MTCO2E'!P23)/1000000 -> 0 | Q19: =('Summary, MTCO2E'!Q23)/1000000 -> 0 | R19: =('Summary, MTCO2E'!R23)/1000000 -> 0 | S19: =('Summary, MTCO2E'!S23)/1000000 -> 0 | T19: =('Summary, MTCO2E'!T23)/1000000 -> 0 | U19: =('Summary, MTCO2E'!U23)/1000000 -> 0 | V19: =('Summary, MTCO2E'!V23)/1000000 -> 0 | W19: =('Summary, MTCO2E'!W23)/1000000 -> 0 | X19: =('Summary, MTCO2E'!X23)/1000000 -> 0 | Y19: =('Summary, MTCO2E'!Y23)/1000000 -> 0 | Z19: =('Summary, MTCO2E'!Z23)/1000000 -> 0 | AA19: =('Summary, MTCO2E'!AA23)/1000000 -> 0 | AB19: =('Summary, MTCO2E'!AB23)/1000000 -> 0 | AC19: =('Summary, MTCO2E'!AC23)/1000000 -> 0 | AD19: =('Summary, MTCO2E'!AD23)/1000000 -> 0 | AE19: =('Summary, MTCO2E'!AE23)/1000000 -> 0 | AF19: =('Summary, MTCO2E'!AF23)/1000000 -> 0 | AG19: =('Summary, MTCO2E'!AG23)/1000000 -> 0
A20: Aluminum Production, PFCs | B20: Industrial Processes - HFC, PFC, NF3, and SF6 Emissions - Aluminum Production, PFCs | C20: =('Summary, MTCO2E'!C24)/1000000 -> 0 | D20: =('Summary, MTCO2E'!D24)/1000000 -> 0 | E20: =('Summary, MTCO2E'!E24)/1000000 -> 0 | F20: =('Summary, MTCO2E'!F24)/1000000 -> 0 | G20: =('Summary, MTCO2E'!G24)/1000000 -> 0 | H20: =('Summary, MTCO2E'!H24)/1000000 -> 0 | I20: =('Summary, MTCO2E'!I24)/1000000 -> 0 | J20: =('Summary, MTCO2E'!J24)/1000000 -> 0 | K20: =('Summary, MTCO2E'!K24)/1000000 -> 0 | L20: =('Summary, MTCO2E'!L24)/1000000 -> 0 | M20: =('Summary, MTCO2E'!M24)/1000000 -> 0 | N20: =('Summary, MTCO2E'!N24)/1000000 -> 0 | O20: =('Summary, MTCO2E'!O24)/1000000 -> 0 | P20: =('Summary, MTCO2E'!P24)/1000000 -> 0 | Q20: =('Summary, MTCO2E'!Q24)/1000000 -> 0 | R20: =('Summary, MTCO2E'!R24)/1000000 -> 0 | S20: =('Summary, MTCO2E'!S24)/1000000 -> 0 | T20: =('Summary, MTCO2E'!T24)/1000000 -> 0 | U20: =('Summary, MTCO2E'!U24)/1000000 -> 0 | V20: =('Summary, MTCO2E'!V24)/1000000 -> 0 | W20: =('Summary, MTCO2E'!W24)/1000000 -> 0 | X20: =('Summary, MTCO2E'!X24)/1000000 -> 0 | Y20: =('Summary, MTCO2E'!Y24)/1000000 -> 0 | Z20: =('Summary, MTCO2E'!Z24)/1000000 -> 0 | AA20: =('Summary, MTCO2E'!AA24)/1000000 -> 0 | AB20: =('Summary, MTCO2E'!AB24)/1000000 -> 0 | AC20: =('Summary, MTCO2E'!AC24)/1000000 -> 0 | AD20: =('Summary, MTCO2E'!AD24)/1000000 -> 0 | AE20: =('Summary, MTCO2E'!AE24)/1000000 -> 0 | AF20: =('Summary, MTCO2E'!AF24)/1000000 -> 0 | AG20: =('Summary, MTCO2E'!AG24)/1000000 -> 0

Sheet GHGRP Data Input
B1: ="2. (OPTIONAL) Greenhouse Gas Reporting Program Data Inputs for "&'List Data'!B3 -> 2. (OPTIONAL) Greenhouse Gas Reporting Program Data Inputs for Select a State . . .
B5: Emissions (MTCO2E) | C5: 2010 | D5: 2011 | E5: 2012 | F5: 2013 | G5: 2014 | H5: 2015 | I5: 2016 | J5: 2017 | K5: 2018 | L5: 2019 | M5: 2020
B6: Cement Production, CO2
B7: Lime Manufacturing, CO2
B8: Soda Ash Manufacturing, CO2
B9: Ammonia Manufacturing, CO2
B10: Nitric Acid Production, N2O
B11: Adipic Acid Production, N2O
B12: Aluminum Production, PFC
B13: Aluminum Production, CO2
B14: HCFC-22 Production, HFC-23 Destruction Processes

Sheet Cement
B1: ="3. Cement Production in "&'List Data'!B3 -> 3. Cement Production in Select a State . . .
D2: ='List Data'!$A$3 -> XX | E2: Cement | F2: =" " -> 
E4: Production | G4: Emission Factor | I4: Emissions | K4: Emissions from Cement Kiln Dust | M4: Emissions | O4: Emissions
E5: (Metric Tons) | G5: (t CO2/t production) | I5: (Metric Tons CO2) | K5: (Metric Tons CO2) | M5: (MTCE) | O5: (MTCO2E)
B7: 1990 | D7: Clinker | F7: x | G7: =INDIRECT($E$2&LEFT(D7,2)&"Factor") -> 0 | H7: = | I7: =IF(ISERROR(E7*G7),0,E7*G7) -> 0 | J7: + | K7: =I7*CKDFactor -> 0 | L7: = | M7: =(I7+K7)*CO2_C -> 0 | N7: = | O7: =M7/CO2_C -> 0
B9: =B7+1 -> 1991 | D9: Clinker | F9: x | G9: =INDIRECT($E$2&LEFT(D9,2)&"Factor") -> 0 | H9: = | I9: =IF(ISERROR(E9*G9),0,E9*G9) -> 0 | J9: + | K9: =I9*CKDFactor -> 0 | L9: = | M9: =(I9+K9)*CO2_C -> 0 | N9: = | O9: =M9/CO2_C -> 0
B11: =B9+1 -> 1992 | D11: =$D$7 -> Clinker | F11: x | G11: =INDIRECT($E$2&LEFT(D11,2)&"Factor") -> 0 | H11: = | I11: =IF(ISERROR(E11*G11),0,E11*G11) -> 0 | J11: + | K11: =I11*CKDFactor -> 0 | L11: = | M11: =(I11+K11)*CO2_C -> 0 | N11: = | O11: =M11/CO2_C -> 0
B13: =B11+1 -> 1993 | D13: =$D$7 -> Clinker | F13: x | G13: =INDIRECT($E$2&LEFT(D13,2)&"Factor") -> 0 | H13: = | I13: =IF(ISERROR(E13*G13),0,E13*G13) -> 0 | J13: + | K13: =I13*CKDFactor -> 0 | L13: = | M13: =(I13+K13)*CO2_C -> 0 | N13: = | O13: =M13/CO2_C -> 0
B15: =B13+1 -> 1994 | D15: =$D$7 -> Clinker | F15: x | G15: =INDIRECT($E$2&LEFT(D15,2)&"Factor") -> 0 | H15: = | I15: =IF(ISERROR(E15*G15),0,E15*G15) -> 0 | J15: + | K15: =I15*CKDFactor -> 0 | L15: = | M15: =(I15+K15)*CO2_C -> 0 | N15: = | O15: =M15/CO2_C -> 0
B17: =B15+1 -> 1995 | D17: =$D$7 -> Clinker | F17: x | G17: =INDIRECT($E$2&LEFT(D17,2)&"Factor") -> 0 | H17: = | I17: =IF(ISERROR(E17*G17),0,E17*G17) -> 0 | J17: + | K17: =I17*CKDFactor -> 0 | L17: = | M17: =(I17+K17)*CO2_C -> 0 | N17: = | O17: =M17/CO2_C -> 0
B19: =B17+1 -> 1996 | D19: =$D$7 -> Clinker | F19: x | G19: =INDIRECT($E$2&LEFT(D19,2)&"Factor") -> 0 | H19: = | I19: =IF(ISERROR(E19*G19),0,E19*G19) -> 0 | J19: + | K19: =I19*CKDFactor -> 0 | L19: = | M19: =(I19+K19)*CO2_C -> 0 | N19: = | O19: =M19/CO2_C -> 0
B21: =B19+1 -> 1997 | D21: =$D$7 -> Clinker | F21: x | G21: =INDIRECT($E$2&LEFT(D21,2)&"Factor") -> 0 | H21: = | I21: =IF(ISERROR(E21*G21),0,E21*G21) -> 0 | J21: + | K21: =I21*CKDFactor -> 0 | L21: = | M21: =(I21+K21)*CO2_C -> 0 | N21: = | O21: =M21/CO2_C -> 0
B23: =B21+1 -> 1998 | D23: =$D$7 -> Clinker | F23: x | G23: =INDIRECT($E$2&LEFT(D23,2)&"Factor") -> 0 | H23: = | I23: =IF(ISERROR(E23*G23),0,E23*G23) -> 0 | J23: + | K23: =I23*CKDFactor -> 0 | L23: = | M23: =(I23+K23)*CO2_C -> 0 | N23: = | O23: =M23/CO2_C -> 0
B25: =B23+1 -> 1999 | D25: =$D$7 -> Clinker | F25: x | G25: =INDIRECT($E$2&LEFT(D25,2)&"Factor") -> 0 | H25: = | I25: =IF(ISERROR(E25*G25),0,E25*G25) -> 0 | J25: + | K25: =I25*CKDFactor -> 0 | L25: = | M25: =(I25+K25)*CO2_C -> 0 | N25: = | O25: =M25/CO2_C -> 0
B27: =B25+1 -> 2000 | D27: =$D$7 -> Clinker | F27: x | G27: =INDIRECT($E$2&LEFT(D27,2)&"Factor") -> 0 | H27: = | I27: =IF(ISERROR(E27*G27),0,E27*G27) -> 0 | J27: + | K27: =I27*CKDFactor -> 0 | L27: = | M27: =(I27+K27)*CO2_C -> 0 | N27: = | O27: =M27/CO2_C -> 0
B29: =B27+1 -> 2001 | D29: =$D$7 -> Clinker | F29: x | G29: =INDIRECT($E$2&LEFT(D29,2)&"Factor") -> 0 | H29: = | I29: =IF(ISERROR(E29*G29),0,E29*G29) -> 0 | J29: + | K29: =I29*CKDFactor -> 0 | L29: = | M29: =(I29+K29)*CO2_C -> 0 | N29: = | O29: =M29/CO2_C -> 0
B31: =B29+1 -> 2002 | D31: =$D$7 -> Clinker | F31: x | G31: =INDIRECT($E$2&LEFT(D31,2)&"Factor") -> 0 | H31: = | I31: =IF(ISERROR(E31*G31),0,E31*G31) -> 0 | J31: + | K31: =I31*CKDFactor -> 0 | L31: = | M31: =(I31+K31)*CO2_C -> 0 | N31: = | O31: =M31/CO2_C -> 0
B33: =B31+1 -> 2003 | D33: =$D$7 -> Clinker | F33: x | G33: =INDIRECT($E$2&LEFT(D33,2)&"Factor") -> 0 | H33: = | I33: =IF(ISERROR(E33*G33),0,E33*G33) -> 0 | J33: + | K33: =I33*CKDFactor -> 0 | L33: = | M33: =(I33+K33)*CO2_C -> 0 | N33: = | O33: =M33/CO2_C -> 0
B35: =B33+1 -> 2004 | D35: =$D$7 -> Clinker | F35: x | G35: =INDIRECT($E$2&LEFT(D35,2)&"Factor") -> 0 | H35: = | I35: =IF(ISERROR(E35*G35),0,E35*G35) -> 0 | J35: + | K35: =I35*CKDFactor -> 0 | L35: = | M35: =(I35+K35)*CO2_C -> 0 | N35: = | O35: =M35/CO2_C -> 0
B37: =B35+1 -> 2005 | D37: =$D$7 -> Clinker | F37: x | G37: =INDIRECT($E$2&LEFT(D37,2)&"Factor") -> 0 | H37: = | I37: =IF(ISERROR(E37*G37),0,E37*G37) -> 0 | J37: + | K37: =I37*CKDFactor -> 0 | L37: = | M37: =(I37+K37)*CO2_C -> 0 | N37: = | O37: =M37/CO2_C -> 0
B39: =B37+1 -> 2006 | D39: =$D$7 -> Clinker | F39: x | G39: =INDIRECT($E$2&LEFT(D39,2)&"Factor") -> 0 | H39: = | I39: =IF(ISERROR(E39*G39),0,E39*G39) -> 0 | J39: + | K39: =I39*CKDFactor -> 0 | L39: = | M39: =(I39+K39)*CO2_C -> 0 | N39: = | O39: =M39/CO2_C -> 0
B41: =B39+1 -> 2007 | D41: =$D$7 -> Clinker | F41: x | G41: =INDIRECT($E$2&LEFT(D41,2)&"Factor") -> 0 | H41: = | I41: =IF(ISERROR(E41*G41),0,E41*G41) -> 0 | J41: + | K41: =I41*CKDFactor -> 0 | L41: = | M41: =(I41+K41)*CO2_C -> 0 | N41: = | O41: =M41/CO2_C -> 0
B43: =B41+1 -> 2008 | D43: =$D$7 -> Clinker | F43: x | G43: =INDIRECT($E$2&LEFT(D43,2)&"Factor") -> 0 | H43: = | I43: =IF(ISERROR(E43*G43),0,E43*G43) -> 0 | J43: + | K43: =I43*CKDFactor -> 0 | L43: = | M43: =(I43+K43)*CO2_C -> 0 | N43: = | O43: =M43/CO2_C -> 0
B45: =B43+1 -> 2009 | D45: =$D$7 -> Clinker | F45: x | G45: =INDIRECT($E$2&LEFT(D45,2)&"Factor") -> 0 | H45: = | I45: =IF(ISERROR(E45*G45),0,E45*G45) -> 0 | J45: + | K45: =I45*CKDFactor -> 0 | L45: = | M45: =(I45+K45)*CO2_C -> 0 | N45: = | O45: =M45/CO2_C -> 0
B47: =B45+1 -> 2010 | D47: =$D$7 -> Clinker | F47: x | G47: =INDIRECT($E$2&LEFT(D47,2)&"Factor") -> 0 | H47: = | I47: =IF(ISERROR(E47*G47),0,E47*G47) -> 0 | J47: + | K47: =I47*CKDFactor -> 0 | L47: = | M47: =(I47+K47)*CO2_C -> 0 | N47: = | O47: =M47/CO2_C -> 0
B49: =B47+1 -> 2011 | D49: =$D$7 -> Clinker | F49: x | G49: =INDIRECT($E$2&LEFT(D49,2)&"Factor") -> 0 | H49: = | I49: =IF(ISERROR(E49*G49),0,E49*G49) -> 0 | J49: + | K49: =I49*CKDFactor -> 0 | L49: = | M49: =(I49+K49)*CO2_C -> 0 | N49: = | O49: =M49/CO2_C -> 0
B51: =B49+1 -> 2012 | D51: =$D$7 -> Clinker | F51: x | G51: =INDIRECT($E$2&LEFT(D51,2)&"Factor") -> 0 | H51: = | I51: =IF(ISERROR(E51*G51),0,E51*G51) -> 0 | J51: + | K51: =I51*CKDFactor -> 0 | L51: = | M51: =(I51+K51)*CO2_C -> 0 | N51: = | O51: =M51/CO2_C -> 0
B53: =B51+1 -> 2013 | D53: =$D$7 -> Clinker | F53: x | G53: =INDIRECT($E$2&LEFT(D53,2)&"Factor") -> 0 | H53: = | I53: =IF(ISERROR(E53*G53),0,E53*G53) -> 0 | J53: + | K53: =I53*CKDFactor -> 0 | L53: = | M53: =(I53+K53)*CO2_C -> 0 | N53: = | O53: =M53/CO2_C -> 0
B55: =B53+1 -> 2014 | D55: =$D$7 -> Clinker | F55: x | G55: =INDIRECT($E$2&LEFT(D55,2)&"Factor") -> 0 | H55: = | I55: =IF(ISERROR(E55*G55),0,E55*G55) -> 0 | J55: + | K55: =I55*CKDFactor -> 0 | L55: = | M55: =(I55+K55)*CO2_C -> 0 | N55: = | O55: =M55/CO2_C -> 0
B57: =B55+1 -> 2015 | D57: =$D$7 -> Clinker | F57: x | G57: =INDIRECT($E$2&LEFT(D57,2)&"Factor") -> 0 | H57: = | I57: =IF(ISERROR(E57*G57),0,E57*G57) -> 0 | J57: + | K57: =I57*CKDFactor -> 0 | L57: = | M57: =(I57+K57)*CO2_C -> 0 | N57: = | O57: =M57/CO2_C -> 0
B59: =B57+1 -> 2016 | D59: =$D$7 -> Clinker | F59: x | G59: =INDIRECT($E$2&LEFT(D59,2)&"Factor") -> 0 | H59: = | I59: =IF(ISERROR(E59*G59),0,E59*G59) -> 0 | J59: + | K59: =I59*CKDFactor -> 0 | L59: = | M59: =(I59+K59)*CO2_C -> 0 | N59: = | O59: =M59/CO2_C -> 0
B61: =B59+1 -> 2017 | D61: =$D$7 -> Clinker | F61: x | G61: =INDIRECT($E$2&LEFT(D61,2)&"Factor") -> 0 | H61: = | I61: =IF(ISERROR(E61*G61),0,E61*G61) -> 0 | J61: + | K61: =I61*CKDFactor -> 0 | L61: = | M61: =(I61+K61)*CO2_C -> 0 | N61: = | O61: =M61/CO2_C -> 0
B63: =B61+1 -> 2018 | D63: =$D$7 -> Clinker | F63: x | G63: =INDIRECT($E$2&LEFT(D63,2)&"Factor") -> 0 | H63: = | I63: =IF(ISERROR(E63*G63),0,E63*G63) -> 0 | J63: + | K63: =I63*CKDFactor -> 0 | L63: = | M63: =(I63+K63)*CO2_C -> 0 | N63: = | O63: =M63/CO2_C -> 0
B65: =B63+1 -> 2019 | D65: =$D$7 -> Clinker | F65: x | G65: =INDIRECT($E$2&LEFT(D65,2)&"Factor") -> 0 | H65: = | I65: =IF(ISERROR(E65*G65),0,E65*G65) -> 0 | J65: + | K65: =I65*CKDFactor -> 0 | L65: = | M65: =(I65+K65)*CO2_C -> 0 | N65: = | O65: =M65/CO2_C -> 0
B67: =B65+1 -> 2020 | D67: =$D$7 -> Clinker | F67: x | G67: =INDIRECT($E$2&LEFT(D67,2)&"Factor") -> 0 | H67: = | I67: =IF(ISERROR(E67*G67),0,E67*G67) -> 0 | J67: + | K67: =I67*CKDFactor -> 0 | L67: = | M67: =(I67+K67)*CO2_C -> 0 | N67: = | O67: =M67/CO2_C -> 0

Sheet Lime
B1: ="4. Lime Manufacture in "&'List Data'!B3 -> 4. Lime Manufacture in Select a State . . .
D2: ='List Data'!$A$3 -> XX | E2: Lime | L2: =" " -> 
F4: Production | H4: Use In Sugar Refining and Precipitated Calcium Carbonate Production | J4: CO2 Reabsorption Factor | M4: Emission Factor | O4: Emissions | Q4: Emissions
F5: (Metric Tons) | H5: (Metric Tons) | M5: (t CO2/t production) | O5: (MTCE) | Q5: (MTCO2E)
B7: 1990 | D7: High-Calcium Lime | E7: { | G7: - | I7: x | J7: 0.8 | K7: } | L7: x | M7: =LimeFactor -> 0 | N7: = | O7: =Q7*CO2_C -> 0 | P7: = | Q7: =(F7-(H7*J7))*M7 -> 0
D8: Dolomitic Lime | E8: { | G8: - | I8: x | J8: 0.8 | K8: } | L8: x | M8: =DoloLimeFactor -> 0 | N8: = | O8: =Q8*CO2_C -> 0 | P8: = | Q8: =(F8-(H8*J8))*M8 -> 0
B10: 1991 | D10: High-Calcium Lime | E10: { | G10: - | I10: x | J10: 0.8 | K10: } | L10: x | M10: =LimeFactor -> 0 | N10: = | O10: =Q10*CO2_C -> 0 | P10: = | Q10: =(F10-(H10*J10))*M10 -> 0
D11: Dolomitic Lime | E11: { | G11: - | I11: x | J11: 0.8 | K11: } | L11: x | M11: =DoloLimeFactor -> 0 | N11: = | O11: =Q11*CO2_C -> 0 | P11: = | Q11: =(F11-(H11*J11))*M11 -> 0
B13: 1992 | D13: High-Calcium Lime | E13: { | G13: - | I13: x | J13: 0.8 | K13: } | L13: x | M13: =LimeFactor -> 0 | N13: = | O13: =Q13*CO2_C -> 0 | P13: = | Q13: =(F13-(H13*J13))*M13 -> 0
D14: Dolomitic Lime | E14: { | G14: - | I14: x | J14: 0.8 | K14: } | L14: x | M14: =DoloLimeFactor -> 0 | N14: = | O14: =Q14*CO2_C -> 0 | P14: = | Q14: =(F14-(H14*J14))*M14 -> 0
B16: 1993 | D16: High-Calcium Lime | E16: { | G16: - | I16: x | J16: 0.8 | K16: } | L16: x | M16: =LimeFactor -> 0 | N16: = | O16: =Q16*CO2_C -> 0 | P16: = | Q16: =(F16-(H16*J16))*M16 -> 0
D17: Dolomitic Lime | E17: { | G17: - | I17: x | J17: 0.8 | K17: } | L17: x | M17: =DoloLimeFactor -> 0 | N17: = | O17: =Q17*CO2_C -> 0 | P17: = | Q17: =(F17-(H17*J17))*M17 -> 0
B19: 1994 | D19: High-Calcium Lime | E19: { | G19: - | I19: x | J19: 0.8 | K19: } | L19: x | M19: =LimeFactor -> 0 | N19: = | O19: =Q19*CO2_C -> 0 | P19: = | Q19: =(F19-(H19*J19))*M19 -> 0
D20: Dolomitic Lime | E20: { | G20: - | I20: x | J20: 0.8 | K20: } | L20: x | M20: =DoloLimeFactor -> 0 | N20: = | O20: =Q20*CO2_C -> 0 | P20: = | Q20: =(F20-(H20*J20))*M20 -> 0
B22: 1995 | D22: High-Calcium Lime | E22: { | G22: - | I22: x | J22: 0.8 | K22: } | L22: x | M22: =LimeFactor -> 0 | N22: = | O22: =Q22*CO2_C -> 0 | P22: = | Q22: =(F22-(H22*J22))*M22 -> 0
D23: Dolomitic Lime | E23: { | G23: - | I23: x | J23: 0.8 | K23: } | L23: x | M23: =DoloLimeFactor -> 0 | N23: = | O23: =Q23*CO2_C -> 0 | P23: = | Q23: =(F23-(H23*J23))*M23 -> 0
B25: 1996 | D25: High-Calcium Lime | E25: { | G25: - | I25: x | J25: 0.8 | K25: } | L25: x | M25: =LimeFactor -> 0 | N25: = | O25: =Q25*CO2_C -> 0 | P25: = | Q25: =(F25-(H25*J25))*M25 -> 0
D26: Dolomitic Lime | E26: { | G26: - | I26: x | J26: 0.8 | K26: } | L26: x | M26: =DoloLimeFactor -> 0 | N26: = | O26: =Q26*CO2_C -> 0 | P26: = | Q26: =(F26-(H26*J26))*M26 -> 0
B28: 1997 | D28: High-Calcium Lime | E28: { | G28: - | I28: x | J28: 0.8 | K28: } | L28: x | M28: =LimeFactor -> 0 | N28: = | O28: =Q28*CO2_C -> 0 | P28: = | Q28: =(F28-(H28*J28))*M28 -> 0
D29: Dolomitic Lime | E29: { | G29: - | I29: x | J29: 0.8 | K29: } | L29: x | M29: =DoloLimeFactor -> 0 | N29: = | O29: =Q29*CO2_C -> 0 | P29: = | Q29: =(F29-(H29*J29))*M29 -> 0
B31: 1998 | D31: High-Calcium Lime | E31: { | G31: - | I31: x | J31: 0.8 | K31: } | L31: x | M31: =LimeFactor -> 0 | N31: = | O31: =Q31*CO2_C -> 0 | P31: = | Q31: =(F31-(H31*J31))*M31 -> 0
D32: Dolomitic Lime | E32: { | G32: - | I32: x | J32: 0.8 | K32: } | L32: x | M32: =DoloLimeFactor -> 0 | N32: = | O32: =Q32*CO2_C -> 0 | P32: = | Q32: =(F32-(H32*J32))*M32 -> 0
B34: 1999 | D34: High-Calcium Lime | E34: { | G34: - | I34: x | J34: 0.8 | K34: } | L34: x | M34: =LimeFactor -> 0 | N34: = | O34: =Q34*CO2_C -> 0 | P34: = | Q34: =(F34-(H34*J34))*M34 -> 0
D35: Dolomitic Lime | E35: { | G35: - | I35: x | J35: 0.8 | K35: } | L35: x | M35: =DoloLimeFactor -> 0 | N35: = | O35: =Q35*CO2_C -> 0 | P35: = | Q35: =(F35-(H35*J35))*M35 -> 0
B37: 2000 | D37: High-Calcium Lime | E37: { | G37: - | I37: x | J37: 0.8 | K37: } | L37: x | M37: =LimeFactor -> 0 | N37: = | O37: =Q37*CO2_C -> 0 | P37: = | Q37: =(F37-(H37*J37))*M37 -> 0
D38: Dolomitic Lime | E38: { | G38: - | I38: x | J38: 0.8 | K38: } | L38: x | M38: =DoloLimeFactor -> 0 | N38: = | O38: =Q38*CO2_C -> 0 | P38: = | Q38: =(F38-(H38*J38))*M38 -> 0
B40: 2001 | D40: High-Calcium Lime | E40: { | G40: - | I40: x | J40: 0.8 | K40: } | L40: x | M40: =LimeFactor -> 0 | N40: = | O40: =Q40*CO2_C -> 0 | P40: = | Q40: =(F40-(H40*J40))*M40 -> 0
D41: Dolomitic Lime | E41: { | G41: - | I41: x | J41: 0.8 | K41: } | L41: x | M41: =DoloLimeFactor -> 0 | N41: = | O41: =Q41*CO2_C -> 0 | P41: = | Q41: =(F41-(H41*J41))*M41 -> 0
B43: 2002 | D43: High-Calcium Lime | E43: { | G43: - | I43: x | J43: 0.8 | K43: } | L43: x | M43: =LimeFactor -> 0 | N43: = | O43: =Q43*CO2_C -> 0 | P43: = | Q43: =(F43-(H43*J43))*M43 -> 0
D44: Dolomitic Lime | E44: { | G44: - | I44: x | J44: 0.8 | K44: } | L44: x | M44: =DoloLimeFactor -> 0 | N44: = | O44: =Q44*CO2_C -> 0 | P44: = | Q44: =(F44-(H44*J44))*M44 -> 0
B46: 2003 | D46: High-Calcium Lime | E46: { | G46: - | I46: x | J46: 0.8 | K46: } | L46: x | M46: =LimeFactor -> 0 | N46: = | O46: =Q46*CO2_C -> 0 | P46: = | Q46: =(F46-(H46*J46))*M46 -> 0
D47: Dolomitic Lime | E47: { | G47: - | I47: x | J47: 0.8 | K47: } | L47: x | M47: =DoloLimeFactor -> 0 | N47: = | O47: =Q47*CO2_C -> 0 | P47: = | Q47: =(F47-(H47*J47))*M47 -> 0
B49: 2004 | D49: High-Calcium Lime | E49: { | G49: - | I49: x | J49: 0.8 | K49: } | L49: x | M49: =LimeFactor -> 0 | N49: = | O49: =Q49*CO2_C -> 0 | P49: = | Q49: =(F49-(H49*J49))*M49 -> 0
D50: Dolomitic Lime | E50: { | G50: - | I50: x | J50: 0.8 | K50: } | L50: x | M50: =DoloLimeFactor -> 0 | N50: = | O50: =Q50*CO2_C -> 0 | P50: = | Q50: =(F50-(H50*J50))*M50 -> 0
B52: 2005 | D52: High-Calcium Lime | E52: { | G52: - | I52: x | J52: 0.8 | K52: } | L52: x | M52: =LimeFactor -> 0 | N52: = | O52: =Q52*CO2_C -> 0 | P52: = | Q52: =(F52-(H52*J52))*M52 -> 0
D53: Dolomitic Lime | E53: { | G53: - | I53: x | J53: 0.8 | K53: } | L53: x | M53: =DoloLimeFactor -> 0 | N53: = | O53: =Q53*CO2_C -> 0 | P53: = | Q53: =(F53-(H53*J53))*M53 -> 0
B55: 2006 | D55: High-Calcium Lime | E55: { | G55: - | I55: x | J55: 0.8 | K55: } | L55: x | M55: =LimeFactor -> 0 | N55: = | O55: =Q55*CO2_C -> 0 | P55: = | Q55: =(F55-(H55*J55))*M55 -> 0
D56: Dolomitic Lime | E56: { | G56: - | I56: x | J56: 0.8 | K56: } | L56: x | M56: =DoloLimeFactor -> 0 | N56: = | O56: =Q56*CO2_C -> 0 | P56: = | Q56: =(F56-(H56*J56))*M56 -> 0
B58: 2007 | D58: High-Calcium Lime | E58: { | G58: - | I58: x | J58: 0.8 | K58: } | L58: x | M58: =LimeFactor -> 0 | N58: = | O58: =Q58*CO2_C -> 0 | P58: = | Q58: =(F58-(H58*J58))*M58 -> 0
D59: Dolomitic Lime | E59: { | G59: - | I59: x | J59: 0.8 | K59: } | L59: x | M59: =DoloLimeFactor -> 0 | N59: = | O59: =Q59*CO2_C -> 0 | P59: = | Q59: =(F59-(H59*J59))*M59 -> 0
B61: 2008 | D61: High-Calcium Lime | E61: { | G61: - | I61: x | J61: 0.8 | K61: } | L61: x | M61: =LimeFactor -> 0 | N61: = | O61: =Q61*CO2_C -> 0 | P61: = | Q61: =(F61-(H61*J61))*M61 -> 0
D62: Dolomitic Lime | E62: { | G62: - | I62: x | J62: 0.8 | K62: } | L62: x | M62: =DoloLimeFactor -> 0 | N62: = | O62: =Q62*CO2_C -> 0 | P62: = | Q62: =(F62-(H62*J62))*M62 -> 0
B64: 2009 | D64: High-Calcium Lime | E64: { | G64: - | I64: x | J64: 0.8 | K64: } | L64: x | M64: =LimeFactor -> 0 | N64: = | O64: =Q64*CO2_C -> 0 | P64: = | Q64: =(F64-(H64*J64))*M64 -> 0
D65: Dolomitic Lime | E65: { | G65: - | I65: x | J65: 0.8 | K65: } | L65: x | M65: =DoloLimeFactor -> 0 | N65: = | O65: =Q65*CO2_C -> 0 | P65: = | Q65: =(F65-(H65*J65))*M65 -> 0
B67: 2010 | D67: High-Calcium Lime | E67: { | G67: - | I67: x | J67: 0.8 | K67: } | L67: x | M67: =LimeFactor -> 0 | N67: = | O67: =Q67*CO2_C -> 0 | P67: = | Q67: =(F67-(H67*J67))*M67 -> 0
D68: Dolomitic Lime | E68: { | G68: - | I68: x | J68: 0.8 | K68: } | L68: x | M68: =DoloLimeFactor -> 0 | N68: = | O68: =Q68*CO2_C -> 0 | P68: = | Q68: =(F68-(H68*J68))*M68 -> 0
B70: 2011 | D70: High-Calcium Lime | E70: { | G70: - | I70: x | J70: 0.8 | K70: } | L70: x | M70: =LimeFactor -> 0 | N70: = | O70: =Q70*CO2_C -> 0 | P70: = | Q70: =(F70-(H70*J70))*M70 -> 0
D71: Dolomitic Lime | E71: { | G71: - | I71: x | J71: 0.8 | K71: } | L71: x | M71: =DoloLimeFactor -> 0 | N71: = | O71: =Q71*CO2_C -> 0 | P71: = | Q71: =(F71-(H71*J71))*M71 -> 0
B73: 2012 | D73: High-Calcium Lime | E73: { | G73: - | I73: x | J73: 0.8 | K73: } | L73: x | M73: =LimeFactor -> 0 | N73: = | O73: =Q73*CO2_C -> 0 | P73: = | Q73: =(F73-(H73*J73))*M73 -> 0
D74: Dolomitic Lime | E74: { | G74: - | I74: x | J74: 0.8 | K74: } | L74: x | M74: =DoloLimeFactor -> 0 | N74: = | O74: =Q74*CO2_C -> 0 | P74: = | Q74: =(F74-(H74*J74))*M74 -> 0
B76: 2013 | D76: High-Calcium Lime | E76: { | G76: - | I76: x | J76: 0.8 | K76: } | L76: x | M76: =LimeFactor -> 0 | N76: = | O76: =Q76*CO2_C -> 0 | P76: = | Q76: =(F76-(H76*J76))*M76 -> 0
D77: Dolomitic Lime | E77: { | G77: - | I77: x | J77: 0.8 | K77: } | L77: x | M77: =DoloLimeFactor -> 0 | N77: = | O77: =Q77*CO2_C -> 0 | P77: = | Q77: =(F77-(H77*J77))*M77 -> 0
B79: 2014 | D79: High-Calcium Lime | E79: { | G79: - | I79: x | J79: 0.8 | K79: } | L79: x | M79: =LimeFactor -> 0 | N79: = | O79: =Q79*CO2_C -> 0 | P79: = | Q79: =(F79-(H79*J79))*M79 -> 0
D80: Dolomitic Lime | E80: { | G80: - | I80: x | J80: 0.8 | K80: } | L80: x | M80: =DoloLimeFactor -> 0 | N80: = | O80: =Q80*CO2_C -> 0 | P80: = | Q80: =(F80-(H80*J80))*M80 -> 0
B82: 2015 | D82: High-Calcium Lime | E82: { | G82: - | I82: x | J82: 0.8 | K82: } | L82: x | M82: =LimeFactor -> 0 | N82: = | O82: =Q82*CO2_C -> 0 | P82: = | Q82: =(F82-(H82*J82))*M82 -> 0
D83: Dolomitic Lime | E83: { | G83: - | I83: x | J83: 0.8 | K83: } | L83: x | M83: =DoloLimeFactor -> 0 | N83: = | O83: =Q83*CO2_C -> 0 | P83: = | Q83: =(F83-(H83*J83))*M83 -> 0
B85: 2016 | D85: High-Calcium Lime | E85: { | G85: - | I85: x | J85: 0.8 | K85: } | L85: x | M85: =LimeFactor -> 0 | N85: = | O85: =Q85*CO2_C -> 0 | P85: = | Q85: =(F85-(H85*J85))*M85 -> 0
D86: Dolomitic Lime | E86: { | G86: - | I86: x | J86: 0.8 | K86: } | L86: x | M86: =DoloLimeFactor -> 0 | N86: = | O86: =Q86*CO2_C -> 0 | P86: = | Q86: =(F86-(H86*J86))*M86 -> 0
B88: 2017 | D88: High-Calcium Lime | E88: { | G88: - | I88: x | J88: 0.8 | K88: } | L88: x | M88: =LimeFactor -> 0 | N88: = | O88: =Q88*CO2_C -> 0 | P88: = | Q88: =(F88-(H88*J88))*M88 -> 0
D89: Dolomitic Lime | E89: { | G89: - | I89: x | J89: 0.8 | K89: } | L89: x | M89: =DoloLimeFactor -> 0 | N89: = | O89: =Q89*CO2_C -> 0 | P89: = | Q89: =(F89-(H89*J89))*M89 -> 0
B91: 2018 | D91: High-Calcium Lime | E91: { | G91: - | I91: x | J91: 0.8 | K91: } | L91: x | M91: =LimeFactor -> 0 | N91: = | O91: =Q91*CO2_C -> 0 | P91: = | Q91: =(F91-(H91*J91))*M91 -> 0
D92: Dolomitic Lime | E92: { | G92: - | I92: x | J92: 0.8 | K92: } | L92: x | M92: =DoloLimeFactor -> 0 | N92: = | O92: =Q92*CO2_C -> 0 | P92: = | Q92: =(F92-(H92*J92))*M92 -> 0
B94: 2019 | D94: High-Calcium Lime | E94: { | G94: - | I94: x | J94: 0.8 | K94: } | L94: x | M94: =LimeFactor -> 0 | N94: = | O94: =Q94*CO2_C -> 0 | P94: = | Q94: =(F94-(H94*J94))*M94 -> 0
D95: Dolomitic Lime | E95: { | G95: - | I95: x | J95: 0.8 | K95: } | L95: x | M95: =DoloLimeFactor -> 0 | N95: = | O95: =Q95*CO2_C -> 0 | P95: = | Q95: =(F95-(H95*J95))*M95 -> 0
B97: 2020 | D97: High-Calcium Lime | E97: { | G97: - | I97: x | J97: 0.8 | K97: } | L97: x | M97: =LimeFactor -> 0 | N97: = | O97: =Q97*CO2_C -> 0 | P97: = | Q97: =(F97-(H97*J97))*M97 -> 0
D98: Dolomitic Lime | E98: { | G98: - | I98: x | J98: 0.8 | K98: } | L98: x | M98: =DoloLimeFactor -> 0 | N98: = | O98: =Q98*CO2_C -> 0 | P98: = | Q98: =(F98-(H98*J98))*M98 -> 0

Sheet Limestone
B1: ="5. Limestone and Dolomite Use in "&'List Data'!B3 -> 5. Limestone and Dolomite Use in Select a State . . .
D2: ='List Data'!$A$3 -> XX | E2: Limestone | F2: =" " ->  | G2: =AdipicCheck -> 0
E4: Consumption | G4: Emission Factor | I4: Emissions | K4: Emissions
E5: (Metric Tons) | G5: (t CO2/t production) | I5: (MTCE) | K5: (MTCO2E)
B7: 1990 | D7: Limestone | F7: x | G7: =INDIRECT($E$2&LEFT(D7,2)&"Factor") -> 0 | H7: = | I7: =K7*CO2_C -> 0 | J7: = | K7: =IF(ISERROR(E7*G7),0,E7*G7) -> 0
B8: =B7 -> 1990 | D8: Dolomite | F8: x | G8: =INDIRECT($E$2&LEFT(D8,2)&"Factor") -> 0 | H8: = | I8: =K8*CO2_C -> 0 | J8: = | K8: =IF(ISERROR(E8*G8),0,E8*G8) -> 0
D9: Magnesium Production from Dolomite | F9: x | G9: =INDIRECT($E$2&LEFT(D9,2)&"Factor") -> 0 | H9: = | I9: =K9*CO2_C -> 0 | J9: = | K9: =IF(ISERROR(E9*G9),0,E9*G9) -> 0
B11: =B7+1 -> 1991 | D11: Limestone | F11: x | G11: =INDIRECT($E$2&LEFT(D11,2)&"Factor") -> 0 | H11: = | I11: =K11*CO2_C -> 0 | J11: = | K11: =IF(ISERROR(E11*G11),0,E11*G11) -> 0
B12: =B11 -> 1991 | D12: Dolomite | F12: x | G12: =INDIRECT($E$2&LEFT(D12,2)&"Factor") -> 0 | H12: = | I12: =K12*CO2_C -> 0 | J12: = | K12: =IF(ISERROR(E12*G12),0,E12*G12) -> 0
D13: Magnesium Production from Dolomite | F13: x | G13: =INDIRECT($E$2&LEFT(D13,2)&"Factor") -> 0 | H13: = | I13: =K13*CO2_C -> 0 | J13: = | K13: =IF(ISERROR(E13*G13),0,E13*G13) -> 0
B15: =B11+1 -> 1992 | D15: Limestone | F15: x | G15: =INDIRECT($E$2&LEFT(D15,2)&"Factor") -> 0 | H15: = | I15: =K15*CO2_C -> 0 | J15: = | K15: =IF(ISERROR(E15*G15),0,E15*G15) -> 0
B16: =B15 -> 1992 | D16: Dolomite | F16: x | G16: =INDIRECT($E$2&LEFT(D16,2)&"Factor") -> 0 | H16: = | I16: =K16*CO2_C -> 0 | J16: = | K16: =IF(ISERROR(E16*G16),0,E16*G16) -> 0
D17: Magnesium Production from Dolomite | F17: x | G17: =INDIRECT($E$2&LEFT(D17,2)&"Factor") -> 0 | H17: = | I17: =K17*CO2_C -> 0 | J17: = | K17: =IF(ISERROR(E17*G17),0,E17*G17) -> 0
B19: =B15+1 -> 1993 | D19: Limestone | F19: x | G19: =INDIRECT($E$2&LEFT(D19,2)&"Factor") -> 0 | H19: = | I19: =K19*CO2_C -> 0 | J19: = | K19: =IF(ISERROR(E19*G19),0,E19*G19) -> 0
B20: =B19 -> 1993 | D20: Dolomite | F20: x | G20: =INDIRECT($E$2&LEFT(D20,2)&"Factor") -> 0 | H20: = | I20: =K20*CO2_C -> 0 | J20: = | K20: =IF(ISERROR(E20*G20),0,E20*G20) -> 0
D21: Magnesium Production from Dolomite | F21: x | G21: =INDIRECT($E$2&LEFT(D21,2)&"Factor") -> 0 | H21: = | I21: =K21*CO2_C -> 0 | J21: = | K21: =IF(ISERROR(E21*G21),0,E21*G21) -> 0
B23: =B19+1 -> 1994 | D23: Limestone | F23: x | G23: =INDIRECT($E$2&LEFT(D23,2)&"Factor") -> 0 | H23: = | I23: =K23*CO2_C -> 0 | J23: = | K23: =IF(ISERROR(E23*G23),0,E23*G23) -> 0
B24: =B23 -> 1994 | D24: Dolomite | F24: x | G24: =INDIRECT($E$2&LEFT(D24,2)&"Factor") -> 0 | H24: = | I24: =K24*CO2_C -> 0 | J24: = | K24: =IF(ISERROR(E24*G24),0,E24*G24) -> 0
D25: Magnesium Production from Dolomite | F25: x | G25: =INDIRECT($E$2&LEFT(D25,2)&"Factor") -> 0 | H25: = | I25: =K25*CO2_C -> 0 | J25: = | K25: =IF(ISERROR(E25*G25),0,E25*G25) -> 0
B27: =B23+1 -> 1995 | D27: Limestone | F27: x | G27: =INDIRECT($E$2&LEFT(D27,2)&"Factor") -> 0 | H27: = | I27: =K27*CO2_C -> 0 | J27: = | K27: =IF(ISERROR(E27*G27),0,E27*G27) -> 0
B28: =B27 -> 1995 | D28: Dolomite | F28: x | G28: =INDIRECT($E$2&LEFT(D28,2)&"Factor") -> 0 | H28: = | I28: =K28*CO2_C -> 0 | J28: = | K28: =IF(ISERROR(E28*G28),0,E28*G28) -> 0
D29: Magnesium Production from Dolomite | F29: x | G29: =INDIRECT($E$2&LEFT(D29,2)&"Factor") -> 0 | H29: = | I29: =K29*CO2_C -> 0 | J29: = | K29: =IF(ISERROR(E29*G29),0,E29*G29) -> 0
B31: =B27+1 -> 1996 | D31: Limestone | F31: x | G31: =INDIRECT($E$2&LEFT(D31,2)&"Factor") -> 0 | H31: = | I31: =K31*CO2_C -> 0 | J31: = | K31: =IF(ISERROR(E31*G31),0,E31*G31) -> 0
B32: =B31 -> 1996 | D32: Dolomite | F32: x | G32: =INDIRECT($E$2&LEFT(D32,2)&"Factor") -> 0 | H32: = | I32: =K32*CO2_C -> 0 | J32: = | K32: =IF(ISERROR(E32*G32),0,E32*G32) -> 0
D33: Magnesium Production from Dolomite | F33: x | G33: =INDIRECT($E$2&LEFT(D33,2)&"Factor") -> 0 | H33: = | I33: =K33*CO2_C -> 0 | J33: = | K33: =IF(ISERROR(E33*G33),0,E33*G33) -> 0
B35: =B31+1 -> 1997 | D35: Limestone | F35: x | G35: =INDIRECT($E$2&LEFT(D35,2)&"Factor") -> 0 | H35: = | I35: =K35*CO2_C -> 0 | J35: = | K35: =IF(ISERROR(E35*G35),0,E35*G35) -> 0
B36: =B35 -> 1997 | D36: Dolomite | F36: x | G36: =INDIRECT($E$2&LEFT(D36,2)&"Factor") -> 0 | H36: = | I36: =K36*CO2_C -> 0 | J36: = | K36: =IF(ISERROR(E36*G36),0,E36*G36) -> 0
D37: Magnesium Production from Dolomite | F37: x | G37: =INDIRECT($E$2&LEFT(D37,2)&"Factor") -> 0 | H37: = | I37: =K37*CO2_C -> 0 | J37: = | K37: =IF(ISERROR(E37*G37),0,E37*G37) -> 0
B39: =B35+1 -> 1998 | D39: Limestone | F39: x | G39: =INDIRECT($E$2&LEFT(D39,2)&"Factor") -> 0 | H39: = | I39: =K39*CO2_C -> 0 | J39: = | K39: =IF(ISERROR(E39*G39),0,E39*G39) -> 0
B40: =B39 -> 1998 | D40: Dolomite | F40: x | G40: =INDIRECT($E$2&LEFT(D40,2)&"Factor") -> 0 | H40: = | I40: =K40*CO2_C -> 0 | J40: = | K40: =IF(ISERROR(E40*G40),0,E40*G40) -> 0
D41: Magnesium Production from Dolomite | F41: x | G41: =INDIRECT($E$2&LEFT(D41,2)&"Factor") -> 0 | H41: = | I41: =K41*CO2_C -> 0 | J41: = | K41: =IF(ISERROR(E41*G41),0,E41*G41) -> 0
B43: =B39+1 -> 1999 | D43: Limestone | F43: x | G43: =INDIRECT($E$2&LEFT(D43,2)&"Factor") -> 0 | H43: = | I43: =K43*CO2_C -> 0 | J43: = | K43: =IF(ISERROR(E43*G43),0,E43*G43) -> 0
B44: =B43 -> 1999 | D44: Dolomite | F44: x | G44: =INDIRECT($E$2&LEFT(D44,2)&"Factor") -> 0 | H44: = | I44: =K44*CO2_C -> 0 | J44: = | K44: =IF(ISERROR(E44*G44),0,E44*G44) -> 0
D45: Magnesium Production from Dolomite | F45: x | G45: =INDIRECT($E$2&LEFT(D45,2)&"Factor") -> 0 | H45: = | I45: =K45*CO2_C -> 0 | J45: = | K45: =IF(ISERROR(E45*G45),0,E45*G45) -> 0
B47: =B43+1 -> 2000 | D47: Limestone | F47: x | G47: =INDIRECT($E$2&LEFT(D47,2)&"Factor") -> 0 | H47: = | I47: =K47*CO2_C -> 0 | J47: = | K47: =IF(ISERROR(E47*G47),0,E47*G47) -> 0
B48: =B47 -> 2000 | D48: Dolomite | F48: x | G48: =INDIRECT($E$2&LEFT(D48,2)&"Factor") -> 0 | H48: = | I48: =K48*CO2_C -> 0 | J48: = | K48: =IF(ISERROR(E48*G48),0,E48*G48) -> 0
D49: Magnesium Production from Dolomite | F49: x | G49: =INDIRECT($E$2&LEFT(D49,2)&"Factor") -> 0 | H49: = | I49: =K49*CO2_C -> 0 | J49: = | K49: =IF(ISERROR(E49*G49),0,E49*G49) -> 0
B51: =B47+1 -> 2001 | D51: Limestone | F51: x | G51: =INDIRECT($E$2&LEFT(D51,2)&"Factor") -> 0 | H51: = | I51: =K51*CO2_C -> 0 | J51: = | K51: =IF(ISERROR(E51*G51),0,E51*G51) -> 0
B52: =B51 -> 2001 | D52: Dolomite | F52: x | G52: =INDIRECT($E$2&LEFT(D52,2)&"Factor") -> 0 | H52: = | I52: =K52*CO2_C -> 0 | J52: = | K52: =IF(ISERROR(E52*G52),0,E52*G52) -> 0
D53: Magnesium Production from Dolomite | F53: x | G53: =INDIRECT($E$2&LEFT(D53,2)&"Factor") -> 0 | H53: = | I53: =K53*CO2_C -> 0 | J53: = | K53: =IF(ISERROR(E53*G53),0,E53*G53) -> 0
B55: =B51+1 -> 2002 | D55: Limestone | F55: x | G55: =INDIRECT($E$2&LEFT(D55,2)&"Factor") -> 0 | H55: = | I55: =K55*CO2_C -> 0 | J55: = | K55: =IF(ISERROR(E55*G55),0,E55*G55) -> 0
B56: =B55 -> 2002 | D56: Dolomite | F56: x | G56: =INDIRECT($E$2&LEFT(D56,2)&"Factor") -> 0 | H56: = | I56: =K56*CO2_C -> 0 | J56: = | K56: =IF(ISERROR(E56*G56),0,E56*G56) -> 0
D57: Magnesium Production from Dolomite | F57: x | G57: =INDIRECT($E$2&LEFT(D57,2)&"Factor") -> 0 | H57: = | I57: =K57*CO2_C -> 0 | J57: = | K57: =IF(ISERROR(E57*G57),0,E57*G57) -> 0
B59: =B55+1 -> 2003 | D59: Limestone | F59: x | G59: =INDIRECT($E$2&LEFT(D59,2)&"Factor") -> 0 | H59: = | I59: =K59*CO2_C -> 0 | J59: = | K59: =IF(ISERROR(E59*G59),0,E59*G59) -> 0
B60: =B59 -> 2003 | D60: Dolomite | F60: x | G60: =INDIRECT($E$2&LEFT(D60,2)&"Factor") -> 0 | H60: = | I60: =K60*CO2_C -> 0 | J60: = | K60: =IF(ISERROR(E60*G60),0,E60*G60) -> 0
D61: Magnesium Production from Dolomite | F61: x | G61: =INDIRECT($E$2&LEFT(D61,2)&"Factor") -> 0 | H61: = | I61: =K61*CO2_C -> 0 | J61: = | K61: =IF(ISERROR(E61*G61),0,E61*G61) -> 0
B63: =B59+1 -> 2004 | D63: Limestone | F63: x | G63: =INDIRECT($E$2&LEFT(D63,2)&"Factor") -> 0 | H63: = | I63: =K63*CO2_C -> 0 | J63: = | K63: =IF(ISERROR(E63*G63),0,E63*G63) -> 0
B64: =B63 -> 2004 | D64: Dolomite | F64: x | G64: =INDIRECT($E$2&LEFT(D64,2)&"Factor") -> 0 | H64: = | I64: =K64*CO2_C -> 0 | J64: = | K64: =IF(ISERROR(E64*G64),0,E64*G64) -> 0
D65: Magnesium Production from Dolomite | F65: x | G65: =INDIRECT($E$2&LEFT(D65,2)&"Factor") -> 0 | H65: = | I65: =K65*CO2_C -> 0 | J65: = | K65: =IF(ISERROR(E65*G65),0,E65*G65) -> 0
B67: =B63+1 -> 2005 | D67: Limestone | F67: x | G67: =INDIRECT($E$2&LEFT(D67,2)&"Factor") -> 0 | H67: = | I67: =K67*CO2_C -> 0 | J67: = | K67: =IF(ISERROR(E67*G67),0,E67*G67) -> 0
B68: =B67 -> 2005 | D68: Dolomite | F68: x | G68: =INDIRECT($E$2&LEFT(D68,2)&"Factor") -> 0 | H68: = | I68: =K68*CO2_C -> 0 | J68: = | K68: =IF(ISERROR(E68*G68),0,E68*G68) -> 0
D69: Magnesium Production from Dolomite | F69: x | G69: =INDIRECT($E$2&LEFT(D69,2)&"Factor") -> 0 | H69: = | I69: =K69*CO2_C -> 0 | J69: = | K69: =IF(ISERROR(E69*G69),0,E69*G69) -> 0
B71: =B67+1 -> 2006 | D71: Limestone | F71: x | G71: =INDIRECT($E$2&LEFT(D71,2)&"Factor") -> 0 | H71: = | I71: =K71*CO2_C -> 0 | J71: = | K71: =IF(ISERROR(E71*G71),0,E71*G71) -> 0
B72: =B71 -> 2006 | D72: Dolomite | F72: x | G72: =INDIRECT($E$2&LEFT(D72,2)&"Factor") -> 0 | H72: = | I72: =K72*CO2_C -> 0 | J72: = | K72: =IF(ISERROR(E72*G72),0,E72*G72) -> 0
D73: Magnesium Production from Dolomite | F73: x | G73: =INDIRECT($E$2&LEFT(D73,2)&"Factor") -> 0 | H73: = | I73: =K73*CO2_C -> 0 | J73: = | K73: =IF(ISERROR(E73*G73),0,E73*G73) -> 0
B75: =B71+1 -> 2007 | D75: Limestone | F75: x | G75: =INDIRECT($E$2&LEFT(D75,2)&"Factor") -> 0 | H75: = | I75: =K75*CO2_C -> 0 | J75: = | K75: =IF(ISERROR(E75*G75),0,E75*G75) -> 0
B76: =B75 -> 2007 | D76: Dolomite | F76: x | G76: =INDIRECT($E$2&LEFT(D76,2)&"Factor") -> 0 | H76: = | I76: =K76*CO2_C -> 0 | J76: = | K76: =IF(ISERROR(E76*G76),0,E76*G76) -> 0
D77: Magnesium Production from Dolomite | F77: x | G77: =INDIRECT($E$2&LEFT(D77,2)&"Factor") -> 0 | H77: = | I77: =K77*CO2_C -> 0 | J77: = | K77: =IF(ISERROR(E77*G77),0,E77*G77) -> 0
B79: =B75+1 -> 2008 | D79: Limestone | F79: x | G79: =INDIRECT($E$2&LEFT(D79,2)&"Factor") -> 0 | H79: = | I79: =K79*CO2_C -> 0 | J79: = | K79: =IF(ISERROR(E79*G79),0,E79*G79) -> 0
B80: =B79 -> 2008 | D80: Dolomite | F80: x | G80: =INDIRECT($E$2&LEFT(D80,2)&"Factor") -> 0 | H80: = | I80: =K80*CO2_C -> 0 | J80: = | K80: =IF(ISERROR(E80*G80),0,E80*G80) -> 0
D81: Magnesium Production from Dolomite | F81: x | G81: =INDIRECT($E$2&LEFT(D81,2)&"Factor") -> 0 | H81: = | I81: =K81*CO2_C -> 0 | J81: = | K81: =IF(ISERROR(E81*G81),0,E81*G81) -> 0
B83: =B79+1 -> 2009 | D83: Limestone | F83: x | G83: =INDIRECT($E$2&LEFT(D83,2)&"Factor") -> 0 | H83: = | I83: =K83*CO2_C -> 0 | J83: = | K83: =IF(ISERROR(E83*G83),0,E83*G83) -> 0
B84: =B83 -> 2009 | D84: Dolomite | F84: x | G84: =INDIRECT($E$2&LEFT(D84,2)&"Factor") -> 0 | H84: = | I84: =K84*CO2_C -> 0 | J84: = | K84: =IF(ISERROR(E84*G84),0,E84*G84) -> 0
D85: Magnesium Production from Dolomite | F85: x | G85: =INDIRECT($E$2&LEFT(D85,2)&"Factor") -> 0 | H85: = | I85: =K85*CO2_C -> 0 | J85: = | K85: =IF(ISERROR(E85*G85),0,E85*G85) -> 0
B87: =B83+1 -> 2010 | D87: Limestone | F87: x | G87: =INDIRECT($E$2&LEFT(D87,2)&"Factor") -> 0 | H87: = | I87: =K87*CO2_C -> 0 | J87: = | K87: =IF(ISERROR(E87*G87),0,E87*G87) -> 0
B88: =B87 -> 2010 | D88: Dolomite | F88: x | G88: =INDIRECT($E$2&LEFT(D88,2)&"Factor") -> 0 | H88: = | I88: =K88*CO2_C -> 0 | J88: = | K88: =IF(ISERROR(E88*G88),0,E88*G88) -> 0
D89: Magnesium Production from Dolomite | F89: x | G89: =INDIRECT($E$2&LEFT(D89,2)&"Factor") -> 0 | H89: = | I89: =K89*CO2_C -> 0 | J89: = | K89: =IF(ISERROR(E89*G89),0,E89*G89) -> 0
B91: =B87+1 -> 2011 | D91: Limestone | F91: x | G91: =INDIRECT($E$2&LEFT(D91,2)&"Factor") -> 0 | H91: = | I91: =K91*CO2_C -> 0 | J91: = | K91: =IF(ISERROR(E91*G91),0,E91*G91) -> 0
B92: =B91 -> 2011 | D92: Dolomite | F92: x | G92: =INDIRECT($E$2&LEFT(D92,2)&"Factor") -> 0 | H92: = | I92: =K92*CO2_C -> 0 | J92: = | K92: =IF(ISERROR(E92*G92),0,E92*G92) -> 0
D93: Magnesium Production from Dolomite | F93: x | G93: =INDIRECT($E$2&LEFT(D93,2)&"Factor") -> 0 | H93: = | I93: =K93*CO2_C -> 0 | J93: = | K93: =IF(ISERROR(E93*G93),0,E93*G93) -> 0
B95: =B91+1 -> 2012 | D95: Limestone | F95: x | G95: =INDIRECT($E$2&LEFT(D95,2)&"Factor") -> 0 | H95: = | I95: =K95*CO2_C -> 0 | J95: = | K95: =IF(ISERROR(E95*G95),0,E95*G95) -> 0
B96: =B95 -> 2012 | D96: Dolomite | F96: x | G96: =INDIRECT($E$2&LEFT(D96,2)&"Factor") -> 0 | H96: = | I96: =K96*CO2_C -> 0 | J96: = | K96: =IF(ISERROR(E96*G96),0,E96*G96) -> 0
D97: Magnesium Production from Dolomite | F97: x | G97: =INDIRECT($E$2&LEFT(D97,2)&"Factor") -> 0 | H97: = | I97: =K97*CO2_C -> 0 | J97: = | K97: =IF(ISERROR(E97*G97),0,E97*G97) -> 0
B99: =B95+1 -> 2013 | D99: Limestone | F99: x | G99: =INDIRECT($E$2&LEFT(D99,2)&"Factor") -> 0 | H99: = | I99: =K99*CO2_C -> 0 | J99: = | K99: =IF(ISERROR(E99*G99),0,E99*G99) -> 0
B100: =B99 -> 2013 | D100: Dolomite | F100: x | G100: =INDIRECT($E$2&LEFT(D100,2)&"Factor") -> 0 | H100: = | I100: =K100*CO2_C -> 0 | J100: = | K100: =IF(ISERROR(E100*G100),0,E100*G100) -> 0
D101: Magnesium Production from Dolomite | F101: x | G101: =INDIRECT($E$2&LEFT(D101,2)&"Factor") -> 0 | H101: = | I101: =K101*CO2_C -> 0 | J101: = | K101: =IF(ISERROR(E101*G101),0,E101*G101) -> 0
B103: =B99+1 -> 2014 | D103: Limestone | F103: x | G103: =INDIRECT($E$2&LEFT(D103,2)&"Factor") -> 0 | H103: = | I103: =K103*CO2_C -> 0 | J103: = | K103: =IF(ISERROR(E103*G103),0,E103*G103) -> 0
B104: =B103 -> 2014 | D104: Dolomite | F104: x | G104: =INDIRECT($E$2&LEFT(D104,2)&"Factor") -> 0 | H104: = | I104: =K104*CO2_C -> 0 | J104: = | K104: =IF(ISERROR(E104*G104),0,E104*G104) -> 0
D105: Magnesium Production from Dolomite | F105: x | G105: =INDIRECT($E$2&LEFT(D105,2)&"Factor") -> 0 | H105: = | I105: =K105*CO2_C -> 0 | J105: = | K105: =IF(ISERROR(E105*G105),0,E105*G105) -> 0
B107: =B103+1 -> 2015 | D107: Limestone | F107: x | G107: =INDIRECT($E$2&LEFT(D107,2)&"Factor") -> 0 | H107: = | I107: =K107*CO2_C -> 0 | J107: = | K107: =IF(ISERROR(E107*G107),0,E107*G107) -> 0
B108: =B107 -> 2015 | D108: Dolomite | F108: x | G108: =INDIRECT($E$2&LEFT(D108,2)&"Factor") -> 0 | H108: = | I108: =K108*CO2_C -> 0 | J108: = | K108: =IF(ISERROR(E108*G108),0,E108*G108) -> 0
D109: Magnesium Production from Dolomite | F109: x | G109: =INDIRECT($E$2&LEFT(D109,2)&"Factor") -> 0 | H109: = | I109: =K109*CO2_C -> 0 | J109: = | K109: =IF(ISERROR(E109*G109),0,E109*G109) -> 0
B111: =B107+1 -> 2016 | D111: Limestone | F111: x | G111: =INDIRECT($E$2&LEFT(D111,2)&"Factor") -> 0 | H111: = | I111: =K111*CO2_C -> 0 | J111: = | K111: =IF(ISERROR(E111*G111),0,E111*G111) -> 0
B112: =B111 -> 2016 | D112: Dolomite | F112: x | G112: =INDIRECT($E$2&LEFT(D112,2)&"Factor") -> 0 | H112: = | I112: =K112*CO2_C -> 0 | J112: = | K112: =IF(ISERROR(E112*G112),0,E112*G112) -> 0
D113: Magnesium Production from Dolomite | F113: x | G113: =INDIRECT($E$2&LEFT(D113,2)&"Factor") -> 0 | H113: = | I113: =K113*CO2_C -> 0 | J113: = | K113: =IF(ISERROR(E113*G113),0,E113*G113) -> 0
B115: =B111+1 -> 2017 | D115: Limestone | F115: x | G115: =INDIRECT($E$2&LEFT(D115,2)&"Factor") -> 0 | H115: = | I115: =K115*CO2_C -> 0 | J115: = | K115: =IF(ISERROR(E115*G115),0,E115*G115) -> 0
B116: =B115 -> 2017 | D116: Dolomite | F116: x | G116: =INDIRECT($E$2&LEFT(D116,2)&"Factor") -> 0 | H116: = | I116: =K116*CO2_C -> 0 | J116: = | K116: =IF(ISERROR(E116*G116),0,E116*G116) -> 0
D117: Magnesium Production from Dolomite | F117: x | G117: =INDIRECT($E$2&LEFT(D117,2)&"Factor") -> 0 | H117: = | I117: =K117*CO2_C -> 0 | J117: = | K117: =IF(ISERROR(E117*G117),0,E117*G117) -> 0
B119: =B115+1 -> 2018 | D119: Limestone | F119: x | G119: =INDIRECT($E$2&LEFT(D119,2)&"Factor") -> 0 | H119: = | I119: =K119*CO2_C -> 0 | J119: = | K119: =IF(ISERROR(E119*G119),0,E119*G119) -> 0
B120: =B119 -> 2018 | D120: Dolomite | F120: x | G120: =INDIRECT($E$2&LEFT(D120,2)&"Factor") -> 0 | H120: = | I120: =K120*CO2_C -> 0 | J120: = | K120: =IF(ISERROR(E120*G120),0,E120*G120) -> 0
D121: Magnesium Production from Dolomite | F121: x | G121: =INDIRECT($E$2&LEFT(D121,2)&"Factor") -> 0 | H121: = | I121: =K121*CO2_C -> 0 | J121: = | K121: =IF(ISERROR(E121*G121),0,E121*G121) -> 0
B123: =B119+1 -> 2019 | D123: Limestone | F123: x | G123: =INDIRECT($E$2&LEFT(D123,2)&"Factor") -> 0 | H123: = | I123: =K123*CO2_C -> 0 | J123: = | K123: =IF(ISERROR(E123*G123),0,E123*G123) -> 0
B124: =B123 -> 2019 | D124: Dolomite | F124: x | G124: =INDIRECT($E$2&LEFT(D124,2)&"Factor") -> 0 | H124: = | I124: =K124*CO2_C -> 0 | J124: = | K124: =IF(ISERROR(E124*G124),0,E124*G124) -> 0
D125: Magnesium Production from Dolomite | F125: x | G125: =INDIRECT($E$2&LEFT(D125,2)&"Factor") -> 0 | H125: = | I125: =K125*CO2_C -> 0 | J125: = | K125: =IF(ISERROR(E125*G125),0,E125*G125) -> 0
B127: =B123+1 -> 2020 | D127: Limestone | F127: x | G127: =INDIRECT($E$2&LEFT(D127,2)&"Factor") -> 0 | H127: = | I127: =K127*CO2_C -> 0 | J127: = | K127: =IF(ISERROR(E127*G127),0,E127*G127) -> 0
B128: =B127 -> 2020 | D128: Dolomite | F128: x | G128: =INDIRECT($E$2&LEFT(D128,2)&"Factor") -> 0 | H128: = | I128: =K128*CO2_C -> 0 | J128: = | K128: =IF(ISERROR(E128*G128),0,E128*G128) -> 0
D129: Magnesium Production from Dolomite | F129: x | G129: =INDIRECT($E$2&LEFT(D129,2)&"Factor") -> 0 | H129: = | I129: =K129*CO2_C -> 0 | J129: = | K129: =IF(ISERROR(E129*G129),0,E129*G129) -> 0

Sheet Soda Ash
B1: ="6. Soda Ash Manufacture and Consumption in "&'List Data'!B3 -> 6. Soda Ash Manufacture and Consumption in Select a State . . .
D2: ='List Data'!$A$3 -> XX | E2: Soda | F2: =" " -> 
E4: Manufacture and Consumption | G4: Emission Factor | I4: Emissions | K4: Emissions
E5: (Metric Tons) | G5: (t CO2/t production) | I5: (MTCE) | K5: (MTCO2E)
B7: 1990 | D7: Manufacture | F7: x | G7: =INDIRECT($E$2&LEFT(D7,2)&"Factor") -> 0 | H7: = | I7: =K7*CO2_C -> 0 | J7: = | K7: =IF(ISERROR(E7*G7),0,E7*G7) -> 0
B8: =B7 -> 1990 | D8: Consumption | F8: x | G8: =INDIRECT($E$2&LEFT(D8,2)&"Factor") -> 0 | H8: = | I8: =K8*CO2_C -> 0 | J8: = | K8: =IF(ISERROR(E8*G8),0,E8*G8) -> 0
B10: =B7+1 -> 1991 | D10: =$D$7 -> Manufacture | F10: x | G10: =INDIRECT($E$2&LEFT(D10,2)&"Factor") -> 0 | H10: = | I10: =K10*CO2_C -> 0 | J10: = | K10: =IF(ISERROR(E10*G10),0,E10*G10) -> 0
B11: =B10 -> 1991 | D11: =$D$8 -> Consumption | F11: x | G11: =INDIRECT($E$2&LEFT(D11,2)&"Factor") -> 0 | H11: = | I11: =K11*CO2_C -> 0 | J11: = | K11: =IF(ISERROR(E11*G11),0,E11*G11) -> 0
B13: =B10+1 -> 1992 | D13: =$D$7 -> Manufacture | F13: x | G13: =INDIRECT($E$2&LEFT(D13,2)&"Factor") -> 0 | H13: = | I13: =K13*CO2_C -> 0 | J13: = | K13: =IF(ISERROR(E13*G13),0,E13*G13) -> 0
B14: =B13 -> 1992 | D14: =$D$8 -> Consumption | F14: x | G14: =INDIRECT($E$2&LEFT(D14,2)&"Factor") -> 0 | H14: = | I14: =K14*CO2_C -> 0 | J14: = | K14: =IF(ISERROR(E14*G14),0,E14*G14) -> 0
B16: =B13+1 -> 1993 | D16: =$D$7 -> Manufacture | F16: x | G16: =INDIRECT($E$2&LEFT(D16,2)&"Factor") -> 0 | H16: = | I16: =K16*CO2_C -> 0 | J16: = | K16: =IF(ISERROR(E16*G16),0,E16*G16) -> 0
B17: =B16 -> 1993 | D17: =$D$8 -> Consumption | F17: x | G17: =INDIRECT($E$2&LEFT(D17,2)&"Factor") -> 0 | H17: = | I17: =K17*CO2_C -> 0 | J17: = | K17: =IF(ISERROR(E17*G17),0,E17*G17) -> 0
B19: =B16+1 -> 1994 | D19: =$D$7 -> Manufacture | F19: x | G19: =INDIRECT($E$2&LEFT(D19,2)&"Factor") -> 0 | H19: = | I19: =K19*CO2_C -> 0 | J19: = | K19: =IF(ISERROR(E19*G19),0,E19*G19) -> 0
B20: =B19 -> 1994 | D20: =$D$8 -> Consumption | F20: x | G20: =INDIRECT($E$2&LEFT(D20,2)&"Factor") -> 0 | H20: = | I20: =K20*CO2_C -> 0 | J20: = | K20: =IF(ISERROR(E20*G20),0,E20*G20) -> 0
B22: =B19+1 -> 1995 | D22: =$D$7 -> Manufacture | F22: x | G22: =INDIRECT($E$2&LEFT(D22,2)&"Factor") -> 0 | H22: = | I22: =K22*CO2_C -> 0 | J22: = | K22: =IF(ISERROR(E22*G22),0,E22*G22) -> 0
B23: =B22 -> 1995 | D23: =$D$8 -> Consumption | F23: x | G23: =INDIRECT($E$2&LEFT(D23,2)&"Factor") -> 0 | H23: = | I23: =K23*CO2_C -> 0 | J23: = | K23: =IF(ISERROR(E23*G23),0,E23*G23) -> 0
B25: =B22+1 -> 1996 | D25: =$D$7 -> Manufacture | F25: x | G25: =INDIRECT($E$2&LEFT(D25,2)&"Factor") -> 0 | H25: = | I25: =K25*CO2_C -> 0 | J25: = | K25: =IF(ISERROR(E25*G25),0,E25*G25) -> 0
B26: =B25 -> 1996 | D26: =$D$8 -> Consumption | F26: x | G26: =INDIRECT($E$2&LEFT(D26,2)&"Factor") -> 0 | H26: = | I26: =K26*CO2_C -> 0 | J26: = | K26: =IF(ISERROR(E26*G26),0,E26*G26) -> 0
B28: =B25+1 -> 1997 | D28: =$D$7 -> Manufacture | F28: x | G28: =INDIRECT($E$2&LEFT(D28,2)&"Factor") -> 0 | H28: = | I28: =K28*CO2_C -> 0 | J28: = | K28: =IF(ISERROR(E28*G28),0,E28*G28) -> 0
B29: =B28 -> 1997 | D29: =$D$8 -> Consumption | F29: x | G29: =INDIRECT($E$2&LEFT(D29,2)&"Factor") -> 0 | H29: = | I29: =K29*CO2_C -> 0 | J29: = | K29: =IF(ISERROR(E29*G29),0,E29*G29) -> 0
B31: =B28+1 -> 1998 | D31: =$D$7 -> Manufacture | F31: x | G31: =INDIRECT($E$2&LEFT(D31,2)&"Factor") -> 0 | H31: = | I31: =K31*CO2_C -> 0 | J31: = | K31: =IF(ISERROR(E31*G31),0,E31*G31) -> 0
B32: =B31 -> 1998 | D32: =$D$8 -> Consumption | F32: x | G32: =INDIRECT($E$2&LEFT(D32,2)&"Factor") -> 0 | H32: = | I32: =K32*CO2_C -> 0 | J32: = | K32: =IF(ISERROR(E32*G32),0,E32*G32) -> 0
B34: =B31+1 -> 1999 | D34: =$D$7 -> Manufacture | F34: x | G34: =INDIRECT($E$2&LEFT(D34,2)&"Factor") -> 0 | H34: = | I34: =K34*CO2_C -> 0 | J34: = | K34: =IF(ISERROR(E34*G34),0,E34*G34) -> 0
B35: =B34 -> 1999 | D35: =$D$8 -> Consumption | F35: x | G35: =INDIRECT($E$2&LEFT(D35,2)&"Factor") -> 0 | H35: = | I35: =K35*CO2_C -> 0 | J35: = | K35: =IF(ISERROR(E35*G35),0,E35*G35) -> 0
B37: =B34+1 -> 2000 | D37: =$D$7 -> Manufacture | F37: x | G37: =INDIRECT($E$2&LEFT(D37,2)&"Factor") -> 0 | H37: = | I37: =K37*CO2_C -> 0 | J37: = | K37: =IF(ISERROR(E37*G37),0,E37*G37) -> 0
B38: =B37 -> 2000 | D38: =$D$8 -> Consumption | F38: x | G38: =INDIRECT($E$2&LEFT(D38,2)&"Factor") -> 0 | H38: = | I38: =K38*CO2_C -> 0 | J38: = | K38: =IF(ISERROR(E38*G38),0,E38*G38) -> 0
B40: =B37+1 -> 2001 | D40: =$D$7 -> Manufacture | F40: x | G40: =INDIRECT($E$2&LEFT(D40,2)&"Factor") -> 0 | H40: = | I40: =K40*CO2_C -> 0 | J40: = | K40: =IF(ISERROR(E40*G40),0,E40*G40) -> 0
B41: =B40 -> 2001 | D41: =$D$8 -> Consumption | F41: x | G41: =INDIRECT($E$2&LEFT(D41,2)&"Factor") -> 0 | H41: = | I41: =K41*CO2_C -> 0 | J41: = | K41: =IF(ISERROR(E41*G41),0,E41*G41) -> 0
B43: =B40+1 -> 2002 | D43: =$D$7 -> Manufacture | F43: x | G43: =INDIRECT($E$2&LEFT(D43,2)&"Factor") -> 0 | H43: = | I43: =K43*CO2_C -> 0 | J43: = | K43: =IF(ISERROR(E43*G43),0,E43*G43) -> 0
B44: =B43 -> 2002 | D44: =$D$8 -> Consumption | F44: x | G44: =INDIRECT($E$2&LEFT(D44,2)&"Factor") -> 0 | H44: = | I44: =K44*CO2_C -> 0 | J44: = | K44: =IF(ISERROR(E44*G44),0,E44*G44) -> 0
B46: =B43+1 -> 2003 | D46: =$D$7 -> Manufacture | F46: x | G46: =INDIRECT($E$2&LEFT(D46,2)&"Factor") -> 0 | H46: = | I46: =K46*CO2_C -> 0 | J46: = | K46: =IF(ISERROR(E46*G46),0,E46*G46) -> 0
B47: =B46 -> 2003 | D47: =$D$8 -> Consumption | F47: x | G47: =INDIRECT($E$2&LEFT(D47,2)&"Factor") -> 0 | H47: = | I47: =K47*CO2_C -> 0 | J47: = | K47: =IF(ISERROR(E47*G47),0,E47*G47) -> 0
B49: =B46+1 -> 2004 | D49: =$D$7 -> Manufacture | F49: x | G49: =INDIRECT($E$2&LEFT(D49,2)&"Factor") -> 0 | H49: = | I49: =K49*CO2_C -> 0 | J49: = | K49: =IF(ISERROR(E49*G49),0,E49*G49) -> 0
B50: =B49 -> 2004 | D50: =$D$8 -> Consumption | F50: x | G50: =INDIRECT($E$2&LEFT(D50,2)&"Factor") -> 0 | H50: = | I50: =K50*CO2_C -> 0 | J50: = | K50: =IF(ISERROR(E50*G50),0,E50*G50) -> 0
B52: =B49+1 -> 2005 | D52: =$D$7 -> Manufacture | F52: x | G52: =INDIRECT($E$2&LEFT(D52,2)&"Factor") -> 0 | H52: = | I52: =K52*CO2_C -> 0 | J52: = | K52: =IF(ISERROR(E52*G52),0,E52*G52) -> 0
B53: =B52 -> 2005 | D53: =$D$8 -> Consumption | F53: x | G53: =INDIRECT($E$2&LEFT(D53,2)&"Factor") -> 0 | H53: = | I53: =K53*CO2_C -> 0 | J53: = | K53: =IF(ISERROR(E53*G53),0,E53*G53) -> 0
B55: =B52+1 -> 2006 | D55: =$D$7 -> Manufacture | F55: x | G55: =INDIRECT($E$2&LEFT(D55,2)&"Factor") -> 0 | H55: = | I55: =K55*CO2_C -> 0 | J55: = | K55: =IF(ISERROR(E55*G55),0,E55*G55) -> 0
B56: =B55 -> 2006 | D56: =$D$8 -> Consumption | F56: x | G56: =INDIRECT($E$2&LEFT(D56,2)&"Factor") -> 0 | H56: = | I56: =K56*CO2_C -> 0 | J56: = | K56: =IF(ISERROR(E56*G56),0,E56*G56) -> 0
B58: =B55+1 -> 2007 | D58: =$D$7 -> Manufacture | F58: x | G58: =INDIRECT($E$2&LEFT(D58,2)&"Factor") -> 0 | H58: = | I58: =K58*CO2_C -> 0 | J58: = | K58: =IF(ISERROR(E58*G58),0,E58*G58) -> 0
B59: =B58 -> 2007 | D59: =$D$8 -> Consumption | F59: x | G59: =INDIRECT($E$2&LEFT(D59,2)&"Factor") -> 0 | H59: = | I59: =K59*CO2_C -> 0 | J59: = | K59: =IF(ISERROR(E59*G59),0,E59*G59) -> 0
B61: =B58+1 -> 2008 | D61: =$D$7 -> Manufacture | F61: x | G61: =INDIRECT($E$2&LEFT(D61,2)&"Factor") -> 0 | H61: = | I61: =K61*CO2_C -> 0 | J61: = | K61: =IF(ISERROR(E61*G61),0,E61*G61) -> 0
B62: =B61 -> 2008 | D62: =$D$8 -> Consumption | F62: x | G62: =INDIRECT($E$2&LEFT(D62,2)&"Factor") -> 0 | H62: = | I62: =K62*CO2_C -> 0 | J62: = | K62: =IF(ISERROR(E62*G62),0,E62*G62) -> 0
B64: =B61+1 -> 2009 | D64: =$D$7 -> Manufacture | F64: x | G64: =INDIRECT($E$2&LEFT(D64,2)&"Factor") -> 0 | H64: = | I64: =K64*CO2_C -> 0 | J64: = | K64: =IF(ISERROR(E64*G64),0,E64*G64) -> 0
B65: =B64 -> 2009 | D65: =$D$8 -> Consumption | F65: x | G65: =INDIRECT($E$2&LEFT(D65,2)&"Factor") -> 0 | H65: = | I65: =K65*CO2_C -> 0 | J65: = | K65: =IF(ISERROR(E65*G65),0,E65*G65) -> 0
B67: =B64+1 -> 2010 | D67: =$D$7 -> Manufacture | F67: x | G67: =INDIRECT($E$2&LEFT(D67,2)&"Factor") -> 0 | H67: = | I67: =K67*CO2_C -> 0 | J67: = | K67: =IF(ISERROR(E67*G67),0,E67*G67) -> 0
B68: =B67 -> 2010 | D68: =$D$8 -> Consumption | F68: x | G68: =INDIRECT($E$2&LEFT(D68,2)&"Factor") -> 0 | H68: = | I68: =K68*CO2_C -> 0 | J68: = | K68: =IF(ISERROR(E68*G68),0,E68*G68) -> 0
B70: =B67+1 -> 2011 | D70: =$D$7 -> Manufacture | F70: x | G70: =INDIRECT($E$2&LEFT(D70,2)&"Factor") -> 0 | H70: = | I70: =K70*CO2_C -> 0 | J70: = | K70: =IF(ISERROR(E70*G70),0,E70*G70) -> 0
B71: =B70 -> 2011 | D71: =$D$8 -> Consumption | F71: x | G71: =INDIRECT($E$2&LEFT(D71,2)&"Factor") -> 0 | H71: = | I71: =K71*CO2_C -> 0 | J71: = | K71: =IF(ISERROR(E71*G71),0,E71*G71) -> 0
B73: =B70+1 -> 2012 | D73: =$D$7 -> Manufacture | F73: x | G73: =INDIRECT($E$2&LEFT(D73,2)&"Factor") -> 0 | H73: = | I73: =K73*CO2_C -> 0 | J73: = | K73: =IF(ISERROR(E73*G73),0,E73*G73) -> 0
B74: =B73 -> 2012 | D74: =$D$8 -> Consumption | F74: x | G74: =INDIRECT($E$2&LEFT(D74,2)&"Factor") -> 0 | H74: = | I74: =K74*CO2_C -> 0 | J74: = | K74: =IF(ISERROR(E74*G74),0,E74*G74) -> 0
B76: =B73+1 -> 2013 | D76: =$D$7 -> Manufacture | F76: x | G76: =INDIRECT($E$2&LEFT(D76,2)&"Factor") -> 0 | H76: = | I76: =K76*CO2_C -> 0 | J76: = | K76: =IF(ISERROR(E76*G76),0,E76*G76) -> 0
B77: =B76 -> 2013 | D77: =$D$8 -> Consumption | F77: x | G77: =INDIRECT($E$2&LEFT(D77,2)&"Factor") -> 0 | H77: = | I77: =K77*CO2_C -> 0 | J77: = | K77: =IF(ISERROR(E77*G77),0,E77*G77) -> 0
B79: =B76+1 -> 2014 | D79: =$D$7 -> Manufacture | F79: x | G79: =INDIRECT($E$2&LEFT(D79,2)&"Factor") -> 0 | H79: = | I79: =K79*CO2_C -> 0 | J79: = | K79: =IF(ISERROR(E79*G79),0,E79*G79) -> 0
B80: =B79 -> 2014 | D80: =$D$8 -> Consumption | F80: x | G80: =INDIRECT($E$2&LEFT(D80,2)&"Factor") -> 0 | H80: = | I80: =K80*CO2_C -> 0 | J80: = | K80: =IF(ISERROR(E80*G80),0,E80*G80) -> 0
B82: =B79+1 -> 2015 | D82: =$D$7 -> Manufacture | F82: x | G82: =INDIRECT($E$2&LEFT(D82,2)&"Factor") -> 0 | H82: = | I82: =K82*CO2_C -> 0 | J82: = | K82: =IF(ISERROR(E82*G82),0,E82*G82) -> 0
B83: =B82 -> 2015 | D83: =$D$8 -> Consumption | F83: x | G83: =INDIRECT($E$2&LEFT(D83,2)&"Factor") -> 0 | H83: = | I83: =K83*CO2_C -> 0 | J83: = | K83: =IF(ISERROR(E83*G83),0,E83*G83) -> 0
B85: =B82+1 -> 2016 | D85: =$D$7 -> Manufacture | F85: x | G85: =INDIRECT($E$2&LEFT(D85,2)&"Factor") -> 0 | H85: = | I85: =K85*CO2_C -> 0 | J85: = | K85: =IF(ISERROR(E85*G85),0,E85*G85) -> 0
B86: =B85 -> 2016 | D86: =$D$8 -> Consumption | F86: x | G86: =INDIRECT($E$2&LEFT(D86,2)&"Factor") -> 0 | H86: = | I86: =K86*CO2_C -> 0 | J86: = | K86: =IF(ISERROR(E86*G86),0,E86*G86) -> 0
B88: =B85+1 -> 2017 | D88: =$D$7 -> Manufacture | F88: x | G88: =INDIRECT($E$2&LEFT(D88,2)&"Factor") -> 0 | H88: = | I88: =K88*CO2_C -> 0 | J88: = | K88: =IF(ISERROR(E88*G88),0,E88*G88) -> 0
B89: =B88 -> 2017 | D89: =$D$8 -> Consumption | F89: x | G89: =INDIRECT($E$2&LEFT(D89,2)&"Factor") -> 0 | H89: = | I89: =K89*CO2_C -> 0 | J89: = | K89: =IF(ISERROR(E89*G89),0,E89*G89) -> 0
B91: =B88+1 -> 2018 | D91: =$D$7 -> Manufacture | F91: x | G91: =INDIRECT($E$2&LEFT(D91,2)&"Factor") -> 0 | H91: = | I91: =K91*CO2_C -> 0 | J91: = | K91: =IF(ISERROR(E91*G91),0,E91*G91) -> 0
B92: =B91 -> 2018 | D92: =$D$8 -> Consumption | F92: x | G92: =INDIRECT($E$2&LEFT(D92,2)&"Factor") -> 0 | H92: = | I92: =K92*CO2_C -> 0 | J92: = | K92: =IF(ISERROR(E92*G92),0,E92*G92) -> 0
B94: =B91+1 -> 2019 | D94: =$D$7 -> Manufacture | F94: x | G94: =INDIRECT($E$2&LEFT(D94,2)&"Factor") -> 0 | H94: = | I94: =K94*CO2_C -> 0 | J94: = | K94: =IF(ISERROR(E94*G94),0,E94*G94) -> 0
B95: =B94 -> 2019 | D95: =$D$8 -> Consumption | F95: x | G95: =INDIRECT($E$2&LEFT(D95,2)&"Factor") -> 0 | H95: = | I95: =K95*CO2_C -> 0 | J95: = | K95: =IF(ISERROR(E95*G95),0,E95*G95) -> 0
B97: =B94+1 -> 2020 | D97: =$D$7 -> Manufacture | F97: x | G97: =INDIRECT($E$2&LEFT(D97,2)&"Factor") -> 0 | H97: = | I97: =K97*CO2_C -> 0 | J97: = | K97: =IF(ISERROR(E97*G97),0,E97*G97) -> 0
B98: =B97 -> 2020 | D98: =$D$8 -> Consumption | F98: x | G98: =INDIRECT($E$2&LEFT(D98,2)&"Factor") -> 0 | H98: = | I98: =K98*CO2_C -> 0 | J98: = | K98: =IF(ISERROR(E98*G98),0,E98*G98) -> 0

Sheet Aluminum
B1: ="11. "&'List Data'!B3&" Aluminum Production" -> 11. Select a State . . . Aluminum Production
D2: ='List Data'!$A$3 -> XX | E2: Aluminum | F2: =" " ->  | H2: =" " ->  | R2: =" " -> 
Y3: =50% -> 0.5
E4: Production | G4: PFC Emission Factor | I4: Søderberg Facilities | K4: Søderberg CO2 Emission Factor | M4: Prebake Facilities | O4: Prebake CO2 Emission Factor | Q4: PFC Emissions | S4: Carbon Emissions | U4: Total Emissions | Y4: =50% -> 0.5
E5: (Metric Tons) | G5: (t CE/t production) | I5: % | K5: (t CE/t production) | M5: % | O5: (t CE/t production) | Q5: (MTCE) | S5: (MTCE) | U5: (MTCO2E)
Y6: =50% -> 0.5
B7: 1990 | D7: Perfluorocarbons | F7: x ( | G7: =IF(ISNUMBER(INDIRECT($F$2&LEFT(D7,2)&"Factor")),INDIRECT($F$2&LEFT(D7,2)&"Factor"),VLOOKUP(B7,AlFactorBlock,4,FALSE)) -> 0.4254545455 | H7: + | J7: x | K7: =IF(Control!$D$35>0,Control!$D$35,Control!$B$35) -> 0.4636363636 | L7: + | M7: =1-I7 -> 1 | N7: x | O7: =IF(Control!$D$34>0,Control!$D$34,Control!$B$34) -> 0.4363636364 | P7: ) = | Q7: =IF(ISERROR(E7*G7),0,E7*G7) -> 0 | R7: + | S7: =IF(ISERROR(E7*((I7*K7)+(M7*O7))),0,E7*((I7*K7)+(M7*O7))) -> 0 | T7: = | U7: =(Q7+S7)/CO2_C -> 0 | Z7: =50% -> 0.5
B9: =B7+1 -> 1991 | D9: Perfluorocarbons | F9: x ( | G9: =IF(ISNUMBER(INDIRECT($F$2&LEFT(D9,2)&"Factor")),INDIRECT($F$2&LEFT(D9,2)&"Factor"),VLOOKUP(B9,AlFactorBlock,4,FALSE)) -> 0.4254545455 | H9: + | J9: x | K9: =IF(Control!$D$35>0,Control!$D$35,Control!$B$35) -> 0.4636363636 | L9: + | M9: =1-I9 -> 1 | N9: x | O9: =IF(Control!$D$34>0,Control!$D$34,Control!$B$34) -> 0.4363636364 | P9: ) = | Q9: =IF(ISERROR(E9*G9),0,E9*G9) -> 0 | R9: + | S9: =IF(ISERROR(E9*((I9*K9)+(M9*O9))),0,E9*((I9*K9)+(M9*O9))) -> 0 | T9: = | U9: =(Q9+S9)/CO2_C -> 0
Z10: =50% -> 0.5
B11: =B9+1 -> 1992 | D11: Perfluorocarbons | F11: x ( | G11: =IF(ISNUMBER(INDIRECT($F$2&LEFT(D11,2)&"Factor")),INDIRECT($F$2&LEFT(D11,2)&"Factor"),VLOOKUP(B11,AlFactorBlock,4,FALSE)) -> 0.4254545455 | H11: + | J11: x | K11: =IF(Control!$D$35>0,Control!$D$35,Control!$B$35) -> 0.4636363636 | L11: + | M11: =1-I11 -> 1 | N11: x | O11: =IF(Control!$D$34>0,Control!$D$34,Control!$B$34) -> 0.4363636364 | P11: ) = | Q11: =IF(ISERROR(E11*G11),0,E11*G11) -> 0 | R11: + | S11: =IF(ISERROR(E11*((I11*K11)+(M11*O11))),0,E11*((I11*K11)+(M11*O11))) -> 0 | T11: = | U11: =(Q11+S11)/CO2_C -> 0
B13: =B11+1 -> 1993 | D13: Perfluorocarbons | F13: x ( | G13: =IF(ISNUMBER(INDIRECT($F$2&LEFT(D13,2)&"Factor")),INDIRECT($F$2&LEFT(D13,2)&"Factor"),VLOOKUP(B13,AlFactorBlock,4,FALSE)) -> 0.4254545455 | H13: + | J13: x | K13: =IF(Control!$D$35>0,Control!$D$35,Control!$B$35) -> 0.4636363636 | L13: + | M13: =1-I13 -> 1 | N13: x | O13: =IF(Control!$D$34>0,Control!$D$34,Control!$B$34) -> 0.4363636364 | P13: ) = | Q13: =IF(ISERROR(E13*G13),0,E13*G13) -> 0 | R13: + | S13: =IF(ISERROR(E13*((I13*K13)+(M13*O13))),0,E13*((I13*K13)+(M13*O13))) -> 0 | T13: = | U13: =(Q13+S13)/CO2_C -> 0
B15: =B13+1 -> 1994 | D15: Perfluorocarbons | F15: x ( | G15: =IF(ISNUMBER(INDIRECT($F$2&LEFT(D15,2)&"Factor")),INDIRECT($F$2&LEFT(D15,2)&"Factor"),VLOOKUP(B15,AlFactorBlock,4,FALSE)) -> 0.4254545455 | H15: + | J15: x | K15: =IF(Control!$D$35>0,Control!$D$35,Control!$B$35) -> 0.4636363636 | L15: + | M15: =1-I15 -> 1 | N15: x | O15: =IF(Control!$D$34>0,Control!$D$34,Control!$B$34) -> 0.4363636364 | P15: ) = | Q15: =IF(ISERROR(E15*G15),0,E15*G15) -> 0 | R15: + | S15: =IF(ISERROR(E15*((I15*K15)+(M15*O15))),0,E15*((I15*K15)+(M15*O15))) -> 0 | T15: = | U15: =(Q15+S15)/CO2_C -> 0
B17: =B15+1 -> 1995 | D17: Perfluorocarbons | F17: x ( | G17: =IF(ISNUMBER(INDIRECT($F$2&LEFT(D17,2)&"Factor")),INDIRECT($F$2&LEFT(D17,2)&"Factor"),VLOOKUP(B17,AlFactorBlock,4,FALSE)) -> 0.4254545455 | H17: + | J17: x | K17: =IF(Control!$D$35>0,Control!$D$35,Control!$B$35) -> 0.4636363636 | L17: + | M17: =1-I17 -> 1 | N17: x | O17: =IF(Control!$D$34>0,Control!$D$34,Control!$B$34) -> 0.4363636364 | P17: ) = | Q17: =IF(ISERROR(E17*G17),0,E17*G17) -> 0 | R17: + | S17: =IF(ISERROR(E17*((I17*K17)+(M17*O17))),0,E17*((I17*K17)+(M17*O17))) -> 0 | T17: = | U17: =(Q17+S17)/CO2_C -> 0
B19: =B17+1 -> 1996 | D19: Perfluorocarbons | F19: x ( | G19: =IF(ISNUMBER(INDIRECT($F$2&LEFT(D19,2)&"Factor")),INDIRECT($F$2&LEFT(D19,2)&"Factor"),VLOOKUP(B19,AlFactorBlock,4,FALSE)) -> 0.4254545455 | H19: + | J19: x | K19: =IF(Control!$D$35>0,Control!$D$35,Control!$B$35) -> 0.4636363636 | L19: + | M19: =1-I19 -> 1 | N19: x | O19: =IF(Control!$D$34>0,Control!$D$34,Control!$B$34) -> 0.4363636364 | P19: ) = | Q19: =IF(ISERROR(E19*G19),0,E19*G19) -> 0 | R19: + | S19: =IF(ISERROR(E19*((I19*K19)+(M19*O19))),0,E19*((I19*K19)+(M19*O19))) -> 0 | T19: = | U19: =(Q19+S19)/CO2_C -> 0
B21: =B19+1 -> 1997 | D21: Perfluorocarbons | F21: x ( | G21: =IF(ISNUMBER(INDIRECT($F$2&LEFT(D21,2)&"Factor")),INDIRECT($F$2&LEFT(D21,2)&"Factor"),VLOOKUP(B21,AlFactorBlock,4,FALSE)) -> 0.4254545455 | H21: + | J21: x | K21: =IF(Control!$D$35>0,Control!$D$35,Control!$B$35) -> 0.4636363636 | L21: + | M21: =1-I21 -> 1 | N21: x | O21: =IF(Control!$D$34>0,Control!$D$34,Control!$B$34) -> 0.4363636364 | P21: ) = | Q21: =IF(ISERROR(E21*G21),0,E21*G21) -> 0 | R21: + | S21: =IF(ISERROR(E21*((I21*K21)+(M21*O21))),0,E21*((I21*K21)+(M21*O21))) -> 0 | T21: = | U21: =(Q21+S21)/CO2_C -> 0
AB22: =50% -> 0.5
B23: =B21+1 -> 1998 | D23: Perfluorocarbons | F23: x ( | G23: =IF(ISNUMBER(INDIRECT($F$2&LEFT(D23,2)&"Factor")),INDIRECT($F$2&LEFT(D23,2)&"Factor"),VLOOKUP(B23,AlFactorBlock,4,FALSE)) -> 0.4254545455 | H23: + | J23: x | K23: =IF(Control!$D$35>0,Control!$D$35,Control!$B$35) -> 0.4636363636 | L23: + | M23: =1-I23 -> 1 | N23: x | O23: =IF(Control!$D$34>0,Control!$D$34,Control!$B$34) -> 0.4363636364 | P23: ) = | Q23: =IF(ISERROR(E23*G23),0,E23*G23) -> 0 | R23: + | S23: =IF(ISERROR(E23*((I23*K23)+(M23*O23))),0,E23*((I23*K23)+(M23*O23))) -> 0 | T23: = | U23: =(Q23+S23)/CO2_C -> 0
B25: =B23+1 -> 1999 | D25: Perfluorocarbons | F25: x ( | G25: =IF(ISNUMBER(INDIRECT($F$2&LEFT(D25,2)&"Factor")),INDIRECT($F$2&LEFT(D25,2)&"Factor"),VLOOKUP(B25,AlFactorBlock,4,FALSE)) -> 0.4254545455 | H25: + | J25: x | K25: =IF(Control!$D$35>0,Control!$D$35,Control!$B$35) -> 0.4636363636 | L25: + | M25: =1-I25 -> 1 | N25: x | O25: =IF(Control!$D$34>0,Control!$D$34,Control!$B$34) -> 0.4363636364 | P25: ) = | Q25: =IF(ISERROR(E25*G25),0,E25*G25) -> 0 | R25: + | S25: =IF(ISERROR(E25*((I25*K25)+(M25*O25))),0,E25*((I25*K25)+(M25*O25))) -> 0 | T25: = | U25: =(Q25+S25)/CO2_C -> 0
B27: =B25+1 -> 2000 | D27: Perfluorocarbons | F27: x ( | G27: =IF(ISNUMBER(INDIRECT($F$2&LEFT(D27,2)&"Factor")),INDIRECT($F$2&LEFT(D27,2)&"Factor"),VLOOKUP(B27,AlFactorBlock,4,FALSE)) -> 0.4254545455 | H27: + | J27: x | K27: =IF(Control!$D$35>0,Control!$D$35,Control!$B$35) -> 0.4636363636 | L27: + | M27: =1-I27 -> 1 | N27: x | O27: =IF(Control!$D$34>0,Control!$D$34,Control!$B$34) -> 0.4363636364 | P27: ) = | Q27: =IF(ISERROR(E27*G27),0,E27*G27) -> 0 | R27: + | S27: =IF(ISERROR(E27*((I27*K27)+(M27*O27))),0,E27*((I27*K27)+(M27*O27))) -> 0 | T27: = | U27: =(Q27+S27)/CO2_C -> 0
B29: =B27+1 -> 2001 | D29: Perfluorocarbons | F29: x ( | G29: =IF(ISNUMBER(INDIRECT($F$2&LEFT(D29,2)&"Factor")),INDIRECT($F$2&LEFT(D29,2)&"Factor"),VLOOKUP(B29,AlFactorBlock,4,FALSE)) -> 0.4254545455 | H29: + | J29: x | K29: =IF(Control!$D$35>0,Control!$D$35,Control!$B$35) -> 0.4636363636 | L29: + | M29: =1-I29 -> 1 | N29: x | O29: =IF(Control!$D$34>0,Control!$D$34,Control!$B$34) -> 0.4363636364 | P29: ) = | Q29: =IF(ISERROR(E29*G29),0,E29*G29) -> 0 | R29: + | S29: =IF(ISERROR(E29*((I29*K29)+(M29*O29))),0,E29*((I29*K29)+(M29*O29))) -> 0 | T29: = | U29: =(Q29+S29)/CO2_C -> 0
B31: =B29+1 -> 2002 | D31: Perfluorocarbons | F31: x ( | G31: =IF(ISNUMBER(INDIRECT($F$2&LEFT(D31,2)&"Factor")),INDIRECT($F$2&LEFT(D31,2)&"Factor"),VLOOKUP(B31,AlFactorBlock,4,FALSE)) -> 0.4254545455 | H31: + | J31: x | K31: =IF(Control!$D$35>0,Control!$D$35,Control!$B$35) -> 0.4636363636 | L31: + | M31: =1-I31 -> 1 | N31: x | O31: =IF(Control!$D$34>0,Control!$D$34,Control!$B$34) -> 0.4363636364 | P31: ) = | Q31: =IF(ISERROR(E31*G31),0,E31*G31) -> 0 | R31: + | S31: =IF(ISERROR(E31*((I31*K31)+(M31*O31))),0,E31*((I31*K31)+(M31*O31))) -> 0 | T31: = | U31: =(Q31+S31)/CO2_C -> 0
B33: =B31+1 -> 2003 | D33: Perfluorocarbons | F33: x ( | G33: =IF(ISNUMBER(INDIRECT($F$2&LEFT(D33,2)&"Factor")),INDIRECT($F$2&LEFT(D33,2)&"Factor"),VLOOKUP(B33,AlFactorBlock,4,FALSE)) -> 0.4254545455 | H33: + | J33: x | K33: =IF(Control!$D$35>0,Control!$D$35,Control!$B$35) -> 0.4636363636 | L33: + | M33: =1-I33 -> 1 | N33: x | O33: =IF(Control!$D$34>0,Control!$D$34,Control!$B$34) -> 0.4363636364 | P33: ) = | Q33: =IF(ISERROR(E33*G33),0,E33*G33) -> 0 | R33: + | S33: =IF(ISERROR(E33*((I33*K33)+(M33*O33))),0,E33*((I33*K33)+(M33*O33))) -> 0 | T33: = | U33: =(Q33+S33)/CO2_C -> 0
B35: =B33+1 -> 2004 | D35: Perfluorocarbons | F35: x ( | G35: =IF(ISNUMBER(INDIRECT($F$2&LEFT(D35,2)&"Factor")),INDIRECT($F$2&LEFT(D35,2)&"Factor"),VLOOKUP(B35,AlFactorBlock,4,FALSE)) -> 0.4254545455 | H35: + | J35: x | K35: =IF(Control!$D$35>0,Control!$D$35,Control!$B$35) -> 0.4636363636 | L35: + | M35: =1-I35 -> 1 | N35: x | O35: =IF(Control!$D$34>0,Control!$D$34,Control!$B$34) -> 0.4363636364 | P35: ) = | Q35: =IF(ISERROR(E35*G35),0,E35*G35) -> 0 | R35: + | S35: =IF(ISERROR(E35*((I35*K35)+(M35*O35))),0,E35*((I35*K35)+(M35*O35))) -> 0 | T35: = | U35: =(Q35+S35)/CO2_C -> 0
B37: =B35+1 -> 2005 | D37: Perfluorocarbons | F37: x ( | G37: =IF(ISNUMBER(INDIRECT($F$2&LEFT(D37,2)&"Factor")),INDIRECT($F$2&LEFT(D37,2)&"Factor"),VLOOKUP(B37,AlFactorBlock,4,FALSE)) -> 0.4316046873 | H37: + | J37: x | K37: =IF(Control!$D$35>0,Control!$D$35,Control!$B$35) -> 0.4636363636 | L37: + | M37: =1-I37 -> 1 | N37: x | O37: =IF(Control!$D$34>0,Control!$D$34,Control!$B$34) -> 0.4363636364 | P37: ) = | Q37: =IF(ISERROR(E37*G37),0,E37*G37) -> 0 | R37: + | S37: =IF(ISERROR(E37*((I37*K37)+(M37*O37))),0,E37*((I37*K37)+(M37*O37))) -> 0 | T37: = | U37: =(Q37+S37)/CO2_C -> 0
B39: =B37+1 -> 2006 | D39: Perfluorocarbons | F39: x ( | G39: =IF(ISNUMBER(INDIRECT($F$2&LEFT(D39,2)&"Factor")),INDIRECT($F$2&LEFT(D39,2)&"Factor"),VLOOKUP(B39,AlFactorBlock,4,FALSE)) -> 0.4688315364 | H39: + | J39: x | K39: =IF(Control!$D$35>0,Control!$D$35,Control!$B$35) -> 0.4636363636 | L39: + | M39: =1-I39 -> 1 | N39: x | O39: =IF(Control!$D$34>0,Control!$D$34,Control!$B$34) -> 0.4363636364 | P39: ) = | Q39: =IF(ISERROR(E39*G39),0,E39*G39) -> 0 | R39: + | S39: =IF(ISERROR(E39*((I39*K39)+(M39*O39))),0,E39*((I39*K39)+(M39*O39))) -> 0 | T39: = | U39: =(Q39+S39)/CO2_C -> 0
B41: =B39+1 -> 2007 | D41: Perfluorocarbons | F41: x ( | G41: =IF(ISNUMBER(INDIRECT($F$2&LEFT(D41,2)&"Factor")),INDIRECT($F$2&LEFT(D41,2)&"Factor"),VLOOKUP(B41,AlFactorBlock,4,FALSE)) -> 0.4192682964 | H41: + | J41: x | K41: =IF(Control!$D$35>0,Control!$D$35,Control!$B$35) -> 0.4636363636 | L41: + | M41: =1-I41 -> 1 | N41: x | O41: =IF(Control!$D$34>0,Control!$D$34,Control!$B$34) -> 0.4363636364 | P41: ) = | Q41: =IF(ISERROR(E41*G41),0,E41*G41) -> 0 | R41: + | S41: =IF(ISERROR(E41*((I41*K41)+(M41*O41))),0,E41*((I41*K41)+(M41*O41))) -> 0 | T41: = | U41: =(Q41+S41)/CO2_C -> 0
B43: =B41+1 -> 2008 | D43: Perfluorocarbons | F43: x ( | G43: =IF(ISNUMBER(INDIRECT($F$2&LEFT(D43,2)&"Factor")),INDIRECT($F$2&LEFT(D43,2)&"Factor"),VLOOKUP(B43,AlFactorBlock,4,FALSE)) -> 0.4028635173 | H43: + | J43: x | K43: =IF(Control!$D$35>0,Control!$D$35,Control!$B$35) -> 0.4636363636 | L43: + | M43: =1-I43 -> 1 | N43: x | O43: =IF(Control!$D$34>0,Control!$D$34,Control!$B$34) -> 0.4363636364 | P43: ) = | Q43: =IF(ISERROR(E43*G43),0,E43*G43) -> 0 | R43: + | S43: =IF(ISERROR(E43*((I43*K43)+(M43*O43))),0,E43*((I43*K43)+(M43*O43))) -> 0 | T43: = | U43: =(Q43+S43)/CO2_C -> 0
B45: =B43+1 -> 2009 | D45: Perfluorocarbons | F45: x ( | G45: =IF(ISNUMBER(INDIRECT($F$2&LEFT(D45,2)&"Factor")),INDIRECT($F$2&LEFT(D45,2)&"Factor"),VLOOKUP(B45,AlFactorBlock,4,FALSE)) -> 0.6200412444 | H45: + | J45: x | K45: =IF(Control!$D$35>0,Control!$D$35,Control!$B$35) -> 0.4636363636 | L45: + | M45: =1-I45 -> 1 | N45: x | O45: =IF(Control!$D$34>0,Control!$D$34,Control!$B$34) -> 0.4363636364 | P45: ) = | Q45: =IF(ISERROR(E45*G45),0,E45*G45) -> 0 | R45: + | S45: =IF(ISERROR(E45*((I45*K45)+(M45*O45))),0,E45*((I45*K45)+(M45*O45))) -> 0 | T45: = | U45: =(Q45+S45)/CO2_C -> 0
B47: =B45+1 -> 2010 | D47: Perfluorocarbons | F47: x ( | G47: =IF(ISNUMBER(INDIRECT($F$2&LEFT(D47,2)&"Factor")),INDIRECT($F$2&LEFT(D47,2)&"Factor"),VLOOKUP(B47,AlFactorBlock,4,FALSE)) -> 0.6204004804 | H47: + | J47: x | K47: =IF(Control!$D$35>0,Control!$D$35,Control!$B$35) -> 0.4636363636 | L47: + | M47: =1-I47 -> 1 | N47: x | O47: =IF(Control!$D$34>0,Control!$D$34,Control!$B$34) -> 0.4363636364 | P47: ) = | Q47: =IF(ISERROR(E47*G47),0,E47*G47) -> 0 | R47: + | S47: =IF(ISERROR(E47*((I47*K47)+(M47*O47))),0,E47*((I47*K47)+(M47*O47))) -> 0 | T47: = | U47: =(Q47+S47)/CO2_C -> 0
B49: =B47+1 -> 2011 | D49: Perfluorocarbons | F49: x ( | G49: =IF(ISNUMBER(INDIRECT($F$2&LEFT(D49,2)&"Factor")),INDIRECT($F$2&LEFT(D49,2)&"Factor"),VLOOKUP(B49,AlFactorBlock,4,FALSE)) -> 0.5391798737 | H49: + | J49: x | K49: =IF(Control!$D$35>0,Control!$D$35,Control!$B$35) -> 0.4636363636 | L49: + | M49: =1-I49 -> 1 | N49: x | O49: =IF(Control!$D$34>0,Control!$D$34,Control!$B$34) -> 0.4363636364 | P49: ) = | Q49: =IF(ISERROR(E49*G49),0,E49*G49) -> 0 | R49: + | S49: =IF(ISERROR(E49*((I49*K49)+(M49*O49))),0,E49*((I49*K49)+(M49*O49))) -> 0 | T49: = | U49: =(Q49+S49)/CO2_C -> 0
B51: =B49+1 -> 2012 | D51: Perfluorocarbons | F51: x ( | G51: =IF(ISNUMBER(INDIRECT($F$2&LEFT(D51,2)&"Factor")),INDIRECT($F$2&LEFT(D51,2)&"Factor"),VLOOKUP(B51,AlFactorBlock,4,FALSE)) -> 0.5173001107 | H51: + | J51: x | K51: =IF(Control!$D$35>0,Control!$D$35,Control!$B$35) -> 0.4636363636 | L51: + | M51: =1-I51 -> 1 | N51: x | O51: =IF(Control!$D$34>0,Control!$D$34,Control!$B$34) -> 0.4363636364 | P51: ) = | Q51: =IF(ISERROR(E51*G51),0,E51*G51) -> 0 | R51: + | S51: =IF(ISERROR(E51*((I51*K51)+(M51*O51))),0,E51*((I51*K51)+(M51*O51))) -> 0 | T51: = | U51: =(Q51+S51)/CO2_C -> 0
B53: =B51+1 -> 2013 | D53: Perfluorocarbons | F53: x ( | G53: =IF(ISNUMBER(INDIRECT($F$2&LEFT(D53,2)&"Factor")),INDIRECT($F$2&LEFT(D53,2)&"Factor"),VLOOKUP(B53,AlFactorBlock,4,FALSE)) -> 0.5502627077 | H53: + | J53: x | K53: =IF(Control!$D$35>0,Control!$D$35,Control!$B$35) -> 0.4636363636 | L53: + | M53: =1-I53 -> 1 | N53: x | O53: =IF(Control!$D$34>0,Control!$D$34,Control!$B$34) -> 0.4363636364 | P53: ) = | Q53: =IF(ISERROR(E53*G53),0,E53*G53) -> 0 | R53: + | S53: =IF(ISERROR(E53*((I53*K53)+(M53*O53))),0,E53*((I53*K53)+(M53*O53))) -> 0 | T53: = | U53: =(Q53+S53)/CO2_C -> 0
B55: =B53+1 -> 2014 | D55: Perfluorocarbons | F55: x ( | G55: =IF(ISNUMBER(INDIRECT($F$2&LEFT(D55,2)&"Factor")),INDIRECT($F$2&LEFT(D55,2)&"Factor"),VLOOKUP(B55,AlFactorBlock,4,FALSE)) -> 0.6262053971 | H55: + | J55: x | K55: =IF(Control!$D$35>0,Control!$D$35,Control!$B$35) -> 0.4636363636 | L55: + | M55: =1-I55 -> 1 | N55: x | O55: =IF(Control!$D$34>0,Control!$D$34,Control!$B$34) -> 0.4363636364 | P55: ) = | Q55: =IF(ISERROR(E55*G55),0,E55*G55) -> 0 | R55: + | S55: =IF(ISERROR(E55*((I55*K55)+(M55*O55))),0,E55*((I55*K55)+(M55*O55))) -> 0 | T55: = | U55: =(Q55+S55)/CO2_C -> 0
B57: =B55+1 -> 2015 | D57: Perfluorocarbons | F57: x ( | G57: =IF(ISNUMBER(INDIRECT($F$2&LEFT(D57,2)&"Factor")),INDIRECT($F$2&LEFT(D57,2)&"Factor"),VLOOKUP(B57,AlFactorBlock,4,FALSE)) -> 0.6747392748 | H57: + | J57: x | K57: =IF(Control!$D$35>0,Control!$D$35,Control!$B$35) -> 0.4636363636 | L57: + | M57: =1-I57 -> 1 | N57: x | O57: =IF(Control!$D$34>0,Control!$D$34,Control!$B$34) -> 0.4363636364 | P57: ) = | Q57: =IF(ISERROR(E57*G57),0,E57*G57) -> 0 | R57: + | S57: =IF(ISERROR(E57*((I57*K57)+(M57*O57))),0,E57*((I57*K57)+(M57*O57))) -> 0 | T57: = | U57: =(Q57+S57)/CO2_C -> 0
B59: =B57+1 -> 2016 | D59: Perfluorocarbons | F59: x ( | G59: =IF(ISNUMBER(INDIRECT($F$2&LEFT(D59,2)&"Factor")),INDIRECT($F$2&LEFT(D59,2)&"Factor"),VLOOKUP(B59,AlFactorBlock,4,FALSE)) -> 1.309060182 | H59: + | J59: x | K59: =IF(Control!$D$35>0,Control!$D$35,Control!$B$35) -> 0.4636363636 | L59: + | M59: =1-I59 -> 1 | N59: x | O59: =IF(Control!$D$34>0,Control!$D$34,Control!$B$34) -> 0.4363636364 | P59: ) = | Q59: =IF(ISERROR(E59*G59),0,E59*G59) -> 0 | R59: + | S59: =IF(ISERROR(E59*((I59*K59)+(M59*O59))),0,E59*((I59*K59)+(M59*O59))) -> 0 | T59: = | U59: =(Q59+S59)/CO2_C -> 0
B61: =B59+1 -> 2017 | D61: Perfluorocarbons | F61: x ( | G61: =IF(ISNUMBER(INDIRECT($F$2&LEFT(D61,2)&"Factor")),INDIRECT($F$2&LEFT(D61,2)&"Factor"),VLOOKUP(B61,AlFactorBlock,4,FALSE)) -> 1.445089378 | H61: + | J61: x | K61: =IF(Control!$D$35>0,Control!$D$35,Control!$B$35) -> 0.4636363636 | L61: + | M61: =1-I61 -> 1 | N61: x | O61: =IF(Control!$D$34>0,Control!$D$34,Control!$B$34) -> 0.4363636364 | P61: ) = | Q61: =IF(ISERROR(E61*G61),0,E61*G61) -> 0 | R61: + | S61: =IF(ISERROR(E61*((I61*K61)+(M61*O61))),0,E61*((I61*K61)+(M61*O61))) -> 0 | T61: = | U61: =(Q61+S61)/CO2_C -> 0
B63: =B61+1 -> 2018 | D63: Perfluorocarbons | F63: x ( | G63: =IF(ISNUMBER(INDIRECT($F$2&LEFT(D63,2)&"Factor")),INDIRECT($F$2&LEFT(D63,2)&"Factor"),VLOOKUP(B63,AlFactorBlock,4,FALSE)) -> 1.201808338 | H63: + | J63: x | K63: =IF(Control!$D$35>0,Control!$D$35,Control!$B$35) -> 0.4636363636 | L63: + | M63: =1-I63 -> 1 | N63: x | O63: =IF(Control!$D$34>0,Control!$D$34,Control!$B$34) -> 0.4363636364 | P63: ) = | Q63: =IF(ISERROR(E63*G63),0,E63*G63) -> 0 | R63: + | S63: =IF(ISERROR(E63*((I63*K63)+(M63*O63))),0,E63*((I63*K63)+(M63*O63))) -> 0 | T63: = | U63: =(Q63+S63)/CO2_C -> 0
B65: =B63+1 -> 2019 | D65: Perfluorocarbons | F65: x ( | G65: =IF(ISNUMBER(INDIRECT($F$2&LEFT(D65,2)&"Factor")),INDIRECT($F$2&LEFT(D65,2)&"Factor"),VLOOKUP(B65,AlFactorBlock,4,FALSE)) -> 1.201808338 | H65: + | J65: x | K65: =IF(Control!$D$35>0,Control!$D$35,Control!$B$35) -> 0.4636363636 | L65: + | M65: =1-I65 -> 1 | N65: x | O65: =IF(Control!$D$34>0,Control!$D$34,Control!$B$34) -> 0.4363636364 | P65: ) = | Q65: =IF(ISERROR(E65*G65),0,E65*G65) -> 0 | R65: + | S65: =IF(ISERROR(E65*((I65*K65)+(M65*O65))),0,E65*((I65*K65)+(M65*O65))) -> 0 | T65: = | U65: =(Q65+S65)/CO2_C -> 0
B67: =B65+1 -> 2020 | D67: Perfluorocarbons | F67: x ( | G67: =IF(ISNUMBER(INDIRECT($F$2&LEFT(D67,2)&"Factor")),INDIRECT($F$2&LEFT(D67,2)&"Factor"),VLOOKUP(B67,AlFactorBlock,4,FALSE)) -> 1.201808338 | H67: + | J67: x | K67: =IF(Control!$D$35>0,Control!$D$35,Control!$B$35) -> 0.4636363636 | L67: + | M67: =1-I67 -> 1 | N67: x | O67: =IF(Control!$D$34>0,Control!$D$34,Control!$B$34) -> 0.4363636364 | P67: ) = | Q67: =IF(ISERROR(E67*G67),0,E67*G67) -> 0 | R67: + | S67: =IF(ISERROR(E67*((I67*K67)+(M67*O67))),0,E67*((I67*K67)+(M67*O67))) -> 0 | T67: = | U67: =(Q67+S67)/CO2_C -> 0

Sheet Iron & Steel
B1: ="7. Iron and Steel Production in "&'List Data'!B3 -> 7. Iron and Steel Production in Select a State . . .
D4: Production Method | F4: State Production | H4: Emission Factor | J4: Emissions | L4: Emissions
F5: (Metric Tons) | H5: (t CO2/t production) | J5: (MTCE) | L5: (MTCO2E)
B7: 1990 | D7: BOF with coke ovens | G7: x | H7: =Control!$D$26 -> 0 | I7: = | J7: =L7*CO2_C -> 0 | K7: = | L7: =IF(ISERROR(F7*H7),0,F7*H7) -> 0
B8: =B7 -> 1990 | D8: BOF without coke ovens | G8: x | H8: =Control!$D$27 -> 0 | I8: = | J8: =L8*CO2_C -> 0 | K8: = | L8: =IF(ISERROR(F8*H8),0,F8*H8) -> 0
B9: =B8 -> 1990 | D9: EAF | G9: x | H9: =Control!$D$28 -> 0 | I9: = | J9: =L9*CO2_C -> 0 | K9: = | L9: =IF(ISERROR(F9*H9),0,F9*H9) -> 0
B10: =B9 -> 1990 | D10: OHF | G10: x | H10: =Control!$D$29 -> 0 | I10: = | J10: =L10*CO2_C -> 0 | K10: = | L10: =IF(ISERROR(F10*H10),0,F10*H10) -> 0
D11: Total | I11: = | J11: =L11*CO2_C -> 0 | L11: =SUM(L7:L10) -> 0
B13: =B7+1 -> 1991 | D13: BOF with coke ovens | G13: x | H13: =Control!$D$26 -> 0 | I13: = | J13: =L13*CO2_C -> 0 | K13: = | L13: =IF(ISERROR(F13*H13),0,F13*H13) -> 0
B14: =B13 -> 1991 | D14: BOF without coke ovens | G14: x | H14: =Control!$D$27 -> 0 | I14: = | J14: =L14*CO2_C -> 0 | K14: = | L14: =IF(ISERROR(F14*H14),0,F14*H14) -> 0
B15: =B14 -> 1991 | D15: EAF | G15: x | H15: =Control!$D$28 -> 0 | I15: = | J15: =L15*CO2_C -> 0 | K15: = | L15: =IF(ISERROR(F15*H15),0,F15*H15) -> 0
B16: =B15 -> 1991 | D16: OHF | G16: x | H16: =Control!$D$29 -> 0 | I16: = | J16: =L16*CO2_C -> 0 | K16: = | L16: =IF(ISERROR(F16*H16),0,F16*H16) -> 0
D17: Total | I17: = | J17: =L17*CO2_C -> 0 | L17: =SUM(L13:L16) -> 0
B19: =B13+1 -> 1992 | D19: BOF with coke ovens | G19: x | H19: =Control!$D$26 -> 0 | I19: = | J19: =L19*CO2_C -> 0 | K19: = | L19: =IF(ISERROR(F19*H19),0,F19*H19) -> 0
B20: =B19 -> 1992 | D20: BOF without coke ovens | G20: x | H20: =Control!$D$27 -> 0 | I20: = | J20: =L20*CO2_C -> 0 | K20: = | L20: =IF(ISERROR(F20*H20),0,F20*H20) -> 0
B21: =B20 -> 1992 | D21: EAF | G21: x | H21: =Control!$D$28 -> 0 | I21: = | J21: =L21*CO2_C -> 0 | K21: = | L21: =IF(ISERROR(F21*H21),0,F21*H21) -> 0
B22: =B21 -> 1992 | D22: OHF | G22: x | H22: =Control!$D$29 -> 0 | I22: = | J22: =L22*CO2_C -> 0 | K22: = | L22: =IF(ISERROR(F22*H22),0,F22*H22) -> 0
D23: Total | I23: = | J23: =L23*CO2_C -> 0 | L23: =SUM(L19:L22) -> 0
B25: =B19+1 -> 1993 | D25: BOF with coke ovens | G25: x | H25: =Control!$D$26 -> 0 | I25: = | J25: =L25*CO2_C -> 0 | K25: = | L25: =IF(ISERROR(F25*H25),0,F25*H25) -> 0
B26: =B25 -> 1993 | D26: BOF without coke ovens | G26: x | H26: =Control!$D$27 -> 0 | I26: = | J26: =L26*CO2_C -> 0 | K26: = | L26: =IF(ISERROR(F26*H26),0,F26*H26) -> 0
B27: =B26 -> 1993 | D27: EAF | G27: x | H27: =Control!$D$28 -> 0 | I27: = | J27: =L27*CO2_C -> 0 | K27: = | L27: =IF(ISERROR(F27*H27),0,F27*H27) -> 0
B28: =B27 -> 1993 | D28: OHF | G28: x | H28: =Control!$D$29 -> 0 | I28: = | J28: =L28*CO2_C -> 0 | K28: = | L28: =IF(ISERROR(F28*H28),0,F28*H28) -> 0
D29: Total | I29: = | J29: =L29*CO2_C -> 0 | L29: =SUM(L25:L28) -> 0
B31: =B25+1 -> 1994 | D31: BOF with coke ovens | G31: x | H31: =Control!$D$26 -> 0 | I31: = | J31: =L31*CO2_C -> 0 | K31: = | L31: =IF(ISERROR(F31*H31),0,F31*H31) -> 0
B32: =B31 -> 1994 | D32: BOF without coke ovens | G32: x | H32: =Control!$D$27 -> 0 | I32: = | J32: =L32*CO2_C -> 0 | K32: = | L32: =IF(ISERROR(F32*H32),0,F32*H32) -> 0
B33: =B32 -> 1994 | D33: EAF | G33: x | H33: =Control!$D$28 -> 0 | I33: = | J33: =L33*CO2_C -> 0 | K33: = | L33: =IF(ISERROR(F33*H33),0,F33*H33) -> 0
B34: =B33 -> 1994 | D34: OHF | G34: x | H34: =Control!$D$29 -> 0 | I34: = | J34: =L34*CO2_C -> 0 | K34: = | L34: =IF(ISERROR(F34*H34),0,F34*H34) -> 0
D35: Total | I35: = | J35: =L35*CO2_C -> 0 | L35: =SUM(L31:L34) -> 0
B37: =B31+1 -> 1995 | D37: BOF with coke ovens | G37: x | H37: =Control!$D$26 -> 0 | I37: = | J37: =L37*CO2_C -> 0 | K37: = | L37: =IF(ISERROR(F37*H37),0,F37*H37) -> 0
B38: =B37 -> 1995 | D38: BOF without coke ovens | G38: x | H38: =Control!$D$27 -> 0 | I38: = | J38: =L38*CO2_C -> 0 | K38: = | L38: =IF(ISERROR(F38*H38),0,F38*H38) -> 0
B39: =B38 -> 1995 | D39: EAF | G39: x | H39: =Control!$D$28 -> 0 | I39: = | J39: =L39*CO2_C -> 0 | K39: = | L39: =IF(ISERROR(F39*H39),0,F39*H39) -> 0
B40: =B39 -> 1995 | D40: OHF | G40: x | H40: =Control!$D$29 -> 0 | I40: = | J40: =L40*CO2_C -> 0 | K40: = | L40: =IF(ISERROR(F40*H40),0,F40*H40) -> 0
D41: Total | I41: = | J41: =L41*CO2_C -> 0 | L41: =SUM(L37:L40) -> 0
B43: =B37+1 -> 1996 | D43: BOF with coke ovens | G43: x | H43: =Control!$D$26 -> 0 | I43: = | J43: =L43*CO2_C -> 0 | K43: = | L43: =IF(ISERROR(F43*H43),0,F43*H43) -> 0
B44: =B43 -> 1996 | D44: BOF without coke ovens | G44: x | H44: =Control!$D$27 -> 0 | I44: = | J44: =L44*CO2_C -> 0 | K44: = | L44: =IF(ISERROR(F44*H44),0,F44*H44) -> 0
B45: =B44 -> 1996 | D45: EAF | G45: x | H45: =Control!$D$28 -> 0 | I45: = | J45: =L45*CO2_C -> 0 | K45: = | L45: =IF(ISERROR(F45*H45),0,F45*H45) -> 0
B46: =B45 -> 1996 | D46: OHF | G46: x | H46: =Control!$D$29 -> 0 | I46: = | J46: =L46*CO2_C -> 0 | K46: = | L46: =IF(ISERROR(F46*H46),0,F46*H46) -> 0
D47: Total | I47: = | J47: =L47*CO2_C -> 0 | L47: =SUM(L43:L46) -> 0
B49: =B43+1 -> 1997 | D49: BOF with coke ovens | G49: x | H49: =Control!$D$26 -> 0 | I49: = | J49: =L49*CO2_C -> 0 | K49: = | L49: =IF(ISERROR(F49*H49),0,F49*H49) -> 0
B50: =B49 -> 1997 | D50: BOF without coke ovens | G50: x | H50: =Control!$D$27 -> 0 | I50: = | J50: =L50*CO2_C -> 0 | K50: = | L50: =IF(ISERROR(F50*H50),0,F50*H50) -> 0
B51: =B50 -> 1997 | D51: EAF | G51: x | H51: =Control!$D$28 -> 0 | I51: = | J51: =L51*CO2_C -> 0 | K51: = | L51: =IF(ISERROR(F51*H51),0,F51*H51) -> 0
B52: =B51 -> 1997 | D52: OHF | G52: x | H52: =Control!$D$29 -> 0 | I52: = | J52: =L52*CO2_C -> 0 | K52: = | L52: =IF(ISERROR(F52*H52),0,F52*H52) -> 0
D53: Total | I53: = | J53: =L53*CO2_C -> 0 | L53: =SUM(L49:L52) -> 0
B55: =B49+1 -> 1998 | D55: BOF with coke ovens | G55: x | H55: =Control!$D$26 -> 0 | I55: = | J55: =L55*CO2_C -> 0 | K55: = | L55: =IF(ISERROR(F55*H55),0,F55*H55) -> 0
B56: =B55 -> 1998 | D56: BOF without coke ovens | G56: x | H56: =Control!$D$27 -> 0 | I56: = | J56: =L56*CO2_C -> 0 | K56: = | L56: =IF(ISERROR(F56*H56),0,F56*H56) -> 0
B57: =B56 -> 1998 | D57: EAF | G57: x | H57: =Control!$D$28 -> 0 | I57: = | J57: =L57*CO2_C -> 0 | K57: = | L57: =IF(ISERROR(F57*H57),0,F57*H57) -> 0
B58: =B57 -> 1998 | D58: OHF | G58: x | H58: =Control!$D$29 -> 0 | I58: = | J58: =L58*CO2_C -> 0 | K58: = | L58: =IF(ISERROR(F58*H58),0,F58*H58) -> 0
D59: Total | I59: = | J59: =L59*CO2_C -> 0 | L59: =SUM(L55:L58) -> 0
B61: =B55+1 -> 1999 | D61: BOF with coke ovens | G61: x | H61: =Control!$D$26 -> 0 | I61: = | J61: =L61*CO2_C -> 0 | K61: = | L61: =IF(ISERROR(F61*H61),0,F61*H61) -> 0
B62: =B61 -> 1999 | D62: BOF without coke ovens | G62: x | H62: =Control!$D$27 -> 0 | I62: = | J62: =L62*CO2_C -> 0 | K62: = | L62: =IF(ISERROR(F62*H62),0,F62*H62) -> 0
B63: =B62 -> 1999 | D63: EAF | G63: x | H63: =Control!$D$28 -> 0 | I63: = | J63: =L63*CO2_C -> 0 | K63: = | L63: =IF(ISERROR(F63*H63),0,F63*H63) -> 0
B64: =B63 -> 1999 | D64: OHF | G64: x | H64: =Control!$D$29 -> 0 | I64: = | J64: =L64*CO2_C -> 0 | K64: = | L64: =IF(ISERROR(F64*H64),0,F64*H64) -> 0
D65: Total | I65: = | J65: =L65*CO2_C -> 0 | L65: =SUM(L61:L64) -> 0
B67: =B61+1 -> 2000 | D67: BOF with coke ovens | G67: x | H67: =Control!$D$26 -> 0 | I67: = | J67: =L67*CO2_C -> 0 | K67: = | L67: =IF(ISERROR(F67*H67),0,F67*H67) -> 0
B68: =B67 -> 2000 | D68: BOF without coke ovens | G68: x | H68: =Control!$D$27 -> 0 | I68: = | J68: =L68*CO2_C -> 0 | K68: = | L68: =IF(ISERROR(F68*H68),0,F68*H68) -> 0
B69: =B68 -> 2000 | D69: EAF | G69: x | H69: =Control!$D$28 -> 0 | I69: = | J69: =L69*CO2_C -> 0 | K69: = | L69: =IF(ISERROR(F69*H69),0,F69*H69) -> 0
B70: =B69 -> 2000 | D70: OHF | G70: x | H70: =Control!$D$29 -> 0 | I70: = | J70: =L70*CO2_C -> 0 | K70: = | L70: =IF(ISERROR(F70*H70),0,F70*H70) -> 0
D71: Total | I71: = | J71: =L71*CO2_C -> 0 | L71: =SUM(L67:L70) -> 0
B73: =B67+1 -> 2001 | D73: BOF with coke ovens | G73: x | H73: =Control!$D$26 -> 0 | I73: = | J73: =L73*CO2_C -> 0 | K73: = | L73: =IF(ISERROR(F73*H73),0,F73*H73) -> 0
B74: =B73 -> 2001 | D74: BOF without coke ovens | G74: x | H74: =Control!$D$27 -> 0 | I74: = | J74: =L74*CO2_C -> 0 | K74: = | L74: =IF(ISERROR(F74*H74),0,F74*H74) -> 0
B75: =B74 -> 2001 | D75: EAF | G75: x | H75: =Control!$D$28 -> 0 | I75: = | J75: =L75*CO2_C -> 0 | K75: = | L75: =IF(ISERROR(F75*H75),0,F75*H75) -> 0
B76: =B75 -> 2001 | D76: OHF | G76: x | H76: =Control!$D$29 -> 0 | I76: = | J76: =L76*CO2_C -> 0 | K76: = | L76: =IF(ISERROR(F76*H76),0,F76*H76) -> 0
D77: Total | I77: = | J77: =L77*CO2_C -> 0 | L77: =SUM(L73:L76) -> 0
B79: =B73+1 -> 2002 | D79: BOF with coke ovens | G79: x | H79: =Control!$D$26 -> 0 | I79: = | J79: =L79*CO2_C -> 0 | K79: = | L79: =IF(ISERROR(F79*H79),0,F79*H79) -> 0
B80: =B79 -> 2002 | D80: BOF without coke ovens | G80: x | H80: =Control!$D$27 -> 0 | I80: = | J80: =L80*CO2_C -> 0 | K80: = | L80: =IF(ISERROR(F80*H80),0,F80*H80) -> 0
B81: =B80 -> 2002 | D81: EAF | G81: x | H81: =Control!$D$28 -> 0 | I81: = | J81: =L81*CO2_C -> 0 | K81: = | L81: =IF(ISERROR(F81*H81),0,F81*H81) -> 0
B82: =B81 -> 2002 | D82: OHF | G82: x | H82: =Control!$D$29 -> 0 | I82: = | J82: =L82*CO2_C -> 0 | K82: = | L82: =IF(ISERROR(F82*H82),0,F82*H82) -> 0
D83: Total | I83: = | J83: =L83*CO2_C -> 0 | L83: =SUM(L79:L82) -> 0
B85: =B79+1 -> 2003 | D85: BOF with coke ovens | G85: x | H85: =Control!$D$26 -> 0 | I85: = | J85: =L85*CO2_C -> 0 | K85: = | L85: =IF(ISERROR(F85*H85),0,F85*H85) -> 0
B86: =B85 -> 2003 | D86: BOF without coke ovens | G86: x | H86: =Control!$D$27 -> 0 | I86: = | J86: =L86*CO2_C -> 0 | K86: = | L86: =IF(ISERROR(F86*H86),0,F86*H86) -> 0
B87: =B86 -> 2003 | D87: EAF | G87: x | H87: =Control!$D$28 -> 0 | I87: = | J87: =L87*CO2_C -> 0 | K87: = | L87: =IF(ISERROR(F87*H87),0,F87*H87) -> 0
B88: =B87 -> 2003 | D88: OHF | G88: x | H88: =Control!$D$29 -> 0 | I88: = | J88: =L88*CO2_C -> 0 | K88: = | L88: =IF(ISERROR(F88*H88),0,F88*H88) -> 0
D89: Total | I89: = | J89: =L89*CO2_C -> 0 | L89: =SUM(L85:L88) -> 0
B91: =B85+1 -> 2004 | D91: BOF with coke ovens | G91: x | H91: =Control!$D$26 -> 0 | I91: = | J91: =L91*CO2_C -> 0 | K91: = | L91: =IF(ISERROR(F91*H91),0,F91*H91) -> 0
B92: =B91 -> 2004 | D92: BOF without coke ovens | G92: x | H92: =Control!$D$27 -> 0 | I92: = | J92: =L92*CO2_C -> 0 | K92: = | L92: =IF(ISERROR(F92*H92),0,F92*H92) -> 0
B93: =B92 -> 2004 | D93: EAF | G93: x | H93: =Control!$D$28 -> 0 | I93: = | J93: =L93*CO2_C -> 0 | K93: = | L93: =IF(ISERROR(F93*H93),0,F93*H93) -> 0
B94: =B93 -> 2004 | D94: OHF | G94: x | H94: =Control!$D$29 -> 0 | I94: = | J94: =L94*CO2_C -> 0 | K94: = | L94: =IF(ISERROR(F94*H94),0,F94*H94) -> 0
D95: Total | I95: = | J95: =L95*CO2_C -> 0 | L95: =SUM(L91:L94) -> 0
B97: =B91+1 -> 2005 | D97: BOF with coke ovens | G97: x | H97: =Control!$D$26 -> 0 | I97: = | J97: =L97*CO2_C -> 0 | K97: = | L97: =IF(ISERROR(F97*H97),0,F97*H97) -> 0
B98: =B97 -> 2005 | D98: BOF without coke ovens | G98: x | H98: =Control!$D$27 -> 0 | I98: = | J98: =L98*CO2_C -> 0 | K98: = | L98: =IF(ISERROR(F98*H98),0,F98*H98) -> 0
B99: =B98 -> 2005 | D99: EAF | G99: x | H99: =Control!$D$28 -> 0 | I99: = | J99: =L99*CO2_C -> 0 | K99: = | L99: =IF(ISERROR(F99*H99),0,F99*H99) -> 0
B100: =B99 -> 2005 | D100: OHF | G100: x | H100: =Control!$D$29 -> 0 | I100: = | J100: =L100*CO2_C -> 0 | K100: = | L100: =IF(ISERROR(F100*H100),0,F100*H100) -> 0
D101: Total | I101: = | J101: =L101*CO2_C -> 0 | L101: =SUM(L97:L100) -> 0
B103: =B97+1 -> 2006 | D103: BOF with coke ovens | G103: x | H103: =Control!$D$26 -> 0 | I103: = | J103: =L103*CO2_C -> 0 | K103: = | L103: =IF(ISERROR(F103*H103),0,F103*H103) -> 0
B104: =B103 -> 2006 | D104: BOF without coke ovens | G104: x | H104: =Control!$D$27 -> 0 | I104: = | J104: =L104*CO2_C -> 0 | K104: = | L104: =IF(ISERROR(F104*H104),0,F104*H104) -> 0
B105: =B104 -> 2006 | D105: EAF | G105: x | H105: =Control!$D$28 -> 0 | I105: = | J105: =L105*CO2_C -> 0 | K105: = | L105: =IF(ISERROR(F105*H105),0,F105*H105) -> 0
B106: =B105 -> 2006 | D106: OHF | G106: x | H106: =Control!$D$29 -> 0 | I106: = | J106: =L106*CO2_C -> 0 | K106: = | L106: =IF(ISERROR(F106*H106),0,F106*H106) -> 0
D107: Total | I107: = | J107: =L107*CO2_C -> 0 | L107: =SUM(L103:L106) -> 0
B109: =B103+1 -> 2007 | D109: BOF with coke ovens | G109: x | H109: =Control!$D$26 -> 0 | I109: = | J109: =L109*CO2_C -> 0 | K109: = | L109: =IF(ISERROR(F109*H109),0,F109*H109) -> 0
B110: =B109 -> 2007 | D110: BOF without coke ovens | G110: x | H110: =Control!$D$27 -> 0 | I110: = | J110: =L110*CO2_C -> 0 | K110: = | L110: =IF(ISERROR(F110*H110),0,F110*H110) -> 0
B111: =B110 -> 2007 | D111: EAF | G111: x | H111: =Control!$D$28 -> 0 | I111: = | J111: =L111*CO2_C -> 0 | K111: = | L111: =IF(ISERROR(F111*H111),0,F111*H111) -> 0
B112: =B111 -> 2007 | D112: OHF | G112: x | H112: =Control!$D$29 -> 0 | I112: = | J112: =L112*CO2_C -> 0 | K112: = | L112: =IF(ISERROR(F112*H112),0,F112*H112) -> 0
D113: Total | I113: = | J113: =L113*CO2_C -> 0 | L113: =SUM(L109:L112) -> 0
B115: =B109+1 -> 2008 | D115: BOF with coke ovens | G115: x | H115: =Control!$D$26 -> 0 | I115: = | J115: =L115*CO2_C -> 0 | K115: = | L115: =IF(ISERROR(F115*H115),0,F115*H115) -> 0
B116: =B115 -> 2008 | D116: BOF without coke ovens | G116: x | H116: =Control!$D$27 -> 0 | I116: = | J116: =L116*CO2_C -> 0 | K116: = | L116: =IF(ISERROR(F116*H116),0,F116*H116) -> 0
B117: =B116 -> 2008 | D117: EAF | G117: x | H117: =Control!$D$28 -> 0 | I117: = | J117: =L117*CO2_C -> 0 | K117: = | L117: =IF(ISERROR(F117*H117),0,F117*H117) -> 0
B118: =B117 -> 2008 | D118: OHF | G118: x | H118: =Control!$D$29 -> 0 | I118: = | J118: =L118*CO2_C -> 0 | K118: = | L118: =IF(ISERROR(F118*H118),0,F118*H118) -> 0
D119: Total | I119: = | J119: =L119*CO2_C -> 0 | L119: =SUM(L115:L118) -> 0
B121: =B115+1 -> 2009 | D121: BOF with coke ovens | G121: x | H121: =Control!$D$26 -> 0 | I121: = | J121: =L121*CO2_C -> 0 | K121: = | L121: =IF(ISERROR(F121*H121),0,F121*H121) -> 0
B122: =B121 -> 2009 | D122: BOF without coke ovens | G122: x | H122: =Control!$D$27 -> 0 | I122: = | J122: =L122*CO2_C -> 0 | K122: = | L122: =IF(ISERROR(F122*H122),0,F122*H122) -> 0
B123: =B122 -> 2009 | D123: EAF | G123: x | H123: =Control!$D$28 -> 0 | I123: = | J123: =L123*CO2_C -> 0 | K123: = | L123: =IF(ISERROR(F123*H123),0,F123*H123) -> 0
B124: =B123 -> 2009 | D124: OHF | G124: x | H124: =Control!$D$29 -> 0 | I124: = | J124: =L124*CO2_C -> 0 | K124: = | L124: =IF(ISERROR(F124*H124),0,F124*H124) -> 0
D125: Total | I125: = | J125: =L125*CO2_C -> 0 | L125: =SUM(L121:L124) -> 0
B127: =B121+1 -> 2010 | D127: BOF with coke ovens | G127: x | H127: =Control!$D$26 -> 0 | I127: = | J127: =L127*CO2_C -> 0 | K127: = | L127: =IF(ISERROR(F127*H127),0,F127*H127) -> 0
B128: =B127 -> 2010 | D128: BOF without coke ovens | G128: x | H128: =Control!$D$27 -> 0 | I128: = | J128: =L128*CO2_C -> 0 | K128: = | L128: =IF(ISERROR(F128*H128),0,F128*H128) -> 0
B129: =B128 -> 2010 | D129: EAF | G129: x | H129: =Control!$D$28 -> 0 | I129: = | J129: =L129*CO2_C -> 0 | K129: = | L129: =IF(ISERROR(F129*H129),0,F129*H129) -> 0
B130: =B129 -> 2010 | D130: OHF | G130: x | H130: =Control!$D$29 -> 0 | I130: = | J130: =L130*CO2_C -> 0 | K130: = | L130: =IF(ISERROR(F130*H130),0,F130*H130) -> 0
D131: Total | I131: = | J131: =L131*CO2_C -> 0 | L131: =SUM(L127:L130) -> 0
B133: =B127+1 -> 2011 | D133: BOF with coke ovens | G133: x | H133: =Control!$D$26 -> 0 | I133: = | J133: =L133*CO2_C -> 0 | K133: = | L133: =IF(ISERROR(F133*H133),0,F133*H133) -> 0
B134: =B133 -> 2011 | D134: BOF without coke ovens | G134: x | H134: =Control!$D$27 -> 0 | I134: = | J134: =L134*CO2_C -> 0 | K134: = | L134: =IF(ISERROR(F134*H134),0,F134*H134) -> 0
B135: =B134 -> 2011 | D135: EAF | G135: x | H135: =Control!$D$28 -> 0 | I135: = | J135: =L135*CO2_C -> 0 | K135: = | L135: =IF(ISERROR(F135*H135),0,F135*H135) -> 0
B136: =B135 -> 2011 | D136: OHF | G136: x | H136: =Control!$D$29 -> 0 | I136: = | J136: =L136*CO2_C -> 0 | K136: = | L136: =IF(ISERROR(F136*H136),0,F136*H136) -> 0
D137: Total | I137: = | J137: =L137*CO2_C -> 0 | L137: =SUM(L133:L136) -> 0
B139: =B133+1 -> 2012 | D139: BOF with coke ovens | G139: x | H139: =Control!$D$26 -> 0 | I139: = | J139: =L139*CO2_C -> 0 | K139: = | L139: =IF(ISERROR(F139*H139),0,F139*H139) -> 0
B140: =B139 -> 2012 | D140: BOF without coke ovens | G140: x | H140: =Control!$D$27 -> 0 | I140: = | J140: =L140*CO2_C -> 0 | K140: = | L140: =IF(ISERROR(F140*H140),0,F140*H140) -> 0
B141: =B140 -> 2012 | D141: EAF | G141: x | H141: =Control!$D$28 -> 0 | I141: = | J141: =L141*CO2_C -> 0 | K141: = | L141: =IF(ISERROR(F141*H141),0,F141*H141) -> 0
B142: =B141 -> 2012 | D142: OHF | G142: x | H142: =Control!$D$29 -> 0 | I142: = | J142: =L142*CO2_C -> 0 | K142: = | L142: =IF(ISERROR(F142*H142),0,F142*H142) -> 0
D143: Total | I143: = | J143: =L143*CO2_C -> 0 | L143: =SUM(L139:L142) -> 0
B145: =B139+1 -> 2013 | D145: BOF with coke ovens | G145: x | H145: =Control!$D$26 -> 0 | I145: = | J145: =L145*CO2_C -> 0 | K145: = | L145: =IF(ISERROR(F145*H145),0,F145*H145) -> 0
B146: =B145 -> 2013 | D146: BOF without coke ovens | G146: x | H146: =Control!$D$27 -> 0 | I146: = | J146: =L146*CO2_C -> 0 | K146: = | L146: =IF(ISERROR(F146*H146),0,F146*H146) -> 0
B147: =B146 -> 2013 | D147: EAF | G147: x | H147: =Control!$D$28 -> 0 | I147: = | J147: =L147*CO2_C -> 0 | K147: = | L147: =IF(ISERROR(F147*H147),0,F147*H147) -> 0
B148: =B147 -> 2013 | D148: OHF | G148: x | H148: =Control!$D$29 -> 0 | I148: = | J148: =L148*CO2_C -> 0 | K148: = | L148: =IF(ISERROR(F148*H148),0,F148*H148) -> 0
D149: Total | I149: = | J149: =L149*CO2_C -> 0 | L149: =SUM(L145:L148) -> 0
B151: =B145+1 -> 2014 | D151: BOF with coke ovens | G151: x | H151: =Control!$D$26 -> 0 | I151: = | J151: =L151*CO2_C -> 0 | K151: = | L151: =IF(ISERROR(F151*H151),0,F151*H151) -> 0
B152: =B151 -> 2014 | D152: BOF without coke ovens | G152: x | H152: =Control!$D$27 -> 0 | I152: = | J152: =L152*CO2_C -> 0 | K152: = | L152: =IF(ISERROR(F152*H152),0,F152*H152) -> 0
B153: =B152 -> 2014 | D153: EAF | G153: x | H153: =Control!$D$28 -> 0 | I153: = | J153: =L153*CO2_C -> 0 | K153: = | L153: =IF(ISERROR(F153*H153),0,F153*H153) -> 0
B154: =B153 -> 2014 | D154: OHF | G154: x | H154: =Control!$D$29 -> 0 | I154: = | J154: =L154*CO2_C -> 0 | K154: = | L154: =IF(ISERROR(F154*H154),0,F154*H154) -> 0
D155: Total | I155: = | J155: =L155*CO2_C -> 0 | L155: =SUM(L151:L154) -> 0
B157: =B151+1 -> 2015 | D157: BOF with coke ovens | G157: x | H157: =Control!$D$26 -> 0 | I157: = | J157: =L157*CO2_C -> 0 | K157: = | L157: =IF(ISERROR(F157*H157),0,F157*H157) -> 0
B158: =B157 -> 2015 | D158: BOF without coke ovens | G158: x | H158: =Control!$D$27 -> 0 | I158: = | J158: =L158*CO2_C -> 0 | K158: = | L158: =IF(ISERROR(F158*H158),0,F158*H158) -> 0
B159: =B158 -> 2015 | D159: EAF | G159: x | H159: =Control!$D$28 -> 0 | I159: = | J159: =L159*CO2_C -> 0 | K159: = | L159: =IF(ISERROR(F159*H159),0,F159*H159) -> 0
B160: =B159 -> 2015 | D160: OHF | G160: x | H160: =Control!$D$29 -> 0 | I160: = | J160: =L160*CO2_C -> 0 | K160: = | L160: =IF(ISERROR(F160*H160),0,F160*H160) -> 0
D161: Total | I161: = | J161: =L161*CO2_C -> 0 | L161: =SUM(L157:L160) -> 0
B163: =B157+1 -> 2016 | D163: BOF with coke ovens | G163: x | H163: =Control!$D$26 -> 0 | I163: = | J163: =L163*CO2_C -> 0 | K163: = | L163: =IF(ISERROR(F163*H163),0,F163*H163) -> 0
B164: =B163 -> 2016 | D164: BOF without coke ovens | G164: x | H164: =Control!$D$27 -> 0 | I164: = | J164: =L164*CO2_C -> 0 | K164: = | L164: =IF(ISERROR(F164*H164),0,F164*H164) -> 0
B165: =B164 -> 2016 | D165: EAF | G165: x | H165: =Control!$D$28 -> 0 | I165: = | J165: =L165*CO2_C -> 0 | K165: = | L165: =IF(ISERROR(F165*H165),0,F165*H165) -> 0
B166: =B165 -> 2016 | D166: OHF | G166: x | H166: =Control!$D$29 -> 0 | I166: = | J166: =L166*CO2_C -> 0 | K166: = | L166: =IF(ISERROR(F166*H166),0,F166*H166) -> 0
D167: Total | I167: = | J167: =L167*CO2_C -> 0 | L167: =SUM(L163:L166) -> 0
B169: =B163+1 -> 2017 | D169: BOF with coke ovens | G169: x | H169: =Control!$D$26 -> 0 | I169: = | J169: =L169*CO2_C -> 0 | K169: = | L169: =IF(ISERROR(F169*H169),0,F169*H169) -> 0
B170: =B169 -> 2017 | D170: BOF without coke ovens | G170: x | H170: =Control!$D$27 -> 0 | I170: = | J170: =L170*CO2_C -> 0 | K170: = | L170: =IF(ISERROR(F170*H170),0,F170*H170) -> 0
B171: =B170 -> 2017 | D171: EAF | G171: x | H171: =Control!$D$28 -> 0 | I171: = | J171: =L171*CO2_C -> 0 | K171: = | L171: =IF(ISERROR(F171*H171),0,F171*H171) -> 0
B172: =B171 -> 2017 | D172: OHF | G172: x | H172: =Control!$D$29 -> 0 | I172: = | J172: =L172*CO2_C -> 0 | K172: = | L172: =IF(ISERROR(F172*H172),0,F172*H172) -> 0
D173: Total | I173: = | J173: =L173*CO2_C -> 0 | L173: =SUM(L169:L172) -> 0
B175: =B169+1 -> 2018 | D175: BOF with coke ovens | G175: x | H175: =Control!$D$26 -> 0 | I175: = | J175: =L175*CO2_C -> 0 | K175: = | L175: =IF(ISERROR(F175*H175),0,F175*H175) -> 0
B176: =B175 -> 2018 | D176: BOF without coke ovens | G176: x | H176: =Control!$D$27 -> 0 | I176: = | J176: =L176*CO2_C -> 0 | K176: = | L176: =IF(ISERROR(F176*H176),0,F176*H176) -> 0
B177: =B176 -> 2018 | D177: EAF | G177: x | H177: =Control!$D$28 -> 0 | I177: = | J177: =L177*CO2_C -> 0 | K177: = | L177: =IF(ISERROR(F177*H177),0,F177*H177) -> 0
B178: =B177 -> 2018 | D178: OHF | G178: x | H178: =Control!$D$29 -> 0 | I178: = | J178: =L178*CO2_C -> 0 | K178: = | L178: =IF(ISERROR(F178*H178),0,F178*H178) -> 0
D179: Total | I179: = | J179: =L179*CO2_C -> 0 | L179: =SUM(L175:L178) -> 0
B181: =B175+1 -> 2019 | D181: BOF with coke ovens | G181: x | H181: =Control!$D$26 -> 0 | I181: = | J181: =L181*CO2_C -> 0 | K181: = | L181: =IF(ISERROR(F181*H181),0,F181*H181) -> 0
B182: =B181 -> 2019 | D182: BOF without coke ovens | G182: x | H182: =Control!$D$27 -> 0 | I182: = | J182: =L182*CO2_C -> 0 | K182: = | L182: =IF(ISERROR(F182*H182),0,F182*H182) -> 0
B183: =B182 -> 2019 | D183: EAF | G183: x | H183: =Control!$D$28 -> 0 | I183: = | J183: =L183*CO2_C -> 0 | K183: = | L183: =IF(ISERROR(F183*H183),0,F183*H183) -> 0
B184: =B183 -> 2019 | D184: OHF | G184: x | H184: =Control!$D$29 -> 0 | I184: = | J184: =L184*CO2_C -> 0 | K184: = | L184: =IF(ISERROR(F184*H184),0,F184*H184) -> 0
D185: Total | I185: = | J185: =L185*CO2_C -> 0 | L185: =SUM(L181:L184) -> 0
B187: =B181+1 -> 2020 | D187: BOF with coke ovens | G187: x | H187: =Control!$D$26 -> 0 | I187: = | J187: =L187*CO2_C -> 0 | K187: = | L187: =IF(ISERROR(F187*H187),0,F187*H187) -> 0
B188: =B187 -> 2020 | D188: BOF without coke ovens | G188: x | H188: =Control!$D$27 -> 0 | I188: = | J188: =L188*CO2_C -> 0 | K188: = | L188: =IF(ISERROR(F188*H188),0,F188*H188) -> 0
B189: =B188 -> 2020 | D189: EAF | G189: x | H189: =Control!$D$28 -> 0 | I189: = | J189: =L189*CO2_C -> 0 | K189: = | L189: =IF(ISERROR(F189*H189),0,F189*H189) -> 0
B190: =B189 -> 2020 | D190: OHF | G190: x | H190: =Control!$D$29 -> 0 | I190: = | J190: =L190*CO2_C -> 0 | K190: = | L190: =IF(ISERROR(F190*H190),0,F190*H190) -> 0
D191: Total | I191: = | J191: =L191*CO2_C -> 0 | L191: =SUM(L187:L190) -> 0

Sheet Ammonia & Urea
B1: ="8. Ammonia Production and Urea Consumption in "&'List Data'!B3 -> 8. Ammonia Production and Urea Consumption in Select a State . . .
C2: =VLOOKUP(E2,'List Data'!A5:B56,2,FALSE) ->  | E2: =StateID -> XX | F2: Ammonia
E4: Production & Consumption | G4: Emission Factor | I4: Subtract emissions | K4: Emissions | M4: Emissions
E5: (Metric Tons) | G5: (mt CO2/mt activity) | I5: from Urea | K5: (MTCE) | M5: (MTCO2E)
B7: 1990 | C7: Ammonia Production | F7: x | G7: =Control!$B$31 -> 1.2 | H7: - ( | I7: =E8*G8 -> 0 | J7: ) = | K7: =M7*CO2_C -> 0 | L7: = | M7: =IF(E7>0,E7*G7-(I7),0) -> 0
B8: 2 | C8: Urea Consumption | F8: x | G8: =Control!$B$32 -> 0.73 | J8: = | K8: =M8*CO2_C -> 0 | L8: = | M8: =E8*G8 -> 0
B10: 1991 | C10: Ammonia Production | F10: x | G10: =Control!$B$31 -> 1.2 | H10: - ( | I10: =E11*G11 -> 0 | J10: ) = | K10: =M10*CO2_C -> 0 | L10: = | M10: =IF(E10>0,E10*G10-(I10),0) -> 0
B11: 3 | C11: Urea Consumption | G11: =Control!$B$32 -> 0.73 | J11: = | K11: =M11*CO2_C -> 0 | L11: = | M11: =E11*G11 -> 0
B13: 1992 | C13: Ammonia Production | F13: x | G13: =Control!$B$31 -> 1.2 | H13: - ( | I13: =E14*G14 -> 0 | J13: ) = | K13: =M13*CO2_C -> 0 | L13: = | M13: =IF(E13>0,E13*G13-(I13),0) -> 0
B14: 4 | C14: Urea Consumption | G14: =Control!$B$32 -> 0.73 | J14: = | K14: =M14*CO2_C -> 0 | L14: = | M14: =E14*G14 -> 0
B16: 1993 | C16: Ammonia Production | F16: x | G16: =Control!$B$31 -> 1.2 | H16: - ( | I16: =E17*G17 -> 0 | J16: ) = | K16: =M16*CO2_C -> 0 | L16: = | M16: =IF(E16>0,E16*G16-(I16),0) -> 0
B17: 5 | C17: Urea Consumption | G17: =Control!$B$32 -> 0.73 | J17: = | K17: =M17*CO2_C -> 0 | L17: = | M17: =E17*G17 -> 0
B19: 1994 | C19: Ammonia Production | F19: x | G19: =Control!$B$31 -> 1.2 | H19: - ( | I19: =E20*G20 -> 0 | J19: ) = | K19: =M19*CO2_C -> 0 | L19: = | M19: =IF(E19>0,E19*G19-(I19),0) -> 0
B20: 6 | C20: Urea Consumption | G20: =Control!$B$32 -> 0.73 | J20: = | K20: =M20*CO2_C -> 0 | L20: = | M20: =E20*G20 -> 0
B22: 1995 | C22: Ammonia Production | F22: x | G22: =Control!$B$31 -> 1.2 | H22: - ( | I22: =E23*G23 -> 0 | J22: ) = | K22: =M22*CO2_C -> 0 | L22: = | M22: =IF(E22>0,E22*G22-(I22),0) -> 0
B23: 7 | C23: Urea Consumption | G23: =Control!$B$32 -> 0.73 | J23: = | K23: =M23*CO2_C -> 0 | L23: = | M23: =E23*G23 -> 0
B25: 1996 | C25: Ammonia Production | F25: x | G25: =Control!$B$31 -> 1.2 | H25: - ( | I25: =E26*G26 -> 0 | J25: ) = | K25: =M25*CO2_C -> 0 | L25: = | M25: =IF(E25>0,E25*G25-(I25),0) -> 0
B26: 8 | C26: Urea Consumption | G26: =Control!$B$32 -> 0.73 | J26: = | K26: =M26*CO2_C -> 0 | L26: = | M26: =E26*G26 -> 0
B28: 1997 | C28: Ammonia Production | F28: x | G28: =Control!$B$31 -> 1.2 | H28: - ( | I28: =E29*G29 -> 0 | J28: ) = | K28: =M28*CO2_C -> 0 | L28: = | M28: =IF(E28>0,E28*G28-(I28),0) -> 0
B29: 9 | C29: Urea Consumption | G29: =Control!$B$32 -> 0.73 | J29: = | K29: =M29*CO2_C -> 0 | L29: = | M29: =E29*G29 -> 0
B31: 1998 | C31: Ammonia Production | F31: x | G31: =Control!$B$31 -> 1.2 | H31: - ( | I31: =E32*G32 -> 0 | J31: ) = | K31: =M31*CO2_C -> 0 | L31: = | M31: =IF(E31>0,E31*G31-(I31),0) -> 0
B32: 10 | C32: Urea Consumption | G32: =Control!$B$32 -> 0.73 | J32: = | K32: =M32*CO2_C -> 0 | L32: = | M32: =E32*G32 -> 0
B34: 1999 | C34: Ammonia Production | F34: x | G34: =Control!$B$31 -> 1.2 | H34: - ( | I34: =E35*G35 -> 0 | J34: ) = | K34: =M34*CO2_C -> 0 | L34: = | M34: =IF(E34>0,E34*G34-(I34),0) -> 0
B35: 11 | C35: Urea Consumption | G35: =Control!$B$32 -> 0.73 | J35: = | K35: =M35*CO2_C -> 0 | L35: = | M35: =E35*G35 -> 0
B37: 2000 | C37: Ammonia Production | F37: x | G37: =Control!$B$31 -> 1.2 | H37: - ( | I37: =E38*G38 -> 0 | J37: ) = | K37: =M37*CO2_C -> 0 | L37: = | M37: =IF(E37>0,E37*G37-(I37),0) -> 0
B38: 12 | C38: Urea Consumption | G38: =Control!$B$32 -> 0.73 | J38: = | K38: =M38*CO2_C -> 0 | L38: = | M38: =E38*G38 -> 0
B40: 2001 | C40: Ammonia Production | F40: x | G40: =Control!$B$31 -> 1.2 | H40: - ( | I40: =E41*G41 -> 0 | J40: ) = | K40: =M40*CO2_C -> 0 | L40: = | M40: =IF(E40>0,E40*G40-(I40),0) -> 0
B41: 13 | C41: Urea Consumption | G41: =Control!$B$32 -> 0.73 | J41: = | K41: =M41*CO2_C -> 0 | L41: = | M41: =E41*G41 -> 0
B43: 2002 | C43: Ammonia Production | F43: x | G43: =Control!$B$31 -> 1.2 | H43: - ( | I43: =E44*G44 -> 0 | J43: ) = | K43: =M43*CO2_C -> 0 | L43: = | M43: =IF(E43>0,E43*G43-(I43),0) -> 0
B44: 14 | C44: Urea Consumption | G44: =Control!$B$32 -> 0.73 | J44: = | K44: =M44*CO2_C -> 0 | L44: = | M44: =E44*G44 -> 0
B46: 2003 | C46: Ammonia Production | F46: x | G46: =Control!$B$31 -> 1.2 | H46: - ( | I46: =E47*G47 -> 0 | J46: ) = | K46: =M46*CO2_C -> 0 | L46: = | M46: =IF(E46>0,E46*G46-(I46),0) -> 0
B47: 15 | C47: Urea Consumption | G47: =Control!$B$32 -> 0.73 | J47: = | K47: =M47*CO2_C -> 0 | L47: = | M47: =E47*G47 -> 0
B49: 2004 | C49: Ammonia Production | F49: x | G49: =Control!$B$31 -> 1.2 | H49: - ( | I49: =E50*G50 -> 0 | J49: ) = | K49: =M49*CO2_C -> 0 | L49: = | M49: =IF(E49>0,E49*G49-(I49),0) -> 0
B50: 16 | C50: Urea Consumption | G50: =Control!$B$32 -> 0.73 | J50: = | K50: =M50*CO2_C -> 0 | L50: = | M50: =E50*G50 -> 0
B52: 2005 | C52: Ammonia Production | F52: x | G52: =Control!$B$31 -> 1.2 | H52: - ( | I52: =E53*G53 -> 0 | J52: ) = | K52: =M52*CO2_C -> 0 | L52: = | M52: =IF(E52>0,E52*G52-(I52),0) -> 0
B53: 17 | C53: Urea Consumption | G53: =Control!$B$32 -> 0.73 | J53: = | K53: =M53*CO2_C -> 0 | L53: = | M53: =E53*G53 -> 0
B55: 2006 | C55: Ammonia Production | F55: x | G55: =Control!$B$31 -> 1.2 | H55: - ( | I55: =E56*G56 -> 0 | J55: ) = | K55: =M55*CO2_C -> 0 | L55: = | M55: =IF(E55>0,E55*G55-(I55),0) -> 0
B56: 18 | C56: Urea Consumption | G56: =Control!$B$32 -> 0.73 | J56: = | K56: =M56*CO2_C -> 0 | L56: = | M56: =E56*G56 -> 0
B58: 2007 | C58: Ammonia Production | F58: x | G58: =Control!$B$31 -> 1.2 | H58: - ( | I58: =E59*G59 -> 0 | J58: ) = | K58: =M58*CO2_C -> 0 | L58: = | M58: =IF(E58>0,E58*G58-(I58),0) -> 0
B59: 19 | C59: Urea Consumption | G59: =Control!$B$32 -> 0.73 | J59: = | K59: =M59*CO2_C -> 0 | L59: = | M59: =E59*G59 -> 0
B61: 2008 | C61: Ammonia Production | F61: x | G61: =Control!$B$31 -> 1.2 | H61: - ( | I61: =E62*G62 -> 0 | J61: ) = | K61: =M61*CO2_C -> 0 | L61: = | M61: =IF(E61>0,E61*G61-(I61),0) -> 0
B62: 20 | C62: Urea Consumption | G62: =Control!$B$32 -> 0.73 | J62: = | K62: =M62*CO2_C -> 0 | L62: = | M62: =E62*G62 -> 0
B64: 2009 | C64: Ammonia Production | F64: x | G64: =Control!$B$31 -> 1.2 | H64: - ( | I64: =E65*G65 -> 0 | J64: ) = | K64: =M64*CO2_C -> 0 | L64: = | M64: =IF(E64>0,E64*G64-(I64),0) -> 0
B65: 21 | C65: Urea Consumption | G65: =Control!$B$32 -> 0.73 | J65: = | K65: =M65*CO2_C -> 0 | L65: = | M65: =E65*G65 -> 0
B67: 2010 | C67: Ammonia Production | F67: x | G67: =Control!$B$31 -> 1.2 | H67: - ( | I67: =E68*G68 -> 0 | J67: ) = | K67: =M67*CO2_C -> 0 | L67: = | M67: =IF(E67>0,E67*G67-(I67),0) -> 0
B68: 22 | C68: Urea Consumption | G68: =Control!$B$32 -> 0.73 | J68: = | K68: =M68*CO2_C -> 0 | L68: = | M68: =E68*G68 -> 0
B70: 2011 | C70: Ammonia Production | F70: x | G70: =Control!$B$31 -> 1.2 | H70: - ( | I70: =E71*G71 -> 0 | J70: ) = | K70: =M70*CO2_C -> 0 | L70: = | M70: =IF(E70>0,E70*G70-(I70),0) -> 0
B71: 23 | C71: Urea Consumption | G71: =Control!$B$32 -> 0.73 | J71: = | K71: =M71*CO2_C -> 0 | L71: = | M71: =E71*G71 -> 0
B73: 2012 | C73: Ammonia Production | F73: x | G73: =Control!$B$31 -> 1.2 | H73: - ( | I73: =E74*G74 -> 0 | J73: ) = | K73: =M73*CO2_C -> 0 | L73: = | M73: =IF(E73>0,E73*G73-(I73),0) -> 0
B74: 24 | C74: Urea Consumption | G74: =Control!$B$32 -> 0.73 | J74: = | K74: =M74*CO2_C -> 0 | L74: = | M74: =E74*G74 -> 0
B76: 2013 | C76: Ammonia Production | F76: x | G76: =Control!$B$31 -> 1.2 | H76: - ( | I76: =E77*G77 -> 0 | J76: ) = | K76: =M76*CO2_C -> 0 | L76: = | M76: =IF(E76>0,E76*G76-(I76),0) -> 0
B77: 25 | C77: Urea Consumption | G77: =Control!$B$32 -> 0.73 | J77: = | K77: =M77*CO2_C -> 0 | L77: = | M77: =E77*G77 -> 0
B79: 2014 | C79: Ammonia Production | F79: x | G79: =Control!$B$31 -> 1.2 | H79: - ( | I79: =E80*G80 -> 0 | J79: ) = | K79: =M79*CO2_C -> 0 | L79: = | M79: =IF(E79>0,E79*G79-(I79),0) -> 0
B80: 26 | C80: Urea Consumption | G80: =Control!$B$32 -> 0.73 | J80: = | K80: =M80*CO2_C -> 0 | L80: = | M80: =E80*G80 -> 0
B82: 2015 | C82: Ammonia Production | F82: x | G82: =Control!$B$31 -> 1.2 | H82: - ( | I82: =E83*G83 -> 0 | J82: ) = | K82: =M82*CO2_C -> 0 | L82: = | M82: =IF(E82>0,E82*G82-(I82),0) -> 0
B83: 27 | C83: Urea Consumption | G83: =Control!$B$32 -> 0.73 | J83: = | K83: =M83*CO2_C -> 0 | L83: = | M83: =E83*G83 -> 0
B85: 2016 | C85: Ammonia Production | F85: x | G85: =Control!$B$31 -> 1.2 | H85: - ( | I85: =E86*G86 -> 0 | J85: ) = | K85: =M85*CO2_C -> 0 | L85: = | M85: =IF(E85>0,E85*G85-(I85),0) -> 0
B86: 28 | C86: Urea Consumption | G86: =Control!$B$32 -> 0.73 | J86: = | K86: =M86*CO2_C -> 0 | L86: = | M86: =E86*G86 -> 0
B88: 2017 | C88: Ammonia Production | F88: x | G88: =Control!$B$31 -> 1.2 | H88: - ( | I88: =E89*G89 -> 0 | J88: ) = | K88: =M88*CO2_C -> 0 | L88: = | M88: =IF(E88>0,E88*G88-(I88),0) -> 0
B89: 29 | C89: Urea Consumption | G89: =Control!$B$32 -> 0.73 | J89: = | K89: =M89*CO2_C -> 0 | L89: = | M89: =E89*G89 -> 0
B91: 2018 | C91: Ammonia Production | F91: x | G91: =Control!$B$31 -> 1.2 | H91: - ( | I91: =E92*G92 -> 0 | J91: ) = | K91: =M91*CO2_C -> 0 | L91: = | M91: =IF(E91>0,E91*G91-(I91),0) -> 0
B92: 30 | C92: Urea Consumption | G92: =Control!$B$32 -> 0.73 | J92: = | K92: =M92*CO2_C -> 0 | L92: = | M92: =E92*G92 -> 0
B94: 2019 | C94: Ammonia Production | F94: x | G94: =Control!$B$31 -> 1.2 | H94: - ( | I94: =E95*G95 -> 0 | J94: ) = | K94: =M94*CO2_C -> 0 | L94: = | M94: =IF(E94>0,E94*G94-(I94),0) -> 0
B95: 31 | C95: Urea Consumption | G95: =Control!$B$32 -> 0.73 | J95: = | K95: =M95*CO2_C -> 0 | L95: = | M95: =E95*G95 -> 0
B97: 2020 | C97: Ammonia Production | F97: x | G97: =Control!$B$31 -> 1.2 | H97: - ( | I97: =E98*G98 -> 0 | J97: ) = | K97: =M97*CO2_C -> 0 | L97: = | M97: =IF(E97>0,E97*G97-(I97),0) -> 0
B98: 32 | C98: Urea Consumption | G98: =Control!$B$32 -> 0.73 | J98: = | K98: =M98*CO2_C -> 0 | L98: = | M98: =E98*G98 -> 0

Sheet Nitric
B1: ="9. Nitric Acid Production in "&'List Data'!B3 -> 9. Nitric Acid Production in Select a State . . .
D2: ='List Data'!$A$3 -> XX | E2: Nitric | F2: =" " -> 
D4: Production | F4: Emission Factor | H4: Percent N2O Released after Pollution Control | J4: Emissions | L4: Emissions | N4: Emissions
D5: (Metric Tons) | F5: (t N2O/t production) | J5: (Metric Tons N2O) | L5: (MTCE) | N5: (MTCO2E)
B7: 1990 | E7: x | F7: =INDIRECT($E$2&"Factor") -> 0 | G7: x | I7: = | J7: =D7*F7*H7 -> 0 | K7: = | L7: =J7*310*CO2_C -> 0 | M7: = | N7: =L7/CO2_C -> 0
B9: 1991 | E9: x | F9: =INDIRECT($E$2&"Factor") -> 0 | G9: x | I9: = | J9: =D9*F9*H9 -> 0 | K9: = | L9: =J9*310*CO2_C -> 0 | M9: = | N9: =L9/CO2_C -> 0
B11: 1992 | E11: x | F11: =INDIRECT($E$2&"Factor") -> 0 | G11: x | I11: = | J11: =D11*F11*H11 -> 0 | K11: = | L11: =J11*310*CO2_C -> 0 | M11: = | N11: =L11/CO2_C -> 0
B13: 1993 | E13: x | F13: =INDIRECT($E$2&"Factor") -> 0 | G13: x | I13: = | J13: =D13*F13*H13 -> 0 | K13: = | L13: =J13*310*CO2_C -> 0 | M13: = | N13: =L13/CO2_C -> 0
B15: 1994 | E15: x | F15: =INDIRECT($E$2&"Factor") -> 0 | G15: x | I15: = | J15: =D15*F15*H15 -> 0 | K15: = | L15: =J15*310*CO2_C -> 0 | M15: = | N15: =L15/CO2_C -> 0
B17: 1995 | E17: x | F17: =INDIRECT($E$2&"Factor") -> 0 | G17: x | I17: = | J17: =D17*F17*H17 -> 0 | K17: = | L17: =J17*310*CO2_C -> 0 | M17: = | N17: =L17/CO2_C -> 0
B19: 1996 | E19: x | F19: =INDIRECT($E$2&"Factor") -> 0 | G19: x | I19: = | J19: =D19*F19*H19 -> 0 | K19: = | L19: =J19*310*CO2_C -> 0 | M19: = | N19: =L19/CO2_C -> 0
B21: 1997 | E21: x | F21: =INDIRECT($E$2&"Factor") -> 0 | G21: x | I21: = | J21: =D21*F21*H21 -> 0 | K21: = | L21: =J21*310*CO2_C -> 0 | M21: = | N21: =L21/CO2_C -> 0
B23: 1998 | E23: x | F23: =INDIRECT($E$2&"Factor") -> 0 | G23: x | I23: = | J23: =D23*F23*H23 -> 0 | K23: = | L23: =J23*310*CO2_C -> 0 | M23: = | N23: =L23/CO2_C -> 0
B25: 1999 | E25: x | F25: =INDIRECT($E$2&"Factor") -> 0 | G25: x | I25: = | J25: =D25*F25*H25 -> 0 | K25: = | L25: =J25*310*CO2_C -> 0 | M25: = | N25: =L25/CO2_C -> 0
B27: 2000 | E27: x | F27: =INDIRECT($E$2&"Factor") -> 0 | G27: x | I27: = | J27: =D27*F27*H27 -> 0 | K27: = | L27: =J27*310*CO2_C -> 0 | M27: = | N27: =L27/CO2_C -> 0
B29: 2001 | E29: x | F29: =INDIRECT($E$2&"Factor") -> 0 | G29: x | I29: = | J29: =D29*F29*H29 -> 0 | K29: = | L29: =J29*310*CO2_C -> 0 | M29: = | N29: =L29/CO2_C -> 0
B31: 2002 | E31: x | F31: =INDIRECT($E$2&"Factor") -> 0 | G31: x | I31: = | J31: =D31*F31*H31 -> 0 | K31: = | L31: =J31*310*CO2_C -> 0 | M31: = | N31: =L31/CO2_C -> 0
B33: 2003 | E33: x | F33: =INDIRECT($E$2&"Factor") -> 0 | G33: x | I33: = | J33: =D33*F33*H33 -> 0 | K33: = | L33: =J33*310*CO2_C -> 0 | M33: = | N33: =L33/CO2_C -> 0
B35: 2004 | E35: x | F35: =INDIRECT($E$2&"Factor") -> 0 | G35: x | I35: = | J35: =D35*F35*H35 -> 0 | K35: = | L35: =J35*310*CO2_C -> 0 | M35: = | N35: =L35/CO2_C -> 0
B37: 2005 | E37: x | F37: =INDIRECT($E$2&"Factor") -> 0 | G37: x | I37: = | J37: =D37*F37*H37 -> 0 | K37: = | L37: =J37*310*CO2_C -> 0 | M37: = | N37: =L37/CO2_C -> 0
B39: 2006 | E39: x | F39: =INDIRECT($E$2&"Factor") -> 0 | G39: x | I39: = | J39: =D39*F39*H39 -> 0 | K39: = | L39: =J39*310*CO2_C -> 0 | M39: = | N39: =L39/CO2_C -> 0
B41: 2007 | E41: x | F41: =INDIRECT($E$2&"Factor") -> 0 | G41: x | I41: = | J41: =D41*F41*H41 -> 0 | K41: = | L41: =J41*310*CO2_C -> 0 | M41: = | N41: =L41/CO2_C -> 0
B43: 2008 | E43: x | F43: =INDIRECT($E$2&"Factor") -> 0 | G43: x | I43: = | J43: =D43*F43*H43 -> 0 | K43: = | L43: =J43*310*CO2_C -> 0 | M43: = | N43: =L43/CO2_C -> 0
B45: 2009 | E45: x | F45: =INDIRECT($E$2&"Factor") -> 0 | G45: x | I45: = | J45: =D45*F45*H45 -> 0 | K45: = | L45: =J45*310*CO2_C -> 0 | M45: = | N45: =L45/CO2_C -> 0
B47: 2010 | E47: x | F47: =INDIRECT($E$2&"Factor") -> 0 | G47: x | I47: = | J47: =D47*F47*H47 -> 0 | K47: = | L47: =J47*310*CO2_C -> 0 | M47: = | N47: =L47/CO2_C -> 0
B49: 2011 | E49: x | F49: =INDIRECT($E$2&"Factor") -> 0 | G49: x | I49: = | J49: =D49*F49*H49 -> 0 | K49: = | L49: =J49*310*CO2_C -> 0 | M49: = | N49: =L49/CO2_C -> 0
B51: 2012 | E51: x | F51: =INDIRECT($E$2&"Factor") -> 0 | G51: x | I51: = | J51: =D51*F51*H51 -> 0 | K51: = | L51: =J51*310*CO2_C -> 0 | M51: = | N51: =L51/CO2_C -> 0
B53: 2013 | E53: x | F53: =INDIRECT($E$2&"Factor") -> 0 | G53: x | I53: = | J53: =D53*F53*H53 -> 0 | K53: = | L53: =J53*310*CO2_C -> 0 | M53: = | N53: =L53/CO2_C -> 0
B55: 2014 | E55: x | F55: =INDIRECT($E$2&"Factor") -> 0 | G55: x | I55: = | J55: =D55*F55*H55 -> 0 | K55: = | L55: =J55*310*CO2_C -> 0 | M55: = | N55: =L55/CO2_C -> 0
B57: 2015 | E57: x | F57: =INDIRECT($E$2&"Factor") -> 0 | G57: x | I57: = | J57: =D57*F57*H57 -> 0 | K57: = | L57: =J57*310*CO2_C -> 0 | M57: = | N57: =L57/CO2_C -> 0
B59: 2016 | E59: x | F59: =INDIRECT($E$2&"Factor") -> 0 | G59: x | I59: = | J59: =D59*F59*H59 -> 0 | K59: = | L59: =J59*310*CO2_C -> 0 | M59: = | N59: =L59/CO2_C -> 0
B61: 2017 | E61: x | F61: =INDIRECT($E$2&"Factor") -> 0 | G61: x | I61: = | J61: =D61*F61*H61 -> 0 | K61: = | L61: =J61*310*CO2_C -> 0 | M61: = | N61: =L61/CO2_C -> 0
B63: 2018 | E63: x | F63: =INDIRECT($E$2&"Factor") -> 0 | G63: x | I63: = | J63: =D63*F63*H63 -> 0 | K63: = | L63: =J63*310*CO2_C -> 0 | M63: = | N63: =L63/CO2_C -> 0
B65: 2019 | E65: x | F65: =INDIRECT($E$2&"Factor") -> 0 | G65: x | I65: = | J65: =D65*F65*H65 -> 0 | K65: = | L65: =J65*310*CO2_C -> 0 | M65: = | N65: =L65/CO2_C -> 0
B67: 2020 | E67: x | F67: =INDIRECT($E$2&"Factor") -> 0 | G67: x | I67: = | J67: =D67*F67*H67 -> 0 | K67: = | L67: =J67*310*CO2_C -> 0 | M67: = | N67: =L67/CO2_C -> 0

Sheet Adipic
B1: ="10. Adipic Acid Production in "&'List Data'!B3 -> 10. Adipic Acid Production in Select a State . . .
D2: ='List Data'!$A$3 -> XX | E2: Adipic | F2: =" " ->  | G2: =AdipicCheck -> 0
D4: Production | F4: Emission Factor | H4: Percent N2O Released after Pollution Control | J4: Emissions | L4: Emissions | N4: Emissions
D5: (Metric Tons) | F5: (t N2O/t production) | J5: (Metric Tons N2O) | L5: (MTCE) | N5: (MTCO2E)
B7: 1990 | E7: x | F7: =INDIRECT($E$2&"Factor") -> 0 | G7: x | I7: = | J7: =D7*F7*H7 -> 0 | K7: = | L7: =J7*310*CO2_C -> 0 | M7: = | N7: =L7/CO2_C -> 0
B9: 1991 | E9: x | F9: =INDIRECT($E$2&"Factor") -> 0 | G9: x | I9: = | J9: =D9*F9*H9 -> 0 | K9: = | L9: =J9*310*CO2_C -> 0 | M9: = | N9: =L9/CO2_C -> 0
B11: 1992 | E11: x | F11: =INDIRECT($E$2&"Factor") -> 0 | G11: x | I11: = | J11: =D11*F11*H11 -> 0 | K11: = | L11: =J11*310*CO2_C -> 0 | M11: = | N11: =L11/CO2_C -> 0
B13: 1993 | E13: x | F13: =INDIRECT($E$2&"Factor") -> 0 | G13: x | I13: = | J13: =D13*F13*H13 -> 0 | K13: = | L13: =J13*310*CO2_C -> 0 | M13: = | N13: =L13/CO2_C -> 0
B15: 1994 | E15: x | F15: =INDIRECT($E$2&"Factor") -> 0 | G15: x | I15: = | J15: =D15*F15*H15 -> 0 | K15: = | L15: =J15*310*CO2_C -> 0 | M15: = | N15: =L15/CO2_C -> 0
B17: 1995 | E17: x | F17: =INDIRECT($E$2&"Factor") -> 0 | G17: x | I17: = | J17: =D17*F17*H17 -> 0 | K17: = | L17: =J17*310*CO2_C -> 0 | M17: = | N17: =L17/CO2_C -> 0
B19: 1996 | E19: x | F19: =INDIRECT($E$2&"Factor") -> 0 | G19: x | I19: = | J19: =D19*F19*H19 -> 0 | K19: = | L19: =J19*310*CO2_C -> 0 | M19: = | N19: =L19/CO2_C -> 0
B21: 1997 | E21: x | F21: =INDIRECT($E$2&"Factor") -> 0 | G21: x | I21: = | J21: =D21*F21*H21 -> 0 | K21: = | L21: =J21*310*CO2_C -> 0 | M21: = | N21: =L21/CO2_C -> 0
B23: 1998 | E23: x | F23: =INDIRECT($E$2&"Factor") -> 0 | G23: x | I23: = | J23: =D23*F23*H23 -> 0 | K23: = | L23: =J23*310*CO2_C -> 0 | M23: = | N23: =L23/CO2_C -> 0
B25: 1999 | E25: x | F25: =INDIRECT($E$2&"Factor") -> 0 | G25: x | I25: = | J25: =D25*F25*H25 -> 0 | K25: = | L25: =J25*310*CO2_C -> 0 | M25: = | N25: =L25/CO2_C -> 0
B27: 2000 | E27: x | F27: =INDIRECT($E$2&"Factor") -> 0 | G27: x | I27: = | J27: =D27*F27*H27 -> 0 | K27: = | L27: =J27*310*CO2_C -> 0 | M27: = | N27: =L27/CO2_C -> 0
B29: 2001 | E29: x | F29: =INDIRECT($E$2&"Factor") -> 0 | G29: x | I29: = | J29: =D29*F29*H29 -> 0 | K29: = | L29: =J29*310*CO2_C -> 0 | M29: = | N29: =L29/CO2_C -> 0
B31: 2002 | E31: x | F31: =INDIRECT($E$2&"Factor") -> 0 | G31: x | I31: = | J31: =D31*F31*H31 -> 0 | K31: = | L31: =J31*310*CO2_C -> 0 | M31: = | N31: =L31/CO2_C -> 0
B33: 2003 | E33: x | F33: =INDIRECT($E$2&"Factor") -> 0 | G33: x | I33: = | J33: =D33*F33*H33 -> 0 | K33: = | L33: =J33*310*CO2_C -> 0 | M33: = | N33: =L33/CO2_C -> 0
B35: 2004 | E35: x | F35: =INDIRECT($E$2&"Factor") -> 0 | G35: x | I35: = | J35: =D35*F35*H35 -> 0 | K35: = | L35: =J35*310*CO2_C -> 0 | M35: = | N35: =L35/CO2_C -> 0
B37: 2005 | E37: x | F37: =INDIRECT($E$2&"Factor") -> 0 | G37: x | I37: = | J37: =D37*F37*H37 -> 0 | K37: = | L37: =J37*310*CO2_C -> 0 | M37: = | N37: =L37/CO2_C -> 0
B39: 2006 | E39: x | F39: =INDIRECT($E$2&"Factor") -> 0 | G39: x | I39: = | J39: =D39*F39*H39 -> 0 | K39: = | L39: =J39*310*CO2_C -> 0 | M39: = | N39: =L39/CO2_C -> 0
B41: 2007 | E41: x | F41: =INDIRECT($E$2&"Factor") -> 0 | G41: x | I41: = | J41: =D41*F41*H41 -> 0 | K41: = | L41: =J41*310*CO2_C -> 0 | M41: = | N41: =L41/CO2_C -> 0
B43: 2008 | E43: x | F43: =INDIRECT($E$2&"Factor") -> 0 | G43: x | I43: = | J43: =D43*F43*H43 -> 0 | K43: = | L43: =J43*310*CO2_C -> 0 | M43: = | N43: =L43/CO2_C -> 0
B45: 2009 | E45: x | F45: =INDIRECT($E$2&"Factor") -> 0 | G45: x | I45: = | J45: =D45*F45*H45 -> 0 | K45: = | L45: =J45*310*CO2_C -> 0 | M45: = | N45: =L45/CO2_C -> 0
B47: 2010 | E47: x | F47: =INDIRECT($E$2&"Factor") -> 0 | G47: x | I47: = | J47: =D47*F47*H47 -> 0 | K47: = | L47: =J47*310*CO2_C -> 0 | M47: = | N47: =L47/CO2_C -> 0
B49: 2011 | E49: x | F49: =INDIRECT($E$2&"Factor") -> 0 | G49: x | I49: = | J49: =D49*F49*H49 -> 0 | K49: = | L49: =J49*310*CO2_C -> 0 | M49: = | N49: =L49/CO2_C -> 0
B51: 2012 | E51: x | F51: =INDIRECT($E$2&"Factor") -> 0 | G51: x | I51: = | J51: =D51*F51*H51 -> 0 | K51: = | L51: =J51*310*CO2_C -> 0 | M51: = | N51: =L51/CO2_C -> 0
B53: 2013 | E53: x | F53: =INDIRECT($E$2&"Factor") -> 0 | G53: x | I53: = | J53: =D53*F53*H53 -> 0 | K53: = | L53: =J53*310*CO2_C -> 0 | M53: = | N53: =L53/CO2_C -> 0
B55: 2014 | E55: x | F55: =INDIRECT($E$2&"Factor") -> 0 | G55: x | I55: = | J55: =D55*F55*H55 -> 0 | K55: = | L55: =J55*310*CO2_C -> 0 | M55: = | N55: =L55/CO2_C -> 0
B57: 2015 | E57: x | F57: =INDIRECT($E$2&"Factor") -> 0 | G57: x | I57: = | J57: =D57*F57*H57 -> 0 | K57: = | L57: =J57*310*CO2_C -> 0 | M57: = | N57: =L57/CO2_C -> 0
B59: 2016 | E59: x | F59: =INDIRECT($E$2&"Factor") -> 0 | G59: x | I59: = | J59: =D59*F59*H59 -> 0 | K59: = | L59: =J59*310*CO2_C -> 0 | M59: = | N59: =L59/CO2_C -> 0
B61: 2017 | E61: x | F61: =INDIRECT($E$2&"Factor") -> 0 | G61: x | I61: = | J61: =D61*F61*H61 -> 0 | K61: = | L61: =J61*310*CO2_C -> 0 | M61: = | N61: =L61/CO2_C -> 0
B63: 2018 | E63: x | F63: =INDIRECT($E$2&"Factor") -> 0 | G63: x | I63: = | J63: =D63*F63*H63 -> 0 | K63: = | L63: =J63*310*CO2_C -> 0 | M63: = | N63: =L63/CO2_C -> 0
B65: 2019 | E65: x | F65: =INDIRECT($E$2&"Factor") -> 0 | G65: x | I65: = | J65: =D65*F65*H65 -> 0 | K65: = | L65: =J65*310*CO2_C -> 0 | M65: = | N65: =L65/CO2_C -> 0
B67: 2020 | E67: x | F67: =INDIRECT($E$2&"Factor") -> 0 | G67: x | I67: = | J67: =D67*F67*H67 -> 0 | K67: = | L67: =J67*310*CO2_C -> 0 | M67: = | N67: =L67/CO2_C -> 0

Sheet HCFC-22
B1: ="12. HCFC-22 Production in "&'List Data'!B3 -> 12. HCFC-22 Production in Select a State . . .
D2: ='List Data'!$A$3 -> XX | E2: HCFC22 | F2: =" " -> 
D4: Production | F4: Emission Factor | H4: Emissions | J4: Emissions | L4: Emissions
D5: (Metric Tons) | F5: (t HFC-23/t production) | H5: (Metric Tons HFC-23) | J5: (MTCE) | L5: (MTCO2E)
B7: 1990 | E7: x | F7: =INDIRECT($E$2&"Factor") -> 0 | G7: = | H7: =D7*F7 -> 0 | I7: = | J7: =H7*11700*CO2_C -> 0 | K7: = | L7: =J7/CO2_C -> 0
B9: 1991 | E9: x | F9: =INDIRECT($E$2&"Factor") -> 0 | G9: = | H9: =D9*F9 -> 0 | I9: = | J9: =H9*11700*CO2_C -> 0 | K9: = | L9: =J9/CO2_C -> 0
B11: 1992 | E11: x | F11: =INDIRECT($E$2&"Factor") -> 0 | G11: = | H11: =D11*F11 -> 0 | I11: = | J11: =H11*11700*CO2_C -> 0 | K11: = | L11: =J11/CO2_C -> 0
B13: 1993 | E13: x | F13: =INDIRECT($E$2&"Factor") -> 0 | G13: = | H13: =D13*F13 -> 0 | I13: = | J13: =H13*11700*CO2_C -> 0 | K13: = | L13: =J13/CO2_C -> 0
B15: 1994 | E15: x | F15: =INDIRECT($E$2&"Factor") -> 0 | G15: = | H15: =D15*F15 -> 0 | I15: = | J15: =H15*11700*CO2_C -> 0 | K15: = | L15: =J15/CO2_C -> 0
B17: 1995 | E17: x | F17: =INDIRECT($E$2&"Factor") -> 0 | G17: = | H17: =D17*F17 -> 0 | I17: = | J17: =H17*11700*CO2_C -> 0 | K17: = | L17: =J17/CO2_C -> 0
B19: 1996 | E19: x | F19: =INDIRECT($E$2&"Factor") -> 0 | G19: = | H19: =D19*F19 -> 0 | I19: = | J19: =H19*11700*CO2_C -> 0 | K19: = | L19: =J19/CO2_C -> 0
B21: 1997 | E21: x | F21: =INDIRECT($E$2&"Factor") -> 0 | G21: = | H21: =D21*F21 -> 0 | I21: = | J21: =H21*11700*CO2_C -> 0 | K21: = | L21: =J21/CO2_C -> 0
B23: 1998 | E23: x | F23: =INDIRECT($E$2&"Factor") -> 0 | G23: = | H23: =D23*F23 -> 0 | I23: = | J23: =H23*11700*CO2_C -> 0 | K23: = | L23: =J23/CO2_C -> 0
B25: 1999 | E25: x | F25: =INDIRECT($E$2&"Factor") -> 0 | G25: = | H25: =D25*F25 -> 0 | I25: = | J25: =H25*11700*CO2_C -> 0 | K25: = | L25: =J25/CO2_C -> 0
B27: 2000 | E27: x | F27: =INDIRECT($E$2&"Factor") -> 0 | G27: = | H27: =D27*F27 -> 0 | I27: = | J27: =H27*11700*CO2_C -> 0 | K27: = | L27: =J27/CO2_C -> 0
B29: 2001 | E29: x | F29: =INDIRECT($E$2&"Factor") -> 0 | G29: = | H29: =D29*F29 -> 0 | I29: = | J29: =H29*11700*CO2_C -> 0 | K29: = | L29: =J29/CO2_C -> 0
B31: 2002 | E31: x | F31: =INDIRECT($E$2&"Factor") -> 0 | G31: = | H31: =D31*F31 -> 0 | I31: = | J31: =H31*11700*CO2_C -> 0 | K31: = | L31: =J31/CO2_C -> 0
B33: 2003 | E33: x | F33: =INDIRECT($E$2&"Factor") -> 0 | G33: = | H33: =D33*F33 -> 0 | I33: = | J33: =H33*11700*CO2_C -> 0 | K33: = | L33: =J33/CO2_C -> 0
B35: 2004 | E35: x | F35: =INDIRECT($E$2&"Factor") -> 0 | G35: = | H35: =D35*F35 -> 0 | I35: = | J35: =H35*11700*CO2_C -> 0 | K35: = | L35: =J35/CO2_C -> 0
B37: 2005 | E37: x | F37: =INDIRECT($E$2&"Factor") -> 0 | G37: = | H37: =D37*F37 -> 0 | I37: = | J37: =H37*11700*CO2_C -> 0 | K37: = | L37: =J37/CO2_C -> 0
B39: 2006 | E39: x | F39: =INDIRECT($E$2&"Factor") -> 0 | G39: = | H39: =D39*F39 -> 0 | I39: = | J39: =H39*11700*CO2_C -> 0 | K39: = | L39: =J39/CO2_C -> 0
B41: 2007 | E41: x | F41: =INDIRECT($E$2&"Factor") -> 0 | G41: = | H41: =D41*F41 -> 0 | I41: = | J41: =H41*11700*CO2_C -> 0 | K41: = | L41: =J41/CO2_C -> 0
B43: 2008 | E43: x | F43: =INDIRECT($E$2&"Factor") -> 0 | G43: = | H43: =D43*F43 -> 0 | I43: = | J43: =H43*11700*CO2_C -> 0 | K43: = | L43: =J43/CO2_C -> 0
B45: 2009 | E45: x | F45: =INDIRECT($E$2&"Factor") -> 0 | G45: = | H45: =D45*F45 -> 0 | I45: = | J45: =H45*11700*CO2_C -> 0 | K45: = | L45: =J45/CO2_C -> 0
B47: 2010 | E47: x | F47: =INDIRECT($E$2&"Factor") -> 0 | G47: = | H47: =D47*F47 -> 0 | I47: = | J47: =H47*11700*CO2_C -> 0 | K47: = | L47: =J47/CO2_C -> 0
B49: 2011 | E49: x | F49: 0 | G49: = | H49: =D49*F49 -> 0 | I49: = | J49: =H49*11700*CO2_C -> 0 | K49: = | L49: =J49/CO2_C -> 0
B51: 2012 | E51: x | F51: 0 | G51: = | H51: =D51*F51 -> 0 | I51: = | J51: =H51*11700*CO2_C -> 0 | K51: = | L51: =J51/CO2_C -> 0
B53: 2013 | E53: x | F53: 0 | G53: = | H53: =D53*F53 -> 0 | I53: = | J53: =H53*11700*CO2_C -> 0 | K53: = | L53: =J53/CO2_C -> 0
B55: 2014 | E55: x | F55: 0 | G55: = | H55: =D55*F55 -> 0 | I55: = | J55: =H55*11700*CO2_C -> 0 | K55: = | L55: =J55/CO2_C -> 0
B57: 2015 | E57: x | F57: 0 | G57: = | H57: =D57*F57 -> 0 | I57: = | J57: =H57*11700*CO2_C -> 0 | K57: = | L57: =J57/CO2_C -> 0
B59: 2016 | E59: x | F59: 0 | G59: = | H59: =D59*F59 -> 0 | I59: = | J59: =H59*11700*CO2_C -> 0 | K59: = | L59: =J59/CO2_C -> 0
B61: 2017 | E61: x | F61: 0 | G61: = | H61: =D61*F61 -> 0 | I61: = | J61: =H61*11700*CO2_C -> 0 | K61: = | L61: =J61/CO2_C -> 0
B63: 2018 | E63: x | F63: 0 | G63: = | H63: =D63*F63 -> 0 | I63: = | J63: =H63*11700*CO2_C -> 0 | K63: = | L63: =J63/CO2_C -> 0
B65: 2019 | E65: x | F65: 0 | G65: = | H65: =D65*F65 -> 0 | I65: = | J65: =H65*11700*CO2_C -> 0 | K65: = | L65: =J65/CO2_C -> 0
B67: 2020 | E67: x | F67: 0 | G67: = | H67: =D67*F67 -> 0 | I67: = | J67: =H67*11700*CO2_C -> 0 | K67: = | L67: =J67/CO2_C -> 0

Sheet ODS
B1: ="13. Consumption of ODS Substitutes in "&'List Data'!B3 -> 13. Consumption of ODS Substitutes in Select a State . . .
D2: ='List Data'!$A$3 -> XX | E2: ODS | F2: =" " -> 
D4: National Emissions | F4: State Population | H4: National Population | J4: Apportioned National Emissions | L4: Apportioned National Emissions
D5: (Metric Tons CO2 Eq.) | J5: (MTCE) | L5: (MTCO2E)
B7: 1990 | D7: ='ODS subs method'!B64 -> 227174.736 | E7: x | F7: =VLOOKUP($D$2,'state population'!$B$2:$AG$53,B7-1988,FALSE) ->  | G7: / | H7: ='state population'!C59 -> 249464396 | I7: = | J7: =IF(ISERROR(L7*CO2_C),,L7*CO2_C) -> 0 | K7: = | L7: =VLOOKUP($D$2&$F$2&$E$2&$F$2,Data!$D:$AI,HLOOKUP(B7,Data!$2:$3,2,FALSE),FALSE) -> 
B9: 1991 | D9: ='ODS subs method'!C64 -> 478026.0112 | E9: x | F9: =VLOOKUP($D$2,'state population'!$B$2:$AG$53,B9-1988,FALSE) ->  | G9: / | H9: ='state population'!D59 -> 252153092 | I9: = | J9: =IF(ISERROR(L9*CO2_C),,L9*CO2_C) -> 0 | K9: = | L9: =VLOOKUP($D$2&$F$2&$E$2&$F$2,Data!$D:$AI,HLOOKUP(B9,Data!$2:$3,2,FALSE),FALSE) -> 
B11: 1992 | D11: ='ODS subs method'!D64 -> 1684616.589 | E11: x | F11: =VLOOKUP($D$2,'state population'!$B$2:$AG$53,B11-1988,FALSE) ->  | G11: / | H11: ='state population'!E59 -> 255029699 | I11: = | J11: =IF(ISERROR(L11*CO2_C),,L11*CO2_C) -> 0 | K11: = | L11: =VLOOKUP($D$2&$F$2&$E$2&$F$2,Data!$D:$AI,HLOOKUP(B11,Data!$2:$3,2,FALSE),FALSE) -> 
B13: 1993 | D13: ='ODS subs method'!E64 -> 5945476.713 | E13: x | F13: =VLOOKUP($D$2,'state population'!$B$2:$AG$53,B13-1988,FALSE) ->  | G13: / | H13: ='state population'!F59 -> 257782608 | I13: = | J13: =IF(ISERROR(L13*CO2_C),,L13*CO2_C) -> 0 | K13: = | L13: =VLOOKUP($D$2&$F$2&$E$2&$F$2,Data!$D:$AI,HLOOKUP(B13,Data!$2:$3,2,FALSE),FALSE) -> 
B15: 1994 | D15: ='ODS subs method'!F64 -> 14673144 | E15: x | F15: =VLOOKUP($D$2,'state population'!$B$2:$AG$53,B15-1988,FALSE) ->  | G15: / | H15: ='state population'!G59 -> 260327021 | I15: = | J15: =IF(ISERROR(L15*CO2_C),,L15*CO2_C) -> 0 | K15: = | L15: =VLOOKUP($D$2&$F$2&$E$2&$F$2,Data!$D:$AI,HLOOKUP(B15,Data!$2:$3,2,FALSE),FALSE) -> 
B17: 1995 | D17: ='ODS subs method'!G64 -> 32173079.96 | E17: x | F17: =VLOOKUP($D$2,'state population'!$B$2:$AG$53,B17-1988,FALSE) ->  | G17: / | H17: ='state population'!H59 -> 262803276 | I17: = | J17: =IF(ISERROR(L17*CO2_C),,L17*CO2_C) -> 0 | K17: = | L17: =VLOOKUP($D$2&$F$2&$E$2&$F$2,Data!$D:$AI,HLOOKUP(B17,Data!$2:$3,2,FALSE),FALSE) -> 
B19: 1996 | D19: ='ODS subs method'!H64 -> 44923844.01 | E19: x | F19: =VLOOKUP($D$2,'state population'!$B$2:$AG$53,B19-1988,FALSE) ->  | G19: / | H19: ='state population'!I59 -> 265228572 | I19: = | J19: =IF(ISERROR(L19*CO2_C),,L19*CO2_C) -> 0 | K19: = | L19: =VLOOKUP($D$2&$F$2&$E$2&$F$2,Data!$D:$AI,HLOOKUP(B19,Data!$2:$3,2,FALSE),FALSE) -> 
B21: 1997 | D21: ='ODS subs method'!I64 -> 57063230.96 | E21: x | F21: =VLOOKUP($D$2,'state population'!$B$2:$AG$53,B21-1988,FALSE) ->  | G21: / | H21: ='state population'!J59 -> 267783607 | I21: = | J21: =IF(ISERROR(L21*CO2_C),,L21*CO2_C) -> 0 | K21: = | L21: =VLOOKUP($D$2&$F$2&$E$2&$F$2,Data!$D:$AI,HLOOKUP(B21,Data!$2:$3,2,FALSE),FALSE) -> 
B23: 1998 | D23: ='ODS subs method'!J64 -> 65487816.54 | E23: x | F23: =VLOOKUP($D$2,'state population'!$B$2:$AG$53,B23-1988,FALSE) ->  | G23: / | H23: ='state population'!K59 -> 270248003 | I23: = | J23: =IF(ISERROR(L23*CO2_C),,L23*CO2_C) -> 0 | K23: = | L23: =VLOOKUP($D$2&$F$2&$E$2&$F$2,Data!$D:$AI,HLOOKUP(B23,Data!$2:$3,2,FALSE),FALSE) -> 
B25: 1999 | D25: ='ODS subs method'!K64 -> 74323042.92 | E25: x | F25: =VLOOKUP($D$2,'state population'!$B$2:$AG$53,B25-1988,FALSE) ->  | G25: / | H25: ='state population'!L59 -> 272690813 | I25: = | J25: =IF(ISERROR(L25*CO2_C),,L25*CO2_C) -> 0 | K25: = | L25: =VLOOKUP($D$2&$F$2&$E$2&$F$2,Data!$D:$AI,HLOOKUP(B25,Data!$2:$3,2,FALSE),FALSE) -> 
B27: 2000 | D27: ='ODS subs method'!L64 -> 81769568.28 | E27: x | F27: =VLOOKUP($D$2,'state population'!$B$2:$AG$53,B27-1988,FALSE) ->  | G27: / | H27: ='state population'!M59 -> 282171936 | I27: = | J27: =IF(ISERROR(L27*CO2_C),,L27*CO2_C) -> 0 | K27: = | L27: =VLOOKUP($D$2&$F$2&$E$2&$F$2,Data!$D:$AI,HLOOKUP(B27,Data!$2:$3,2,FALSE),FALSE) -> 
B29: 2001 | D29: ='ODS subs method'!M64 -> 88786263.99 | E29: x | F29: =VLOOKUP($D$2,'state population'!$B$2:$AG$53,B29-1988,FALSE) ->  | G29: / | H29: ='state population'!N59 -> 285039803 | I29: = | J29: =IF(ISERROR(L29*CO2_C),,L29*CO2_C) -> 0 | K29: = | L29: =VLOOKUP($D$2&$F$2&$E$2&$F$2,Data!$D:$AI,HLOOKUP(B29,Data!$2:$3,2,FALSE),FALSE) -> 
B31: 2002 | D31: ='ODS subs method'!N64 -> 94832848.55 | E31: x | F31: =VLOOKUP($D$2,'state population'!$B$2:$AG$53,B31-1988,FALSE) ->  | G31: / | H31: ='state population'!O59 -> 287726647 | I31: = | J31: =IF(ISERROR(L31*CO2_C),,L31*CO2_C) -> 0 | K31: = | L31: =VLOOKUP($D$2&$F$2&$E$2&$F$2,Data!$D:$AI,HLOOKUP(B31,Data!$2:$3,2,FALSE),FALSE) -> 
B33: 2003 | D33: ='ODS subs method'!O64 -> 99632815.65 | E33: x | F33: =VLOOKUP($D$2,'state population'!$B$2:$AG$53,B33-1988,FALSE) ->  | G33: / | H33: ='state population'!P59 -> 290210914 | I33: = | J33: =IF(ISERROR(L33*CO2_C),,L33*CO2_C) -> 0 | K33: = | L33: =VLOOKUP($D$2&$F$2&$E$2&$F$2,Data!$D:$AI,HLOOKUP(B33,Data!$2:$3,2,FALSE),FALSE) -> 
B35: 2004 | D35: ='ODS subs method'!P64 -> 103745861.1 | E35: x | F35: =VLOOKUP($D$2,'state population'!$B$2:$AG$53,B35-1988,FALSE) ->  | G35: / | H35: ='state population'!Q59 -> 292892127 | I35: = | J35: =IF(ISERROR(L35*CO2_C),,L35*CO2_C) -> 0 | K35: = | L35: =VLOOKUP($D$2&$F$2&$E$2&$F$2,Data!$D:$AI,HLOOKUP(B35,Data!$2:$3,2,FALSE),FALSE) -> 
B37: 2005 | D37: ='ODS subs method'!Q64 -> 108452192.6 | E37: x | F37: =VLOOKUP($D$2,'state population'!$B$2:$AG$53,B37-1988,FALSE) ->  | G37: / | H37: ='state population'!R59 -> 295560549 | I37: = | J37: =IF(ISERROR(L37*CO2_C),,L37*CO2_C) -> 0 | K37: = | L37: =VLOOKUP($D$2&$F$2&$E$2&$F$2,Data!$D:$AI,HLOOKUP(B37,Data!$2:$3,2,FALSE),FALSE) -> 
B39: 2006 | D39: ='ODS subs method'!R64 -> 115342069.9 | E39: x | F39: =VLOOKUP($D$2,'state population'!$B$2:$AG$53,B39-1988,FALSE) ->  | G39: / | H39: ='state population'!S59 -> 298593212 | I39: = | J39: =IF(ISERROR(L39*CO2_C),,L39*CO2_C) -> 0 | K39: = | L39: =VLOOKUP($D$2&$F$2&$E$2&$F$2,Data!$D:$AI,HLOOKUP(B39,Data!$2:$3,2,FALSE),FALSE) -> 
B41: 2007 | D41: ='ODS subs method'!S64 -> 123076726.7 | E41: x | F41: =VLOOKUP($D$2,'state population'!$B$2:$AG$53,B41-1988,FALSE) ->  | G41: / | H41: ='state population'!T59 -> 301579895 | I41: = | J41: =IF(ISERROR(L41*CO2_C),,L41*CO2_C) -> 0 | K41: = | L41: =VLOOKUP($D$2&$F$2&$E$2&$F$2,Data!$D:$AI,HLOOKUP(B41,Data!$2:$3,2,FALSE),FALSE) -> 
B43: 2008 | D43: ='ODS subs method'!T64 -> 131665847.1 | E43: x | F43: =VLOOKUP($D$2,'state population'!$B$2:$AG$53,B43-1988,FALSE) ->  | G43: / | H43: ='state population'!U59 -> 304374846 | I43: = | J43: =IF(ISERROR(L43*CO2_C),,L43*CO2_C) -> 0 | K43: = | L43: =VLOOKUP($D$2&$F$2&$E$2&$F$2,Data!$D:$AI,HLOOKUP(B43,Data!$2:$3,2,FALSE),FALSE) -> 
B45: 2009 | D45: ='ODS subs method'!U64 -> 141524209.9 | E45: x | F45: =VLOOKUP($D$2,'state population'!$B$2:$AG$53,B45-1988,FALSE) ->  | G45: / | H45: ='state population'!V59 -> 307006550 | I45: = | J45: =IF(ISERROR(L45*CO2_C),,L45*CO2_C) -> 0 | K45: = | L45: =VLOOKUP($D$2&$F$2&$E$2&$F$2,Data!$D:$AI,HLOOKUP(B45,Data!$2:$3,2,FALSE),FALSE) -> 
B47: 2010 | D47: ='ODS subs method'!V64 -> 149145405.9 | E47: x | F47: =VLOOKUP($D$2,'state population'!$B$2:$AG$53,B47-1988,FALSE) ->  | G47: / | H47: ='state population'!W59 -> 309321666 | I47: = | J47: =IF(ISERROR(L47*CO2_C),,L47*CO2_C) -> 0 | K47: = | L47: =VLOOKUP($D$2&$F$2&$E$2&$F$2,Data!$D:$AI,HLOOKUP(B47,Data!$2:$3,2,FALSE),FALSE) -> 
B49: 2011 | D49: ='ODS subs method'!W64 -> 152072266.9 | E49: x | F49: =VLOOKUP($D$2,'state population'!$B$2:$AG$53,B49-1988,FALSE) ->  | G49: / | H49: ='state population'!X59 -> 311556874 | I49: = | J49: =IF(ISERROR(L49*CO2_C),,L49*CO2_C) -> 0 | K49: = | L49: =VLOOKUP($D$2&$F$2&$E$2&$F$2,Data!$D:$AI,HLOOKUP(B49,Data!$2:$3,2,FALSE),FALSE) -> 
B51: 2012 | D51: ='ODS subs method'!X64 -> 154452530.2 | E51: x | F51: =VLOOKUP($D$2,'state population'!$B$2:$AG$53,B51-1988,FALSE) ->  | G51: / | H51: ='state population'!Y59 -> 313830990 | I51: = | J51: =IF(ISERROR(L51*CO2_C),,L51*CO2_C) -> 0 | K51: = | L51: =VLOOKUP($D$2&$F$2&$E$2&$F$2,Data!$D:$AI,HLOOKUP(B51,Data!$2:$3,2,FALSE),FALSE) -> 
B53: 2013 | D53: ='ODS subs method'!Y64 -> 156456410.7 | E53: x | F53: =VLOOKUP($D$2,'state population'!$B$2:$AG$53,B53-1988,FALSE) ->  | G53: / | H53: ='state population'!Z59 -> 315993715 | I53: = | J53: =IF(ISERROR(L53*CO2_C),,L53*CO2_C) -> 0 | K53: = | L53: =VLOOKUP($D$2&$F$2&$E$2&$F$2,Data!$D:$AI,HLOOKUP(B53,Data!$2:$3,2,FALSE),FALSE) -> 
B55: 2014 | D55: ='ODS subs method'!Z64 -> 160956207.7 | E55: x | F55: =VLOOKUP($D$2,'state population'!$B$2:$AG$53,B55-1988,FALSE) ->  | G55: / | H55: ='state population'!AA59 -> 318301008 | I55: = | J55: =IF(ISERROR(L55*CO2_C),,L55*CO2_C) -> 0 | K55: = | L55: =VLOOKUP($D$2&$F$2&$E$2&$F$2,Data!$D:$AI,HLOOKUP(B55,Data!$2:$3,2,FALSE),FALSE) -> 
B57: 2015 | D57: ='ODS subs method'!AA64 -> 165815576.4 | E57: x | F57: =VLOOKUP($D$2,'state population'!$B$2:$AG$53,B57-1988,FALSE) ->  | G57: / | H57: ='state population'!AB59 -> 320635163 | I57: = | J57: =IF(ISERROR(L57*CO2_C),,L57*CO2_C) -> 0 | K57: = | L57: =VLOOKUP($D$2&$F$2&$E$2&$F$2,Data!$D:$AI,HLOOKUP(B57,Data!$2:$3,2,FALSE),FALSE) -> 
B59: 2016 | D59: ='ODS subs method'!AB64 -> 167317651.2 | E59: x | F59: =VLOOKUP($D$2,'state population'!$B$2:$AG$53,B59-1988,FALSE) ->  | G59: / | H59: ='state population'!AC59 -> 322941311 | I59: = | J59: =IF(ISERROR(L59*CO2_C),,L59*CO2_C) -> 0 | K59: = | L59: =VLOOKUP($D$2&$F$2&$E$2&$F$2,Data!$D:$AI,HLOOKUP(B59,Data!$2:$3,2,FALSE),FALSE) -> 
B61: 2017 | D61: ='ODS subs method'!AC64 -> 166901641.2 | E61: x | F61: =VLOOKUP($D$2,'state population'!$B$2:$AG$53,B61-1988,FALSE) ->  | G61: / | H61: ='state population'!AD59 -> 324985539 | I61: = | J61: =IF(ISERROR(L61*CO2_C),,L61*CO2_C) -> 0 | K61: = | L61: =VLOOKUP($D$2&$F$2&$E$2&$F$2,Data!$D:$AI,HLOOKUP(B61,Data!$2:$3,2,FALSE),FALSE) -> 
B63: 2018 | D63: ='ODS subs method'!AD64 -> 167859092 | E63: x | F63: =VLOOKUP($D$2,'state population'!$B$2:$AG$53,B63-1988,FALSE) ->  | G63: / | H63: ='state population'!AE59 -> 326687501 | I63: = | J63: =IF(ISERROR(L63*CO2_C),,L63*CO2_C) -> 0 | K63: = | L63: =VLOOKUP($D$2&$F$2&$E$2&$F$2,Data!$D:$AI,HLOOKUP(B63,Data!$2:$3,2,FALSE),FALSE) -> 
B65: 2019 | D65: ='ODS subs method'!AE64 -> 0 | E65: x | F65: =VLOOKUP($D$2,'state population'!$B$2:$AG$53,B65-1988,FALSE) ->  | G65: / | H65: ='state population'!AF59 -> 328239523 | I65: = | J65: =IF(ISERROR(L65*CO2_C),,L65*CO2_C) -> 0 | K65: = | L65: =VLOOKUP($D$2&$F$2&$E$2&$F$2,Data!$D:$AI,HLOOKUP(B65,Data!$2:$3,2,FALSE),FALSE) -> 
B67: 2020 | D67: ='ODS subs method'!AF64 -> 0 | E67: x | F67: =VLOOKUP($D$2,'state population'!$B$2:$AG$53,B67-1988,FALSE) ->  | G67: / | H67: ='state population'!AG59 -> 0 | I67: = | J67: =IF(ISERROR(L67*CO2_C),,L67*CO2_C) -> 0 | K67: = | L67: =VLOOKUP($D$2&$F$2&$E$2&$F$2,Data!$D:$AI,HLOOKUP(B67,Data!$2:$3,2,FALSE),FALSE) -> 

Sheet Semiconductor
B1: ="14. Semiconductor Manufacture in "&'List Data'!B3 -> 14. Semiconductor Manufacture in Select a State . . .
D2: ='List Data'!$A$3 -> XX | E2: Semi | F2: =" " -> 
D4: National Emissions | F4: Value of State Semiconductor Shipments- 1997, 2002, 2007, or 2012 intervening years interpolated | H4: Value of National Semiconductor Shipments- 1997 or 2002, intervening years interpolated | J4: Apportioned National Emissions | L4: Apportioned National Emissions
D5: (Metric Tons CO2 Eq.) | F5: ($1000's) | H5: ($1000's) | J5: (MTCE) | L5: (MTCO2E)
B7: 1990 | D7: ='semiconductors method'!AJ64 -> 3563688.261 | E7: x | F7: =VLOOKUP($D$2,'semiconductors method'!$A$4:$AY$55,3,FALSE) ->  | G7: / | H7: ='semiconductors method'!$C$56 -> 78539562 | I7: = | J7: =L7*CO2_C ->  | K7: = | L7: =D7*F7/H7 -> 
B9: 1991 | D9: ='semiconductors method'!AK64 -> 3563688.261 | E9: x | F9: =VLOOKUP($D$2,'semiconductors method'!$A$4:$AY$55,3,FALSE) ->  | G9: / | H9: ='semiconductors method'!$C$56 -> 78539562 | I9: = | J9: =L9*CO2_C ->  | K9: = | L9: =D9*F9/H9 -> 
B11: 1992 | D11: ='semiconductors method'!AL64 -> 3563688.261 | E11: x | F11: =VLOOKUP($D$2,'semiconductors method'!$A$4:$AY$55,3,FALSE) ->  | G11: / | H11: ='semiconductors method'!$C$56 -> 78539562 | I11: = | J11: =L11*CO2_C ->  | K11: = | L11: =D11*F11/H11 -> 
B13: 1993 | D13: ='semiconductors method'!AM64 -> 4454610.326 | E13: x | F13: =VLOOKUP($D$2,'semiconductors method'!$A$4:$AY$55,3,FALSE) ->  | G13: / | H13: ='semiconductors method'!$C$56 -> 78539562 | I13: = | J13: =L13*CO2_C ->  | K13: = | L13: =D13*F13/H13 -> 
B15: 1994 | D15: ='semiconductors method'!AN64 -> 4900071.358 | E15: x | F15: =VLOOKUP($D$2,'semiconductors method'!$A$4:$AY$55,3,FALSE) ->  | G15: / | H15: ='semiconductors method'!$C$56 -> 78539562 | I15: = | J15: =L15*CO2_C ->  | K15: = | L15: =D15*F15/H15 -> 
B17: 1995 | D17: ='semiconductors method'!AO64 -> 6189929.726 | E17: x | F17: =VLOOKUP($D$2,'semiconductors method'!$A$4:$AY$55,3,FALSE) ->  | G17: / | H17: ='semiconductors method'!$C$56 -> 78539562 | I17: = | J17: =L17*CO2_C ->  | K17: = | L17: =D17*F17/H17 -> 
B19: 1996 | D19: ='semiconductors method'!AP64 -> 6873687.055 | E19: x | F19: =VLOOKUP($D$2,'semiconductors method'!$A$4:$AY$55,3,FALSE) ->  | G19: / | H19: ='semiconductors method'!$C$56 -> 78539562 | I19: = | J19: =L19*CO2_C ->  | K19: = | L19: =D19*F19/H19 -> 
B21: 1997 | D21: ='semiconductors method'!AQ64 -> 7264112.86 | E21: x | F21: =VLOOKUP($D$2,'semiconductors method'!$A$4:$AY$55,3,FALSE) ->  | G21: / | H21: ='semiconductors method'!$C$56 -> 78539562 | I21: = | J21: =L21*CO2_C ->  | K21: = | L21: =D21*F21/H21 -> 
B23: 1998 | D23: ='semiconductors method'!AR64 -> 8907081.032 | E23: x | F23: =F21+(($F$31-$F$21)/5) ->  | G23: / | H23: =H21+(($H$31-$H$21)/5) -> 75125946.2 | I23: = | J23: =L23*CO2_C ->  | K23: = | L23: =D23*F23/H23 -> 
B25: 1999 | D25: ='semiconductors method'!AS64 -> 9038544.905 | E25: x | F25: =F23+(($F$31-$F$21)/5) ->  | G25: / | H25: =H23+(($H$31-$H$21)/5) -> 71712330.4 | I25: = | J25: =L25*CO2_C ->  | K25: = | L25: =D25*F25/H25 -> 
B27: 2000 | D27: ='semiconductors method'!AT64 -> 7554013.16 | E27: x | F27: =F25+(($F$31-$F$21)/5) ->  | G27: / | H27: =H25+(($H$31-$H$21)/5) -> 68298714.6 | I27: = | J27: =L27*CO2_C ->  | K27: = | L27: =D27*F27/H27 -> 
B29: 2001 | D29: ='semiconductors method'!AU64 -> 5349925.643 | E29: x | F29: =F27+(($F$31-$F$21)/5) ->  | G29: / | H29: =H27+(($H$31-$H$21)/5) -> 64885098.8 | I29: = | J29: =L29*CO2_C ->  | K29: = | L29: =D29*F29/H29 -> 
B31: 2002 | D31: ='semiconductors method'!AV64 -> 5498511.811 | E31: x | F31: =VLOOKUP($D$2,'semiconductors method'!$A$4:$AY$55,4,FALSE) ->  | G31: / | H31: ='semiconductors method'!$D$56 -> 61471483 | I31: = | J31: =L31*CO2_C ->  | K31: = | L31: =D31*F31/H31 -> 
B33: 2003 | D33: ='semiconductors method'!AW64 -> 5225125.604 | E33: x | F33: =F31+(($F$41-$F$31)/5) ->  | G33: / | H33: ='semiconductors method'!$D$56 -> 61471483 | I33: = | J33: =L33*CO2_C ->  | K33: = | L33: =D33*F33/H33 -> 
B35: 2004 | D35: ='semiconductors method'!AX64 -> 4922737.637 | E35: x | F35: =F33+(($F$41-$F$31)/5) ->  | G35: / | H35: ='semiconductors method'!$D$56 -> 61471483 | I35: = | J35: =L35*CO2_C ->  | K35: = | L35: =D35*F35/H35 -> 
B37: 2005 | D37: ='semiconductors method'!AY64 -> 4615721.875 | E37: x | F37: =F35+(($F$41-$F$31)/5) ->  | G37: / | H37: ='semiconductors method'!$D$56 -> 61471483 | I37: = | J37: =L37*CO2_C ->  | K37: = | L37: =D37*F37/H37 -> 
B39: 2006 | D39: ='semiconductors method'!AZ64 -> 5039162.645 | E39: x | F39: =F37+(($F$41-$F$31)/5) ->  | G39: / | H39: ='semiconductors method'!$D$56 -> 61471483 | I39: = | J39: =L39*CO2_C ->  | K39: = | L39: =D39*F39/H39 -> 
B41: 2007 | D41: ='semiconductors method'!BA64 -> 4568378.192 | E41: x | F41: =VLOOKUP($D$2,'semiconductors method'!$A$4:$AY$55,5,FALSE) ->  | G41: / | H41: ='semiconductors method'!$D$56 -> 61471483 | I41: = | J41: =L41*CO2_C ->  | K41: = | L41: =D41*F41/H41 -> 
B43: 2008 | D43: ='semiconductors method'!BB64 -> 4183568.128 | E43: x | F43: =F41+(($F$51-$F$41)/5) ->  | G43: / | H43: ='semiconductors method'!$D$56 -> 61471483 | I43: = | J43: =L43*CO2_C ->  | K43: = | L43: =D43*F43/H43 -> 
B45: 2009 | D45: ='semiconductors method'!BC64 -> 3007922.513 | E45: x | F45: =F43+(($F$51-$F$41)/5) ->  | G45: / | H45: ='semiconductors method'!$D$56 -> 61471483 | I45: = | J45: =L45*CO2_C ->  | K45: = | L45: =D45*F45/H45 -> 
B47: 2010 | D47: ='semiconductors method'!BD64 -> 3820655.048 | E47: x | F47: =F45+(($F$51-$F$41)/5) ->  | G47: / | H47: ='semiconductors method'!$D$56 -> 61471483 | I47: = | J47: =L47*CO2_C ->  | K47: = | L47: =D47*F47/H47 -> 
B49: 2011 | D49: ='semiconductors method'!BE64 -> 5191021.573 | E49: x | F49: =F47+(($F$51-$F$41)/5) ->  | G49: / | H49: ='semiconductors method'!$D$56 -> 61471483 | I49: = | J49: =L49*CO2_C ->  | K49: = | L49: =D49*F49/H49 -> 
B51: 2012 | D51: ='semiconductors method'!BF64 -> 4817503.072 | E51: x | F51: =VLOOKUP($D$2,'semiconductors method'!$A$4:$AY$55,6,FALSE) ->  | G51: / | H51: ='semiconductors method'!$D$56 -> 61471483 | I51: = | J51: =L51*CO2_C ->  | K51: = | L51: =D51*F51/H51 -> 
B53: 2013 | D53: ='semiconductors method'!BG64 -> 4417131.497 | E53: x | F53: =VLOOKUP($D$2,'semiconductors method'!$A$4:$AY$55,6,FALSE) ->  | G53: / | H53: ='semiconductors method'!$D$56 -> 61471483 | I53: = | J53: =L53*CO2_C ->  | K53: = | L53: =D53*F53/H53 -> 
B55: 2014 | D55: ='semiconductors method'!BH64 -> 4620907.221 | E55: x | F55: =VLOOKUP($D$2,'semiconductors method'!$A$4:$AY$55,6,FALSE) ->  | G55: / | H55: ='semiconductors method'!$D$56 -> 61471483 | I55: = | J55: =L55*CO2_C ->  | K55: = | L55: =D55*F55/H55 -> 
B57: 2015 | D57: ='semiconductors method'!BI64 -> 4661961.243 | E57: x | F57: =VLOOKUP($D$2,'semiconductors method'!$A$4:$AY$55,6,FALSE) ->  | G57: / | H57: ='semiconductors method'!$D$56 -> 61471483 | I57: = | J57: =L57*CO2_C ->  | K57: = | L57: =D57*F57/H57 -> 
B59: 2016 | D59: ='semiconductors method'!BJ64 -> 4667820.014 | E59: x | F59: =VLOOKUP($D$2,'semiconductors method'!$A$4:$AY$55,6,FALSE) ->  | G59: / | H59: ='semiconductors method'!$D$56 -> 61471483 | I59: = | J59: =L59*CO2_C ->  | K59: = | L59: =D59*F59/H59 -> 
B61: 2017 | D61: ='semiconductors method'!BK64 -> 4612324.357 | E61: x | F61: =VLOOKUP($D$2,'semiconductors method'!$A$4:$AY$55,6,FALSE) ->  | G61: / | H61: ='semiconductors method'!$D$56 -> 61471483 | I61: = | J61: =L61*CO2_C ->  | K61: = | L61: =D61*F61/H61 -> 
B63: 2018 | D63: ='semiconductors method'!BL64 -> 4753300.798 | E63: x | F63: =VLOOKUP($D$2,'semiconductors method'!$A$4:$AY$55,6,FALSE) ->  | G63: / | H63: ='semiconductors method'!$D$56 -> 61471483 | I63: = | J63: =L63*CO2_C ->  | K63: = | L63: =D63*F63/H63 -> 
B65: 2019 | D65: ='semiconductors method'!BM64 -> 0 | E65: x | F65: =VLOOKUP($D$2,'semiconductors method'!$A$4:$AY$55,6,FALSE) ->  | G65: / | H65: ='semiconductors method'!$D$56 -> 61471483 | I65: = | J65: =L65*CO2_C ->  | K65: = | L65: =D65*F65/H65 -> 
B67: 2020 | D67: ='semiconductors method'!BN64 -> 0 | E67: x | F67: =VLOOKUP($D$2,'semiconductors method'!$A$4:$AY$55,6,FALSE) ->  | G67: / | H67: ='semiconductors method'!$D$56 -> 61471483 | I67: = | J67: =L67*CO2_C ->  | K67: = | L67: =D67*F67/H67 -> 

Sheet Electric Power
B1: ="15. Electric Power Transmission and Distribution in "&'List Data'!B3 -> 15. Electric Power Transmission and Distribution in Select a State . . .
D2: ='List Data'!$A$3 -> XX | E2: EU | F2: =" " -> 
D4: SF6 Consumption | F4: Emission Factor | H4: Emissions | J4: Emissions | L4: Emissions
D5: (Metric Tons) | F5: (t SF6/t Consumption) | H5: (Metric Tons SF6) | J5: (MTCE) | L5: (MTCO2E)
B7: 1990 | E7: x | F7: =INDIRECT($E$2&"Factor") -> 0 | G7: = | H7: =IF(ISERROR(D7*F7),,D7*F7) -> 0 | I7: = | J7: =H7*Control!$C$96*CO2_C -> 0 | K7: = | L7: =J7/CO2_C -> 0
B9: 1991 | E9: x | F9: =INDIRECT($E$2&"Factor") -> 0 | G9: = | H9: =IF(ISERROR(D9*F9),,D9*F9) -> 0 | I9: = | J9: =H9*Control!$C$96*CO2_C -> 0 | K9: = | L9: =J9/CO2_C -> 0
B11: 1992 | E11: x | F11: =INDIRECT($E$2&"Factor") -> 0 | G11: = | H11: =IF(ISERROR(D11*F11),,D11*F11) -> 0 | I11: = | J11: =H11*Control!$C$96*CO2_C -> 0 | K11: = | L11: =J11/CO2_C -> 0
B13: 1993 | E13: x | F13: =INDIRECT($E$2&"Factor") -> 0 | G13: = | H13: =IF(ISERROR(D13*F13),,D13*F13) -> 0 | I13: = | J13: =H13*Control!$C$96*CO2_C -> 0 | K13: = | L13: =J13/CO2_C -> 0
B15: 1994 | E15: x | F15: =INDIRECT($E$2&"Factor") -> 0 | G15: = | H15: =IF(ISERROR(D15*F15),,D15*F15) -> 0 | I15: = | J15: =H15*Control!$C$96*CO2_C -> 0 | K15: = | L15: =J15/CO2_C -> 0
B17: 1995 | E17: x | F17: =INDIRECT($E$2&"Factor") -> 0 | G17: = | H17: =IF(ISERROR(D17*F17),,D17*F17) -> 0 | I17: = | J17: =H17*Control!$C$96*CO2_C -> 0 | K17: = | L17: =J17/CO2_C -> 0
B19: 1996 | E19: x | F19: =INDIRECT($E$2&"Factor") -> 0 | G19: = | H19: =IF(ISERROR(D19*F19),,D19*F19) -> 0 | I19: = | J19: =H19*Control!$C$96*CO2_C -> 0 | K19: = | L19: =J19/CO2_C -> 0
B21: 1997 | E21: x | F21: =INDIRECT($E$2&"Factor") -> 0 | G21: = | H21: =IF(ISERROR(D21*F21),,D21*F21) -> 0 | I21: = | J21: =H21*Control!$C$96*CO2_C -> 0 | K21: = | L21: =J21/CO2_C -> 0
B23: 1998 | E23: x | F23: =INDIRECT($E$2&"Factor") -> 0 | G23: = | H23: =IF(ISERROR(D23*F23),,D23*F23) -> 0 | I23: = | J23: =H23*Control!$C$96*CO2_C -> 0 | K23: = | L23: =J23/CO2_C -> 0
B25: 1999 | E25: x | F25: =INDIRECT($E$2&"Factor") -> 0 | G25: = | H25: =IF(ISERROR(D25*F25),,D25*F25) -> 0 | I25: = | J25: =H25*Control!$C$96*CO2_C -> 0 | K25: = | L25: =J25/CO2_C -> 0
B27: 2000 | E27: x | F27: =INDIRECT($E$2&"Factor") -> 0 | G27: = | H27: =IF(ISERROR(D27*F27),,D27*F27) -> 0 | I27: = | J27: =H27*Control!$C$96*CO2_C -> 0 | K27: = | L27: =J27/CO2_C -> 0
B29: 2001 | E29: x | F29: =INDIRECT($E$2&"Factor") -> 0 | G29: = | H29: =IF(ISERROR(D29*F29),,D29*F29) -> 0 | I29: = | J29: =H29*Control!$C$96*CO2_C -> 0 | K29: = | L29: =J29/CO2_C -> 0
B31: 2002 | E31: x | F31: =INDIRECT($E$2&"Factor") -> 0 | G31: = | H31: =IF(ISERROR(D31*F31),,D31*F31) -> 0 | I31: = | J31: =H31*Control!$C$96*CO2_C -> 0 | K31: = | L31: =J31/CO2_C -> 0
B33: 2003 | E33: x | F33: =INDIRECT($E$2&"Factor") -> 0 | G33: = | H33: =IF(ISERROR(D33*F33),,D33*F33) -> 0 | I33: = | J33: =H33*Control!$C$96*CO2_C -> 0 | K33: = | L33: =J33/CO2_C -> 0
B35: 2004 | E35: x | F35: =INDIRECT($E$2&"Factor") -> 0 | G35: = | H35: =IF(ISERROR(D35*F35),,D35*F35) -> 0 | I35: = | J35: =H35*Control!$C$96*CO2_C -> 0 | K35: = | L35: =J35/CO2_C -> 0
B37: 2005 | E37: x | F37: =INDIRECT($E$2&"Factor") -> 0 | G37: = | H37: =IF(ISERROR(D37*F37),,D37*F37) -> 0 | I37: = | J37: =H37*Control!$C$96*CO2_C -> 0 | K37: = | L37: =J37/CO2_C -> 0
B39: 2006 | E39: x | F39: =INDIRECT($E$2&"Factor") -> 0 | G39: = | H39: =IF(ISERROR(D39*F39),,D39*F39) -> 0 | I39: = | J39: =H39*Control!$C$96*CO2_C -> 0 | K39: = | L39: =J39/CO2_C -> 0
B41: 2007 | E41: x | F41: =INDIRECT($E$2&"Factor") -> 0 | G41: = | H41: =IF(ISERROR(D41*F41),,D41*F41) -> 0 | I41: = | J41: =H41*Control!$C$96*CO2_C -> 0 | K41: = | L41: =J41/CO2_C -> 0
B43: 2008 | E43: x | F43: =INDIRECT($E$2&"Factor") -> 0 | G43: = | H43: =IF(ISERROR(D43*F43),,D43*F43) -> 0 | I43: = | J43: =H43*Control!$C$96*CO2_C -> 0 | K43: = | L43: =J43/CO2_C -> 0
B45: 2009 | E45: x | F45: =INDIRECT($E$2&"Factor") -> 0 | G45: = | H45: =IF(ISERROR(D45*F45),,D45*F45) -> 0 | I45: = | J45: =H45*Control!$C$96*CO2_C -> 0 | K45: = | L45: =J45/CO2_C -> 0
B47: 2010 | E47: x | F47: =INDIRECT($E$2&"Factor") -> 0 | G47: = | H47: =IF(ISERROR(D47*F47),,D47*F47) -> 0 | I47: = | J47: =H47*Control!$C$96*CO2_C -> 0 | K47: = | L47: =J47/CO2_C -> 0
B49: 2011 | E49: x | F49: =INDIRECT($E$2&"Factor") -> 0 | G49: = | H49: =IF(ISERROR(D49*F49),,D49*F49) -> 0 | I49: = | J49: =H49*Control!$C$96*CO2_C -> 0 | K49: = | L49: =J49/CO2_C -> 0
B51: 2012 | E51: x | F51: =INDIRECT($E$2&"Factor") -> 0 | G51: = | H51: =IF(ISERROR(D51*F51),,D51*F51) -> 0 | I51: = | J51: =H51*Control!$C$96*CO2_C -> 0 | K51: = | L51: =J51/CO2_C -> 0
B53: 2013 | E53: x | F53: =INDIRECT($E$2&"Factor") -> 0 | G53: = | H53: =IF(ISERROR(D53*F53),,D53*F53) -> 0 | I53: = | J53: =H53*Control!$C$96*CO2_C -> 0 | K53: = | L53: =J53/CO2_C -> 0
B55: 2014 | E55: x | F55: =INDIRECT($E$2&"Factor") -> 0 | G55: = | H55: =IF(ISERROR(D55*F55),,D55*F55) -> 0 | I55: = | J55: =H55*Control!$C$96*CO2_C -> 0 | K55: = | L55: =J55/CO2_C -> 0
B57: 2015 | E57: x | F57: =INDIRECT($E$2&"Factor") -> 0 | G57: = | H57: =IF(ISERROR(D57*F57),,D57*F57) -> 0 | I57: = | J57: =H57*Control!$C$96*CO2_C -> 0 | K57: = | L57: =J57/CO2_C -> 0
B59: 2016 | E59: x | F59: =INDIRECT($E$2&"Factor") -> 0 | G59: = | H59: =IF(ISERROR(D59*F59),,D59*F59) -> 0 | I59: = | J59: =H59*Control!$C$96*CO2_C -> 0 | K59: = | L59: =J59/CO2_C -> 0
B61: 2017 | E61: x | F61: =INDIRECT($E$2&"Factor") -> 0 | G61: = | H61: =IF(ISERROR(D61*F61),,D61*F61) -> 0 | I61: = | J61: =H61*Control!$C$96*CO2_C -> 0 | K61: = | L61: =J61/CO2_C -> 0
B63: 2018 | E63: x | F63: =INDIRECT($E$2&"Factor") -> 0 | G63: = | H63: =IF(ISERROR(D63*F63),,D63*F63) -> 0 | I63: = | J63: =H63*Control!$C$96*CO2_C -> 0 | K63: = | L63: =J63/CO2_C -> 0
B65: 2019 | E65: x | F65: =INDIRECT($E$2&"Factor") -> 0 | G65: = | H65: =IF(ISERROR(D65*F65),,D65*F65) -> 0 | I65: = | J65: =H65*Control!$C$96*CO2_C -> 0 | K65: = | L65: =J65/CO2_C -> 0
B67: 2020 | E67: x | F67: =INDIRECT($E$2&"Factor") -> 0 | G67: = | H67: =IF(ISERROR(D67*F67),,D67*F67) -> 0 | I67: = | J67: =H67*Control!$C$96*CO2_C -> 0 | K67: = | L67: =J67/CO2_C -> 0

Sheet Magnesium
B1: ="16. Magnesium Production and Processing in "&'List Data'!B3 -> 16. Magnesium Production and Processing in Select a State . . .
E2: ='List Data'!$A$3 -> XX | F2: Mg | G2: =" " -> 
E4: Magnesium Production and Processing | G4: Emission Factor | I4: Emissions | K4: Emissions | M4: Emissions
E5: (Metric Tons) | G5: (t SF6/t Magnesium) | I5: (Metric Tons SF6) | K5: (MTCE) | M5: (MTCO2E)
B7: 1990 | D7: Primary Production | F7: x | G7: =IF(ISNUMBER(INDIRECT($F$2&LEFT(D7,2)&"Factor")),INDIRECT($F$2&LEFT(D7,2)&"Factor"),VLOOKUP(B7,MgEFs,2,FALSE)) -> 0.0012 | H7: = | I7: =E7*G7 -> 0 | J7: = | K7: =I7*Control!$C$96*CO2_C -> 0 | L7: = | M7: =K7/CO2_C -> 0
D8: Secondary Production | F8: x | G8: =IF(ISNUMBER(INDIRECT($F$2&LEFT(D8,2)&"Factor")),INDIRECT($F$2&LEFT(D8,2)&"Factor"),VLOOKUP(B7,MgEFs,3,FALSE)) -> 0.001 | H8: = | I8: =E8*G8 -> 0 | J8: = | K8: =I8*Control!$C$96*CO2_C -> 0 | L8: = | M8: =K8/CO2_C -> 0
D9: Casting | F9: x | G9: =IF(ISNUMBER(INDIRECT($F$2&LEFT(D9,2)&"Factor")),INDIRECT($F$2&LEFT(D9,2)&"Factor"),VLOOKUP(B7,MgEFs,4,FALSE)) -> 0.0041 | H9: = | I9: 0 | J9: = | K9: =I9*Control!$C$96*CO2_C -> 0 | L9: = | M9: =K9/CO2_C -> 0
B11: 1991 | D11: Primary Production | F11: x | G11: =IF(ISNUMBER(INDIRECT($F$2&LEFT(D11,2)&"Factor")),INDIRECT($F$2&LEFT(D11,2)&"Factor"),VLOOKUP(B11,MgEFs,2,FALSE)) -> 0.0012 | H11: = | I11: =E11*G11 -> 0 | J11: = | K11: =I11*Control!$C$96*CO2_C -> 0 | L11: = | M11: =K11/CO2_C -> 0
D12: Secondary Production | F12: x | G12: =IF(ISNUMBER(INDIRECT($F$2&LEFT(D12,2)&"Factor")),INDIRECT($F$2&LEFT(D12,2)&"Factor"),VLOOKUP(B11,MgEFs,3,FALSE)) -> 0.001 | H12: = | I12: 0 | J12: = | K12: =I12*Control!$C$96*CO2_C -> 0 | L12: = | M12: =K12/CO2_C -> 0
D13: Casting | F13: x | G13: =IF(ISNUMBER(INDIRECT($F$2&LEFT(D13,2)&"Factor")),INDIRECT($F$2&LEFT(D13,2)&"Factor"),VLOOKUP(B11,MgEFs,4,FALSE)) -> 0.0041 | H13: = | I13: 0 | J13: = | K13: =I13*Control!$C$96*CO2_C -> 0 | L13: = | M13: =K13/CO2_C -> 0
B15: 1992 | D15: Primary Production | F15: x | G15: =IF(ISNUMBER(INDIRECT($F$2&LEFT(D15,2)&"Factor")),INDIRECT($F$2&LEFT(D15,2)&"Factor"),VLOOKUP(B15,MgEFs,2,FALSE)) -> 0.0012 | H15: = | I15: =E15*G15 -> 0 | J15: = | K15: =I15*Control!$C$96*CO2_C -> 0 | L15: = | M15: =K15/CO2_C -> 0
D16: Secondary Production | F16: x | G16: =IF(ISNUMBER(INDIRECT($F$2&LEFT(D16,2)&"Factor")),INDIRECT($F$2&LEFT(D16,2)&"Factor"),VLOOKUP(B15,MgEFs,3,FALSE)) -> 0.001 | H16: = | I16: =E16*G16 -> 0 | J16: = | K16: =I16*Control!$C$96*CO2_C -> 0 | L16: = | M16: =K16/CO2_C -> 0
D17: Casting | F17: x | G17: =IF(ISNUMBER(INDIRECT($F$2&LEFT(D17,2)&"Factor")),INDIRECT($F$2&LEFT(D17,2)&"Factor"),VLOOKUP(B15,MgEFs,4,FALSE)) -> 0.0041 | H17: = | I17: =E17*G17 -> 0 | J17: = | K17: =I17*Control!$C$96*CO2_C -> 0 | L17: = | M17: =K17/CO2_C -> 0
B19: 1993 | D19: Primary Production | F19: x | G19: =IF(ISNUMBER(INDIRECT($F$2&LEFT(D19,2)&"Factor")),INDIRECT($F$2&LEFT(D19,2)&"Factor"),VLOOKUP(B19,MgEFs,2,FALSE)) -> 0.0012 | H19: = | I19: =E19*G19 -> 0 | J19: = | K19: =I19*Control!$C$96*CO2_C -> 0 | L19: = | M19: =K19/CO2_C -> 0
D20: Secondary Production | F20: x | G20: =IF(ISNUMBER(INDIRECT($F$2&LEFT(D20,2)&"Factor")),INDIRECT($F$2&LEFT(D20,2)&"Factor"),VLOOKUP(B19,MgEFs,3,FALSE)) -> 0.001 | H20: = | I20: =E20*G20 -> 0 | J20: = | K20: =I20*Control!$C$96*CO2_C -> 0 | L20: = | M20: =K20/CO2_C -> 0
D21: Casting | F21: x | G21: =IF(ISNUMBER(INDIRECT($F$2&LEFT(D21,2)&"Factor")),INDIRECT($F$2&LEFT(D21,2)&"Factor"),VLOOKUP(B19,MgEFs,4,FALSE)) -> 0.0041 | H21: = | I21: =E21*G21 -> 0 | J21: = | K21: =I21*Control!$C$96*CO2_C -> 0 | L21: = | M21: =K21/CO2_C -> 0
B23: 1994 | D23: Primary Production | F23: x | G23: =IF(ISNUMBER(INDIRECT($F$2&LEFT(D23,2)&"Factor")),INDIRECT($F$2&LEFT(D23,2)&"Factor"),VLOOKUP(B23,MgEFs,2,FALSE)) -> 0.0011 | H23: = | I23: =E23*G23 -> 0 | J23: = | K23: =I23*Control!$C$96*CO2_C -> 0 | L23: = | M23: =K23/CO2_C -> 0
D24: Secondary Production | F24: x | G24: =IF(ISNUMBER(INDIRECT($F$2&LEFT(D24,2)&"Factor")),INDIRECT($F$2&LEFT(D24,2)&"Factor"),VLOOKUP(B23,MgEFs,3,FALSE)) -> 0.001 | H24: = | I24: =E24*G24 -> 0 | J24: = | K24: =I24*Control!$C$96*CO2_C -> 0 | L24: = | M24: =K24/CO2_C -> 0
D25: Casting | F25: x | G25: =IF(ISNUMBER(INDIRECT($F$2&LEFT(D25,2)&"Factor")),INDIRECT($F$2&LEFT(D25,2)&"Factor"),VLOOKUP(B23,MgEFs,4,FALSE)) -> 0.0041 | H25: = | I25: =E25*G25 -> 0 | J25: = | K25: =I25*Control!$C$96*CO2_C -> 0 | L25: = | M25: =K25/CO2_C -> 0
B27: 1995 | D27: Primary Production | F27: x | G27: =IF(ISNUMBER(INDIRECT($F$2&LEFT(D27,2)&"Factor")),INDIRECT($F$2&LEFT(D27,2)&"Factor"),VLOOKUP(B27,MgEFs,2,FALSE)) -> 0.0011 | H27: = | I27: =E27*G27 -> 0 | J27: = | K27: =I27*Control!$C$96*CO2_C -> 0 | L27: = | M27: =K27/CO2_C -> 0
D28: Secondary Production | F28: x | G28: =IF(ISNUMBER(INDIRECT($F$2&LEFT(D28,2)&"Factor")),INDIRECT($F$2&LEFT(D28,2)&"Factor"),VLOOKUP(B27,MgEFs,3,FALSE)) -> 0.001 | H28: = | I28: =E28*G28 -> 0 | J28: = | K28: =I28*Control!$C$96*CO2_C -> 0 | L28: = | M28: =K28/CO2_C -> 0
D29: Casting | F29: x | G29: =IF(ISNUMBER(INDIRECT($F$2&LEFT(D29,2)&"Factor")),INDIRECT($F$2&LEFT(D29,2)&"Factor"),VLOOKUP(B27,MgEFs,4,FALSE)) -> 0.0041 | H29: = | I29: =E29*G29 -> 0 | J29: = | K29: =I29*Control!$C$96*CO2_C -> 0 | L29: = | M29: =K29/CO2_C -> 0
B31: 1996 | D31: Primary Production | F31: x | G31: =IF(ISNUMBER(INDIRECT($F$2&LEFT(D31,2)&"Factor")),INDIRECT($F$2&LEFT(D31,2)&"Factor"),VLOOKUP(B31,MgEFs,2,FALSE)) -> 0.0011 | H31: = | I31: =E31*G31 -> 0 | J31: = | K31: =I31*Control!$C$96*CO2_C -> 0 | L31: = | M31: =K31/CO2_C -> 0
D32: Secondary Production | F32: x | G32: =IF(ISNUMBER(INDIRECT($F$2&LEFT(D32,2)&"Factor")),INDIRECT($F$2&LEFT(D32,2)&"Factor"),VLOOKUP(B31,MgEFs,3,FALSE)) -> 0.001 | H32: = | I32: =E32*G32 -> 0 | J32: = | K32: =I32*Control!$C$96*CO2_C -> 0 | L32: = | M32: =K32/CO2_C -> 0
D33: Casting | F33: x | G33: =IF(ISNUMBER(INDIRECT($F$2&LEFT(D33,2)&"Factor")),INDIRECT($F$2&LEFT(D33,2)&"Factor"),VLOOKUP(B31,MgEFs,4,FALSE)) -> 0.0041 | H33: = | I33: =E33*G33 -> 0 | J33: = | K33: =I33*Control!$C$96*CO2_C -> 0 | L33: = | M33: =K33/CO2_C -> 0
B35: 1997 | D35: Primary Production | F35: x | G35: =IF(ISNUMBER(INDIRECT($F$2&LEFT(D35,2)&"Factor")),INDIRECT($F$2&LEFT(D35,2)&"Factor"),VLOOKUP(B35,MgEFs,2,FALSE)) -> 0.0011 | H35: = | I35: =E35*G35 -> 0 | J35: = | K35: =I35*Control!$C$96*CO2_C -> 0 | L35: = | M35: =K35/CO2_C -> 0
D36: Secondary Production | F36: x | G36: =IF(ISNUMBER(INDIRECT($F$2&LEFT(D36,2)&"Factor")),INDIRECT($F$2&LEFT(D36,2)&"Factor"),VLOOKUP(B35,MgEFs,3,FALSE)) -> 0.001 | H36: = | I36: =E36*G36 -> 0 | J36: = | K36: =I36*Control!$C$96*CO2_C -> 0 | L36: = | M36: =K36/CO2_C -> 0
D37: Casting | F37: x | G37: =IF(ISNUMBER(INDIRECT($F$2&LEFT(D37,2)&"Factor")),INDIRECT($F$2&LEFT(D37,2)&"Factor"),VLOOKUP(B35,MgEFs,4,FALSE)) -> 0.003446383567 | H37: = | I37: =E37*G37 -> 0 | J37: = | K37: =I37*Control!$C$96*CO2_C -> 0 | L37: = | M37: =K37/CO2_C -> 0
B39: 1998 | D39: Primary Production | F39: x | G39: =IF(ISNUMBER(INDIRECT($F$2&LEFT(D39,2)&"Factor")),INDIRECT($F$2&LEFT(D39,2)&"Factor"),VLOOKUP(B39,MgEFs,2,FALSE)) -> 0.001 | H39: = | I39: =E39*G39 -> 0 | J39: = | K39: =I39*Control!$C$96*CO2_C -> 0 | L39: = | M39: =K39/CO2_C -> 0
D40: Secondary Production | F40: x | G40: =IF(ISNUMBER(INDIRECT($F$2&LEFT(D40,2)&"Factor")),INDIRECT($F$2&LEFT(D40,2)&"Factor"),VLOOKUP(B39,MgEFs,3,FALSE)) -> 0.001 | H40: = | I40: =E40*G40 -> 0 | J40: = | K40: =I40*Control!$C$96*CO2_C -> 0 | L40: = | M40: =K40/CO2_C -> 0
D41: Casting | F41: x | G41: =IF(ISNUMBER(INDIRECT($F$2&LEFT(D41,2)&"Factor")),INDIRECT($F$2&LEFT(D41,2)&"Factor"),VLOOKUP(B39,MgEFs,4,FALSE)) -> 0.002792767134 | H41: = | I41: =E41*G41 -> 0 | J41: = | K41: =I41*Control!$C$96*CO2_C -> 0 | L41: = | M41: =K41/CO2_C -> 0
B43: 1999 | D43: Primary Production | F43: x | G43: =IF(ISNUMBER(INDIRECT($F$2&LEFT(D43,2)&"Factor")),INDIRECT($F$2&LEFT(D43,2)&"Factor"),VLOOKUP(B43,MgEFs,2,FALSE)) -> 0.001 | H43: = | I43: =E43*G43 -> 0 | J43: = | K43: =I43*Control!$C$96*CO2_C -> 0 | L43: = | M43: =K43/CO2_C -> 0
D44: Secondary Production | F44: x | G44: =IF(ISNUMBER(INDIRECT($F$2&LEFT(D44,2)&"Factor")),INDIRECT($F$2&LEFT(D44,2)&"Factor"),VLOOKUP(B43,MgEFs,3,FALSE)) -> 0.001 | H44: = | I44: =E44*G44 -> 0 | J44: = | K44: =I44*Control!$C$96*CO2_C -> 0 | L44: = | M44: =K44/CO2_C -> 0
D45: Casting | F45: x | G45: =IF(ISNUMBER(INDIRECT($F$2&LEFT(D45,2)&"Factor")),INDIRECT($F$2&LEFT(D45,2)&"Factor"),VLOOKUP(B43,MgEFs,4,FALSE)) -> 0.002139150701 | H45: = | I45: =E45*G45 -> 0 | J45: = | K45: =I45*Control!$C$96*CO2_C -> 0 | L45: = | M45: =K45/CO2_C -> 0
B47: 2000 | D47: Primary Production | F47: x | G47: =IF(ISNUMBER(INDIRECT($F$2&LEFT(D47,2)&"Factor")),INDIRECT($F$2&LEFT(D47,2)&"Factor"),VLOOKUP(B47,MgEFs,2,FALSE)) -> 0.001 | H47: = | I47: =E47*G47 -> 0 | J47: = | K47: =I47*Control!$C$96*CO2_C -> 0 | L47: = | M47: =K47/CO2_C -> 0
D48: Secondary Production | F48: x | G48: =IF(ISNUMBER(INDIRECT($F$2&LEFT(D48,2)&"Factor")),INDIRECT($F$2&LEFT(D48,2)&"Factor"),VLOOKUP(B47,MgEFs,3,FALSE)) -> 0.001 | H48: = | I48: =E48*G48 -> 0 | J48: = | K48: =I48*Control!$C$96*CO2_C -> 0 | L48: = | M48: =K48/CO2_C -> 0
D49: Casting | F49: x | G49: =IF(ISNUMBER(INDIRECT($F$2&LEFT(D49,2)&"Factor")),INDIRECT($F$2&LEFT(D49,2)&"Factor"),VLOOKUP(B47,MgEFs,4,FALSE)) -> 0.00071 | H49: = | I49: =E49*G49 -> 0 | J49: = | K49: =I49*Control!$C$96*CO2_C -> 0 | L49: = | M49: =K49/CO2_C -> 0
B51: 2001 | D51: Primary Production | F51: x | G51: =IF(ISNUMBER(INDIRECT($F$2&LEFT(D51,2)&"Factor")),INDIRECT($F$2&LEFT(D51,2)&"Factor"),VLOOKUP(B51,MgEFs,2,FALSE)) -> 0.001 | H51: = | I51: =E51*G51 -> 0 | J51: = | K51: =I51*Control!$C$96*CO2_C -> 0 | L51: = | M51: =K51/CO2_C -> 0
D52: Secondary Production | F52: x | G52: =IF(ISNUMBER(INDIRECT($F$2&LEFT(D52,2)&"Factor")),INDIRECT($F$2&LEFT(D52,2)&"Factor"),VLOOKUP(B51,MgEFs,3,FALSE)) -> 0.001 | H52: = | I52: =E52*G52 -> 0 | J52: = | K52: =I52*Control!$C$96*CO2_C -> 0 | L52: = | M52: =K52/CO2_C -> 0
D53: Casting | F53: x | G53: =IF(ISNUMBER(INDIRECT($F$2&LEFT(D53,2)&"Factor")),INDIRECT($F$2&LEFT(D53,2)&"Factor"),VLOOKUP(B51,MgEFs,4,FALSE)) -> 0.00073 | H53: = | I53: =E53*G53 -> 0 | J53: = | K53: =I53*Control!$C$96*CO2_C -> 0 | L53: = | M53: =K53/CO2_C -> 0
B55: 2002 | D55: Primary Production | F55: x | G55: =IF(ISNUMBER(INDIRECT($F$2&LEFT(D55,2)&"Factor")),INDIRECT($F$2&LEFT(D55,2)&"Factor"),VLOOKUP(B55,MgEFs,2,FALSE)) -> 0.001 | H55: = | I55: =E55*G55 -> 0 | J55: = | K55: =I55*Control!$C$96*CO2_C -> 0 | L55: = | M55: =K55/CO2_C -> 0
D56: Secondary Production | F56: x | G56: =IF(ISNUMBER(INDIRECT($F$2&LEFT(D56,2)&"Factor")),INDIRECT($F$2&LEFT(D56,2)&"Factor"),VLOOKUP(B55,MgEFs,3,FALSE)) -> 0.001 | H56: = | I56: =E56*G56 -> 0 | J56: = | K56: =I56*Control!$C$96*CO2_C -> 0 | L56: = | M56: =K56/CO2_C -> 0
D57: Casting | F57: x | G57: =IF(ISNUMBER(INDIRECT($F$2&LEFT(D57,2)&"Factor")),INDIRECT($F$2&LEFT(D57,2)&"Factor"),VLOOKUP(B55,MgEFs,4,FALSE)) -> 0.00071 | H57: = | I57: =E57*G57 -> 0 | J57: = | K57: =I57*Control!$C$96*CO2_C -> 0 | L57: = | M57: =K57/CO2_C -> 0
B59: 2003 | D59: Primary Production | F59: x | G59: =IF(ISNUMBER(INDIRECT($F$2&LEFT(D59,2)&"Factor")),INDIRECT($F$2&LEFT(D59,2)&"Factor"),VLOOKUP(B59,MgEFs,2,FALSE)) -> 0.001 | H59: = | I59: =E59*G59 -> 0 | J59: = | K59: =I59*Control!$C$96*CO2_C -> 0 | L59: = | M59: =K59/CO2_C -> 0
D60: Secondary Production | F60: x | G60: =IF(ISNUMBER(INDIRECT($F$2&LEFT(D60,2)&"Factor")),INDIRECT($F$2&LEFT(D60,2)&"Factor"),VLOOKUP(B59,MgEFs,3,FALSE)) -> 0.001 | H60: = | I60: =E60*G60 -> 0 | J60: = | K60: =I60*Control!$C$96*CO2_C -> 0 | L60: = | M60: =K60/CO2_C -> 0
D61: Casting | F61: x | G61: =IF(ISNUMBER(INDIRECT($F$2&LEFT(D61,2)&"Factor")),INDIRECT($F$2&LEFT(D61,2)&"Factor"),VLOOKUP(B59,MgEFs,4,FALSE)) -> 0.00071 | H61: = | I61: =E61*G61 -> 0 | J61: = | K61: =I61*Control!$C$96*CO2_C -> 0 | L61: = | M61: =K61/CO2_C -> 0
B63: 2004 | D63: Primary Production | F63: x | G63: =IF(ISNUMBER(INDIRECT($F$2&LEFT(D63,2)&"Factor")),INDIRECT($F$2&LEFT(D63,2)&"Factor"),VLOOKUP(B63,MgEFs,2,FALSE)) -> 0.001 | H63: = | I63: =E63*G63 -> 0 | J63: = | K63: =I63*Control!$C$96*CO2_C -> 0 | L63: = | M63: =K63/CO2_C -> 0
D64: Secondary Production | F64: x | G64: =IF(ISNUMBER(INDIRECT($F$2&LEFT(D64,2)&"Factor")),INDIRECT($F$2&LEFT(D64,2)&"Factor"),VLOOKUP(B63,MgEFs,3,FALSE)) -> 0.001 | H64: = | I64: =E64*G64 -> 0 | J64: = | K64: =I64*Control!$C$96*CO2_C -> 0 | L64: = | M64: =K64/CO2_C -> 0
D65: Casting | F65: x | G65: =IF(ISNUMBER(INDIRECT($F$2&LEFT(D65,2)&"Factor")),INDIRECT($F$2&LEFT(D65,2)&"Factor"),VLOOKUP(B63,MgEFs,4,FALSE)) -> 0.00071 | H65: = | I65: =E65*G65 -> 0 | J65: = | K65: =I65*Control!$C$96*CO2_C -> 0 | L65: = | M65: =K65/CO2_C -> 0
B67: 2005 | D67: Primary Production | F67: x | G67: =IF(ISNUMBER(INDIRECT($F$2&LEFT(D67,2)&"Factor")),INDIRECT($F$2&LEFT(D67,2)&"Factor"),VLOOKUP(B67,MgEFs,2,FALSE)) -> 0.001 | H67: = | I67: =E67*G67 -> 0 | J67: = | K67: =I67*Control!$C$96*CO2_C -> 0 | L67: = | M67: =K67/CO2_C -> 0
D68: Secondary Production | F68: x | G68: =IF(ISNUMBER(INDIRECT($F$2&LEFT(D68,2)&"Factor")),INDIRECT($F$2&LEFT(D68,2)&"Factor"),VLOOKUP(B67,MgEFs,3,FALSE)) -> 0.001 | H68: = | I68: =E68*G68 -> 0 | J68: = | K68: =I68*Control!$C$96*CO2_C -> 0 | L68: = | M68: =K68/CO2_C -> 0
D69: Casting | F69: x | G69: =IF(ISNUMBER(INDIRECT($F$2&LEFT(D69,2)&"Factor")),INDIRECT($F$2&LEFT(D69,2)&"Factor"),VLOOKUP(B67,MgEFs,4,FALSE)) -> 0.00071 | H69: = | I69: =E69*G69 -> 0 | J69: = | K69: =I69*Control!$C$96*CO2_C -> 0 | L69: = | M69: =K69/CO2_C -> 0
B71: 2006 | D71: Primary Production | F71: x | G71: =IF(ISNUMBER(INDIRECT($F$2&LEFT(D71,2)&"Factor")),INDIRECT($F$2&LEFT(D71,2)&"Factor"),VLOOKUP(B71,MgEFs,2,FALSE)) -> 0.001 | H71: = | I71: =E71*G71 -> 0 | J71: = | K71: =I71*Control!$C$96*CO2_C -> 0 | L71: = | M71: =K71/CO2_C -> 0
D72: Secondary Production | F72: x | G72: =IF(ISNUMBER(INDIRECT($F$2&LEFT(D72,2)&"Factor")),INDIRECT($F$2&LEFT(D72,2)&"Factor"),VLOOKUP(B71,MgEFs,3,FALSE)) -> 0.001 | H72: = | I72: =E72*G72 -> 0 | J72: = | K72: =I72*Control!$C$96*CO2_C -> 0 | L72: = | M72: =K72/CO2_C -> 0
D73: Casting | F73: x | G73: =IF(ISNUMBER(INDIRECT($F$2&LEFT(D73,2)&"Factor")),INDIRECT($F$2&LEFT(D73,2)&"Factor"),VLOOKUP(B71,MgEFs,4,FALSE)) -> 0.00071 | H73: = | I73: =E73*G73 -> 0 | J73: = | K73: =I73*Control!$C$96*CO2_C -> 0 | L73: = | M73: =K73/CO2_C -> 0
B75: 2007 | D75: Primary Production | F75: x | G75: =IF(ISNUMBER(INDIRECT($F$2&LEFT(D75,2)&"Factor")),INDIRECT($F$2&LEFT(D75,2)&"Factor"),VLOOKUP(B75,MgEFs,2,FALSE)) -> 0.001 | H75: = | I75: =E75*G75 -> 0 | J75: = | K75: =I75*Control!$C$96*CO2_C -> 0 | L75: = | M75: =K75/CO2_C -> 0
D76: Secondary Production | F76: x | G76: =IF(ISNUMBER(INDIRECT($F$2&LEFT(D76,2)&"Factor")),INDIRECT($F$2&LEFT(D76,2)&"Factor"),VLOOKUP(B75,MgEFs,3,FALSE)) -> 0.001 | H76: = | I76: =E76*G76 -> 0 | J76: = | K76: =I76*Control!$C$96*CO2_C -> 0 | L76: = | M76: =K76/CO2_C -> 0
D77: Casting | F77: x | G77: =IF(ISNUMBER(INDIRECT($F$2&LEFT(D77,2)&"Factor")),INDIRECT($F$2&LEFT(D77,2)&"Factor"),VLOOKUP(B75,MgEFs,4,FALSE)) -> 0.00071 | H77: = | I77: =E77*G77 -> 0 | J77: = | K77: =I77*Control!$C$96*CO2_C -> 0 | L77: = | M77: =K77/CO2_C -> 0
B79: 2008 | D79: Primary Production | F79: x | G79: =IF(ISNUMBER(INDIRECT($F$2&LEFT(D79,2)&"Factor")),INDIRECT($F$2&LEFT(D79,2)&"Factor"),VLOOKUP(B79,MgEFs,2,FALSE)) -> 0.001 | H79: = | I79: =E79*G79 -> 0 | J79: = | K79: =I79*Control!$C$96*CO2_C -> 0 | L79: = | M79: =K79/CO2_C -> 0
D80: Secondary Production | F80: x | G80: =IF(ISNUMBER(INDIRECT($F$2&LEFT(D80,2)&"Factor")),INDIRECT($F$2&LEFT(D80,2)&"Factor"),VLOOKUP(B79,MgEFs,3,FALSE)) -> 0.001 | H80: = | I80: =E80*G80 -> 0 | J80: = | K80: =I80*Control!$C$96*CO2_C -> 0 | L80: = | M80: =K80/CO2_C -> 0
D81: Casting | F81: x | G81: =IF(ISNUMBER(INDIRECT($F$2&LEFT(D81,2)&"Factor")),INDIRECT($F$2&LEFT(D81,2)&"Factor"),VLOOKUP(B79,MgEFs,4,FALSE)) -> 0.00071 | H81: = | I81: =E81*G81 -> 0 | J81: = | K81: =I81*Control!$C$96*CO2_C -> 0 | L81: = | M81: =K81/CO2_C -> 0
B83: 2009 | D83: Primary Production | F83: x | G83: =IF(ISNUMBER(INDIRECT($F$2&LEFT(D83,2)&"Factor")),INDIRECT($F$2&LEFT(D83,2)&"Factor"),VLOOKUP(B83,MgEFs,2,FALSE)) -> 0.001 | H83: = | I83: =E83*G83 -> 0 | J83: = | K83: =I83*Control!$C$96*CO2_C -> 0 | L83: = | M83: =K83/CO2_C -> 0
D84: Secondary Production | F84: x | G84: =IF(ISNUMBER(INDIRECT($F$2&LEFT(D84,2)&"Factor")),INDIRECT($F$2&LEFT(D84,2)&"Factor"),VLOOKUP(B83,MgEFs,3,FALSE)) -> 0.001 | H84: = | I84: =E84*G84 -> 0 | J84: = | K84: =I84*Control!$C$96*CO2_C -> 0 | L84: = | M84: =K84/CO2_C -> 0
D85: Casting | F85: x | G85: =IF(ISNUMBER(INDIRECT($F$2&LEFT(D85,2)&"Factor")),INDIRECT($F$2&LEFT(D85,2)&"Factor"),VLOOKUP(B83,MgEFs,4,FALSE)) -> 0.00071 | H85: = | I85: =E85*G85 -> 0 | J85: = | K85: =I85*Control!$C$96*CO2_C -> 0 | L85: = | M85: =K85/CO2_C -> 0
B87: 2010 | D87: Primary Production | F87: x | G87: =IF(ISNUMBER(INDIRECT($F$2&LEFT(D87,2)&"Factor")),INDIRECT($F$2&LEFT(D87,2)&"Factor"),VLOOKUP(B87,MgEFs,2,FALSE)) -> 0.001 | H87: = | I87: =E87*G87 -> 0 | J87: = | K87: =I87*Control!$C$96*CO2_C -> 0 | L87: = | M87: =K87/CO2_C -> 0
D88: Secondary Production | F88: x | G88: =IF(ISNUMBER(INDIRECT($F$2&LEFT(D88,2)&"Factor")),INDIRECT($F$2&LEFT(D88,2)&"Factor"),VLOOKUP(B87,MgEFs,3,FALSE)) -> 0.001 | H88: = | I88: =E88*G88 -> 0 | J88: = | K88: =I88*Control!$C$96*CO2_C -> 0 | L88: = | M88: =K88/CO2_C -> 0
D89: Casting | F89: x | G89: =IF(ISNUMBER(INDIRECT($F$2&LEFT(D89,2)&"Factor")),INDIRECT($F$2&LEFT(D89,2)&"Factor"),VLOOKUP(B87,MgEFs,4,FALSE)) -> 0.00071 | H89: = | I89: =E89*G89 -> 0 | J89: = | K89: =I89*Control!$C$96*CO2_C -> 0 | L89: = | M89: =K89/CO2_C -> 0
B91: 2011 | D91: Primary Production | F91: x | G91: =IF(ISNUMBER(INDIRECT($F$2&LEFT(D91,2)&"Factor")),INDIRECT($F$2&LEFT(D91,2)&"Factor"),VLOOKUP(B91,MgEFs,2,FALSE)) -> 0.001 | H91: = | I91: =E91*G91 -> 0 | J91: = | K91: =I91*Control!$C$96*CO2_C -> 0 | L91: = | M91: =K91/CO2_C -> 0
D92: Secondary Production | F92: x | G92: =IF(ISNUMBER(INDIRECT($F$2&LEFT(D92,2)&"Factor")),INDIRECT($F$2&LEFT(D92,2)&"Factor"),VLOOKUP(B91,MgEFs,3,FALSE)) -> 0.001 | H92: = | I92: =E92*G92 -> 0 | J92: = | K92: =I92*Control!$C$96*CO2_C -> 0 | L92: = | M92: =K92/CO2_C -> 0
D93: Casting | F93: x | G93: =IF(ISNUMBER(INDIRECT($F$2&LEFT(D93,2)&"Factor")),INDIRECT($F$2&LEFT(D93,2)&"Factor"),VLOOKUP(B91,MgEFs,4,FALSE)) -> 0.00071 | H93: = | I93: =E93*G93 -> 0 | J93: = | K93: =I93*Control!$C$96*CO2_C -> 0 | L93: = | M93: =K93/CO2_C -> 0
B95: 2012 | D95: Primary Production | F95: x | G95: =IF(ISNUMBER(INDIRECT($F$2&LEFT(D95,2)&"Factor")),INDIRECT($F$2&LEFT(D95,2)&"Factor"),VLOOKUP(B95,MgEFs,2,FALSE)) -> 0.001 | H95: = | I95: =E95*G95 -> 0 | J95: = | K95: =I95*Control!$C$96*CO2_C -> 0 | L95: = | M95: =K95/CO2_C -> 0
D96: Secondary Production | F96: x | G96: =IF(ISNUMBER(INDIRECT($F$2&LEFT(D96,2)&"Factor")),INDIRECT($F$2&LEFT(D96,2)&"Factor"),VLOOKUP(B95,MgEFs,3,FALSE)) -> 0.001 | H96: = | I96: =E96*G96 -> 0 | J96: = | K96: =I96*Control!$C$96*CO2_C -> 0 | L96: = | M96: =K96/CO2_C -> 0
D97: Casting | F97: x | G97: =IF(ISNUMBER(INDIRECT($F$2&LEFT(D97,2)&"Factor")),INDIRECT($F$2&LEFT(D97,2)&"Factor"),VLOOKUP(B95,MgEFs,4,FALSE)) -> 0.00071 | H97: = | I97: =E97*G97 -> 0 | J97: = | K97: =I97*Control!$C$96*CO2_C -> 0 | L97: = | M97: =K97/CO2_C -> 0
B99: 2013 | D99: Primary Production | F99: x | G99: =IF(ISNUMBER(INDIRECT($F$2&LEFT(D99,2)&"Factor")),INDIRECT($F$2&LEFT(D99,2)&"Factor"),VLOOKUP(B99,MgEFs,2,FALSE)) -> 0.001 | H99: = | I99: =E99*G99 -> 0 | J99: = | K99: =I99*Control!$C$96*CO2_C -> 0 | L99: = | M99: =K99/CO2_C -> 0
D100: Secondary Production | F100: x | G100: =IF(ISNUMBER(INDIRECT($F$2&LEFT(D100,2)&"Factor")),INDIRECT($F$2&LEFT(D100,2)&"Factor"),VLOOKUP(B99,MgEFs,3,FALSE)) -> 0.001 | H100: = | I100: =E100*G100 -> 0 | J100: = | K100: =I100*Control!$C$96*CO2_C -> 0 | L100: = | M100: =K100/CO2_C -> 0
D101: Casting | F101: x | G101: =IF(ISNUMBER(INDIRECT($F$2&LEFT(D101,2)&"Factor")),INDIRECT($F$2&LEFT(D101,2)&"Factor"),VLOOKUP(B99,MgEFs,4,FALSE)) -> 0.00071 | H101: = | I101: =E101*G101 -> 0 | J101: = | K101: =I101*Control!$C$96*CO2_C -> 0 | L101: = | M101: =K101/CO2_C -> 0
B103: 2014 | D103: Primary Production | F103: x | G103: =IF(ISNUMBER(INDIRECT($F$2&LEFT(D103,2)&"Factor")),INDIRECT($F$2&LEFT(D103,2)&"Factor"),VLOOKUP(B103,MgEFs,2,FALSE)) -> 0.001 | H103: = | I103: =E103*G103 -> 0 | J103: = | K103: =I103*Control!$C$96*CO2_C -> 0 | L103: = | M103: =K103/CO2_C -> 0
D104: Secondary Production | F104: x | G104: =IF(ISNUMBER(INDIRECT($F$2&LEFT(D104,2)&"Factor")),INDIRECT($F$2&LEFT(D104,2)&"Factor"),VLOOKUP(B103,MgEFs,3,FALSE)) -> 0.001 | H104: = | I104: =E104*G104 -> 0 | J104: = | K104: =I104*Control!$C$96*CO2_C -> 0 | L104: = | M104: =K104/CO2_C -> 0
D105: Casting | F105: x | G105: =IF(ISNUMBER(INDIRECT($F$2&LEFT(D105,2)&"Factor")),INDIRECT($F$2&LEFT(D105,2)&"Factor"),VLOOKUP(B103,MgEFs,4,FALSE)) -> 0.00071 | H105: = | I105: =E105*G105 -> 0 | J105: = | K105: =I105*Control!$C$96*CO2_C -> 0 | L105: = | M105: =K105/CO2_C -> 0
B107: 2015 | D107: Primary Production | F107: x | G107: =IF(ISNUMBER(INDIRECT($F$2&LEFT(D107,2)&"Factor")),INDIRECT($F$2&LEFT(D107,2)&"Factor"),VLOOKUP(B107,MgEFs,2,FALSE)) -> 0.001 | H107: = | I107: =E107*G107 -> 0 | J107: = | K107: =I107*Control!$C$96*CO2_C -> 0 | L107: = | M107: =K107/CO2_C -> 0
D108: Secondary Production | F108: x | G108: =IF(ISNUMBER(INDIRECT($F$2&LEFT(D108,2)&"Factor")),INDIRECT($F$2&LEFT(D108,2)&"Factor"),VLOOKUP(B107,MgEFs,3,FALSE)) -> 0.001 | H108: = | I108: =E108*G108 -> 0 | J108: = | K108: =I108*Control!$C$96*CO2_C -> 0 | L108: = | M108: =K108/CO2_C -> 0
D109: Casting | F109: x | G109: =IF(ISNUMBER(INDIRECT($F$2&LEFT(D109,2)&"Factor")),INDIRECT($F$2&LEFT(D109,2)&"Factor"),VLOOKUP(B107,MgEFs,4,FALSE)) -> 0.00071 | H109: = | I109: =E109*G109 -> 0 | J109: = | K109: =I109*Control!$C$96*CO2_C -> 0 | L109: = | M109: =K109/CO2_C -> 0
B111: 2016 | D111: Primary Production | F111: x | G111: =IF(ISNUMBER(INDIRECT($F$2&LEFT(D111,2)&"Factor")),INDIRECT($F$2&LEFT(D111,2)&"Factor"),VLOOKUP(B111,MgEFs,2,FALSE)) -> 0.001 | H111: = | I111: =E111*G111 -> 0 | J111: = | K111: =I111*Control!$C$96*CO2_C -> 0 | L111: = | M111: =K111/CO2_C -> 0
D112: Secondary Production | F112: x | G112: =IF(ISNUMBER(INDIRECT($F$2&LEFT(D112,2)&"Factor")),INDIRECT($F$2&LEFT(D112,2)&"Factor"),VLOOKUP(B111,MgEFs,3,FALSE)) -> 0.001 | H112: = | I112: =E112*G112 -> 0 | J112: = | K112: =I112*Control!$C$96*CO2_C -> 0 | L112: = | M112: =K112/CO2_C -> 0
D113: Casting | F113: x | G113: =IF(ISNUMBER(INDIRECT($F$2&LEFT(D113,2)&"Factor")),INDIRECT($F$2&LEFT(D113,2)&"Factor"),VLOOKUP(B111,MgEFs,4,FALSE)) -> 0.00071 | H113: = | I113: =E113*G113 -> 0 | J113: = | K113: =I113*Control!$C$96*CO2_C -> 0 | L113: = | M113: =K113/CO2_C -> 0
B115: 2017 | D115: Primary Production | F115: x | G115: =IF(ISNUMBER(INDIRECT($F$2&LEFT(D115,2)&"Factor")),INDIRECT($F$2&LEFT(D115,2)&"Factor"),VLOOKUP(B115,MgEFs,2,FALSE)) -> 0.001 | H115: = | I115: =E115*G115 -> 0 | J115: = | K115: =I115*Control!$C$96*CO2_C -> 0 | L115: = | M115: =K115/CO2_C -> 0
D116: Secondary Production | F116: x | G116: =IF(ISNUMBER(INDIRECT($F$2&LEFT(D116,2)&"Factor")),INDIRECT($F$2&LEFT(D116,2)&"Factor"),VLOOKUP(B115,MgEFs,3,FALSE)) -> 0.001 | H116: = | I116: =E116*G116 -> 0 | J116: = | K116: =I116*Control!$C$96*CO2_C -> 0 | L116: = | M116: =K116/CO2_C -> 0
D117: Casting | F117: x | G117: =IF(ISNUMBER(INDIRECT($F$2&LEFT(D117,2)&"Factor")),INDIRECT($F$2&LEFT(D117,2)&"Factor"),VLOOKUP(B115,MgEFs,4,FALSE)) -> 0.00071 | H117: = | I117: =E117*G117 -> 0 | J117: = | K117: =I117*Control!$C$96*CO2_C -> 0 | L117: = | M117: =K117/CO2_C -> 0
B119: 2018 | D119: Primary Production | F119: x | G119: =IF(ISNUMBER(INDIRECT($F$2&LEFT(D119,2)&"Factor")),INDIRECT($F$2&LEFT(D119,2)&"Factor"),VLOOKUP(B119,MgEFs,2,FALSE)) -> 0.001 | H119: = | I119: =E119*G119 -> 0 | J119: = | K119: =I119*Control!$C$96*CO2_C -> 0 | L119: = | M119: =K119/CO2_C -> 0
D120: Secondary Production | F120: x | G120: =IF(ISNUMBER(INDIRECT($F$2&LEFT(D120,2)&"Factor")),INDIRECT($F$2&LEFT(D120,2)&"Factor"),VLOOKUP(B119,MgEFs,3,FALSE)) -> 0.001 | H120: = | I120: =E120*G120 -> 0 | J120: = | K120: =I120*Control!$C$96*CO2_C -> 0 | L120: = | M120: =K120/CO2_C -> 0
D121: Casting | F121: x | G121: =IF(ISNUMBER(INDIRECT($F$2&LEFT(D121,2)&"Factor")),INDIRECT($F$2&LEFT(D121,2)&"Factor"),VLOOKUP(B119,MgEFs,4,FALSE)) -> 0.00071 | H121: = | I121: =E121*G121 -> 0 | J121: = | K121: =I121*Control!$C$96*CO2_C -> 0 | L121: = | M121: =K121/CO2_C -> 0
B123: 2019 | D123: Primary Production | F123: x | G123: =IF(ISNUMBER(INDIRECT($F$2&LEFT(D123,2)&"Factor")),INDIRECT($F$2&LEFT(D123,2)&"Factor"),VLOOKUP(B123,MgEFs,2,FALSE)) -> 0.001 | H123: = | I123: =E123*G123 -> 0 | J123: = | K123: =I123*Control!$C$96*CO2_C -> 0 | L123: = | M123: =K123/CO2_C -> 0
D124: Secondary Production | F124: x | G124: =IF(ISNUMBER(INDIRECT($F$2&LEFT(D124,2)&"Factor")),INDIRECT($F$2&LEFT(D124,2)&"Factor"),VLOOKUP(B123,MgEFs,3,FALSE)) -> 0.001 | H124: = | I124: =E124*G124 -> 0 | J124: = | K124: =I124*Control!$C$96*CO2_C -> 0 | L124: = | M124: =K124/CO2_C -> 0
D125: Casting | F125: x | G125: =IF(ISNUMBER(INDIRECT($F$2&LEFT(D125,2)&"Factor")),INDIRECT($F$2&LEFT(D125,2)&"Factor"),VLOOKUP(B123,MgEFs,4,FALSE)) -> 0.00071 | H125: = | I125: =E125*G125 -> 0 | J125: = | K125: =I125*Control!$C$96*CO2_C -> 0 | L125: = | M125: =K125/CO2_C -> 0
B127: 2020 | D127: Primary Production | F127: x | G127: =IF(ISNUMBER(INDIRECT($F$2&LEFT(D127,2)&"Factor")),INDIRECT($F$2&LEFT(D127,2)&"Factor"),VLOOKUP(B127,MgEFs,2,FALSE)) -> 0.001 | H127: = | I127: =E127*G127 -> 0 | J127: = | K127: =I127*Control!$C$96*CO2_C -> 0 | L127: = | M127: =K127/CO2_C -> 0
D128: Secondary Production | F128: x | G128: =IF(ISNUMBER(INDIRECT($F$2&LEFT(D128,2)&"Factor")),INDIRECT($F$2&LEFT(D128,2)&"Factor"),VLOOKUP(B127,MgEFs,3,FALSE)) -> 0.001 | H128: = | I128: =E128*G128 -> 0 | J128: = | K128: =I128*Control!$C$96*CO2_C -> 0 | L128: = | M128: =K128/CO2_C -> 0
D129: Casting | F129: x | G129: =IF(ISNUMBER(INDIRECT($F$2&LEFT(D129,2)&"Factor")),INDIRECT($F$2&LEFT(D129,2)&"Factor"),VLOOKUP(B127,MgEFs,4,FALSE)) -> 0.00071 | H129: = | I129: =E129*G129 -> 0 | J129: = | K129: =I129*Control!$C$96*CO2_C -> 0 | L129: = | M129: =K129/CO2_C -> 0

Sheet Summary, MTCE (hidden)
A1: ="16. "&'List Data'!B3&" Emissions Summary (MTCE)" -> 16. Select a State . . . Emissions Summary (MTCE)
B3: =Tracker!B24 -> Emissions were not calculated for the following sources: Cement Manufacture, Lime Manufacture, Limestone and Dolomite Use, Soda Ash, Aluminum Production, Carbon Dioxide, Iron & Steel, Ammonia Production, Urea Consumption, Nitric Acid Production, Adipic Acid Production, ODS Substitutes, Semiconductor Manufacturing, Magnesium Production, Electric Power Transmission and Distribution Systems, HCFC-22 Production, and Aluminum Production, PFCs.
B5: MTCE | C5: 1990 | D5: 1991 | E5: 1992 | F5: 1993 | G5: 1994 | H5: 1995 | I5: 1996 | J5: 1997 | K5: 1998 | L5: 1999 | M5: 2000 | N5: 2001 | O5: 2002 | P5: 2003 | Q5: 2004 | R5: 2005 | S5: 2006 | T5: 2007 | U5: 2008 | V5: 2009 | W5: 2010 | X5: 2011 | Y5: 2012 | Z5: 2013 | AA5: 2014 | AB5: 2015 | AC5: 2016 | AD5: 2017 | AE5: 2018 | AF5: 2019 | AG5: 2020
B6: Carbon Dioxide Emissions | C6: =SUM(C7:C14) -> 0 | D6: 0 | E6: 0 | F6: 0 | G6: 0 | H6: 0 | I6: 0 | J6: 0 | K6: 0 | L6: 0 | M6: 0 | N6: 0 | O6: 0 | P6: 0 | Q6: 0 | R6: 0 | S6: 0 | T6: 0 | U6: 0 | V6: 0 | W6: 0 | X6: 0 | Y6: 0 | Z6: 0 | AA6: 0 | AB6: 0 | AC6: 0 | AD6: 0 | AE6: 0 | AF6: 0 | AG6: 0
B7: Cement Manufacture | C7: =Cement!$M$7 -> 0 | D7: =Cement!$M$9 -> 0 | E7: =Cement!$M$11 -> 0 | F7: =Cement!$M$13 -> 0 | G7: =Cement!$M$15 -> 0 | H7: =Cement!$M$17 -> 0 | I7: =Cement!$M$19 -> 0 | J7: =Cement!$M$21 -> 0 | K7: =Cement!$M$23 -> 0 | L7: =Cement!$M$25 -> 0 | M7: =Cement!$M$27 -> 0 | N7: =Cement!$M$29 -> 0 | O7: =Cement!$M$31 -> 0 | P7: =Cement!$M$33 -> 0 | Q7: =Cement!$M$35 -> 0 | R7: =Cement!$M$37 -> 0 | S7: =Cement!$M$39 -> 0 | T7: =Cement!$M$41 -> 0 | U7: =Cement!$M$43 -> 0 | V7: =Cement!$M$45 -> 0 | W7: =IF('GHGRP Data Input'!C6<>0,'GHGRP Data Input'!C6*CO2_C,Cement!$M$47) -> 0 | X7: =IF('GHGRP Data Input'!D6<>0,'GHGRP Data Input'!D6*CO2_C,Cement!$M$49) -> 0 | Y7: =IF('GHGRP Data Input'!E6<>0,'GHGRP Data Input'!E6*CO2_C,Cement!$M$51) -> 0 | Z7: =IF('GHGRP Data Input'!F6<>0,'GHGRP Data Input'!F6*CO2_C,Cement!$M$53) -> 0 | AA7: =IF('GHGRP Data Input'!G6<>0,'GHGRP Data Input'!G6*CO2_C,Cement!$M$55) -> 0 | AB7: =IF('GHGRP Data Input'!H6<>0,'GHGRP Data Input'!H6*CO2_C,Cement!$M$57) -> 0 | AC7: =IF('GHGRP Data Input'!I6<>0,'GHGRP Data Input'!I6*CO2_C,Cement!$M$59) -> 0 | AD7: =IF('GHGRP Data Input'!J6<>0,'GHGRP Data Input'!J6*CO2_C,Cement!$M$61) -> 0 | AE7: =IF('GHGRP Data Input'!K6<>0,'GHGRP Data Input'!K6*CO2_C,Cement!$M$63) -> 0 | AF7: =IF('GHGRP Data Input'!L6<>0,'GHGRP Data Input'!L6*CO2_C,Cement!$M$65) -> 0 | AG7: =IF('GHGRP Data Input'!M6<>0,'GHGRP Data Input'!M6*CO2_C,Cement!$M$67) -> 0
B8: Lime Manufacture | C8: =Lime!$O$7+Lime!$O$8 -> 0 | D8: =Lime!$O$10+Lime!$O$11 -> 0 | E8: =Lime!$O$13+Lime!$O$14 -> 0 | F8: =Lime!$O$16+Lime!$O$17 -> 0 | G8: =Lime!$O$19+Lime!$O$20 -> 0 | H8: =Lime!$O$22+Lime!$O$23 -> 0 | I8: =Lime!$O$25+Lime!$O$26 -> 0 | J8: =Lime!$O$28+Lime!$O$29 -> 0 | K8: =Lime!$O$31+Lime!$O$32 -> 0 | L8: =Lime!$O$34+Lime!$O$35 -> 0 | M8: =Lime!$O$37+Lime!$O$38 -> 0 | N8: =Lime!$O$40+Lime!$O$41 -> 0 | O8: =Lime!$O$43+Lime!$O$44 -> 0 | P8: =Lime!$O$46+Lime!$O$47 -> 0 | Q8: =Lime!$O$49+Lime!$O$50 -> 0 | R8: =Lime!$O$52+Lime!$O$53 -> 0 | S8: =Lime!$O$55+Lime!$O$56 -> 0 | T8: =Lime!$O$58+Lime!$O$59 -> 0 | U8: =Lime!$O$61+Lime!$O$62 -> 0 | V8: =Lime!$O$64+Lime!$O$65 -> 0 | W8: =IF('GHGRP Data Input'!C7<>0,'GHGRP Data Input'!C7*CO2_C,Lime!$O$67+Lime!$O$68) -> 0 | X8: =IF('GHGRP Data Input'!D7<>0,'GHGRP Data Input'!D7*CO2_C,Lime!$O$70+Lime!$O$71) -> 0 | Y8: =IF('GHGRP Data Input'!E7<>0,'GHGRP Data Input'!E7*CO2_C,Lime!$O$73+Lime!$O$74) -> 0 | Z8: =IF('GHGRP Data Input'!F7<>0,'GHGRP Data Input'!F7*CO2_C,Lime!$O$76+Lime!$O$77) -> 0 | AA8: =IF('GHGRP Data Input'!G7<>0,'GHGRP Data Input'!G7*CO2_C,Lime!$O$79+Lime!$O$80) -> 0 | AB8: =IF('GHGRP Data Input'!H7<>0,'GHGRP Data Input'!H7*CO2_C,Lime!$O$82+Lime!$O$83) -> 0 | AC8: =IF('GHGRP Data Input'!I7<>0,'GHGRP Data Input'!I7*CO2_C,Lime!$O$85+Lime!$O$86) -> 0 | AD8: =IF('GHGRP Data Input'!J7<>0,'GHGRP Data Input'!J7*CO2_C,Lime!$O$88+Lime!$O$89) -> 0 | AE8: =IF('GHGRP Data Input'!K7<>0,'GHGRP Data Input'!K7*CO2_C,Lime!$O$91+Lime!$O$92) -> 0 | AF8: =IF('GHGRP Data Input'!L7<>0,'GHGRP Data Input'!L7*CO2_C,Lime!$O$94+Lime!$O$95) -> 0 | AG8: =IF('GHGRP Data Input'!M7<>0,'GHGRP Data Input'!M7*CO2_C,Lime!$O$97+Lime!$O$98) -> 0
B9: Limestone and Dolomite Use | C9: =SUM(Limestone!I7:I9) -> 0 | D9: =SUM(Limestone!I11:I13) -> 0 | E9: =SUM(Limestone!I15:I17) -> 0 | F9: =SUM(Limestone!I19:I21) -> 0 | G9: =SUM(Limestone!I23:I25) -> 0 | H9: =SUM(Limestone!I27:I29) -> 0 | I9: =SUM(Limestone!I31:I33) -> 0 | J9: =SUM(Limestone!I35:I37) -> 0 | K9: =SUM(Limestone!I39:I41) -> 0 | L9: =SUM(Limestone!I43:I45) -> 0 | M9: =SUM(Limestone!$I$47:$I$49) -> 0 | N9: =SUM(Limestone!$I$51:$I$53) -> 0 | O9: =SUM(Limestone!$I$55:$I$57) -> 0 | P9: =SUM(Limestone!$I$59:$I$61) -> 0 | Q9: =SUM(Limestone!$I$63:$I$65) -> 0 | R9: =SUM(Limestone!$I$67:$I$69) -> 0 | S9: =SUM(Limestone!$I$71:$I$73) -> 0 | T9: =SUM(Limestone!$I$75:$I$77) -> 0 | U9: =SUM(Limestone!$I$79:$I$81) -> 0 | V9: =SUM(Limestone!$I$83:$I$85) -> 0 | W9: =SUM(Limestone!$I$87:$I$89) -> 0 | X9: =SUM(Limestone!$I$91:$I$93) -> 0 | Y9: =SUM(Limestone!$I$95:$I$97) -> 0 | Z9: =SUM(Limestone!$I$99:$I$101) -> 0 | AA9: =SUM(Limestone!$I$103:$I$105) -> 0 | AB9: =SUM(Limestone!$I$107:$I$109) -> 0 | AC9: =SUM(Limestone!$I$111:$I$113) -> 0 | AD9: =SUM(Limestone!$I$115:$I$117) -> 0 | AE9: =SUM(Limestone!$I$119:$I$121) -> 0 | AF9: =SUM(Limestone!$I$123:$I$125) -> 0 | AG9: =SUM(Limestone!$I$127:$I$129) -> 0
B10: Soda Ash | C10: ='Soda Ash'!$I$7+'Soda Ash'!$I$8 -> 0 | D10: ='Soda Ash'!$I$10+'Soda Ash'!$I$11 -> 0 | E10: ='Soda Ash'!$I$13+'Soda Ash'!$I$14 -> 0 | F10: ='Soda Ash'!$I$16+'Soda Ash'!$I$17 -> 0 | G10: ='Soda Ash'!$I$19+'Soda Ash'!$I$20 -> 0 | H10: ='Soda Ash'!$I$22+'Soda Ash'!$I$23 -> 0 | I10: ='Soda Ash'!$I$25+'Soda Ash'!$I$26 -> 0 | J10: ='Soda Ash'!$I$28+'Soda Ash'!$I$29 -> 0 | K10: ='Soda Ash'!$I$31+'Soda Ash'!$I$32 -> 0 | L10: ='Soda Ash'!$I$34+'Soda Ash'!$I$35 -> 0 | M10: ='Soda Ash'!$I$37+'Soda Ash'!$I$38 -> 0 | N10: ='Soda Ash'!$I$40+'Soda Ash'!$I$41 -> 0 | O10: ='Soda Ash'!$I$43+'Soda Ash'!$I$44 -> 0 | P10: ='Soda Ash'!$I$46+'Soda Ash'!$I$47 -> 0 | Q10: ='Soda Ash'!$I$49+'Soda Ash'!$I$50 -> 0 | R10: ='Soda Ash'!$I$52+'Soda Ash'!$I$53 -> 0 | S10: ='Soda Ash'!$I$55+'Soda Ash'!$I$56 -> 0 | T10: ='Soda Ash'!$I$58+'Soda Ash'!$I$59 -> 0 | U10: ='Soda Ash'!$I$61+'Soda Ash'!$I$62 -> 0 | V10: ='Soda Ash'!$I$64+'Soda Ash'!$I$65 -> 0 | W10: =IF('GHGRP Data Input'!C8<>0,'GHGRP Data Input'!C8*CO2_C,'Soda Ash'!$I$67+'Soda Ash'!$I$68) -> 0 | X10: =IF('GHGRP Data Input'!D8<>0,'GHGRP Data Input'!D8*CO2_C,'Soda Ash'!$I$70+'Soda Ash'!$I$71) -> 0 | Y10: =IF('GHGRP Data Input'!E8<>0,'GHGRP Data Input'!E8*CO2_C,'Soda Ash'!$I$73+'Soda Ash'!$I$74) -> 0 | Z10: =IF('GHGRP Data Input'!F8<>0,'GHGRP Data Input'!F8*CO2_C,'Soda Ash'!$I$76+'Soda Ash'!$I$77) -> 0 | AA10: =IF('GHGRP Data Input'!G8<>0,'GHGRP Data Input'!G8*CO2_C,'Soda Ash'!$I$79+'Soda Ash'!$I$80) -> 0 | AB10: =IF('GHGRP Data Input'!H8<>0,'GHGRP Data Input'!H8*CO2_C,'Soda Ash'!$I$82+'Soda Ash'!$I$83) -> 0 | AC10: =IF('GHGRP Data Input'!I8<>0,'GHGRP Data Input'!I8*CO2_C,'Soda Ash'!$I$85+'Soda Ash'!$I$86) -> 0 | AD10: =IF('GHGRP Data Input'!J8<>0,'GHGRP Data Input'!J8*CO2_C,'Soda Ash'!$I$88+'Soda Ash'!$I$89) -> 0 | AE10: =IF('GHGRP Data Input'!K8<>0,'GHGRP Data Input'!K8*CO2_C,'Soda Ash'!$I$91+'Soda Ash'!$I$92) -> 0 | AF10: =IF('GHGRP Data Input'!L8<>0,'GHGRP Data Input'!L8*CO2_C,'Soda Ash'!$I$94+'Soda Ash'!$I$95) -> 0 | AG10: =IF('GHGRP Data Input'!M8<>0,'GHGRP Data Input'!M8*CO2_C,'Soda Ash'!$I$97+'Soda Ash'!$I$98) -> 0
B11: Aluminum Production, CO2 | C11: =Aluminum!$S$7 -> 0 | D11: =Aluminum!$S$9 -> 0 | E11: =Aluminum!$S$11 -> 0 | F11: =Aluminum!$S$13 -> 0 | G11: =Aluminum!$S$15 -> 0 | H11: =Aluminum!$S$17 -> 0 | I11: =Aluminum!$S$19 -> 0 | J11: =Aluminum!$S$21 -> 0 | K11: =Aluminum!$S$23 -> 0 | L11: =Aluminum!$S$25 -> 0 | M11: =Aluminum!$S$27 -> 0 | N11: =Aluminum!$S$29 -> 0 | O11: =Aluminum!$S$31 -> 0 | P11: =Aluminum!$S$33 -> 0 | Q11: =Aluminum!$S$35 -> 0 | R11: =Aluminum!$S$37 -> 0 | S11: =Aluminum!$S$39 -> 0 | T11: =Aluminum!$S$41 -> 0 | U11: =Aluminum!$S$43 -> 0 | V11: =Aluminum!$S$45 -> 0 | W11: =IF('GHGRP Data Input'!C$13<>0,'GHGRP Data Input'!C$13*CO2_C,Aluminum!$S$47) -> 0 | X11: =IF('GHGRP Data Input'!D$13<>0,'GHGRP Data Input'!D$13*CO2_C,Aluminum!$S$49) -> 0 | Y11: =IF('GHGRP Data Input'!E$13<>0,'GHGRP Data Input'!E$13*CO2_C,Aluminum!$S$51) -> 0 | Z11: =IF('GHGRP Data Input'!F$13<>0,'GHGRP Data Input'!F$13*CO2_C,Aluminum!$S$53) -> 0 | AA11: =IF('GHGRP Data Input'!G$13<>0,'GHGRP Data Input'!G$13*CO2_C,Aluminum!$S$55) -> 0 | AB11: =IF('GHGRP Data Input'!H$13<>0,'GHGRP Data Input'!H$13*CO2_C,Aluminum!$S$57) -> 0 | AC11: =IF('GHGRP Data Input'!I$13<>0,'GHGRP Data Input'!I$13*CO2_C,Aluminum!$S$59) -> 0 | AD11: =IF('GHGRP Data Input'!J$13<>0,'GHGRP Data Input'!J$13*CO2_C,Aluminum!$S$61) -> 0 | AE11: =IF('GHGRP Data Input'!K$13<>0,'GHGRP Data Input'!K$13*CO2_C,Aluminum!$S$63) -> 0 | AF11: =IF('GHGRP Data Input'!L$13<>0,'GHGRP Data Input'!L$13*CO2_C,Aluminum!$S$65) -> 0 | AG11: =IF('GHGRP Data Input'!M$13<>0,'GHGRP Data Input'!M$13*CO2_C,Aluminum!$S$67) -> 0
B12: Iron & Steel Production | C12: ='Iron & Steel'!J11 -> 0 | D12: ='Iron & Steel'!J17 -> 0 | E12: ='Iron & Steel'!J23 -> 0 | F12: ='Iron & Steel'!J29 -> 0 | G12: ='Iron & Steel'!J35 -> 0 | H12: ='Iron & Steel'!J41 -> 0 | I12: ='Iron & Steel'!J47 -> 0 | J12: ='Iron & Steel'!J53 -> 0 | K12: ='Iron & Steel'!J59 -> 0 | L12: ='Iron & Steel'!J65 -> 0 | M12: ='Iron & Steel'!J71 -> 0 | N12: ='Iron & Steel'!J77 -> 0 | O12: ='Iron & Steel'!J83 -> 0 | P12: ='Iron & Steel'!J89 -> 0 | Q12: ='Iron & Steel'!J95 -> 0 | R12: ='Iron & Steel'!J101 -> 0 | S12: ='Iron & Steel'!J107 -> 0 | T12: ='Iron & Steel'!J113 -> 0 | U12: ='Iron & Steel'!J119 -> 0 | V12: ='Iron & Steel'!J125 -> 0 | W12: ='Iron & Steel'!J131 -> 0 | X12: ='Iron & Steel'!J137 -> 0 | Y12: ='Iron & Steel'!J143 -> 0 | Z12: ='Iron & Steel'!J149 -> 0 | AA12: ='Iron & Steel'!J155 -> 0 | AB12: ='Iron & Steel'!J161 -> 0 | AC12: ='Iron & Steel'!J167 -> 0 | AD12: ='Iron & Steel'!J173 -> 0 | AE12: ='Iron & Steel'!J179 -> 0 | AF12: ='Iron & Steel'!J185 -> 0 | AG12: ='Iron & Steel'!J191 -> 0
B13: Ammonia Production | C13: ='Ammonia & Urea'!K7 -> 0 | D13: ='Ammonia & Urea'!K10 -> 0 | E13: ='Ammonia & Urea'!K13 -> 0 | F13: ='Ammonia & Urea'!K16 -> 0 | G13: ='Ammonia & Urea'!K19 -> 0 | H13: ='Ammonia & Urea'!K22 -> 0 | I13: ='Ammonia & Urea'!K25 -> 0 | J13: ='Ammonia & Urea'!K28 -> 0 | K13: ='Ammonia & Urea'!K31 -> 0 | L13: ='Ammonia & Urea'!K34 -> 0 | M13: ='Ammonia & Urea'!K37 -> 0 | N13: ='Ammonia & Urea'!K40 -> 0 | O13: ='Ammonia & Urea'!K43 -> 0 | P13: ='Ammonia & Urea'!K46 -> 0 | Q13: ='Ammonia & Urea'!K49 -> 0 | R13: ='Ammonia & Urea'!K52 -> 0 | S13: ='Ammonia & Urea'!K55 -> 0 | T13: ='Ammonia & Urea'!K58 -> 0 | U13: ='Ammonia & Urea'!K61 -> 0 | V13: ='Ammonia & Urea'!K64 -> 0 | W13: =IF('GHGRP Data Input'!C9<>0,'GHGRP Data Input'!C9*CO2_C,'Ammonia & Urea'!$K$67) -> 0 | X13: =IF('GHGRP Data Input'!D9<>0,'GHGRP Data Input'!D9*CO2_C,'Ammonia & Urea'!$K$70) -> 0 | Y13: =IF('GHGRP Data Input'!E9<>0,'GHGRP Data Input'!E9*CO2_C,'Ammonia & Urea'!$K$73) -> 0 | Z13: =IF('GHGRP Data Input'!F9<>0,'GHGRP Data Input'!F9*CO2_C,'Ammonia & Urea'!$K$76) -> 0 | AA13: =IF('GHGRP Data Input'!G9<>0,'GHGRP Data Input'!G9*CO2_C,'Ammonia & Urea'!$K$79) -> 0 | AB13: =IF('GHGRP Data Input'!H9<>0,'GHGRP Data Input'!H9*CO2_C,'Ammonia & Urea'!$K$82) -> 0 | AC13: =IF('GHGRP Data Input'!I9<>0,'GHGRP Data Input'!I9*CO2_C,'Ammonia & Urea'!$K$85) -> 0 | AD13: =IF('GHGRP Data Input'!J9<>0,'GHGRP Data Input'!J9*CO2_C,'Ammonia & Urea'!$K$88) -> 0 | AE13: =IF('GHGRP Data Input'!K9<>0,'GHGRP Data Input'!K9*CO2_C,'Ammonia & Urea'!$K$91) -> 0 | AF13: =IF('GHGRP Data Input'!L9<>0,'GHGRP Data Input'!L9*CO2_C,'Ammonia & Urea'!$K$94) -> 0 | AG13: =IF('GHGRP Data Input'!M9<>0,'GHGRP Data Input'!M9*CO2_C,'Ammonia & Urea'!$K$97) -> 0
B14: Urea Consumption | C14: ='Ammonia & Urea'!K8 -> 0 | D14: ='Ammonia & Urea'!K11 -> 0 | E14: ='Ammonia & Urea'!K14 -> 0 | F14: ='Ammonia & Urea'!K17 -> 0 | G14: ='Ammonia & Urea'!K20 -> 0 | H14: ='Ammonia & Urea'!K23 -> 0 | I14: ='Ammonia & Urea'!K26 -> 0 | J14: ='Ammonia & Urea'!K29 -> 0 | K14: ='Ammonia & Urea'!K32 -> 0 | L14: ='Ammonia & Urea'!K35 -> 0 | M14: ='Ammonia & Urea'!K38 -> 0 | N14: ='Ammonia & Urea'!K41 -> 0 | O14: ='Ammonia & Urea'!K44 -> 0 | P14: ='Ammonia & Urea'!K47 -> 0 | Q14: ='Ammonia & Urea'!K50 -> 0 | R14: ='Ammonia & Urea'!K53 -> 0 | S14: ='Ammonia & Urea'!K56 -> 0 | T14: ='Ammonia & Urea'!K59 -> 0 | U14: ='Ammonia & Urea'!K62 -> 0 | V14: ='Ammonia & Urea'!K65 -> 0 | W14: ='Ammonia & Urea'!K68 -> 0 | X14: ='Ammonia & Urea'!K71 -> 0 | Y14: ='Ammonia & Urea'!K74 -> 0 | Z14: ='Ammonia & Urea'!K77 -> 0 | AA14: ='Ammonia & Urea'!K80 -> 0 | AB14: ='Ammonia & Urea'!K83 -> 0 | AC14: ='Ammonia & Urea'!K86 -> 0 | AD14: ='Ammonia & Urea'!K89 -> 0 | AE14: ='Ammonia & Urea'!K92 -> 0 | AF14: ='Ammonia & Urea'!K95 -> 0 | AG14: ='Ammonia & Urea'!K98 -> 0
B15: Nitrous Oxide Emissions | C15: =SUM(C16:C17) -> 0 | D15: 0 | E15: 0 | F15: 0 | G15: 0 | H15: 0 | I15: 0 | J15: 0 | K15: 0 | L15: 0 | M15: =SUM(M16:M17) -> 0 | N15: 0 | O15: 0 | P15: 0 | Q15: 0 | R15: 0 | S15: 0 | T15: 0 | U15: 0 | V15: 0 | W15: 0 | X15: 0 | Y15: 0 | Z15: 0 | AA15: 0 | AB15: 0 | AC15: 0 | AD15: 0 | AE15: 0 | AF15: 0 | AG15: 0
B16: Nitric Acid Production | C16: =Nitric!$L$7 -> 0 | D16: =Nitric!$L$9 -> 0 | E16: =Nitric!$L$11 -> 0 | F16: =Nitric!$L$13 -> 0 | G16: =Nitric!$L$15 -> 0 | H16: =Nitric!$L$17 -> 0 | I16: =Nitric!$L$19 -> 0 | J16: =Nitric!$L$21 -> 0 | K16: =Nitric!$L$23 -> 0 | L16: =Nitric!$L$25 -> 0 | M16: =Nitric!$L$27 -> 0 | N16: =Nitric!$L$29 -> 0 | O16: =Nitric!$L$31 -> 0 | P16: =Nitric!$L$33 -> 0 | Q16: =Nitric!$L$35 -> 0 | R16: =Nitric!$L$37 -> 0 | S16: =Nitric!$L$39 -> 0 | T16: =Nitric!$L$41 -> 0 | U16: =Nitric!$L$43 -> 0 | V16: =Nitric!$L$45 -> 0 | W16: =IF('GHGRP Data Input'!C10<>0,'GHGRP Data Input'!C10*CO2_C,Nitric!$L$47) -> 0 | X16: =IF('GHGRP Data Input'!D10<>0,'GHGRP Data Input'!D10*CO2_C,Nitric!$L$49) -> 0 | Y16: =IF('GHGRP Data Input'!E10<>0,'GHGRP Data Input'!E10*CO2_C,Nitric!$L$51) -> 0 | Z16: =IF('GHGRP Data Input'!F10<>0,'GHGRP Data Input'!F10*CO2_C,Nitric!$L$53) -> 0 | AA16: =IF('GHGRP Data Input'!G10<>0,'GHGRP Data Input'!G10*CO2_C,Nitric!$L$55) -> 0 | AB16: =IF('GHGRP Data Input'!H10<>0,'GHGRP Data Input'!H10*CO2_C,Nitric!$L$57) -> 0 | AC16: =IF('GHGRP Data Input'!I10<>0,'GHGRP Data Input'!I10*CO2_C,Nitric!$L$59) -> 0 | AD16: =IF('GHGRP Data Input'!J10<>0,'GHGRP Data Input'!J10*CO2_C,Nitric!$L$61) -> 0 | AE16: =IF('GHGRP Data Input'!K10<>0,'GHGRP Data Input'!K10*CO2_C,Nitric!$L$63) -> 0 | AF16: =IF('GHGRP Data Input'!L10<>0,'GHGRP Data Input'!L10*CO2_C,Nitric!$L$65) -> 0 | AG16: =IF('GHGRP Data Input'!M10<>0,'GHGRP Data Input'!M10*CO2_C,Nitric!$L$67) -> 0
B17: Adipic Acid Production | C17: =Adipic!$L$7 -> 0 | D17: =Adipic!$L$9 -> 0 | E17: =Adipic!$L$11 -> 0 | F17: =Adipic!$L$13 -> 0 | G17: =Adipic!$L$15 -> 0 | H17: =Adipic!$L$17 -> 0 | I17: =Adipic!$L$19 -> 0 | J17: =Adipic!$L$21 -> 0 | K17: =Adipic!$L$23 -> 0 | L17: =Adipic!$L$25 -> 0 | M17: =Adipic!$L$27 -> 0 | N17: =Adipic!$L$29 -> 0 | O17: =Adipic!$L$31 -> 0 | P17: =Adipic!$L$33 -> 0 | Q17: =Adipic!$L$35 -> 0 | R17: =Adipic!$L$37 -> 0 | S17: =Adipic!$L$39 -> 0 | T17: =Adipic!$L$41 -> 0 | U17: =Adipic!$L$43 -> 0 | V17: =Adipic!$L$45 -> 0 | W17: =IF('GHGRP Data Input'!C11<>0,'GHGRP Data Input'!C11*CO2_C,Adipic!$L$47) -> 0 | X17: =IF('GHGRP Data Input'!D11<>0,'GHGRP Data Input'!D11*CO2_C,Adipic!$L$49) -> 0 | Y17: =IF('GHGRP Data Input'!E11<>0,'GHGRP Data Input'!E11*CO2_C,Adipic!$L$51) -> 0 | Z17: =IF('GHGRP Data Input'!F11<>0,'GHGRP Data Input'!F11*CO2_C,Adipic!$L$53) -> 0 | AA17: =IF('GHGRP Data Input'!G11<>0,'GHGRP Data Input'!G11*CO2_C,Adipic!$L$55) -> 0 | AB17: =IF('GHGRP Data Input'!H11<>0,'GHGRP Data Input'!H11*CO2_C,Adipic!$L$57) -> 0 | AC17: =IF('GHGRP Data Input'!I11<>0,'GHGRP Data Input'!I11*CO2_C,Adipic!$L$59) -> 0 | AD17: =IF('GHGRP Data Input'!J11<>0,'GHGRP Data Input'!J11*CO2_C,Adipic!$L$61) -> 0 | AE17: =IF('GHGRP Data Input'!K11<>0,'GHGRP Data Input'!K11*CO2_C,Adipic!$L$63) -> 0 | AF17: =IF('GHGRP Data Input'!L11<>0,'GHGRP Data Input'!L11*CO2_C,Adipic!$L$65) -> 0 | AG17: =IF('GHGRP Data Input'!M11<>0,'GHGRP Data Input'!M11*CO2_C,Adipic!$L$67) -> 0
B18: HFC, PFC, and SF6 Emissions | C18: =SUM(C19:C24) ->  | M18: =SUM(M19:M24) -> 
B19: ODS Substitutes | C19: =ODS!$J$7 -> 0 | D19: =ODS!$J$9 -> 0 | E19: =ODS!$J$11 -> 0 | F19: =ODS!$J$13 -> 0 | G19: =ODS!$J$15 -> 0 | H19: =ODS!$J$17 -> 0 | I19: =ODS!$J$19 -> 0 | J19: =ODS!$J$21 -> 0 | K19: =ODS!$J$23 -> 0 | L19: =ODS!$J$25 -> 0 | M19: =ODS!$J$27 -> 0 | N19: =ODS!$J$29 -> 0 | O19: =ODS!$J$31 -> 0 | P19: =ODS!$J$33 -> 0 | Q19: =ODS!$J$35 -> 0 | R19: =ODS!$J$37 -> 0 | S19: =ODS!$J$39 -> 0 | T19: =ODS!$J$41 -> 0 | U19: =ODS!$J$43 -> 0 | V19: =ODS!$J$45 -> 0 | W19: =ODS!$J$47 -> 0 | X19: =ODS!$J$49 -> 0 | Y19: =ODS!$J$51 -> 0 | Z19: =ODS!$J$53 -> 0 | AA19: =ODS!$J$55 -> 0 | AB19: =ODS!$J$57 -> 0 | AC19: =ODS!$J$59 -> 0 | AD19: =ODS!$J$61 -> 0 | AE19: =ODS!$J$63 -> 0 | AF19: =ODS!$J$65 -> 0 | AG19: =ODS!$J$67 -> 0
B20: Semiconductor Manufacturing | C20: =Semiconductor!$J$7 ->  | D20: =Semiconductor!$J$9 ->  | E20: =Semiconductor!$J$11 ->  | F20: =Semiconductor!$J$13 ->  | G20: =Semiconductor!$J$15 ->  | H20: =Semiconductor!$J$17 ->  | I20: =Semiconductor!$J$19 ->  | J20: =Semiconductor!$J$21 ->  | K20: =Semiconductor!$J$23 ->  | L20: =Semiconductor!$J$25 ->  | M20: =Semiconductor!$J$27 ->  | N20: =Semiconductor!$J$29 ->  | O20: =Semiconductor!$J$31 ->  | P20: =Semiconductor!$J$33 ->  | Q20: =Semiconductor!$J$35 ->  | R20: =Semiconductor!$J$37 ->  | S20: =Semiconductor!$J$39 ->  | T20: =Semiconductor!$J$41 ->  | U20: =Semiconductor!$J$43 ->  | V20: =Semiconductor!$J$45 ->  | W20: =Semiconductor!$J$47 ->  | X20: =Semiconductor!$J$49 ->  | Y20: =Semiconductor!$J$51 ->  | Z20: =Semiconductor!$J$53 ->  | AA20: =Semiconductor!$J$55 ->  | AB20: =Semiconductor!$J$57 ->  | AC20: =Semiconductor!$J$59 ->  | AD20: =Semiconductor!$J$61 ->  | AE20: =Semiconductor!$J$63 ->  | AF20: =Semiconductor!$J$65 ->  | AG20: =Semiconductor!$J$67 -> 
B21: Magnesium Production | C21: =SUM(Magnesium!K7:K9) -> 0 | D21: =SUM(Magnesium!K11:K13) -> 0 | E21: =SUM(Magnesium!K15:K17) -> 0 | F21: =SUM(Magnesium!K19:K21) -> 0 | G21: =SUM(Magnesium!K23:K25) -> 0 | H21: =SUM(Magnesium!K27:K29) -> 0 | I21: =SUM(Magnesium!K31:K33) -> 0 | J21: =SUM(Magnesium!K35:K37) -> 0 | K21: =SUM(Magnesium!K39:K41) -> 0 | L21: =SUM(Magnesium!K43:K45) -> 0 | M21: =SUM(Magnesium!K47:K49) -> 0 | N21: =SUM(Magnesium!K51:K53) -> 0 | O21: =SUM(Magnesium!K55:K57) -> 0 | P21: =SUM(Magnesium!K59:K61) -> 0 | Q21: =SUM(Magnesium!K63:K65) -> 0 | R21: =SUM(Magnesium!K67:K69) -> 0 | S21: =SUM(Magnesium!K71:K73) -> 0 | T21: =SUM(Magnesium!K75:K77) -> 0 | U21: =SUM(Magnesium!K79:K81) -> 0 | V21: =SUM(Magnesium!K83:K85) -> 0 | W21: =SUM(Magnesium!K87:K89) -> 0 | X21: =SUM(Magnesium!K91:K93) -> 0 | Y21: =SUM(Magnesium!K95:K97) -> 0 | Z21: =SUM(Magnesium!K99:K101) -> 0 | AA21: =SUM(Magnesium!K103:K105) -> 0 | AB21: =SUM(Magnesium!K107:K109) -> 0 | AC21: =SUM(Magnesium!K111:K113) -> 0 | AD21: =SUM(Magnesium!K115:K117) -> 0 | AE21: =SUM(Magnesium!K119:K121) -> 0 | AF21: =SUM(Magnesium!K123:K125) -> 0 | AG21: =SUM(Magnesium!K127:K129) -> 0
B22: Electric Power Transmission and Distribution Systems | C22: ='Electric Power'!$J$7 -> 0 | D22: ='Electric Power'!$J$9 -> 0 | E22: ='Electric Power'!$J$11 -> 0 | F22: ='Electric Power'!$J$13 -> 0 | G22: ='Electric Power'!$J$15 -> 0 | H22: ='Electric Power'!$J$17 -> 0 | I22: ='Electric Power'!$J$19 -> 0 | J22: ='Electric Power'!$J$21 -> 0 | K22: ='Electric Power'!$J$23 -> 0 | L22: ='Electric Power'!$J$25 -> 0 | M22: ='Electric Power'!$J$27 -> 0 | N22: ='Electric Power'!$J$29 -> 0 | O22: ='Electric Power'!$J$31 -> 0 | P22: ='Electric Power'!$J$33 -> 0 | Q22: ='Electric Power'!$J$35 -> 0 | R22: ='Electric Power'!$J$37 -> 0 | S22: ='Electric Power'!$J$39 -> 0 | T22: ='Electric Power'!$J$41 -> 0 | U22: ='Electric Power'!$J$43 -> 0 | V22: ='Electric Power'!$J$45 -> 0 | W22: ='Electric Power'!$J$47 -> 0 | X22: ='Electric Power'!$J$49 -> 0 | Y22: ='Electric Power'!$J$51 -> 0 | Z22: ='Electric Power'!$J$53 -> 0 | AA22: ='Electric Power'!$J$55 -> 0 | AB22: ='Electric Power'!$J$57 -> 0 | AC22: ='Electric Power'!$J$59 -> 0 | AD22: ='Electric Power'!$J$61 -> 0 | AE22: ='Electric Power'!$J$63 -> 0 | AF22: ='Electric Power'!$J$65 -> 0 | AG22: ='Electric Power'!$J$67 -> 0
B23: HCFC-22 Production | C23: ='HCFC-22'!$J$7 -> 0 | D23: ='HCFC-22'!$J$9 -> 0 | E23: ='HCFC-22'!$J$11 -> 0 | F23: ='HCFC-22'!$J$13 -> 0 | G23: ='HCFC-22'!$J$15 -> 0 | H23: ='HCFC-22'!$J$17 -> 0 | I23: ='HCFC-22'!$J$19 -> 0 | J23: ='HCFC-22'!$J$21 -> 0 | K23: ='HCFC-22'!$J$23 -> 0 | L23: ='HCFC-22'!$J$25 -> 0 | M23: ='HCFC-22'!$J$27 -> 0 | N23: ='HCFC-22'!$J$29 -> 0 | O23: ='HCFC-22'!$J$31 -> 0 | P23: ='HCFC-22'!$J$33 -> 0 | Q23: ='HCFC-22'!$J$35 -> 0 | R23: ='HCFC-22'!$J$37 -> 0 | S23: ='HCFC-22'!$J$39 -> 0 | T23: ='HCFC-22'!$J$41 -> 0 | U23: ='HCFC-22'!$J$43 -> 0 | V23: ='HCFC-22'!$J$45 -> 0 | W23: =IF('GHGRP Data Input'!C14<>0,'GHGRP Data Input'!C14*CO2_C,'HCFC-22'!$J$47) -> 0 | X23: =IF('GHGRP Data Input'!D14<>0,'GHGRP Data Input'!D14*CO2_C,'HCFC-22'!$J$49) -> 0 | Y23: =IF('GHGRP Data Input'!E14<>0,'GHGRP Data Input'!E14*CO2_C,'HCFC-22'!$J$51) -> 0 | Z23: =IF('GHGRP Data Input'!F14<>0,'GHGRP Data Input'!F14*CO2_C,'HCFC-22'!$J$53) -> 0 | AA23: =IF('GHGRP Data Input'!G14<>0,'GHGRP Data Input'!G14*CO2_C,'HCFC-22'!$J$55) -> 0 | AB23: =IF('GHGRP Data Input'!H14<>0,'GHGRP Data Input'!H14*CO2_C,'HCFC-22'!$J$57) -> 0 | AC23: =IF('GHGRP Data Input'!I14<>0,'GHGRP Data Input'!I14*CO2_C,'HCFC-22'!$J$59) -> 0 | AD23: =IF('GHGRP Data Input'!J14<>0,'GHGRP Data Input'!J14*CO2_C,'HCFC-22'!$J$61) -> 0 | AE23: =IF('GHGRP Data Input'!K14<>0,'GHGRP Data Input'!K14*CO2_C,'HCFC-22'!$J$63) -> 0 | AF23: =IF('GHGRP Data Input'!L14<>0,'GHGRP Data Input'!L14*CO2_C,'HCFC-22'!$J$65) -> 0 | AG23: =IF('GHGRP Data Input'!M14<>0,'GHGRP Data Input'!M14*CO2_C,'HCFC-22'!$J$67) -> 0
B24: Aluminum Production, PFCs | C24: =Aluminum!$Q$7 -> 0 | D24: =Aluminum!$Q$9 -> 0 | E24: =Aluminum!$Q$11 -> 0 | F24: =Aluminum!$Q$13 -> 0 | G24: =Aluminum!$Q$15 -> 0 | H24: =Aluminum!$Q$17 -> 0 | I24: =Aluminum!$Q$19 -> 0 | J24: =Aluminum!$Q$21 -> 0 | K24: =Aluminum!$Q$23 -> 0 | L24: =Aluminum!$Q$25 -> 0 | M24: =Aluminum!$Q$27 -> 0 | N24: =Aluminum!$Q$29 -> 0 | O24: =Aluminum!$Q$31 -> 0 | P24: =Aluminum!$Q$33 -> 0 | Q24: =Aluminum!$Q$35 -> 0 | R24: =Aluminum!$Q$37 -> 0 | S24: =Aluminum!$Q$39 -> 0 | T24: =Aluminum!$Q$41 -> 0 | U24: =Aluminum!$Q$43 -> 0 | V24: =Aluminum!$Q$45 -> 0 | W24: =IF('GHGRP Data Input'!C12<>0,'GHGRP Data Input'!C12*CO2_C,Aluminum!$Q$47) -> 0 | X24: =IF('GHGRP Data Input'!D12<>0,'GHGRP Data Input'!D12*CO2_C,Aluminum!$Q$49) -> 0 | Y24: =IF('GHGRP Data Input'!E12<>0,'GHGRP Data Input'!E12*CO2_C,Aluminum!$Q$51) -> 0 | Z24: =IF('GHGRP Data Input'!F12<>0,'GHGRP Data Input'!F12*CO2_C,Aluminum!$Q$53) -> 0 | AA24: =IF('GHGRP Data Input'!G12<>0,'GHGRP Data Input'!G12*CO2_C,Aluminum!$Q$55) -> 0 | AB24: =IF('GHGRP Data Input'!H12<>0,'GHGRP Data Input'!H12*CO2_C,Aluminum!$Q$57) -> 0 | AC24: =IF('GHGRP Data Input'!I12<>0,'GHGRP Data Input'!I12*CO2_C,Aluminum!$Q$59) -> 0 | AD24: =IF('GHGRP Data Input'!J12<>0,'GHGRP Data Input'!J12*CO2_C,Aluminum!$Q$61) -> 0 | AE24: =IF('GHGRP Data Input'!K12<>0,'GHGRP Data Input'!K12*CO2_C,Aluminum!$Q$63) -> 0 | AF24: =IF('GHGRP Data Input'!L12<>0,'GHGRP Data Input'!L12*CO2_C,Aluminum!$Q$65) -> 0 | AG24: =IF('GHGRP Data Input'!M12<>0,'GHGRP Data Input'!M12*CO2_C,Aluminum!$Q$67) -> 0
B25: Total Emissions | C25: =SUM(C6,C15,C18) -> 
C27: 1 | D27: =IF(ISERROR(IF(D25=0,0,COLUMN()-2)),0,IF(D25=0,0,COLUMN()-2)) -> 0 | E27: =IF(ISERROR(IF(E25=0,0,COLUMN()-2)),0,IF(E25=0,0,COLUMN()-2)) -> 0 | F27: 0 | G27: 0 | H27: 0 | I27: 0 | J27: 0 | K27: 0 | L27: 0 | M27: 0 | N27: 0 | O27: 0 | P27: 0 | Q27: 0 | R27: 0 | S27: 0 | T27: 0 | U27: 0 | V27: 0 | W27: 0 | X27: 0 | Y27: 0 | Z27: 0 | AA27: 0 | AB27: 0 | AC27: 0 | AD27: 0 | AE27: 0 | AF27: 0 | AG27: 0
C28: =IF(C27=0,0,C5) -> 1990 | D28: 0 | E28: 0 | F28: 0 | G28: 0 | H28: 0 | I28: 0 | J28: 0 | K28: 0 | L28: 0 | M28: 0 | N28: 0 | O28: 0 | P28: 0 | Q28: 0 | R28: 0 | S28: 0 | T28: 0 | U28: 0 | V28: 0 | W28: 0 | X28: 0 | Y28: 0 | Z28: 0 | AA28: 0 | AB28: 0 | AC28: 0 | AD28: 0 | AE28: 0 | AF28: 0 | AG28: 0
C30: ="Emissions by Gas Type, 1990-"&MAX($C$28:$AG$28) -> Emissions by Gas Type, 1990-1990 | R30: ="Emissions by Gas Type, 1990-"&EF!B9 -> Emissions by Gas Type, 1990-2018
C31: ="Carbon Dioxide Emissions, 1990-"&MAX($C$28:$AG$28) -> Carbon Dioxide Emissions, 1990-1990 | R31: ="Carbon Dioxide Emissions, 1990-"&EF!B9 -> Carbon Dioxide Emissions, 1990-2018
C32: ="Nitrous Oxide Emissions, 1990-"&MAX($C$28:$AG$28) -> Nitrous Oxide Emissions, 1990-1990 | R32: ="Nitrous Oxide Emissions, 1990-"&EF!B9 -> Nitrous Oxide Emissions, 1990-2018
C33: ="High GWP Emissions, 1990-"&MAX($C$28:$AG$28) -> High GWP Emissions, 1990-1990 | R33: ="High GWP Emissions, 1990-"&EF!B9 -> High GWP Emissions, 1990-2018

Sheet Summary, MTCO2E
A1: ="16. "&'List Data'!B3&" Emissions Summary (MTCO2E)" -> 16. Select a State . . . Emissions Summary (MTCO2E)
B3: =Tracker!B24 -> Emissions were not calculated for the following sources: Cement Manufacture, Lime Manufacture, Limestone and Dolomite Use, Soda Ash, Aluminum Production, Carbon Dioxide, Iron & Steel, Ammonia Production, Urea Consumption, Nitric Acid Production, Adipic Acid Production, ODS Substitutes, Semiconductor Manufacturing, Magnesium Production, Electric Power Transmission and Distribution Systems, HCFC-22 Production, and Aluminum Production, PFCs.
C5: 1990 | D5: 1991 | E5: 1992 | F5: 1993 | G5: 1994 | H5: 1995 | I5: 1996 | J5: 1997 | K5: 1998 | L5: 1999 | M5: 2000 | N5: 2001 | O5: 2002 | P5: 2003 | Q5: 2004 | R5: 2005 | S5: 2006 | T5: 2007 | U5: 2008 | V5: 2009 | W5: 2010 | X5: 2011 | Y5: 2012 | Z5: 2013 | AA5: 2014 | AB5: 2015 | AC5: 2016 | AD5: 2017 | AE5: 2018 | AF5: 2019 | AG5: 2020
B6: Carbon Dioxide Emissions | C6: ='Summary, MTCE'!C6/CO2_C -> 0 | D6: ='Summary, MTCE'!D6/CO2_C -> 0 | E6: ='Summary, MTCE'!E6/CO2_C -> 0 | F6: ='Summary, MTCE'!F6/CO2_C -> 0 | G6: ='Summary, MTCE'!G6/CO2_C -> 0 | H6: ='Summary, MTCE'!H6/CO2_C -> 0 | I6: ='Summary, MTCE'!I6/CO2_C -> 0 | J6: ='Summary, MTCE'!J6/CO2_C -> 0 | K6: ='Summary, MTCE'!K6/CO2_C -> 0 | L6: ='Summary, MTCE'!L6/CO2_C -> 0 | M6: ='Summary, MTCE'!M6/CO2_C -> 0 | N6: ='Summary, MTCE'!N6/CO2_C -> 0 | O6: ='Summary, MTCE'!O6/CO2_C -> 0 | P6: ='Summary, MTCE'!P6/CO2_C -> 0 | Q6: ='Summary, MTCE'!Q6/CO2_C -> 0 | R6: ='Summary, MTCE'!R6/CO2_C -> 0 | S6: ='Summary, MTCE'!S6/CO2_C -> 0 | T6: ='Summary, MTCE'!T6/CO2_C -> 0 | U6: ='Summary, MTCE'!U6/CO2_C -> 0 | V6: ='Summary, MTCE'!V6/CO2_C -> 0 | W6: ='Summary, MTCE'!W6/CO2_C -> 0 | X6: ='Summary, MTCE'!X6/CO2_C -> 0 | Y6: ='Summary, MTCE'!Y6/CO2_C -> 0 | Z6: ='Summary, MTCE'!Z6/CO2_C -> 0 | AA6: ='Summary, MTCE'!AA6/CO2_C -> 0 | AB6: ='Summary, MTCE'!AB6/CO2_C -> 0 | AC6: ='Summary, MTCE'!AC6/CO2_C -> 0 | AD6: ='Summary, MTCE'!AD6/CO2_C -> 0 | AE6: ='Summary, MTCE'!AE6/CO2_C -> 0 | AF6: ='Summary, MTCE'!AF6/CO2_C -> 0 | AG6: ='Summary, MTCE'!AG6/CO2_C -> 0
B7: Cement Manufacture | C7: ='Summary, MTCE'!C7/CO2_C -> 0 | D7: ='Summary, MTCE'!D7/CO2_C -> 0 | E7: ='Summary, MTCE'!E7/CO2_C -> 0 | F7: ='Summary, MTCE'!F7/CO2_C -> 0 | G7: ='Summary, MTCE'!G7/CO2_C -> 0 | H7: ='Summary, MTCE'!H7/CO2_C -> 0 | I7: ='Summary, MTCE'!I7/CO2_C -> 0 | J7: ='Summary, MTCE'!J7/CO2_C -> 0 | K7: ='Summary, MTCE'!K7/CO2_C -> 0 | L7: ='Summary, MTCE'!L7/CO2_C -> 0 | M7: ='Summary, MTCE'!M7/CO2_C -> 0 | N7: ='Summary, MTCE'!N7/CO2_C -> 0 | O7: ='Summary, MTCE'!O7/CO2_C -> 0 | P7: ='Summary, MTCE'!P7/CO2_C -> 0 | Q7: ='Summary, MTCE'!Q7/CO2_C -> 0 | R7: ='Summary, MTCE'!R7/CO2_C -> 0 | S7: ='Summary, MTCE'!S7/CO2_C -> 0 | T7: ='Summary, MTCE'!T7/CO2_C -> 0 | U7: ='Summary, MTCE'!U7/CO2_C -> 0 | V7: ='Summary, MTCE'!V7/CO2_C -> 0 | W7: ='Summary, MTCE'!W7/CO2_C -> 0 | X7: ='Summary, MTCE'!X7/CO2_C -> 0 | Y7: ='Summary, MTCE'!Y7/CO2_C -> 0 | Z7: ='Summary, MTCE'!Z7/CO2_C -> 0 | AA7: ='Summary, MTCE'!AA7/CO2_C -> 0 | AB7: ='Summary, MTCE'!AB7/CO2_C -> 0 | AC7: ='Summary, MTCE'!AC7/CO2_C -> 0 | AD7: ='Summary, MTCE'!AD7/CO2_C -> 0 | AE7: ='Summary, MTCE'!AE7/CO2_C -> 0 | AF7: ='Summary, MTCE'!AF7/CO2_C -> 0 | AG7: ='Summary, MTCE'!AG7/CO2_C -> 0
B8: Lime Manufacture | C8: ='Summary, MTCE'!C8/CO2_C -> 0 | D8: ='Summary, MTCE'!D8/CO2_C -> 0 | E8: ='Summary, MTCE'!E8/CO2_C -> 0 | F8: ='Summary, MTCE'!F8/CO2_C -> 0 | G8: ='Summary, MTCE'!G8/CO2_C -> 0 | H8: ='Summary, MTCE'!H8/CO2_C -> 0 | I8: ='Summary, MTCE'!I8/CO2_C -> 0 | J8: ='Summary, MTCE'!J8/CO2_C -> 0 | K8: ='Summary, MTCE'!K8/CO2_C -> 0 | L8: ='Summary, MTCE'!L8/CO2_C -> 0 | M8: ='Summary, MTCE'!M8/CO2_C -> 0 | N8: ='Summary, MTCE'!N8/CO2_C -> 0 | O8: ='Summary, MTCE'!O8/CO2_C -> 0 | P8: ='Summary, MTCE'!P8/CO2_C -> 0 | Q8: ='Summary, MTCE'!Q8/CO2_C -> 0 | R8: ='Summary, MTCE'!R8/CO2_C -> 0 | S8: ='Summary, MTCE'!S8/CO2_C -> 0 | T8: ='Summary, MTCE'!T8/CO2_C -> 0 | U8: ='Summary, MTCE'!U8/CO2_C -> 0 | V8: ='Summary, MTCE'!V8/CO2_C -> 0 | W8: ='Summary, MTCE'!W8/CO2_C -> 0 | X8: ='Summary, MTCE'!X8/CO2_C -> 0 | Y8: ='Summary, MTCE'!Y8/CO2_C -> 0 | Z8: ='Summary, MTCE'!Z8/CO2_C -> 0 | AA8: ='Summary, MTCE'!AA8/CO2_C -> 0 | AB8: ='Summary, MTCE'!AB8/CO2_C -> 0 | AC8: ='Summary, MTCE'!AC8/CO2_C -> 0 | AD8: ='Summary, MTCE'!AD8/CO2_C -> 0 | AE8: ='Summary, MTCE'!AE8/CO2_C -> 0 | AF8: ='Summary, MTCE'!AF8/CO2_C -> 0 | AG8: ='Summary, MTCE'!AG8/CO2_C -> 0
B9: Limestone and Dolomite Use | C9: ='Summary, MTCE'!C9/CO2_C -> 0 | D9: ='Summary, MTCE'!D9/CO2_C -> 0 | E9: ='Summary, MTCE'!E9/CO2_C -> 0 | F9: ='Summary, MTCE'!F9/CO2_C -> 0 | G9: ='Summary, MTCE'!G9/CO2_C -> 0 | H9: ='Summary, MTCE'!H9/CO2_C -> 0 | I9: ='Summary, MTCE'!I9/CO2_C -> 0 | J9: ='Summary, MTCE'!J9/CO2_C -> 0 | K9: ='Summary, MTCE'!K9/CO2_C -> 0 | L9: ='Summary, MTCE'!L9/CO2_C -> 0 | M9: ='Summary, MTCE'!M9/CO2_C -> 0 | N9: ='Summary, MTCE'!N9/CO2_C -> 0 | O9: ='Summary, MTCE'!O9/CO2_C -> 0 | P9: ='Summary, MTCE'!P9/CO2_C -> 0 | Q9: ='Summary, MTCE'!Q9/CO2_C -> 0 | R9: ='Summary, MTCE'!R9/CO2_C -> 0 | S9: ='Summary, MTCE'!S9/CO2_C -> 0 | T9: ='Summary, MTCE'!T9/CO2_C -> 0 | U9: ='Summary, MTCE'!U9/CO2_C -> 0 | V9: ='Summary, MTCE'!V9/CO2_C -> 0 | W9: ='Summary, MTCE'!W9/CO2_C -> 0 | X9: ='Summary, MTCE'!X9/CO2_C -> 0 | Y9: ='Summary, MTCE'!Y9/CO2_C -> 0 | Z9: ='Summary, MTCE'!Z9/CO2_C -> 0 | AA9: ='Summary, MTCE'!AA9/CO2_C -> 0 | AB9: ='Summary, MTCE'!AB9/CO2_C -> 0 | AC9: ='Summary, MTCE'!AC9/CO2_C -> 0 | AD9: ='Summary, MTCE'!AD9/CO2_C -> 0 | AE9: ='Summary, MTCE'!AE9/CO2_C -> 0 | AF9: ='Summary, MTCE'!AF9/CO2_C -> 0 | AG9: ='Summary, MTCE'!AG9/CO2_C -> 0
B10: Soda Ash | C10: ='Summary, MTCE'!C10/CO2_C -> 0 | D10: ='Summary, MTCE'!D10/CO2_C -> 0 | E10: ='Summary, MTCE'!E10/CO2_C -> 0 | F10: ='Summary, MTCE'!F10/CO2_C -> 0 | G10: ='Summary, MTCE'!G10/CO2_C -> 0 | H10: ='Summary, MTCE'!H10/CO2_C -> 0 | I10: ='Summary, MTCE'!I10/CO2_C -> 0 | J10: ='Summary, MTCE'!J10/CO2_C -> 0 | K10: ='Summary, MTCE'!K10/CO2_C -> 0 | L10: ='Summary, MTCE'!L10/CO2_C -> 0 | M10: ='Summary, MTCE'!M10/CO2_C -> 0 | N10: ='Summary, MTCE'!N10/CO2_C -> 0 | O10: ='Summary, MTCE'!O10/CO2_C -> 0 | P10: ='Summary, MTCE'!P10/CO2_C -> 0 | Q10: ='Summary, MTCE'!Q10/CO2_C -> 0 | R10: ='Summary, MTCE'!R10/CO2_C -> 0 | S10: ='Summary, MTCE'!S10/CO2_C -> 0 | T10: ='Summary, MTCE'!T10/CO2_C -> 0 | U10: ='Summary, MTCE'!U10/CO2_C -> 0 | V10: ='Summary, MTCE'!V10/CO2_C -> 0 | W10: ='Summary, MTCE'!W10/CO2_C -> 0 | X10: ='Summary, MTCE'!X10/CO2_C -> 0 | Y10: ='Summary, MTCE'!Y10/CO2_C -> 0 | Z10: ='Summary, MTCE'!Z10/CO2_C -> 0 | AA10: ='Summary, MTCE'!AA10/CO2_C -> 0 | AB10: ='Summary, MTCE'!AB10/CO2_C -> 0 | AC10: ='Summary, MTCE'!AC10/CO2_C -> 0 | AD10: ='Summary, MTCE'!AD10/CO2_C -> 0 | AE10: ='Summary, MTCE'!AE10/CO2_C -> 0 | AF10: ='Summary, MTCE'!AF10/CO2_C -> 0 | AG10: ='Summary, MTCE'!AG10/CO2_C -> 0
B11: Aluminum Production, CO2 | C11: ='Summary, MTCE'!C11/CO2_C -> 0 | D11: ='Summary, MTCE'!D11/CO2_C -> 0 | E11: ='Summary, MTCE'!E11/CO2_C -> 0 | F11: ='Summary, MTCE'!F11/CO2_C -> 0 | G11: ='Summary, MTCE'!G11/CO2_C -> 0 | H11: ='Summary, MTCE'!H11/CO2_C -> 0 | I11: ='Summary, MTCE'!I11/CO2_C -> 0 | J11: ='Summary, MTCE'!J11/CO2_C -> 0 | K11: ='Summary, MTCE'!K11/CO2_C -> 0 | L11: ='Summary, MTCE'!L11/CO2_C -> 0 | M11: ='Summary, MTCE'!M11/CO2_C -> 0 | N11: ='Summary, MTCE'!N11/CO2_C -> 0 | O11: ='Summary, MTCE'!O11/CO2_C -> 0 | P11: ='Summary, MTCE'!P11/CO2_C -> 0 | Q11: ='Summary, MTCE'!Q11/CO2_C -> 0 | R11: ='Summary, MTCE'!R11/CO2_C -> 0 | S11: ='Summary, MTCE'!S11/CO2_C -> 0 | T11: ='Summary, MTCE'!T11/CO2_C -> 0 | U11: ='Summary, MTCE'!U11/CO2_C -> 0 | V11: ='Summary, MTCE'!V11/CO2_C -> 0 | W11: ='Summary, MTCE'!W11/CO2_C -> 0 | X11: ='Summary, MTCE'!X11/CO2_C -> 0 | Y11: ='Summary, MTCE'!Y11/CO2_C -> 0 | Z11: ='Summary, MTCE'!Z11/CO2_C -> 0 | AA11: ='Summary, MTCE'!AA11/CO2_C -> 0 | AB11: ='Summary, MTCE'!AB11/CO2_C -> 0 | AC11: ='Summary, MTCE'!AC11/CO2_C -> 0 | AD11: ='Summary, MTCE'!AD11/CO2_C -> 0 | AE11: ='Summary, MTCE'!AE11/CO2_C -> 0 | AF11: ='Summary, MTCE'!AF11/CO2_C -> 0 | AG11: ='Summary, MTCE'!AG11/CO2_C -> 0
B12: Iron & Steel Production | C12: ='Summary, MTCE'!C12/CO2_C -> 0 | D12: ='Summary, MTCE'!D12/CO2_C -> 0 | E12: ='Summary, MTCE'!E12/CO2_C -> 0 | F12: ='Summary, MTCE'!F12/CO2_C -> 0 | G12: ='Summary, MTCE'!G12/CO2_C -> 0 | H12: ='Summary, MTCE'!H12/CO2_C -> 0 | I12: ='Summary, MTCE'!I12/CO2_C -> 0 | J12: ='Summary, MTCE'!J12/CO2_C -> 0 | K12: ='Summary, MTCE'!K12/CO2_C -> 0 | L12: ='Summary, MTCE'!L12/CO2_C -> 0 | M12: ='Summary, MTCE'!M12/CO2_C -> 0 | N12: ='Summary, MTCE'!N12/CO2_C -> 0 | O12: ='Summary, MTCE'!O12/CO2_C -> 0 | P12: ='Summary, MTCE'!P12/CO2_C -> 0 | Q12: ='Summary, MTCE'!Q12/CO2_C -> 0 | R12: ='Summary, MTCE'!R12/CO2_C -> 0 | S12: ='Summary, MTCE'!S12/CO2_C -> 0 | T12: ='Summary, MTCE'!T12/CO2_C -> 0 | U12: ='Summary, MTCE'!U12/CO2_C -> 0 | V12: ='Summary, MTCE'!V12/CO2_C -> 0 | W12: ='Summary, MTCE'!W12/CO2_C -> 0 | X12: ='Summary, MTCE'!X12/CO2_C -> 0 | Y12: ='Summary, MTCE'!Y12/CO2_C -> 0 | Z12: ='Summary, MTCE'!Z12/CO2_C -> 0 | AA12: ='Summary, MTCE'!AA12/CO2_C -> 0 | AB12: ='Summary, MTCE'!AB12/CO2_C -> 0 | AC12: ='Summary, MTCE'!AC12/CO2_C -> 0 | AD12: ='Summary, MTCE'!AD12/CO2_C -> 0 | AE12: ='Summary, MTCE'!AE12/CO2_C -> 0 | AF12: ='Summary, MTCE'!AF12/CO2_C -> 0 | AG12: ='Summary, MTCE'!AG12/CO2_C -> 0
B13: Ammonia Production | C13: ='Summary, MTCE'!C13/CO2_C -> 0 | D13: ='Summary, MTCE'!D13/CO2_C -> 0 | E13: ='Summary, MTCE'!E13/CO2_C -> 0 | F13: ='Summary, MTCE'!F13/CO2_C -> 0 | G13: ='Summary, MTCE'!G13/CO2_C -> 0 | H13: ='Summary, MTCE'!H13/CO2_C -> 0 | I13: ='Summary, MTCE'!I13/CO2_C -> 0 | J13: ='Summary, MTCE'!J13/CO2_C -> 0 | K13: ='Summary, MTCE'!K13/CO2_C -> 0 | L13: ='Summary, MTCE'!L13/CO2_C -> 0 | M13: ='Summary, MTCE'!M13/CO2_C -> 0 | N13: ='Summary, MTCE'!N13/CO2_C -> 0 | O13: ='Summary, MTCE'!O13/CO2_C -> 0 | P13: ='Summary, MTCE'!P13/CO2_C -> 0 | Q13: ='Summary, MTCE'!Q13/CO2_C -> 0 | R13: ='Summary, MTCE'!R13/CO2_C -> 0 | S13: ='Summary, MTCE'!S13/CO2_C -> 0 | T13: ='Summary, MTCE'!T13/CO2_C -> 0 | U13: ='Summary, MTCE'!U13/CO2_C -> 0 | V13: ='Summary, MTCE'!V13/CO2_C -> 0 | W13: ='Summary, MTCE'!W13/CO2_C -> 0 | X13: ='Summary, MTCE'!X13/CO2_C -> 0 | Y13: ='Summary, MTCE'!Y13/CO2_C -> 0 | Z13: ='Summary, MTCE'!Z13/CO2_C -> 0 | AA13: ='Summary, MTCE'!AA13/CO2_C -> 0 | AB13: ='Summary, MTCE'!AB13/CO2_C -> 0 | AC13: ='Summary, MTCE'!AC13/CO2_C -> 0 | AD13: ='Summary, MTCE'!AD13/CO2_C -> 0 | AE13: ='Summary, MTCE'!AE13/CO2_C -> 0 | AF13: ='Summary, MTCE'!AF13/CO2_C -> 0 | AG13: ='Summary, MTCE'!AG13/CO2_C -> 0
B14: Urea Consumption | C14: ='Summary, MTCE'!C14/CO2_C -> 0 | D14: ='Summary, MTCE'!D14/CO2_C -> 0 | E14: ='Summary, MTCE'!E14/CO2_C -> 0 | F14: ='Summary, MTCE'!F14/CO2_C -> 0 | G14: ='Summary, MTCE'!G14/CO2_C -> 0 | H14: ='Summary, MTCE'!H14/CO2_C -> 0 | I14: ='Summary, MTCE'!I14/CO2_C -> 0 | J14: ='Summary, MTCE'!J14/CO2_C -> 0 | K14: ='Summary, MTCE'!K14/CO2_C -> 0 | L14: ='Summary, MTCE'!L14/CO2_C -> 0 | M14: ='Summary, MTCE'!M14/CO2_C -> 0 | N14: ='Summary, MTCE'!N14/CO2_C -> 0 | O14: ='Summary, MTCE'!O14/CO2_C -> 0 | P14: ='Summary, MTCE'!P14/CO2_C -> 0 | Q14: ='Summary, MTCE'!Q14/CO2_C -> 0 | R14: ='Summary, MTCE'!R14/CO2_C -> 0 | S14: ='Summary, MTCE'!S14/CO2_C -> 0 | T14: ='Summary, MTCE'!T14/CO2_C -> 0 | U14: ='Summary, MTCE'!U14/CO2_C -> 0 | V14: ='Summary, MTCE'!V14/CO2_C -> 0 | W14: ='Summary, MTCE'!W14/CO2_C -> 0 | X14: ='Summary, MTCE'!X14/CO2_C -> 0 | Y14: ='Summary, MTCE'!Y14/CO2_C -> 0 | Z14: ='Summary, MTCE'!Z14/CO2_C -> 0 | AA14: ='Summary, MTCE'!AA14/CO2_C -> 0 | AB14: ='Summary, MTCE'!AB14/CO2_C -> 0 | AC14: ='Summary, MTCE'!AC14/CO2_C -> 0 | AD14: ='Summary, MTCE'!AD14/CO2_C -> 0 | AE14: ='Summary, MTCE'!AE14/CO2_C -> 0 | AF14: ='Summary, MTCE'!AF14/CO2_C -> 0 | AG14: ='Summary, MTCE'!AG14/CO2_C -> 0
B15: Nitrous Oxide Emissions | C15: ='Summary, MTCE'!C15/CO2_C -> 0 | D15: ='Summary, MTCE'!D15/CO2_C -> 0 | E15: ='Summary, MTCE'!E15/CO2_C -> 0 | F15: ='Summary, MTCE'!F15/CO2_C -> 0 | G15: ='Summary, MTCE'!G15/CO2_C -> 0 | H15: ='Summary, MTCE'!H15/CO2_C -> 0 | I15: ='Summary, MTCE'!I15/CO2_C -> 0 | J15: ='Summary, MTCE'!J15/CO2_C -> 0 | K15: ='Summary, MTCE'!K15/CO2_C -> 0 | L15: ='Summary, MTCE'!L15/CO2_C -> 0 | M15: ='Summary, MTCE'!M15/CO2_C -> 0 | N15: ='Summary, MTCE'!N15/CO2_C -> 0 | O15: ='Summary, MTCE'!O15/CO2_C -> 0 | P15: ='Summary, MTCE'!P15/CO2_C -> 0 | Q15: ='Summary, MTCE'!Q15/CO2_C -> 0 | R15: ='Summary, MTCE'!R15/CO2_C -> 0 | S15: ='Summary, MTCE'!S15/CO2_C -> 0 | T15: ='Summary, MTCE'!T15/CO2_C -> 0 | U15: ='Summary, MTCE'!U15/CO2_C -> 0 | V15: ='Summary, MTCE'!V15/CO2_C -> 0 | W15: ='Summary, MTCE'!W15/CO2_C -> 0 | X15: ='Summary, MTCE'!X15/CO2_C -> 0 | Y15: ='Summary, MTCE'!Y15/CO2_C -> 0 | Z15: ='Summary, MTCE'!Z15/CO2_C -> 0 | AA15: ='Summary, MTCE'!AA15/CO2_C -> 0 | AB15: ='Summary, MTCE'!AB15/CO2_C -> 0 | AC15: ='Summary, MTCE'!AC15/CO2_C -> 0 | AD15: ='Summary, MTCE'!AD15/CO2_C -> 0 | AE15: ='Summary, MTCE'!AE15/CO2_C -> 0 | AF15: ='Summary, MTCE'!AF15/CO2_C -> 0 | AG15: ='Summary, MTCE'!AG15/CO2_C -> 0
B16: Nitric Acid Production | C16: ='Summary, MTCE'!C16/CO2_C -> 0 | D16: ='Summary, MTCE'!D16/CO2_C -> 0 | E16: ='Summary, MTCE'!E16/CO2_C -> 0 | F16: ='Summary, MTCE'!F16/CO2_C -> 0 | G16: ='Summary, MTCE'!G16/CO2_C -> 0 | H16: ='Summary, MTCE'!H16/CO2_C -> 0 | I16: ='Summary, MTCE'!I16/CO2_C -> 0 | J16: ='Summary, MTCE'!J16/CO2_C -> 0 | K16: ='Summary, MTCE'!K16/CO2_C -> 0 | L16: ='Summary, MTCE'!L16/CO2_C -> 0 | M16: ='Summary, MTCE'!M16/CO2_C -> 0 | N16: ='Summary, MTCE'!N16/CO2_C -> 0 | O16: ='Summary, MTCE'!O16/CO2_C -> 0 | P16: ='Summary, MTCE'!P16/CO2_C -> 0 | Q16: ='Summary, MTCE'!Q16/CO2_C -> 0 | R16: ='Summary, MTCE'!R16/CO2_C -> 0 | S16: ='Summary, MTCE'!S16/CO2_C -> 0 | T16: ='Summary, MTCE'!T16/CO2_C -> 0 | U16: ='Summary, MTCE'!U16/CO2_C -> 0 | V16: ='Summary, MTCE'!V16/CO2_C -> 0 | W16: ='Summary, MTCE'!W16/CO2_C -> 0 | X16: ='Summary, MTCE'!X16/CO2_C -> 0 | Y16: ='Summary, MTCE'!Y16/CO2_C -> 0 | Z16: ='Summary, MTCE'!Z16/CO2_C -> 0 | AA16: ='Summary, MTCE'!AA16/CO2_C -> 0 | AB16: ='Summary, MTCE'!AB16/CO2_C -> 0 | AC16: ='Summary, MTCE'!AC16/CO2_C -> 0 | AD16: ='Summary, MTCE'!AD16/CO2_C -> 0 | AE16: ='Summary, MTCE'!AE16/CO2_C -> 0 | AF16: ='Summary, MTCE'!AF16/CO2_C -> 0 | AG16: ='Summary, MTCE'!AG16/CO2_C -> 0
B17: Adipic Acid Production | C17: ='Summary, MTCE'!C17/CO2_C -> 0 | D17: ='Summary, MTCE'!D17/CO2_C -> 0 | E17: ='Summary, MTCE'!E17/CO2_C -> 0 | F17: ='Summary, MTCE'!F17/CO2_C -> 0 | G17: ='Summary, MTCE'!G17/CO2_C -> 0 | H17: ='Summary, MTCE'!H17/CO2_C -> 0 | I17: ='Summary, MTCE'!I17/CO2_C -> 0 | J17: ='Summary, MTCE'!J17/CO2_C -> 0 | K17: ='Summary, MTCE'!K17/CO2_C -> 0 | L17: ='Summary, MTCE'!L17/CO2_C -> 0 | M17: ='Summary, MTCE'!M17/CO2_C -> 0 | N17: ='Summary, MTCE'!N17/CO2_C -> 0 | O17: ='Summary, MTCE'!O17/CO2_C -> 0 | P17: ='Summary, MTCE'!P17/CO2_C -> 0 | Q17: ='Summary, MTCE'!Q17/CO2_C -> 0 | R17: ='Summary, MTCE'!R17/CO2_C -> 0 | S17: ='Summary, MTCE'!S17/CO2_C -> 0 | T17: ='Summary, MTCE'!T17/CO2_C -> 0 | U17: ='Summary, MTCE'!U17/CO2_C -> 0 | V17: ='Summary, MTCE'!V17/CO2_C -> 0 | W17: ='Summary, MTCE'!W17/CO2_C -> 0 | X17: ='Summary, MTCE'!X17/CO2_C -> 0 | Y17: ='Summary, MTCE'!Y17/CO2_C -> 0 | Z17: ='Summary, MTCE'!Z17/CO2_C -> 0 | AA17: ='Summary, MTCE'!AA17/CO2_C -> 0 | AB17: ='Summary, MTCE'!AB17/CO2_C -> 0 | AC17: ='Summary, MTCE'!AC17/CO2_C -> 0 | AD17: ='Summary, MTCE'!AD17/CO2_C -> 0 | AE17: ='Summary, MTCE'!AE17/CO2_C -> 0 | AF17: ='Summary, MTCE'!AF17/CO2_C -> 0 | AG17: ='Summary, MTCE'!AG17/CO2_C -> 0
B18: HFC, PFC, NF3, and SF6 Emissions | C18: ='Summary, MTCE'!C18/CO2_C ->  | D18: ='Summary, MTCE'!D18/CO2_C ->  | E18: ='Summary, MTCE'!E18/CO2_C ->  | F18: ='Summary, MTCE'!F18/CO2_C ->  | G18: ='Summary, MTCE'!G18/CO2_C ->  | H18: ='Summary, MTCE'!H18/CO2_C ->  | I18: ='Summary, MTCE'!I18/CO2_C ->  | J18: ='Summary, MTCE'!J18/CO2_C ->  | K18: ='Summary, MTCE'!K18/CO2_C ->  | L18: ='Summary, MTCE'!L18/CO2_C ->  | M18: ='Summary, MTCE'!M18/CO2_C ->  | N18: ='Summary, MTCE'!N18/CO2_C ->  | O18: ='Summary, MTCE'!O18/CO2_C ->  | P18: ='Summary, MTCE'!P18/CO2_C ->  | Q18: ='Summary, MTCE'!Q18/CO2_C ->  | R18: ='Summary, MTCE'!R18/CO2_C ->  | S18: ='Summary, MTCE'!S18/CO2_C ->  | T18: ='Summary, MTCE'!T18/CO2_C ->  | U18: ='Summary, MTCE'!U18/CO2_C ->  | V18: ='Summary, MTCE'!V18/CO2_C ->  | W18: ='Summary, MTCE'!W18/CO2_C ->  | X18: ='Summary, MTCE'!X18/CO2_C ->  | Y18: ='Summary, MTCE'!Y18/CO2_C ->  | Z18: ='Summary, MTCE'!Z18/CO2_C ->  | AA18: ='Summary, MTCE'!AA18/CO2_C ->  | AB18: ='Summary, MTCE'!AB18/CO2_C ->  | AC18: ='Summary, MTCE'!AC18/CO2_C ->  | AD18: ='Summary, MTCE'!AD18/CO2_C ->  | AE18: ='Summary, MTCE'!AE18/CO2_C ->  | AF18: ='Summary, MTCE'!AF18/CO2_C ->  | AG18: ='Summary, MTCE'!AG18/CO2_C -> 
B19: ODS Substitutes | C19: ='Summary, MTCE'!C19/CO2_C -> 0 | D19: ='Summary, MTCE'!D19/CO2_C -> 0 | E19: ='Summary, MTCE'!E19/CO2_C -> 0 | F19: ='Summary, MTCE'!F19/CO2_C -> 0 | G19: ='Summary, MTCE'!G19/CO2_C -> 0 | H19: ='Summary, MTCE'!H19/CO2_C -> 0 | I19: ='Summary, MTCE'!I19/CO2_C -> 0 | J19: ='Summary, MTCE'!J19/CO2_C -> 0 | K19: ='Summary, MTCE'!K19/CO2_C -> 0 | L19: ='Summary, MTCE'!L19/CO2_C -> 0 | M19: ='Summary, MTCE'!M19/CO2_C -> 0 | N19: ='Summary, MTCE'!N19/CO2_C -> 0 | O19: ='Summary, MTCE'!O19/CO2_C -> 0 | P19: ='Summary, MTCE'!P19/CO2_C -> 0 | Q19: ='Summary, MTCE'!Q19/CO2_C -> 0 | R19: ='Summary, MTCE'!R19/CO2_C -> 0 | S19: ='Summary, MTCE'!S19/CO2_C -> 0 | T19: ='Summary, MTCE'!T19/CO2_C -> 0 | U19: ='Summary, MTCE'!U19/CO2_C -> 0 | V19: ='Summary, MTCE'!V19/CO2_C -> 0 | W19: ='Summary, MTCE'!W19/CO2_C -> 0 | X19: ='Summary, MTCE'!X19/CO2_C -> 0 | Y19: ='Summary, MTCE'!Y19/CO2_C -> 0 | Z19: ='Summary, MTCE'!Z19/CO2_C -> 0 | AA19: ='Summary, MTCE'!AA19/CO2_C -> 0 | AB19: ='Summary, MTCE'!AB19/CO2_C -> 0 | AC19: ='Summary, MTCE'!AC19/CO2_C -> 0 | AD19: ='Summary, MTCE'!AD19/CO2_C -> 0 | AE19: ='Summary, MTCE'!AE19/CO2_C -> 0 | AF19: ='Summary, MTCE'!AF19/CO2_C -> 0 | AG19: ='Summary, MTCE'!AG19/CO2_C -> 0
B20: Semiconductor Manufacturing | C20: ='Summary, MTCE'!C20/CO2_C ->  | D20: ='Summary, MTCE'!D20/CO2_C ->  | E20: ='Summary, MTCE'!E20/CO2_C ->  | F20: ='Summary, MTCE'!F20/CO2_C ->  | G20: ='Summary, MTCE'!G20/CO2_C ->  | H20: ='Summary, MTCE'!H20/CO2_C ->  | I20: ='Summary, MTCE'!I20/CO2_C ->  | J20: ='Summary, MTCE'!J20/CO2_C ->  | K20: ='Summary, MTCE'!K20/CO2_C ->  | L20: ='Summary, MTCE'!L20/CO2_C ->  | M20: ='Summary, MTCE'!M20/CO2_C ->  | N20: ='Summary, MTCE'!N20/CO2_C ->  | O20: ='Summary, MTCE'!O20/CO2_C ->  | P20: ='Summary, MTCE'!P20/CO2_C ->  | Q20: ='Summary, MTCE'!Q20/CO2_C ->  | R20: ='Summary, MTCE'!R20/CO2_C ->  | S20: ='Summary, MTCE'!S20/CO2_C ->  | T20: ='Summary, MTCE'!T20/CO2_C ->  | U20: ='Summary, MTCE'!U20/CO2_C ->  | V20: ='Summary, MTCE'!V20/CO2_C ->  | W20: ='Summary, MTCE'!W20/CO2_C ->  | X20: ='Summary, MTCE'!X20/CO2_C ->  | Y20: ='Summary, MTCE'!Y20/CO2_C ->  | Z20: ='Summary, MTCE'!Z20/CO2_C ->  | AA20: ='Summary, MTCE'!AA20/CO2_C ->  | AB20: ='Summary, MTCE'!AB20/CO2_C ->  | AC20: ='Summary, MTCE'!AC20/CO2_C ->  | AD20: ='Summary, MTCE'!AD20/CO2_C ->  | AE20: ='Summary, MTCE'!AE20/CO2_C ->  | AF20: ='Summary, MTCE'!AF20/CO2_C ->  | AG20: ='Summary, MTCE'!AG20/CO2_C -> 
B21: Magnesium Production | C21: ='Summary, MTCE'!C21/CO2_C -> 0 | D21: ='Summary, MTCE'!D21/CO2_C -> 0 | E21: ='Summary, MTCE'!E21/CO2_C -> 0 | F21: ='Summary, MTCE'!F21/CO2_C -> 0 | G21: ='Summary, MTCE'!G21/CO2_C -> 0 | H21: ='Summary, MTCE'!H21/CO2_C -> 0 | I21: ='Summary, MTCE'!I21/CO2_C -> 0 | J21: ='Summary, MTCE'!J21/CO2_C -> 0 | K21: ='Summary, MTCE'!K21/CO2_C -> 0 | L21: ='Summary, MTCE'!L21/CO2_C -> 0 | M21: ='Summary, MTCE'!M21/CO2_C -> 0 | N21: ='Summary, MTCE'!N21/CO2_C -> 0 | O21: ='Summary, MTCE'!O21/CO2_C -> 0 | P21: ='Summary, MTCE'!P21/CO2_C -> 0 | Q21: ='Summary, MTCE'!Q21/CO2_C -> 0 | R21: ='Summary, MTCE'!R21/CO2_C -> 0 | S21: ='Summary, MTCE'!S21/CO2_C -> 0 | T21: ='Summary, MTCE'!T21/CO2_C -> 0 | U21: ='Summary, MTCE'!U21/CO2_C -> 0 | V21: ='Summary, MTCE'!V21/CO2_C -> 0 | W21: ='Summary, MTCE'!W21/CO2_C -> 0 | X21: ='Summary, MTCE'!X21/CO2_C -> 0 | Y21: ='Summary, MTCE'!Y21/CO2_C -> 0 | Z21: ='Summary, MTCE'!Z21/CO2_C -> 0 | AA21: ='Summary, MTCE'!AA21/CO2_C -> 0 | AB21: ='Summary, MTCE'!AB21/CO2_C -> 0 | AC21: ='Summary, MTCE'!AC21/CO2_C -> 0 | AD21: ='Summary, MTCE'!AD21/CO2_C -> 0 | AE21: ='Summary, MTCE'!AE21/CO2_C -> 0 | AF21: ='Summary, MTCE'!AF21/CO2_C -> 0 | AG21: ='Summary, MTCE'!AG21/CO2_C -> 0
B22: Electric Power Transmission and Distribution Systems | C22: ='Summary, MTCE'!C22/CO2_C -> 0 | D22: ='Summary, MTCE'!D22/CO2_C -> 0 | E22: ='Summary, MTCE'!E22/CO2_C -> 0 | F22: ='Summary, MTCE'!F22/CO2_C -> 0 | G22: ='Summary, MTCE'!G22/CO2_C -> 0 | H22: ='Summary, MTCE'!H22/CO2_C -> 0 | I22: ='Summary, MTCE'!I22/CO2_C -> 0 | J22: ='Summary, MTCE'!J22/CO2_C -> 0 | K22: ='Summary, MTCE'!K22/CO2_C -> 0 | L22: ='Summary, MTCE'!L22/CO2_C -> 0 | M22: ='Summary, MTCE'!M22/CO2_C -> 0 | N22: ='Summary, MTCE'!N22/CO2_C -> 0 | O22: ='Summary, MTCE'!O22/CO2_C -> 0 | P22: ='Summary, MTCE'!P22/CO2_C -> 0 | Q22: ='Summary, MTCE'!Q22/CO2_C -> 0 | R22: ='Summary, MTCE'!R22/CO2_C -> 0 | S22: ='Summary, MTCE'!S22/CO2_C -> 0 | T22: ='Summary, MTCE'!T22/CO2_C -> 0 | U22: ='Summary, MTCE'!U22/CO2_C -> 0 | V22: ='Summary, MTCE'!V22/CO2_C -> 0 | W22: ='Summary, MTCE'!W22/CO2_C -> 0 | X22: ='Summary, MTCE'!X22/CO2_C -> 0 | Y22: ='Summary, MTCE'!Y22/CO2_C -> 0 | Z22: ='Summary, MTCE'!Z22/CO2_C -> 0 | AA22: ='Summary, MTCE'!AA22/CO2_C -> 0 | AB22: ='Summary, MTCE'!AB22/CO2_C -> 0 | AC22: ='Summary, MTCE'!AC22/CO2_C -> 0 | AD22: ='Summary, MTCE'!AD22/CO2_C -> 0 | AE22: ='Summary, MTCE'!AE22/CO2_C -> 0 | AF22: ='Summary, MTCE'!AF22/CO2_C -> 0 | AG22: ='Summary, MTCE'!AG22/CO2_C -> 0
B23: HCFC-22 Production | C23: ='Summary, MTCE'!C23/CO2_C -> 0 | D23: ='Summary, MTCE'!D23/CO2_C -> 0 | E23: ='Summary, MTCE'!E23/CO2_C -> 0 | F23: ='Summary, MTCE'!F23/CO2_C -> 0 | G23: ='Summary, MTCE'!G23/CO2_C -> 0 | H23: ='Summary, MTCE'!H23/CO2_C -> 0 | I23: ='Summary, MTCE'!I23/CO2_C -> 0 | J23: ='Summary, MTCE'!J23/CO2_C -> 0 | K23: ='Summary, MTCE'!K23/CO2_C -> 0 | L23: ='Summary, MTCE'!L23/CO2_C -> 0 | M23: ='Summary, MTCE'!M23/CO2_C -> 0 | N23: ='Summary, MTCE'!N23/CO2_C -> 0 | O23: ='Summary, MTCE'!O23/CO2_C -> 0 | P23: ='Summary, MTCE'!P23/CO2_C -> 0 | Q23: ='Summary, MTCE'!Q23/CO2_C -> 0 | R23: ='Summary, MTCE'!R23/CO2_C -> 0 | S23: ='Summary, MTCE'!S23/CO2_C -> 0 | T23: ='Summary, MTCE'!T23/CO2_C -> 0 | U23: ='Summary, MTCE'!U23/CO2_C -> 0 | V23: ='Summary, MTCE'!V23/CO2_C -> 0 | W23: ='Summary, MTCE'!W23/CO2_C -> 0 | X23: ='Summary, MTCE'!X23/CO2_C -> 0 | Y23: ='Summary, MTCE'!Y23/CO2_C -> 0 | Z23: ='Summary, MTCE'!Z23/CO2_C -> 0 | AA23: ='Summary, MTCE'!AA23/CO2_C -> 0 | AB23: ='Summary, MTCE'!AB23/CO2_C -> 0 | AC23: ='Summary, MTCE'!AC23/CO2_C -> 0 | AD23: ='Summary, MTCE'!AD23/CO2_C -> 0 | AE23: ='Summary, MTCE'!AE23/CO2_C -> 0 | AF23: ='Summary, MTCE'!AF23/CO2_C -> 0 | AG23: ='Summary, MTCE'!AG23/CO2_C -> 0
B24: Aluminum Production, PFCs | C24: ='Summary, MTCE'!C24/CO2_C -> 0 | D24: ='Summary, MTCE'!D24/CO2_C -> 0 | E24: ='Summary, MTCE'!E24/CO2_C -> 0 | F24: ='Summary, MTCE'!F24/CO2_C -> 0 | G24: ='Summary, MTCE'!G24/CO2_C -> 0 | H24: ='Summary, MTCE'!H24/CO2_C -> 0 | I24: ='Summary, MTCE'!I24/CO2_C -> 0 | J24: ='Summary, MTCE'!J24/CO2_C -> 0 | K24: ='Summary, MTCE'!K24/CO2_C -> 0 | L24: ='Summary, MTCE'!L24/CO2_C -> 0 | M24: ='Summary, MTCE'!M24/CO2_C -> 0 | N24: ='Summary, MTCE'!N24/CO2_C -> 0 | O24: ='Summary, MTCE'!O24/CO2_C -> 0 | P24: ='Summary, MTCE'!P24/CO2_C -> 0 | Q24: ='Summary, MTCE'!Q24/CO2_C -> 0 | R24: ='Summary, MTCE'!R24/CO2_C -> 0 | S24: ='Summary, MTCE'!S24/CO2_C -> 0 | T24: ='Summary, MTCE'!T24/CO2_C -> 0 | U24: ='Summary, MTCE'!U24/CO2_C -> 0 | V24: ='Summary, MTCE'!V24/CO2_C -> 0 | W24: ='Summary, MTCE'!W24/CO2_C -> 0 | X24: ='Summary, MTCE'!X24/CO2_C -> 0 | Y24: ='Summary, MTCE'!Y24/CO2_C -> 0 | Z24: ='Summary, MTCE'!Z24/CO2_C -> 0 | AA24: ='Summary, MTCE'!AA24/CO2_C -> 0 | AB24: ='Summary, MTCE'!AB24/CO2_C -> 0 | AC24: ='Summary, MTCE'!AC24/CO2_C -> 0 | AD24: ='Summary, MTCE'!AD24/CO2_C -> 0 | AE24: ='Summary, MTCE'!AE24/CO2_C -> 0 | AF24: ='Summary, MTCE'!AF24/CO2_C -> 0 | AG24: ='Summary, MTCE'!AG24/CO2_C -> 0
B25: Total Emissions | C25: ='Summary, MTCE'!C25/CO2_C ->  | D25: ='Summary, MTCE'!D25/CO2_C ->  | E25: ='Summary, MTCE'!E25/CO2_C ->  | F25: ='Summary, MTCE'!F25/CO2_C ->  | G25: ='Summary, MTCE'!G25/CO2_C ->  | H25: ='Summary, MTCE'!H25/CO2_C ->  | I25: ='Summary, MTCE'!I25/CO2_C ->  | J25: ='Summary, MTCE'!J25/CO2_C ->  | K25: ='Summary, MTCE'!K25/CO2_C ->  | L25: ='Summary, MTCE'!L25/CO2_C ->  | M25: ='Summary, MTCE'!M25/CO2_C ->  | N25: ='Summary, MTCE'!N25/CO2_C ->  | O25: ='Summary, MTCE'!O25/CO2_C ->  | P25: ='Summary, MTCE'!P25/CO2_C ->  | Q25: ='Summary, MTCE'!Q25/CO2_C ->  | R25: ='Summary, MTCE'!R25/CO2_C ->  | S25: ='Summary, MTCE'!S25/CO2_C ->  | T25: ='Summary, MTCE'!T25/CO2_C ->  | U25: ='Summary, MTCE'!U25/CO2_C ->  | V25: ='Summary, MTCE'!V25/CO2_C ->  | W25: ='Summary, MTCE'!W25/CO2_C ->  | X25: ='Summary, MTCE'!X25/CO2_C ->  | Y25: ='Summary, MTCE'!Y25/CO2_C ->  | Z25: ='Summary, MTCE'!Z25/CO2_C ->  | AA25: ='Summary, MTCE'!AA25/CO2_C ->  | AB25: ='Summary, MTCE'!AB25/CO2_C ->  | AC25: ='Summary, MTCE'!AC25/CO2_C ->  | AD25: ='Summary, MTCE'!AD25/CO2_C ->  | AE25: ='Summary, MTCE'!AE25/CO2_C ->  | AF25: ='Summary, MTCE'!AF25/CO2_C ->  | AG25: ='Summary, MTCE'!AG25/CO2_C -> 
C27: 1 | D27: =IF(ISERROR(IF(D25=0,0,COLUMN()-2)),0,IF(D25=0,0,COLUMN()-2)) -> 0 | E27: =IF(ISERROR(IF(E25=0,0,COLUMN()-2)),0,IF(E25=0,0,COLUMN()-2)) -> 0 | F27: 0 | G27: 0 | H27: 0 | I27: 0 | J27: 0 | K27: 0 | L27: 0 | M27: 0 | N27: 0 | O27: 0 | P27: 0 | Q27: 0 | R27: 0 | S27: 0 | T27: 0 | U27: 0 | V27: 0 | W27: 0 | X27: 0 | Y27: 0 | Z27: =IF(ISERROR(IF(Z25=0,0,COLUMN()-2)),0,IF(Z25=0,0,COLUMN()-2)) -> 0 | AA27: 0 | AB27: 0 | AC27: 0 | AD27: 0 | AE27: 0 | AF27: 0 | AG27: 0
C28: =IF(C27<>0,C5,0) -> 1990 | D28: 0 | E28: 0 | F28: 0 | G28: 0 | H28: 0 | I28: 0 | J28: 0 | K28: 0 | L28: 0 | M28: 0 | N28: 0 | O28: 0 | P28: 0 | Q28: 0 | R28: 0 | S28: 0 | T28: 0 | U28: 0 | V28: 0 | W28: 0 | X28: 0 | Y28: 0 | Z28: 0 | AA28: 0 | AB28: 0 | AC28: 0 | AD28: 0 | AE28: 0 | AF28: 0 | AG28: 0
C30: ="Emissions by Gas Type, 1990-"&MAX($C$28:$AG$28) -> Emissions by Gas Type, 1990-1990 | S30: ="Emissions by Gas Type, 1990-"&EF!B9 -> Emissions by Gas Type, 1990-2018
C31: ="Carbon Dioxide Emissions, 1990-"&MAX($C$28:$AG$28) -> Carbon Dioxide Emissions, 1990-1990 | S31: ="Carbon Dioxide Emissions, 1990-"&EF!B9 -> Carbon Dioxide Emissions, 1990-2018
C32: ="Nitrous Oxide Emissions, 1990-"&MAX($C$28:$AG$28) -> Nitrous Oxide Emissions, 1990-1990 | S32: ="Nitrous Oxide Emissions, 1990-"&EF!B9 -> Nitrous Oxide Emissions, 1990-2018
C33: ="High GWP Emissions, 1990-"&MAX($C$28:$AG$28) -> High GWP Emissions, 1990-1990 | S33: ="High GWP Emissions, 1990-"&EF!B9 -> High GWP Emissions, 1990-2018

Sheet Tracker (hidden)
A1: Sector | B1: Sum | C1: Not included? | D1: Text of missing sector | E1: "and"? | F1: Punctuation | G1: Text used
A2: Cement Manufacture | B2: =SUM('Summary, MTCE'!C7:AG7) -> 0 | C2: =IF(ISERROR(B2),TRUE,IF(B2=0,TRUE,FALSE)) -> TRUE | D2: =IF(C2=TRUE," "&A2,"") -> Cement Manufacture | E2: =IF(AND($C$20=A2,$C$19>1)," and","") ->  | F2: =IF(C2=TRUE,IF($C$20=A2,".",","),"") -> , | G2: =E2&D2&F2 -> Cement Manufacture,
A3: Lime Manufacture | B3: =SUM('Summary, MTCE'!C8:AG8) -> 0 | C3: TRUE | D3: Lime Manufacture | F3: , | G3: Lime Manufacture,
A4: Limestone and Dolomite Use | B4: =SUM('Summary, MTCE'!C9:AG9) -> 0 | C4: TRUE | D4: Limestone and Dolomite Use | F4: , | G4: Limestone and Dolomite Use,
A5: Soda Ash | B5: =SUM('Summary, MTCE'!C10:AG10) -> 0 | C5: TRUE | D5: Soda Ash | F5: , | G5: Soda Ash,
A6: Aluminum Production, Carbon Dioxide | B6: =SUM('Summary, MTCE'!C11:AG11) -> 0 | C6: =IF(ISERROR(B6),TRUE,IF(B6=0,TRUE,FALSE)) -> TRUE | D6: =IF(C6=TRUE," "&A6,"") -> Aluminum Production, Carbon Dioxide | F6: , | G6: =E6&D6&F6 -> Aluminum Production, Carbon Dioxide,
A7: Iron & Steel | B7: =SUM('Summary, MTCE'!C12:AG12) -> 0 | C7: TRUE | D7: Iron & Steel | F7: , | G7: Iron & Steel,
A8: Ammonia Production | B8: =SUM('Summary, MTCE'!C13:AG13) -> 0 | C8: TRUE | D8: Ammonia Production | F8: , | G8: Ammonia Production,
A9: Urea Consumption | B9: =SUM('Summary, MTCE'!C14:AG14) -> 0 | C9: TRUE | D9: Urea Consumption | F9: , | G9: Urea Consumption,
A10: Nitric Acid Production | B10: =SUM('Summary, MTCE'!C16:AG16) -> 0 | C10: TRUE | D10: Nitric Acid Production | F10: , | G10: Nitric Acid Production,
A11: Adipic Acid Production | B11: =SUM('Summary, MTCE'!C17:AG17) -> 0 | C11: TRUE | D11: Adipic Acid Production | F11: , | G11: Adipic Acid Production,
A12: ODS Substitutes | B12: =SUM('Summary, MTCE'!C19:AG19) -> 0 | C12: TRUE | D12: ODS Substitutes | F12: , | G12: ODS Substitutes,
A13: Semiconductor Manufacturing | B13: =SUM('Summary, MTCE'!C20:AG20) ->  | C13: TRUE | D13: Semiconductor Manufacturing | F13: , | G13: Semiconductor Manufacturing,
A14: Magnesium Production | B14: =SUM('Summary, MTCE'!C21:AG21) -> 0 | C14: TRUE | D14: Magnesium Production | F14: , | G14: Magnesium Production,
A15: Electric Power Transmission and Distribution Systems | B15: =SUM('Summary, MTCE'!C22:AG22) -> 0 | C15: TRUE | D15: Electric Power Transmission and Distribution Systems | F15: , | G15: Electric Power Transmission and Distribution Systems,
A16: HCFC-22 Production | B16: =SUM('Summary, MTCE'!C23:AG23) -> 0 | C16: TRUE | D16: HCFC-22 Production | F16: , | G16: HCFC-22 Production,
A17: Aluminum Production, PFCs | B17: =SUM('Summary, MTCE'!C24:AG24) -> 0 | C17: TRUE | D17: Aluminum Production, PFCs | E17: and | F17: . | G17: and Aluminum Production, PFCs.
B19: Count | C19: =COUNTIF(C2:C17,TRUE) -> 16
B20: Last | C20: =IF(C17=TRUE,A17,IF(C16=TRUE,A16,IF(C5=TRUE,A5,IF(C4=TRUE,A4,IF(C3=TRUE,A3,IF(C2=TRUE,A2,)))))) -> Aluminum Production, PFCs
A22: Part A | B22: =IF(C19>1,"Emissions were not calculated for the following sources:","Emissions were not calculated for the following source:") -> Emissions were not calculated for the following sources:
A23: Part B | B23: =G2&G3&G4&G5&G6&G7&G8&G9&G10&G11&G12&G13&G14&G15&G16&G17 -> Cement Manufacture, Lime Manufacture, Limestone and Dolomite Use, Soda Ash, Aluminum Production, Carbon Dioxide, Iron & Steel, Ammonia Production, Urea Consumption, Nitric Acid Production, Adipic Acid Production, ODS Substitutes, Semiconductor Manufacturing, Magnesium Production, Electric Power Transmission and Distribution Systems, HCFC-22 Production, and Aluminum Production, PFCs.
A24: Final | B24: =IF(C19=0,0,B22&B23) -> Emissions were not calculated for the following sources: Cement Manufacture, Lime Manufacture, Limestone and Dolomite Use, Soda Ash, Aluminum Production, Carbon Dioxide, Iron & Steel, Ammonia Production, Urea Consumption, Nitric Acid Production, Adipic Acid Production, ODS Substitutes, Semiconductor Manufacturing, Magnesium Production, Electric Power Transmission and Distribution Systems, HCFC-22 Production, and Aluminum Production, PFCs.

Sheet Uncertainty
A2: Uncertainty Associated With Industrial Processes Emissions Estimates
B3: Excerpted from EIIP Guidance, Chapter 6.

Sheet Data Sources (hidden)
N1: Cement
B6: Recommended Data Sources for Industrial Processes Activity Data
B10: Cement Production
C12: - In-State sources
C13: - U.S. Geological Survey (USGS) in Cement: Annual Report
C14: http://minerals.usgs.gov/minerals/pubs/commodity/cement/
B17: Lime Manufacture
C19: - In-State sources (e.g. the state’s environmental agency)
C20: - U.S. Geological Survey (USGS) in Lime: Minerals Yearbook Annual Report
C21: http://minerals.usgs.gov/minerals/pubs/commodity/lime/
B24: Limestone and Dolomite Use
C26: - In-state sources, for state-specific resources and contacts go to:
C27: http://minerals.usgs.gov/minerals/pubs/state/
C28: - U.S. Geological Survey (USGS) in Crushed Stone: Minerals Yearbook Annual Report
C29: http://minerals.usgs.gov/minerals/pubs/commodity/stone_crushed/
B32: Soda Ash Manufacture and Consumption
C34: - In-state sources
C35: - U.S. Geological Survey (USGS) in Soda Ash: Minerals Yearbook Annual Report (for trona production and soda ash consumption by state)
C36: https://minerals.usgs.gov/minerals/pubs/commodity/soda_ash/index.html
C37: - Bureau of the Census’ Current Industrial Reports:
C38: https://www.census.gov/programs-surveys/current-industrial-reports.html
B41: Nitric Acid Production
C43: - In-state sources (for annual state HNO3 production)
C44: - Directory of Chemical Producers (SRI 2000) for data on state nitric acid capacity
B48: Adipic Acid Production
C50: - In-state sources (e.g. the air-permitting department, adipic acid plants)
C51: - Chemical Market Reporter for state Adipic acid production capacity data
B55: Aluminum Production
C57: - In-state sources
C58: - For Aluminum production capacity
C59: - U.S. Geological Survey (USGS) in Minerals Yearbook: Aluminum Annual Report
C60: http://minerals.usgs.gov/minerals/pubs/commodity/aluminum/
C61: - Bureau of Census’ Current Industrial Reports (Table 6.4-1)
C62: https://www.census.gov/programs-surveys/current-industrial-reports.html
B65: HCFC-22 Production
C67: - In-state manufacturers of HCFC-22
C68: - The Chemical Manufacturers Association (Washington, D.C.)
C69: - Alliance for Responsible CFC Policy (Arlington, VA)
C70: - Grant Thorton Consulting (Washington, D.C.)
B74: Semiconductor Manufacture
C76: - For national emissions of PFC, HFC, NF3, and SF6 (necessary data element)
C77: Inventory of U.S. Greenhouse Gas Emissions and Sinks: 1990-2018 (U.S. EPA 2020)
C78: - Value of Semiconductor Shipments (State and US)
C79: U.S. Census Bureau’s Economic Census, https://www.census.gov/programs-surveys/economic-census.html (for value of semiconductor shipments produced at the state and national levels.) Information is listed by NAICS Code Number. The NAICS Code for “Semiconductor and Related Device Manufacturing” is 334413. National semiconductor emissions from the U.S. Inventory are apportioned to state-level estimates, based on the state's ratio of the national total from the semiconductor data in the U.S. Census.
B83: Electric Power Transmission and Distribution
C85: - Total national emissions of SF6 from electric utility
C86: Inventory of U.S. Greenhouse Gas Emissions and Sinks: 1990-2018 (U.S. EPA 2020)
C87: - State and national electricity consumption
C88: U.S. Department of Energy, Energy Information Administration report, Electric Power Annual. Released October 2019. (Electricity Sales data) Default data apportions national consumption based on the ratio of state electricity sales to national electricity sales.
B92: Magnesium Production and Processing
C94: - In-state sources, for state-specific resources and contacts go to:
C95: - http://minerals.usgs.gov/minerals/
B99: Ammonia Production and Urea Consumption
C101: - In-state manufacturers and vendors of ammonia and urea
C102: Urea Consumption is provided by: AAPFCO (2016) Commercial Fertilizers 2014. Association of American Plant Food Control Officials and The Fertilizer Institute. University of Kentucky, Lexington, KY.
C103: TVA (1991 through 1994) Commercial Fertilizers. Tennessee Valley Authority, Muscle Shoals, AL.
C104: - For state-specific resources and contacts go to:
C105: - https://answers.usgs.gov/
B108: Iron and Steel Production
C110: - In-state manufacturers of iron and steel
C111: - For state-specific resources and contacts go to:
C112: - https://answers.usgs.gov/
B116: Greenhouse Gas Reporting Program Data
C118: - EPA's Greenhouse Gas Reporting Program
C119: - Download Summary 2018 GHG data at:
C120: - https://www.epa.gov/ghgreporting/ghg-reporting-program-data-sets

Sheet Data
F1: Production (Metric Tons)
E2: 1990 | F2: 1991 | G2: 1992 | H2: 1993 | I2: 1994 | J2: 1995 | K2: 1996 | L2: 1997 | M2: 1998 | N2: 1999 | O2: 2000 | P2: 2001 | Q2: 2002 | R2: 2003 | S2: 2004 | T2: 2005 | U2: 2006 | V2: 2007 | W2: 2008 | X2: 2009 | Y2: 2010 | Z2: 2011 | AA2: 2012 | AB2: 2013 | AC2: 2014 | AD2: 2015 | AE2: 2016 | AF2: 2017 | AG2: 2018 | AH2: 2019 | AI2: 2020
D3: Year | E3: 2 | F3: 3 | G3: 4 | H3: 5 | I3: 6 | J3: 7 | K3: 8 | L3: 9 | M3: 10 | N3: 11 | O3: 12 | P3: 13 | Q3: 14 | R3: 15 | S3: 16 | T3: 17 | U3: 18 | V3: 19 | W3: 20 | X3: 21 | Y3: 22 | Z3: 23 | AA3: 24 | AB3: 25 | AC3: 26 | AD3: 27 | AE3: 28 | AF3: 29 | AG3: 30 | AH3: 31 | AI3: 32
A4: AL | B4: Cement | C4: Cl | D4: =A4&" "&B4&" "&C4 -> AL Cement Cl | E4: 3213281.321 | F4: 3148870.543 | G4: 2968338.928 | H4: 3567000 | I4: 3816000 | J4: 3683000 | K4: 3886000 | L4: 4007000 | M4: 4180000 | N4: 3990000 | O4: 4150870 | P4: 4150000 | Q4: 4397000 | R4: 4590000 | S4: 5047994.524 | T4: 4884000 | U4: 5185749.78 | V4: 4898054.201 | W4: =4520.57180106*1000 -> 4520571.801 | X4: =3240.05840112*1000 -> 3240058.401 | Y4: =3185.38780428*1000 -> 3185387.804 | Z4: 1247212.907 | AA4: 1889525.137 | AB4: 1920149.888 | AC4: =$AL$21/3 -> 2198649.635 | AD4: =AR21/3 -> 2167766.336 | AE4: =AV21/3 -> 2176126.65 | AF4: =AZ21/3 -> 2061643.532 | AG4: =BD21/3 -> 2038180.099 | AJ4: Source: USGS Cement MIS Archive, December 2019, Table T4P4. Clinker Production, by District. January-December 2018 (http://minerals.usgs.gov/minerals/pubs/commodity/cement/index.html#myb)
A5: AK | B5: Cement | C5: Cl | D5: =A5&" "&B5&" "&C5 -> AK Cement Cl | E5: 0 | F5: 267924.6424 | G5: 335359.4 | H5: 372500 | I5: 413000 | J5: 400000 | K5: 62000 | L5: 0 | M5: 0 | N5: 0 | O5: 0 | P5: 0 | Q5: 0 | R5: 0 | S5: 2536422.054 | T5: 0 | U5: 0 | V5: 0 | W5: 0 | X5: 0 | Y5: 0 | Z5: 0 | AA5: 0 | AB5: 0 | AC5: 0 | AD5: 0 | AE5: 0 | AF5: 0 | AG5: 0
A6: AZ | B6: Cement | C6: Cl | D6: AZ Cement Cl | E6: 557319.544 | F6: 953460.9453 | G6: 545526.0213 | H6: 788500 | I6: 940000 | J6: 987000 | K6: 1055000 | L6: 1085000 | M6: 1092000 | N6: 1113000 | O6: 1094173 | P6: 1100500 | Q6: 1073500 | R6: 1277000 | S6: 1282890.625 | T6: 1302000 | U6: 1313621.57 | V6: 1249832.857 | W6: =(1980.901043265*1000)/2 -> 990450.5216 | X6: =(1125.157061505*1000)/2 -> 562578.5308 | Y6: =(1205.012928315)/2*1000 -> 602506.4642 | Z6: 602091.427 | AA6: 769891.1685 | AB6: 892238.2199 | AC6: =$AL$25/2 -> 1014997.587 | AD6: =AR25/2 -> 1095361.477 | AE6: =AV25/2 -> 968322.0115 | AF6: =AZ25/2 -> 1142358.196 | AG6: =BD25/2 -> 1286191.924
A7: AR | B7: Cement | C7: Cl | D7: AR Cement Cl | E7: 591036.9228 | F7: 564274.6984 | G7: 593758.5049 | H7: 1177000 | I7: 1186000 | J7: 1250000 | K7: 1253000 | L7: 1262000 | M7: 1251000 | N7: 1231000 | O7: 1259479 | P7: 1261000 | Q7: 1265500 | R7: 1244500 | S7: 1268211.027 | T7: 1314000 | U7: 1287414.356 | V7: 1231749.485 | W7: =(2447.036283075*1000)/2 -> 1223518.142 | X7: =(1774.67884188*1000)/2 -> 887339.4209 | Y7: =(1802.62195425/2)*1000 -> 901310.9771 | Z7: 821710.4829 | AA7: 1028510.108 | AB7: 1021948.438 | AC7: =$AL$22/2 -> 1229523.253 | AD7: =AR22/2 -> 1124202.249 | AE7: =AV22/2 -> 1206933.893 | AF7: =AZ22/2 -> 1088713.172 | AG7: =BD22/2 -> 1186803.457
A8: CA | B8: Cement | C8: Cl | D8: CA Cement Cl | E8: 8874172.185 | F8: 8178354.35 | G8: 7819105.507 | H8: 8024000 | I8: 9123000 | J8: 9227000 | K8: 9543000 | L8: 9824000 | M8: 9964000 | N8: 10645000 | O8: 10621222 | P8: 10148000 | Q8: 11187000 | R8: 11283000 | S8: 11592857.16 | T8: 11466000 | U8: 11169862.28 | V8: 10878756.59 | W8: =SUM(1631.29280952,7942.325749905)*1000 -> 9573618.559 | X8: =6611.752067295*1000 -> 6611752.067 | Y8: =6634.393590525*1000 -> 6634393.591 | Z8: 7192931.973 | AA8: 8401785.015 | AB8: 9264400.923 | AC8: =AL29 -> 9811958.739 | AD8: =AR26 -> 8974391.115 | AE8: =AV26 -> 8930923.346 | AF8: =AZ26 -> 9281657.397 | AG8: =BD26 -> 9513561.098 | AJ8: 2014 States and totals | AK8: Portland and Blended Cement | AM8: Clinker Cement | AP8: 2015 States and totals | AR8: Clinker Cement | AT8: 2016 States and totals | AV8: Clinker Cement | AX8: 2017 States and totals | AZ8: Clinker Cement | BB8: 2018 States and totals | BD8: Clinker Cement
A9: CO | B9: Cement | C9: Cl | D9: CO Cement Cl | E9: 613867.973 | F9: 647509.7523 | G9: 694457.0444 | H9: 848500 | I9: 849000 | J9: 920000 | K9: 914000 | L9: 982000 | M9: 979000 | N9: 998000 | O9: 1070888 | P9: 896500 | Q9: 958000 | R9: 1175000 | S9: 1242896.511 | T9: 1204500 | U9: 1246704.429 | V9: 1097126.406 | W9: =(2548.40241342*1000)/2 -> 1274201.207 | X9: =(1992.493053195*1000)/2 -> 996246.5266 | Y9: =(2162.28814809/2)*1000 -> 1081144.074 | Z9: 1138648.717 | AA9: 1437446.426 | AB9: 1448727.725 | AC9: =$AL$26/2 -> 1593483.153 | AD9: =AR27/2 -> 1486829.949 | AE9: =AV27/2 -> 1362864.025 | AF9: =AZ27/2 -> 1411796.224 | AG9: =BD27/2 -> 1348846.656 | AJ9: Maine and New York | AK9: 1736.411057 | AL9: =AK9*1000 -> 1736411.057 | AM9: 1484.966591 | AN9: =AM9*1000 -> 1484966.591 | AP9: Maine and New York | AR9: 1513393.233 | AT9: Maine and New York | AV9: 1009205.211 | AX9: Maine and New York | AZ9: 1418930.78 | BB9: Maine and New York | BD9: 1789684.589
A10: CT | B10: Cement | C10: Cl | D10: CT Cement Cl | E10: 0 | F10: 0 | G10: 0 | H10: 0 | I10: 0 | J10: 0 | K10: 0 | L10: 0 | M10: 0 | N10: 0 | O10: 0 | P10: 0 | Q10: 0 | R10: 0 | S10: 0 | T10: 0 | U10: 0 | V10: 0 | W10: 0 | X10: 0 | Y10: 0 | Z10: 0 | AA10: 0 | AB10: 0 | AC10: 0 | AD10: 0 | AE10: 0 | AF10: 0 | AG10: 0 | AJ10: Pennsylvania | AK10: 3827.594045 | AL10: =AK10*1000 -> 3827594.045 | AM10: 3440.295903 | AN10: =AM10*1000 -> 3440295.903 | AP10: Pennsylvania | AR10: 3574981.124 | AT10: Pennsylvania | AV10: 3443885.634 | AX10: Pennsylvania | AZ10: 3428675.77 | BB10: Pennsylvania | BD10: 3145527.003
A11: DC | B11: Cement | C11: Cl | D11: =A11&" "&B11&" "&C11 -> DC Cement Cl | E11: 0 | F11: 0 | G11: 0 | H11: 0 | I11: 0 | J11: 0 | K11: 0 | L11: 0 | M11: 0 | N11: 0 | O11: 0 | P11: 0 | Q11: 0 | R11: 0 | S11: 0 | T11: 0 | U11: 0 | V11: 0 | W11: 0 | X11: 0 | Y11: 0 | Z11: 0 | AA11: 0 | AB11: 0 | AC11: 0 | AD11: 0 | AE11: 0 | AF11: 0 | AG11: 0 | AJ11: Illinois | AK11: 1223.345323 | AL11: 1223345.323 | AM11: 1091.566723 | AN11: 1091566.723 | AP11: Illinois | AR11: 1450989.791 | AT11: Illinois | AV11: 1575637.01 | AX11: Illinois | AZ11: 1307989.312 | BB11: Illinois | BD11: 1004740.953
A12: DE | B12: Cement | C12: Cl | D12: DE Cement Cl | E12: 0 | F12: 0 | G12: 0 | H12: 0 | I12: 0 | J12: 0 | K12: 0 | L12: 0 | M12: 0 | N12: 0 | O12: 0 | P12: 0 | Q12: 0 | R12: 0 | S12: 0 | T12: 0 | U12: 0 | V12: 0 | W12: 0 | X12: 0 | Y12: 0 | Z12: 0 | AA12: 0 | AB12: 0 | AC12: 0 | AD12: 0 | AE12: 0 | AF12: 0 | AG12: 0 | AJ12: Indiana | AK12: 2396.797285 | AL12: 2396797.285 | AM12: 2294.152931 | AN12: 2294152.931 | AP12: Indiana | AR12: 2503473.169 | AT12: Indiana | AV12: 1687016 | AX12: Indiana | AZ12: 1662234.168 | BB12: Indiana | BD12: 1600861.742
A13: FL | B13: Cement | C13: Cl | D13: FL Cement Cl | E13: 2302458.496 | F13: 2300644.108 | G13: 2488433.276 | H13: 3052000 | I13: 2826000 | J13: 2787000 | K13: 2957000 | L13: 2874000 | M13: 2952000 | N13: 2990000 | O13: 3471985 | P13: 3589000 | Q13: 3677000 | R13: 3868000 | S13: 4757710.159 | T13: 5285000 | U13: 5629612.721 | V13: 5229118.666 | W13: =4749.08625945*1000 -> 4749086.259 | X13: =2983.92560259*1000 -> 2983925.603 | Y13: =3303.25290822*1000 -> 3303252.908 | Z13: 3029011.79 | AA13: 3785898.915 | AB13: 4679868.044 | AC13: =AL18 -> 4987120.717 | AD13: =AR18 -> 5229543.229 | AE13: =AV18 -> 5532901.357 | AF13: =AZ18 -> 5768629.75 | AG13: =BD18 -> 6165807.137 | AJ13: Michigan | AK13: 3950.655504 | AL13: 3950655.504 | AM13: 2823.530759 | AN13: 2823530.759 | AP13: Michigan | AR13: 3291885.88 | AT13: Michigan | AV13: 3188876.838 | AX13: Michigan | AZ13: 2815502.171 | BB13: Michigan | BD13: 2630698.608
A14: GA | B14: Cement | C14: Cl | D14: GA Cement Cl | E14: 946656.9899 | F14: 839608.0922 | G14: 859112.7642 | H14: 1569500 | I14: 1596000 | J14: 1625000 | K14: 810000 | L14: 816000 | M14: 867000 | N14: 895000 | O14: 981393 | P14: 956333.3333 | Q14: 882333.3333 | R14: 807333.3333 | S14: 806968.2907 | T14: 748333.3333 | U14: 821270.6494 | V14: 778551.9125 | W14: =(4832.5200639*1000)/4 -> 1208130.016 | X14: =(3610.504674315*1000)/4 -> 902626.1686 | Y14: =(4090.019078505/4)*1000 -> 1022504.77 | Z14: 1139125.216 | AA14: 1320023.121 | AB14: 1354258.242 | AC14: =$AL$19/4 -> 1396626.73 | AD14: =AR19/4 -> 1345602.563 | AE14: =AV19/4 -> 1323467.929 | AF14: =AZ19/4 -> 1364312.12 | AG14: =BD19/4 -> 1300772.429 | AJ14: Ohio | AK14: 863.7761978 | AL14: 863776.1978 | AM14: 764.0130633 | AN14: 764013.0633 | AP14: Ohio | AR14: 904566.8641 | AT14: Ohio | AV14: 1687016 | AX14: Ohio | AZ14: 1662234.168 | BB14: Ohio | BD14: 1600861.742
A15: HI | B15: Cement | C15: Cl | D15: HI Cement Cl | E15: 195046.7205 | F15: 201397.0788 | G15: 195046.7205 | H15: 372500 | I15: 413000 | J15: 400000 | K15: 62000 | L15: 0 | M15: 0 | N15: 0 | O15: 0 | P15: 0 | Q15: 0 | R15: 0 | S15: 0 | T15: 0 | U15: 0 | V15: 0 | W15: 0 | X15: 0 | Y15: 0 | Z15: 0 | AA15: 0 | AB15: 0 | AC15: 0 | AD15: 0 | AE15: 0 | AF15: 0 | AG15: 0 | AJ15: Iowa, Nebraska, South Dakota | AK15: 3169.907599 | AL15: 3169907.599 | AM15: 2875.651258 | AN15: 2875651.258 | AP15: Iowa, Nebraska, South Dakota | AR15: 2992293.477 | AT15: Iowa, Nebraska, South Dakota | AV15: 3008572.912 | AX15: Iowa, Nebraska, South Dakota | AZ15: 3161177.758 | BB15: Iowa, Nebraska, South Dakota | BD15: 2791838.251
A16: ID | B16: Cement | C16: Cl | D16: ID Cement Cl | E16: 506516.6773 | F16: 591188.1218 | G16: 520426.986 | H16: 485250 | I16: 517000 | J16: 522000 | K16: 519000 | L16: 556000 | M16: 626000 | N16: 663000 | O16: 694030 | P16: 673750 | Q16: 667500 | R16: 689750 | S16: 694260.6577 | T16: 699250 | U16: 700119.3434 | V16: 680502.8285 | W16: =(2587.46942826*1000)/4 -> 646867.3571 | X16: =(1671.18536271*1000)/4 -> 417796.3407 | Y16: =(1770.401464605/4)*1000 -> 442600.3662 | Z16: 487062.4858 | AA16: 609869.6312 | AB16: 524729.6386 | AC16: =$AL$27/4 -> 587857.2408 | AD16: =AR28/6 -> 611555.3321 | AE16: =AD16 -> 611555.3321 | AF16: =AE16 -> 611555.3321 | AG16: 611555.3321 | AJ16: Kansas | AK16: 2011.930399 | AL16: 2011930.399 | AM16: 1941.863058 | AN16: 1941863.058 | AP16: Kansas | AR16: 1949234.844 | AT16: Kansas | AV16: 2049208.445 | AX16: Kansas | AZ16: 2063121.941 | BB16: Kansas | BD16: 2210164.836
A17: IL | B17: Cement | C17: Cl | D17: IL Cement Cl | E17: 2229882.972 | F17: 2305180.078 | G17: 2414043.364 | H17: 2279000 | I17: 2332000 | J17: 2345000 | K17: 2557000 | L17: 2412000 | M17: 2474000 | N17: 2561000 | O17: 2524895 | P17: 2497000 | Q17: 2550000 | R17: 2572000 | S17: 2654179.073 | T17: 2721000 | U17: 2575204.287 | V17: 2868979.82 | W17: =2404.180863675*1000 -> 2404180.864 | X17: =1310.984836905*1000 -> 1310984.837 | Y17: =1473.525173355*1000 -> 1473525.173 | Z17: 1336961.172 | AA17: 1148517.075 | AB17: 1103518.885 | AC17: =AL11 -> 1223345.323 | AD17: =AR11 -> 1450989.791 | AE17: =AV11 -> 1575637.01 | AF17: =AZ11 -> 1307989.312 | AG17: =BD11 -> 1004740.953 | AJ17: Missouri | AK17: 8782.350937 | AL17: 8782350.937 | AM17: 8055.735668 | AN17: 8055735.668 | AP17: Missouri | AR17: 7928275.269 | AT17: Missouri | AV17: 7707832.035 | AX17: Missouri | AZ17: 8506694.61 | BB17: Missouri | BD17: 8478232.588
A18: IN | B18: Cement | C18: Cl | D18: IN Cement Cl | E18: 2299736.914 | F18: 2220811.031 | G18: 2184523.27 | H18: 2149000 | I18: 2317000 | J18: 2435000 | K18: 2355000 | L18: 2495000 | M18: 2577000 | N18: 2481000 | O18: 2537004 | P18: 2855000 | Q18: 3070000 | R18: 2975000 | S18: 3162927.86 | T18: 3161000 | U18: 3100595.944 | V18: 3082464.037 | W18: =2667.206453835*1000 -> 2667206.454 | X18: =2578.376713005*1000 -> 2578376.713 | Y18: =2326.00238193*1000 -> 2326002.382 | Z18: 2253708.809 | AA18: 2392782.991 | AB18: 2283874.525 | AC18: =AL12 -> 2396797.285 | AD18: =AR12 -> 2503473.169 | AE18: =AV12 -> 1687016 | AF18: =AZ12 -> 1662234.168 | AG18: =BD12 -> 1600861.742 | AJ18: Florida | AK18: 4987.120717 | AL18: 4987120.717 | AM18: 4848.45114 | AN18: 4848451.14 | AP18: Florida | AR18: 5229543.229 | AT18: Florida | AV18: 5532901.357 | AX18: Florida | AZ18: 5768629.75 | BB18: Florida | BD18: 6165807.137
A19: IA | B19: Cement | C19: Cl | D19: IA Cement Cl | E19: 1923251.383 | F19: 2099247.029 | G19: 2130091.627 | H19: 1115666.667 | I19: 1212000 | J19: 1157000 | K19: 1211000 | L19: 1312000 | M19: 1340000 | N19: 1297000 | O19: 1325320 | P19: 1313000 | Q19: 1375666.667 | R19: 1353333.333 | S19: 1282945.056 | T19: 1364333.333 | U19: 1407269.522 | V19: 1396892.535 | W19: =(3676.056048045*1000)/3 -> 1225352.016 | X19: =(2614.139760075*1000)/3 -> 871379.92 | Y19: =(2350.638804975/3)*1000 -> 783546.2683 | Z19: 897811.0574 | AA19: 1046628.406 | AB19: 1058825.811 | AC19: =$AL$15/3 -> 1056635.866 | AD19: =AR15/3 -> 997431.159 | AE19: =AV15/3 -> 1002857.637 | AF19: =AZ15/3 -> 1053725.919 | AG19: =BD15/3 -> 930612.7502 | AJ19: Georgia, Maryland, Virginia, West Virginia | AK19: 5586.506919 | AL19: 5586506.919 | AM19: 5276.881049 | AN19: 5276881.049 | AP19: Georgia, Maryland, Virginia, West Virginia | AR19: 5382410.252 | AT19: Georgia, Maryland, Virginia, West Virginia | AV19: 5293871.717 | AX19: Georgia, Maryland, Virginia, West Virginia | AZ19: 5457248.478 | BB19: Georgia, Maryland, Virginia, West Virginia | BD19: 5203089.714
A20: KS | B20: Cement | C20: Cl | D20: KS Cement Cl | E20: 1529529.166 | F20: 1395264.447 | G20: 0 | H20: 1458000 | I20: 1588000 | J20: 1643000 | K20: 1619000 | L20: 1635000 | M20: 1672000 | N20: 1735000 | O20: 1793058 | P20: 1789000 | Q20: 2373000 | R20: 2203000 | S20: 2607939.905 | T20: 2792000 | U20: 2951001.137 | V20: 2626479.29 | W20: =2305.622470905*1000 -> 2305622.471 | X20: =1682.103334185*1000 -> 1682103.334 | Y20: =1937.294474685*1000 -> 1937294.475 | Z20: 1631349.055 | AA20: 1731670.108 | AB20: 1776063.206 | AC20: =AL16 -> 2011930.399 | AD20: =AR16 -> 1949234.844 | AE20: =AV16 -> 2049208.445 | AF20: =AZ16 -> 2063121.941 | AG20: =BD16 -> 2210164.836 | AJ20: South Carolina | AK20: 2888.291974 | AL20: 2888291.974 | AM20: 2782.557748 | AN20: 2782557.748 | AP20: South Carolina | AR20: 2839226.874 | AT20: South Carolina | AV20: 2770001.401 | AX20: South Carolina | AZ20: 2789445.097 | BB20: South Carolina | BD20: 2713408.479
A21: KY | B21: Cement | C21: Cl | D21: KY Cement Cl | E21: 707006.562 | F21: 596631.2861 | G21: 623242.3115 | H21: 621666.6667 | I21: 629000 | J21: 693000 | K21: 684000 | L21: 727000 | M21: 745000 | N21: 759000 | O21: 680446 | P21: 973333.3333 | Q21: 989333.3333 | R21: 1013666.667 | S21: 1036154.116 | T21: 1044333.333 | U21: 1093404.075 | V21: 1105536.464 | W21: =(2955.20593986*1000)/3 -> 985068.6466 | X21: =(1773.1656573*1000)/3 -> 591055.2191 | Y21: =(2192.92741428/3)*1000 -> 730975.8048 | Z21: 1247212.907 | AA21: 1889525.137 | AB21: 1920149.888 | AC21: =$AL$21/3 -> 2198649.635 | AD21: =AR21/3 -> 2167766.336 | AE21: =AV21/3 -> 2176126.65 | AF21: =AZ21/3 -> 2061643.532 | AG21: =BD21/3 -> 2038180.099 | AJ21: Alabama, Kentucky, Tennessee | AK21: 6595.948905 | AL21: 6595948.905 | AM21: 6134.629003 | AN21: 6134629.003 | AP21: Alabama, Kentucky, Tennessee | AR21: 6503299.008 | AT21: Alabama, Kentucky, Tennessee | AV21: 6528379.951 | AX21: Alabama, Kentucky, Tennessee | AZ21: 6184930.597 | BB21: Alabama, Kentucky, Tennessee | BD21: 6114540.298
A22: LA | B22: Cement | C22: Cl | D22: LA Cement Cl | E22: 0 | F22: 0 | G22: 0 | H22: 0 | I22: 0 | J22: 0 | K22: 0 | L22: 0 | M22: 0 | N22: 0 | O22: 0 | P22: 0 | Q22: 0 | R22: 0 | S22: 0 | T22: 0 | U22: 0 | V22: 0 | W22: 0 | X22: 0 | Y22: 0 | Z22: 0 | AA22: 0 | AB22: 0 | AD22: 0 | AE22: 0 | AF22: 0 | AG22: 0 | AJ22: Arkansas and Oklahoma | AK22: 2459.046505 | AL22: 2459046.505 | AM22: 2474.898656 | AN22: 2474898.656 | AP22: Arkansas and Oklahoma | AR22: 2248404.499 | AT22: Arkansas and Oklahoma | AV22: 2413867.785 | AX22: Arkansas and Oklahoma | AZ22: 2177426.344 | BB22: Arkansas and Oklahoma | BD22: 2373606.915
A23: ME | B23: Cement | C23: Cl | D23: ME Cement Cl | E23: 1292751.52 | F23: 1281411.594 | G23: 1387099.701 | H23: 1525500 | I23: 1402000 | J23: 1475000 | K23: 1370000 | L23: 1484000 | M23: 1554500 | N23: 1551000 | O23: 1543872 | P23: 1547000 | Q23: 1554500 | R23: 1452500 | S23: 1527501.451 | T23: 1536000 | U23: 1546997.633 | V23: 1589489.725 | W23: =(2753.25567264*1000)/2 -> 1376627.836 | X23: =(1856.183063835*1000)/2 -> 928091.5319 | Y23: =(1970.956481295/2)*1000 -> 985478.2406 | Z23: 948498.6585 | AA23: 1002018.038 | AB23: 859563.2306 | AC23: =$AL$9/2 -> 868205.5285 | AD23: =AR9/2 -> 756696.6163 | AE23: =AV9/2 -> 504602.6054 | AF23: =AZ9/2 -> 709465.39 | AG23: =BD9/2 -> 894842.2945 | AJ23: Texas, northern | AK23: 4675.058149 | AL23: 4675058.149 | AM23: 4334.973543 | AN23: 4334973.543 | AP23: Texas, northern | AR23: 4276032.827 | AT23: Texas, northern | AV23: 4761688.873 | AX23: Texas, northern | AZ23: 4645907.573 | BB23: Texas, northern | BD23: 5183241.414
A24: MD | B24: Cement | C24: Cl | D24: MD Cement Cl | E24: 1662886.691 | F24: 1591218.362 | G24: 1412501.134 | H24: 1034000 | I24: 1036000 | J24: 1032000 | K24: 1562000 | L24: 1684000 | M24: 1682000 | N24: 1635000 | O24: 1652435 | P24: 1622000 | Q24: 1975000 | R24: 2083000 | S24: 2494564.584 | T24: 2458000 | U24: 2663159.502 | V24: 2828704.435 | W24: =(4832.5200639*1000)/4 -> 1208130.016 | X24: =(3610.504674315*1000)/4 -> 902626.1686 | Y24: =(4090.019078505/4)*1000 -> 1022504.77 | Z24: 1139125.216 | AA24: 1320023.121 | AB24: 1354258.242 | AC24: =$AL$19/4 -> 1396626.73 | AD24: =AR19/4 -> 1345602.563 | AE24: =AV19/4 -> 1323467.929 | AF24: =AZ19/4 -> 1364312.12 | AG24: =BD19/4 -> 1300772.429 | AJ24: Texas, southern | AK24: 6308.460164 | AL24: 6308460.164 | AM24: 5972.979522 | AN24: 5972979.522 | AP24: Texas, southern | AR24: 5631254.726 | AT24: Texas, southern | AV24: 5526225.383 | AX24: Texas, southern | AZ24: 5482728.583 | BB24: Texas, southern | BD24: 5390644.77
A25: MA | B25: Cement | C25: Cl | D25: MA Cement Cl | E25: 0 | F25: 0 | G25: 0 | H25: 0 | I25: 0 | J25: 0 | K25: 0 | L25: 0 | M25: 0 | N25: 0 | O25: 0 | P25: 0 | Q25: 0 | R25: 0 | S25: 0 | T25: 0 | U25: 0 | V25: 0 | W25: 0 | X25: 0 | Y25: 0 | Z25: 0 | AA25: 0 | AB25: 0 | AD25: 0 | AE25: 0 | AF25: 0 | AG25: 0 | AJ25: Arizona and New Mexico | AK25: 2029.995174 | AL25: 2029995.174 | AM25: 2097.732863 | AN25: 2097732.863 | AP25: Arizona and New Mexico | AR25: 2190722.955 | AT25: Arizona and New Mexico | AV25: 1936644.023 | AX25: Arizona and New Mexico | AZ25: 2284716.393 | BB25: Arizona and New Mexico | BD25: 2572383.849
A26: MI | B26: Cement | C26: Cl | D26: MI Cement Cl | E26: 4385376.032 | F26: 3965345.187 | G26: 3847409.961 | H26: 3895000 | I26: 3896000 | J26: 4150000 | K26: 4116000 | L26: 4254000 | M26: 4201000 | N26: 4252000 | O26: 4355232 | P26: 4305000 | Q26: 4082000 | R26: 4001000 | S26: 4076874.01 | T26: 4111000 | U26: 4118531.903 | V26: 4112331.294 | W26: =3545.84506344*1000 -> 3545845.063 | X26: =2586.91785978*1000 -> 2586917.86 | Y26: =2703.443051475*1000 -> 2703443.051 | Z26: 2621942.458 | AA26: 3890524.561 | AB26: 3854708.897 | AC26: =$AL$13 -> 3950655.504 | AD26: =AR13 -> 3291885.88 | AE26: =AV13 -> 3188876.838 | AF26: =AZ13 -> 2815502.171 | AG26: =BD13 -> 2630698.608 | AJ26: Colorado and Wyoming | AK26: 3186.966306 | AL26: 3186966.306 | AM26: 2996.370366 | AN26: 2996370.366 | AP26: California | AR26: 8974391.115 | AT26: California | AV26: 8930923.346 | AX26: California | AZ26: 9281657.397 | BB26: California | BD26: 9513561.098
A27: MN | B27: Cement | C27: Cl | D27: MN Cement Cl | E27: 0 | F27: 0 | G27: 0 | H27: 0 | I27: 629000 | J27: 0 | K27: 0 | L27: 0 | M27: 0 | N27: 0 | O27: 0 | P27: 0 | Q27: 0 | R27: 0 | S27: 0 | T27: 0 | U27: 0 | V27: 0 | W27: 0 | X27: 0 | Y27: 0 | Z27: 0 | AA27: 0 | AB27: 0 | AD27: 0 | AE27: 0 | AF27: 0 | AG27: 0 | AJ27: Idaho, Montana, Nevada, Utah | AK27: 2351.428963 | AL27: 2351428.963 | AM27: 3500.601933 | AN27: 3500601.933 | AP27: Colorado and Wyoming | AR27: 2973659.897 | AT27: Colorado and Wyoming | AV27: 2725728.051 | AX27: Colorado and Wyoming | AZ27: 2823592.447 | BB27: Colorado and Wyoming | BD27: 2697693.313
A28: MS | B28: Cement | C28: Cl | D28: MS Cement Cl | E28: 591036.9228 | F28: 564274.6984 | G28: 593758.5049 | H28: 621666.6667 | I28: 0 | J28: 693000 | K28: 684000 | L28: 727000 | M28: 745000 | N28: 759000 | O28: 680446 | P28: 973333.3333 | Q28: 989333.3333 | R28: 1013666.667 | S28: 1036154.116 | T28: 1044333.333 | U28: 1093404.075 | V28: 1105536.464 | W28: =(2955.20593986*1000)/3 -> 985068.6466 | X28: =(1773.1656573*1000)/3 -> 591055.2191 | Y28: =(2192.92741428/3)*1000 -> 730975.8048 | Z28: 1247212.907 | AA28: 0 | AB28: 0 | AD28: 0 | AE28: 0 | AF28: 0 | AG28: 0 | AJ28: Alaska and Hawaii | AK28: -- | AM28: -- | AP28: Idaho, Montana, Nevada, Oregon, Utah, Washington | AR28: 3669331.993 | AT28: Montana, Nevada, Oregon, Utah, Washington | AV28: 3549630.746 | AX28: Montana, Nevada, Oregon, Utah, Washington | AZ28: 3498480.935 | BB28: Montana, Nevada, Oregon, Utah, Washington | BD28: 3784486.428
A29: MO | B29: Cement | C29: Cl | D29: MO Cement Cl | E29: 4037920.711 | F29: 3954458.859 | G29: 4036106.323 | H29: 3975000 | I29: 4322000 | J29: 4160000 | K29: 4195000 | L29: 4711000 | M29: 4472000 | N29: 4526000 | O29: 4525827 | P29: 4308000 | Q29: 4512000 | R29: 4869000 | S29: 5015077.352 | T29: 4871000 | U29: 4757255.46 | V29: 4927050.555 | W29: =4464.1122354*1000 -> 4464112.235 | X29: =4122.908163495*1000 -> 4122908.163 | Y29: =5908.518584625*1000 -> 5908518.585 | Z29: 6445222.838 | AA29: 7951312.325 | AB29: 8222626.864 | AC29: =$AL$17 -> 8782350.937 | AD29: =AR17 -> 7928275.269 | AE29: =AV17 -> 7707832.035 | AF29: =AZ17 -> 8506694.61 | AG29: =BD17 -> 8478232.588 | AJ29: California | AK29: 9811.958739 | AL29: 9811958.739 | AM29: 9180.573401 | AN29: 9180573.401 | AP29: Total | AR29: 17808105.96 | AT29: Total | AV29: =SUM(AV9:AV28) -> 75327112.72 | AX29: Total | AZ29: =SUM(AZ9:AZ28) -> 76421324.27 | BB29: Total | BD29: =SUM(BD9:BD28) -> 76965073.73
A30: MT | B30: Cement | C30: Cl | D30: MT Cement Cl | E30: 506516.6773 | F30: 591188.1218 | G30: 520426.986 | H30: 485250 | I30: 517000 | J30: 522000 | K30: 519000 | L30: 556000 | M30: 626000 | N30: 663000 | O30: 694030 | P30: 673750 | Q30: 667500 | R30: 689750 | S30: 694260.6577 | T30: 699250 | U30: 700119.3434 | V30: 680502.8285 | W30: =(2587.46942826*1000)/4 -> 646867.3571 | X30: =(1671.18536271*1000)/4 -> 417796.3407 | Y30: =(1770.401464605/4)*1000 -> 442600.3662 | Z30: 487062.4858 | AA30: 609869.6312 | AB30: 524729.6386 | AC30: =$AL$27/4 -> 587857.2408 | AD30: =AR28/6 -> 611555.3321 | AE30: =AV28/5 -> 709926.1493 | AF30: =AZ28/5 -> 699696.1869 | AG30: =BD28/5 -> 756897.2856 | AJ30: Oregon and Washington | AK30: 1471.883169 | AL30: 1471883.169 | AM30: -- | AP30: Puerto Rico | AR30: 535258.2009 | AT30: Puerto Rico | AV30: 341140.569 | AX30: Puerto Rico | AZ30: 442352.4779 | BB30: Puerto Rico | BD30: NA
A31: NE | B31: Cement | C31: Cl | D31: NE Cement Cl | E31: 613867.973 | F31: 647509.7523 | G31: 694457.0444 | H31: 1115666.667 | I31: 1212000 | J31: 1157000 | K31: 1211000 | L31: 1312000 | M31: 1340000 | N31: 1297000 | O31: 1325320 | P31: 1313000 | Q31: 1375666.667 | R31: 1353333.333 | S31: 1282945.056 | T31: 1364333.333 | U31: 1407269.522 | V31: 1396892.535 | W31: =(3676.056048045*1000)/3 -> 1225352.016 | X31: =(2614.139760075*1000)/3 -> 871379.92 | Y31: =(2350.638804975/3)*1000 -> 783546.2683 | Z31: 897811.0574 | AA31: 1046628.406 | AB31: 1058825.811 | AC31: =$AL$15/3 -> 1056635.866 | AD31: =AR15/3 -> 997431.159 | AE31: =AV15/3 -> 1002857.637 | AF31: =AZ15/3 -> 1053725.919 | AG31: =BD15/3 -> 930612.7502 | AJ31: Importers8 | AK31: -- | AP31: Grand total | AR31: 76562629.22 | AT31: Grand total | AV31: 75668253.68 | AX31: Grand total | AZ31: 76863676.75 | BB31: Grand total | BD31: 76965073.73
A32: NV | B32: Cement | C32: Cl | D32: NV Cement Cl | E32: 557319.544 | F32: 953460.9453 | G32: 545526.0213 | H32: 485250 | I32: 517000 | J32: 522000 | K32: 519000 | L32: 556000 | M32: 626000 | N32: 663000 | O32: 694030 | P32: 673750 | Q32: 667500 | R32: 689750 | S32: 694260.6577 | T32: 699250 | U32: 700119.3434 | V32: 680502.8285 | W32: =(2587.46942826*1000)/4 -> 646867.3571 | X32: =(1671.18536271*1000)/4 -> 417796.3407 | Y32: =(1770.401464605/4)*1000 -> 442600.3662 | Z32: 487062.4858 | AA32: 609869.6312 | AB32: 524729.6386 | AC32: =$AL$27/4 -> 587857.2408 | AD32: =AR28/6 -> 611555.3321 | AE32: =AV28/5 -> 709926.1493 | AF32: =AZ28/5 -> 699696.1869 | AG32: =BD28/5 -> 756897.2856 | AJ32: Total9 | AK32: 80315.43403 | AL32: 80315434.03 | AM32: 105000 | AN32: 105000000
A33: NH | B33: Cement | C33: Cl | D33: NH Cement Cl | E33: 0 | F33: 0 | G33: 0 | H33: 0 | I33: 0 | J33: 0 | K33: 0 | L33: 0 | M33: 0 | N33: 0 | O33: 0 | P33: 0 | Q33: 0 | R33: 0 | S33: 0 | T33: 0 | U33: 0 | V33: 0 | W33: 0 | X33: 0 | Y33: 0 | Z33: 0 | AA33: 0 | AB33: 0 | AD33: 0 | AE33: 0 | AF33: 0 | AG33: 0 | AJ33: Puerto Rico | AK33: 588.1461792 | AL33: 588146.1792 | AM33: 1664.385104 | AN33: 1664385.104
A34: NJ | B34: Cement | C34: Cl | D34: NJ Cement Cl | E34: 0 | F34: 0 | G34: 0 | H34: 0 | I34: 0 | J34: 0 | K34: 0 | L34: 0 | M34: 0 | N34: 0 | O34: 0 | P34: 0 | Q34: 0 | R34: 0 | S34: 0 | T34: 0 | U34: 0 | V34: 0 | W34: 0 | X34: 0 | Y34: 0 | Z34: 0 | AA34: 0 | AB34: 0 | AD34: 0 | AE34: 0 | AF34: 0 | AG34: 0 | AJ34: Grand total9 | AK34: 80903.58021 | AL34: 80903580.21 | AM34: 107000 | AN34: 107000000
A35: NM | B35: Cement | C35: Cl | D35: NM Cement Cl | E35: 557319.544 | F35: 953460.9453 | G35: 545526.0213 | H35: 788500 | I35: 940000 | J35: 987000 | K35: 1055000 | L35: 1085000 | M35: 1092000 | N35: 1113000 | O35: 1094173 | P35: 1100500 | Q35: 1073500 | R35: 1277000 | S35: 1282890.625 | T35: 1302000 | U35: 1313621.57 | V35: 1249832.857 | W35: =(1980.901043265*1000)/2 -> 990450.5216 | X35: =(1125.157061505*1000)/2 -> 562578.5308 | Y35: =(1205.012928315)/2*1000 -> 602506.4642 | Z35: 602091.427 | AA35: 769891.1685 | AB35: 892238.2199 | AC35: =$AL$25/2 -> 1014997.587 | AD35: =AR25/2 -> 1095361.477 | AE35: =AV25/2 -> 968322.0115 | AF35: =AZ25/2 -> 1142358.196 | AG35: =BD25/2 -> 1286191.924
A36: NY | B36: Cement | C36: Cl | D36: NY Cement Cl | E36: 1292751.52 | F36: 1281411.594 | G36: 1387099.701 | H36: 1525500 | I36: 1402000 | J36: 1475000 | K36: 1370000 | L36: 1484000 | M36: 1554500 | N36: 1551000 | O36: 1543872 | P36: 1547000 | Q36: 1554500 | R36: 1452500 | S36: 1527501.451 | T36: 1536000 | U36: 1546997.633 | V36: =(3178.97944944*1000)/2 -> 1589489.725 | W36: =(2753.25567264*1000)/2 -> 1376627.836 | X36: =(1856.183063835*1000)/2 -> 928091.5319 | Y36: =(1970.956481295/2)*1000 -> 985478.2406 | Z36: 948498.6585 | AA36: 1002018.038 | AB36: 859563.2306 | AC36: =$AL$9/2 -> 868205.5285 | AD36: =AR9/2 -> 756696.6163 | AE36: =AV9/2 -> 504602.6054 | AF36: =AZ9/2 -> 709465.39 | AG36: =BD9/2 -> 894842.2945
A37: NC | B37: Cement | C37: Cl | D37: NC Cement Cl | E37: 0 | F37: 0 | G37: 0 | H37: 0 | I37: 0 | J37: 0 | K37: 0 | L37: 0 | M37: 0 | N37: 0 | O37: 0 | P37: 0 | Q37: 0 | R37: 0 | S37: 0 | T37: 0 | U37: 0 | V37: 0 | W37: 0 | X37: 0 | Y37: 0 | Z37: 0 | AA37: 0 | AB37: 0 | AD37: 0 | AE37: 0 | AF37: 0 | AG37: 0
A38: ND | B38: Cement | C38: Cl | D38: ND Cement Cl | E38: 0 | F38: 0 | G38: 0 | H38: 0 | I38: 0 | J38: 0 | K38: 0 | L38: 0 | M38: 0 | N38: 0 | O38: 0 | P38: 0 | Q38: 0 | R38: 0 | S38: 0 | T38: 0 | U38: 0 | V38: 0 | W38: 0 | X38: 0 | Y38: 0 | Z38: 0 | AA38: 0 | AB38: 0 | AD38: 0 | AE38: 0 | AF38: 0 | AG38: 0
A39: OH | B39: Cement | C39: Cl | D39: OH Cement Cl | E39: 1215640.025 | F39: 1233783.906 | G39: 1182981.04 | H39: 1240000 | I39: 901000 | J39: 902000 | K39: 928000 | L39: 980000 | M39: 1016000 | N39: 1062000 | O39: 1026340 | P39: 1058000 | Q39: 976000 | R39: 993000 | S39: 1014776.022 | T39: 1010000 | U39: 1048763.013 | V39: 877042.8712 | W39: =746.078923035*1000 -> 746078.923 | X39: =467.291900685*1000 -> 467291.9007 | Y39: =680.40870807*1000 -> 680408.7081 | Z39: 559826.5851 | AA39: 797273.187 | AB39: 829138.9673 | AC39: =$AL$14 -> 863776.1978 | AD39: =AR14 -> 904566.8641 | AE39: =AV14 -> 1687016 | AF39: =AZ14 -> 1662234.168 | AG39: =BD14 -> 1600861.742
A40: OK | B40: Cement | C40: Cl | D40: OK Cement Cl | E40: 1208382.473 | F40: 1216547.219 | G40: 1257370.952 | H40: 1177000 | I40: 1186000 | J40: 1250000 | K40: 1253000 | L40: 1262000 | M40: 1251000 | N40: 1231000 | O40: 1259479 | P40: 1261000 | Q40: 1265500 | R40: 1244500 | S40: 1268211.027 | T40: 1314000 | U40: 1287414.356 | V40: 1231749.485 | W40: =(2447.036283075*1000)/2 -> 1223518.142 | X40: =(1774.67884188*1000)/2 -> 887339.4209 | Y40: =(1802.62195425/2)*1000 -> 901310.9771 | Z40: 821710.4829 | AA40: 1028510.108 | AB40: 1021948.438 | AC40: =$AL$22/2 -> 1229523.253 | AD40: =AR22/2 -> 1124202.249 | AE40: =AV22/2 -> 1206933.893 | AF40: =AZ22/2 -> 1088713.172 | AG40: =BD22/2 -> 1186803.457
A41: OR | B41: Cement | C41: Cl | D41: OR Cement Cl | E41: 0 | F41: 267924.6424 | G41: 335359.4 | H41: 372500 | I41: 413000 | J41: 400000 | K41: 694000 | L41: 733000 | M41: 768000 | N41: 883000 | O41: 860339 | P41: 828000 | Q41: 830000 | R41: 715000 | S41: 816081.4076 | T41: 857500 | U41: 878790.5631 | V41: 871274.5354 | W41: =(1238.742066615*1000)/2 -> 619371.0333 | X41: =(1213.45609911*1000)/2 -> 606728.0496 | Y41: =(1090.720318905/2)*1000 -> 545360.1595 | Z41: 487062.4858 | AA41: 496579.9148 | AB41: 632861.7814 | AC41: =$AL$30/2 -> 735941.5843 | AD41: =AR28/6 -> 611555.3321 | AE41: =AV28/5 -> 709926.1493 | AF41: =AZ28/5 -> 699696.1869 | AG41: =BD28/5 -> 756897.2856
A42: PA | B42: Cement | C42: Cl | D42: PA Cement Cl | E42: 5141975.869 | F42: 4848952.191 | G42: 5327950.649 | H42: 5309000 | I42: 5511000 | J42: 5956000 | K42: 5538000 | L42: 6082000 | M42: 6290000 | N42: 6490000 | O42: 6500478 | P42: 6101000 | Q42: 6128000 | R42: 5498000 | S42: 5927972.076 | T42: 6054000 | U42: 5716820.415 | V42: 5470652.137 | W42: =(3659.87277483+1386.69577545)*1000 -> 5046568.55 | X42: =3523.09467801*1000 -> 3523094.678 | Y42: =3198.37687911*1000 -> 3198376.879 | Z42: 3144571.737 | AA42: 3360253.156 | AB42: 3619321.605 | AC42: =AL10 -> 3827594.045 | AD42: =AR10 -> 3574981.124 | AE42: =AV10 -> 3443885.634 | AF42: =AZ10 -> 3428675.77 | AG42: =BD10 -> 3145527.003
A43: PR | B43: Cement | C43: Cl | D43: PR Cement Cl | E43: 0 | F43: 0 | G43: 0 | H43: 0 | I43: 0 | J43: 1274000 | K43: 1345000 | L43: 1426000 | M43: 1319000 | N43: 1334000 | O43: 1472682 | P43: 1546000 | Q43: 1443000 | R43: 1434000 | S43: 1532786.251 | T43: 1532786.251 | U43: 1490170.204 | V43: 1335928.796 | W43: =1217.32433595*1000 -> 1217324.336 | X43: =801.673034205*1000 -> 801673.0342 | Y43: =641.73541152*1000 -> 641735.4115 | Z43: 661524.7451 | AA43: 782673.8588 | AB43: 609729.0175 | AC43: =AL33 -> 588146.1792 | AD43: =AR30 -> 535258.2009 | AE43: =AV30 -> 341140.569 | AF43: =AZ30 -> 442352.4779 | AG43: =AF43 -> 442352.4779
A44: RI | B44: Cement | C44: Cl | D44: RI Cement Cl | E44: 0 | F44: 0 | G44: 0 | H44: 0 | I44: 0 | J44: 0 | K44: 0 | L44: 0 | M44: 0 | N44: 0 | O44: 0 | P44: 0 | Q44: 0 | R44: 0 | S44: 0 | T44: 0 | U44: 0 | V44: 0 | W44: 0 | X44: 0 | Y44: 0 | Z44: 0 | AA44: 0 | AB44: 0 | AD44: 0 | AE44: 0 | AF44: 0 | AG44: 0
A45: SC | B45: Cement | C45: Cl | D45: SC Cement Cl | E45: 2139163.567 | F45: 2028485.893 | G45: 2004898.848 | H45: 1569500 | I45: 1596000 | J45: 1625000 | K45: 2175000 | L45: 2221000 | M45: 2315000 | N45: 2358000 | O45: 2510360 | P45: 2478000 | Q45: 2445000 | R45: 2628000 | S45: 3145474.547 | T45: 3147000 | U45: 3524919.027 | V45: 3511872.8 | W45: =2898.89878128*1000 -> 2898898.781 | X45: =1770.031333125*1000 -> 1770031.333 | Y45: =1905.953047305*1000 -> 1905953.047 | Z45: 2362502.063 | AA45: 2766161.286 | AB45: 2775977.935 | AC45: =AL20 -> 2888291.974 | AD45: =AR20 -> 2839226.874 | AE45: =AV20 -> 2770001.401 | AF45: =AZ20 -> 2789445.097 | AG45: =BD20 -> 2713408.479
A46: SD | B46: Cement | C46: Cl | D46: SD Cement Cl | E46: 0 | F46: 647509.7523 | G46: 694457.0444 | H46: 1115666.667 | I46: 1212000 | J46: 1157000 | K46: 1211000 | L46: 1312000 | M46: 1340000 | N46: 1297000 | O46: 1325320 | P46: 1313000 | Q46: 1375666.667 | R46: 1353333.333 | S46: 1282945.056 | T46: 1364333.333 | U46: 1407269.522 | V46: 1396892.535 | W46: =(3676.056048045*1000)/3 -> 1225352.016 | X46: =(2614.139760075*1000)/3 -> 871379.92 | Y46: =(2350.638804975/3)*1000 -> 783546.2683 | Z46: 897811.0574 | AA46: 1046628.406 | AB46: 1058825.811 | AC46: =$AL$15/3 -> 1056635.866 | AD46: =AR15/3 -> 997431.159 | AE46: =AV15/3 -> 1002857.637 | AF46: =AZ15/3 -> 1053725.919 | AG46: =BD15/3 -> 930612.7502
A47: TN | B47: Cement | C47: Cl | D47: TN Cement Cl | E47: 946656.9899 | F47: 839608.0922 | G47: 859112.7642 | H47: 621666.6667 | I47: 629000 | J47: 693000 | K47: 684000 | L47: 727000 | M47: 745000 | N47: 759000 | O47: 680446 | P47: 973333.3333 | Q47: 989333.3333 | R47: 1013666.667 | S47: 1036154.116 | T47: 1044333.333 | U47: 1093404.075 | V47: 1105536.464 | W47: =(2955.20593986*1000)/3 -> 985068.6466 | X47: =(1773.1656573*1000)/3 -> 591055.2191 | Y47: =(2192.92741428/3)*1000 -> 730975.8048 | Z47: 1247212.907 | AA47: 1889525.137 | AB47: 1920149.888 | AC47: =$AL$21/3 -> 2198649.635 | AD47: =AR21/3 -> 2167766.336 | AE47: =AV21/3 -> 2176126.65 | AF47: =AZ21/3 -> 2061643.532 | AG47: =BD21/3 -> 2038180.099
A48: TX | B48: Cement | C48: Cl | D48: TX Cement Cl | E48: 6756781.276 | F48: 6587135.988 | G48: 6985394.176 | H48: 7320000 | I48: 7587000 | J48: 7862000 | K48: 8042000 | L48: 7885000 | M48: 8072000 | N48: 8220000 | O48: 8879836 | P48: 9864000 | Q48: 10373000 | R48: 10308000 | S48: 10728760.77 | T48: 10748000 | U48: 10799957.59 | V48: 10174300.22 | W48: =SUM(6054.974531025,4385.670670005)*1000 -> 10440645.2 | X48: =(3479.5262112+4128.04555215)*1000 -> 7607571.763 | Y48: =(3374.456951685+4535.67643131)*1000 -> 7910133.383 | Z48: 8480306.413 | AA48: 9998941.36 | AB48: 10115462.02 | AC48: =SUM(AL23:AL24) -> 10983518.31 | AD48: =SUM(AR23:AR24) -> 9907287.553 | AE48: =SUM(AV23:AV24) -> 10287914.26 | AF48: =SUM(AZ23:AZ24) -> 10128636.16 | AG48: =SUM(BD23:BD24) -> 10573886.18
